Workbook

Sheet ACCUEIL
H7: 2019-07-31
A22: Lexique

Sheet Accueilagence
A1: Accueil
E7: =ACCUEIL!H7 -> 2019-07-31

Sheet Accueilsecteur
A1: Accueil
E7: =ACCUEIL!H7 -> 2019-07-31

Sheet AccueilDircom
A1: Accueil
E7: =ACCUEIL!H7 -> 2019-07-31

Sheet DC_FICHE
A1: Accueil
A2: BAROMETRE BDD
A4: UNITE: | B4: DIRECTION REGIONALE | K4: ETP perf : | L4: =VLOOKUP(A5,'RECAP DIRCOM'!$G$6:$I$12,3,FALSE) -> 298.48
A5: =VLOOKUP(B5,LISTES!$M$6:$N$12,2,FALSE) -> 262 | B5: BAS-RHIN
C6: Coefficient du critére | E6: Résultats | I6: Ecart au 1ier | M6: Evolution
E7: du 1ier | G7: DIRECTION | I7: Du mois | K7: Au 31/12/2018
A9: RANG au CLASSEMENT GENERAL | I9: =VLOOKUP($A$5,'RECAP DIRCOM'!$G$6:$FE$312,154,FALSE) -> 7 | K9: =VLOOKUP($A$5,'RECAP DIRCOM AN'!$G$6:$FE$312,154,FALSE) -> 5 | M9: =+K9-I9 -> -2
A11: CRITERE CONQUETE | C11: 15%
B12: Evolution nette Clients Bancarisés Principaux (BP +JBP) par ETP | C12: 4% | E12: ='RECAP DIRCOM'!K4 -> -0.2 | G12: =VLOOKUP($A$5,'RECAP DIRCOM'!$G$6:$FE$312,5,FALSE) -> -2.2 | I12: =VLOOKUP($A$5,'RECAP DIRCOM'!$G$6:$FE$312,6,FALSE) -> 111% | K12: =VLOOKUP($A$5,'RECAP DIRCOM AN'!$G$6:$FE$312,6,FALSE) -> 126% | M12: =+K12-I12 -> 15%
B13: Evolution nette relations Premium par ETP | C13: 4% | E13: ='RECAP DIRCOM'!N4 -> 1.9 | G13: =VLOOKUP($A$5,'RECAP DIRCOM'!$G$6:$FE$312,8,FALSE) -> 1.8 | I13: =VLOOKUP($A$5,'RECAP DIRCOM'!$G$6:$FE$312,9,FALSE) -> 8% | K13: =VLOOKUP($A$5,'RECAP DIRCOM AN'!$G$6:$FE$312,9,FALSE) -> 0% | M13: =+K13-I13 -> -8%
B14: Evolution nette Clients Bancarisés Principaux équipés par ETP | C14: 3% | E14: ='RECAP DIRCOM'!Q4 -> 2.2 | G14: =VLOOKUP($A$5,'RECAP DIRCOM'!$G$6:$FE$312,11,FALSE) -> -1.8 | I14: =VLOOKUP($A$5,'RECAP DIRCOM'!$G$6:$FE$312,12,FALSE) -> 142% | K14: =VLOOKUP($A$5,'RECAP DIRCOM AN'!$G$6:$FE$312,12,FALSE) -> 115% | M14: -27%
B15: Evolution nette Clients Pro actif équipés par rapport à l’objectif fixé | C15: 4% | E15: ='RECAP DIRCOM'!T4 -> 75% | G15: =VLOOKUP($A$5,'RECAP DIRCOM'!$G$6:$FE$312,14,FALSE) -> 6% | I15: =VLOOKUP($A$5,'RECAP DIRCOM'!$G$6:$FE$312,15,FALSE) -> 92% | K15: =VLOOKUP($A$5,'RECAP DIRCOM AN'!$G$6:$FE$312,15,FALSE) -> 134% | M15: 43%
A17: CRITERE EQUIPEMENT BANCARISATION | C17: 15%
B18: Ventes nettes forfaits (+ 2 options) par ETP | C18: 3% | E18: ='RECAP DIRCOM'!AF4 -> -9.0 | G18: =VLOOKUP($A$5,'RECAP DIRCOM'!$G$6:$FE$312,26,FALSE) -> -9.0 | I18: =VLOOKUP($A$5,'RECAP DIRCOM'!$G$6:$FE$312,27,FALSE) -> 0% | K18: =VLOOKUP($A$5,'RECAP DIRCOM AN'!$G$6:$FE$312,27,FALSE) -> 0% | M18: =+K18-I18 -> 0%
B19: Ventes nettes IZICARTES par ETP | C19: 3% | E19: ='RECAP DIRCOM'!AI4 -> 7.8 | G19: =VLOOKUP($A$5,'RECAP DIRCOM'!$G$6:$FE$312,29,FALSE) -> 3.3 | I19: =VLOOKUP($A$5,'RECAP DIRCOM'!$G$6:$FE$312,30,FALSE) -> 57% | K19: =VLOOKUP($A$5,'RECAP DIRCOM AN'!$G$6:$FE$312,30,FALSE) -> 18% | M19: -39%
B20: Ventes nettes cartes HDG par ETP | C20: 3% | E20: ='RECAP DIRCOM'!AL4 -> 12.6 | G20: =VLOOKUP($A$5,'RECAP DIRCOM'!$G$6:$FE$312,32,FALSE) -> 9.3 | I20: =VLOOKUP($A$5,'RECAP DIRCOM'!$G$6:$FE$312,33,FALSE) -> 26% | K20: =VLOOKUP($A$5,'RECAP DIRCOM AN'!$G$6:$FE$312,33,FALSE) -> 33% | M20: 7%
B21: Vente nette CB débit différé par ETP | C21: 3% | E21: ='RECAP DIRCOM'!AO4 -> 5.5 | G21: =VLOOKUP($A$5,'RECAP DIRCOM'!$G$6:$FE$312,35,FALSE) -> 5.0 | I21: =VLOOKUP($A$5,'RECAP DIRCOM'!$G$6:$FE$312,36,FALSE) -> 10% | K21: =VLOOKUP($A$5,'RECAP DIRCOM AN'!$G$6:$FE$312,36,FALSE) -> 80% | M21: 70%
B22: Ventes nettes banca Pro Forfaits Pro, Carte pro par rapport à l’objectif | C22: 3% | E22: ='RECAP DIRCOM'!AR4 -> 84% | G22: =VLOOKUP($A$5,'RECAP DIRCOM'!$G$6:$FE$312,38,FALSE) -> 29% | I22: =VLOOKUP($A$5,'RECAP DIRCOM'!$G$6:$FE$312,39,FALSE) -> 65% | K22: =VLOOKUP($A$5,'RECAP DIRCOM AN'!$G$6:$FE$312,39,FALSE) -> 98% | M22: 32%
A24: CRITERE EPARGNE | C24: 15%
B25: Excédents de collecte (y.c DAV) par ETP | C25: 2% | E25: ='RECAP DIRCOM'!BD4 -> 146.1 | G25: =VLOOKUP($A$5,'RECAP DIRCOM'!$G$6:$FE$312,50,FALSE) -> 96.6 | I25: =VLOOKUP($A$5,'RECAP DIRCOM'!$G$6:$FE$312,51,FALSE) -> 34% | K25: =VLOOKUP($A$5,'RECAP DIRCOM AN'!$G$6:$FE$312,51,FALSE) -> 21% | M25: =+K25-I25 -> -13%
B26: CA assurance vie par ETP | C26: 2% | E26: ='RECAP DIRCOM'!BG4 -> 394.3 | G26: =VLOOKUP($A$5,'RECAP DIRCOM'!$G$6:$FE$312,53,FALSE) -> 276.9 | I26: =VLOOKUP($A$5,'RECAP DIRCOM'!$G$6:$FE$312,54,FALSE) -> 30% | K26: =VLOOKUP($A$5,'RECAP DIRCOM AN'!$G$6:$FE$312,54,FALSE) -> 24% | M26: -6%
B27: Activité UC (CA+arbitrage) par ETP | C27: 2% | E27: ='RECAP DIRCOM'!BJ4 -> 129.9 | G27: =VLOOKUP($A$5,'RECAP DIRCOM'!$G$6:$FE$312,56,FALSE) -> 109.2 | I27: =VLOOKUP($A$5,'RECAP DIRCOM'!$G$6:$FE$312,57,FALSE) -> 16% | K27: =VLOOKUP($A$5,'RECAP DIRCOM AN'!$G$6:$FE$312,57,FALSE) -> 20% | M27: 4%
B28: Excédents Assurance-vie par ETP | C28: 2% | E28: ='RECAP DIRCOM'!BM4 -> 142.6 | G28: =VLOOKUP($A$5,'RECAP DIRCOM'!$G$6:$FE$312,59,FALSE) -> 50.7 | I28: =VLOOKUP($A$5,'RECAP DIRCOM'!$G$6:$FE$312,60,FALSE) -> 64% | K28: =VLOOKUP($A$5,'RECAP DIRCOM AN'!$G$6:$FE$312,60,FALSE) -> 94% | M28: 29%
B29: Excédents Epargne Bilan (Hors Emprunts CTO) par ETP | C29: 7% | E29: ='RECAP DIRCOM'!BP4 -> 68.3 | G29: =VLOOKUP($A$5,'RECAP DIRCOM'!$G$6:$FE$312,62,FALSE) -> 37.9 | I29: =VLOOKUP($A$5,'RECAP DIRCOM'!$G$6:$FE$312,63,FALSE) -> 45% | K29: =VLOOKUP($A$5,'RECAP DIRCOM AN'!$G$6:$FE$312,63,FALSE) -> 0% | M29: -45%
A31: CRITERE CREDITS | C31: 15%
B32: Engagement Conso par ETP (hors clients 9) | C32: 3% | E32: ='RECAP DIRCOM'!CB4 -> 275.1 | G32: =VLOOKUP($A$5,'RECAP DIRCOM'!$G$6:$FE$312,74,FALSE) -> 207.6 | I32: =VLOOKUP($A$5,'RECAP DIRCOM'!$G$6:$FE$312,75,FALSE) -> 25% | K32: =VLOOKUP($A$5,'RECAP DIRCOM AN'!$G$6:$FE$312,75,FALSE) -> 21% | M32: =+K32-I32 -> -4%
B33: % CNP sur Conso en valeur absolue | C33: 2% | E33: ='RECAP DIRCOM'!CE4 -> 96% | G33: =VLOOKUP($A$5,'RECAP DIRCOM'!$G$6:$FE$312,77,FALSE) -> 93% | I33: =VLOOKUP($A$5,'RECAP DIRCOM'!$G$6:$FE$312,78,FALSE) -> 3% | K33: =VLOOKUP($A$5,'RECAP DIRCOM AN'!$G$6:$FE$312,78,FALSE) -> 0% | M33: -3%
B34: Engagements Immo par rapport à l’objectif | C34: 3% | E34: ='RECAP DIRCOM'!CH4 -> 73% | G34: =VLOOKUP($A$5,'RECAP DIRCOM'!$G$6:$FE$312,80,FALSE) -> 56% | I34: =VLOOKUP($A$5,'RECAP DIRCOM'!$G$6:$FE$312,81,FALSE) -> 23% | K34: =VLOOKUP($A$5,'RECAP DIRCOM AN'!$G$6:$FE$312,81,FALSE) -> 29% | M34: 6%
B35: % CNP sur crédits immo en valeur absolue | C35: 2% | E35: ='RECAP DIRCOM'!CK4 -> 74% | G35: =VLOOKUP($A$5,'RECAP DIRCOM'!$G$6:$FE$312,83,FALSE) -> 58% | I35: =VLOOKUP($A$5,'RECAP DIRCOM'!$G$6:$FE$312,84,FALSE) -> 22% | K35: =VLOOKUP($A$5,'RECAP DIRCOM AN'!$G$6:$FE$312,84,FALSE) -> 8% | M35: -14%
B36: Taux de couverture SACCEF | C36: 2% | E36: ='RECAP DIRCOM'!CN4 -> 93% | G36: =VLOOKUP($A$5,'RECAP DIRCOM'!$G$6:$FE$312,86,FALSE) -> 83% | I36: =VLOOKUP($A$5,'RECAP DIRCOM'!$G$6:$FE$312,87,FALSE) -> 11% | K36: =VLOOKUP($A$5,'RECAP DIRCOM AN'!$G$6:$FE$312,87,FALSE) -> 0% | M36: -11%
B37: Engagements CMLT + CB par rapport à l’objectif | C37: 3% | E37: ='RECAP DIRCOM'!CQ4 -> 79% | G37: =VLOOKUP($A$5,'RECAP DIRCOM'!$G$6:$FE$312,89,FALSE) -> 60% | I37: =VLOOKUP($A$5,'RECAP DIRCOM'!$G$6:$FE$312,90,FALSE) -> 24% | K37: =VLOOKUP($A$5,'RECAP DIRCOM AN'!$G$6:$FE$312,90,FALSE) -> 13% | M37: -11%
A39: CRITERE IARD PREVOYANCE | C39: 20%
B40: Ventes nettes IARD (Auto+MRH+ Pro) par ETP | C40: 7% | E40: ='RECAP DIRCOM'!DC4 -> 6.0 | G40: =VLOOKUP($A$5,'RECAP DIRCOM'!$G$6:$FE$312,101,FALSE) -> 3.9 | I40: =VLOOKUP($A$5,'RECAP DIRCOM'!$G$6:$FE$312,102,FALSE) -> 35% | K40: =VLOOKUP($A$5,'RECAP DIRCOM AN'!$G$6:$FE$312,102,FALSE) -> 23% | M40: =+K40-I40 -> -12%
B41: Ventes nettes Prévoyance (GAV, secur.f,prevoy loc,santé,assist.vie, obséques, Pro) par ETP | C41: 7% | E41: ='RECAP DIRCOM'!DF4 -> 11.9 | G41: =VLOOKUP($A$5,'RECAP DIRCOM'!$G$6:$FE$312,104,FALSE) -> 5.8 | I41: =VLOOKUP($A$5,'RECAP DIRCOM'!$G$6:$FE$312,105,FALSE) -> 51% | K41: =VLOOKUP($A$5,'RECAP DIRCOM AN'!$G$6:$FE$312,105,FALSE) -> 7% | M41: -44%
B42: Chiffre d’affaires IARD (Yc Pro) par ETP | C42: 6% | E42: ='RECAP DIRCOM'!DI4 -> 7.7 | G42: =VLOOKUP($A$5,'RECAP DIRCOM'!$G$6:$FE$312,107,FALSE) -> 6.8 | I42: =VLOOKUP($A$5,'RECAP DIRCOM'!$G$6:$FE$312,108,FALSE) -> 12% | K42: =VLOOKUP($A$5,'RECAP DIRCOM AN'!$G$6:$FE$312,108,FALSE) -> 11% | M42: -1%
A44: CRITERE RISQUES | C44: 10%
B45: Complétude, conformité et fiabilisation des nouvelles EER sur flux BDD | C45: 3% | E45: ='RECAP DIRCOM'!DU4 -> 99% | G45: =VLOOKUP($A$5,'RECAP DIRCOM'!$G$6:$FE$312,119,FALSE) -> 96% | I45: =VLOOKUP($A$5,'RECAP DIRCOM'!$G$6:$FE$312,120,FALSE) -> 3% | K45: =VLOOKUP($A$5,'RECAP DIRCOM AN'!$G$6:$FE$312,120,FALSE) -> 3% | M45: =+K45-I45 -> 0%
B46: Complétude, conformité et fiabilisation des EER sur flux cumulé et stock | C46: 3% | E46: ='RECAP DIRCOM'!DX4 -> 78% | G46: =VLOOKUP($A$5,'RECAP DIRCOM'!$G$6:$FE$312,122,FALSE) -> 71% | I46: =VLOOKUP($A$5,'RECAP DIRCOM'!$G$6:$FE$312,123,FALSE) -> 9% | K46: =VLOOKUP($A$5,'RECAP DIRCOM AN'!$G$6:$FE$312,123,FALSE) -> 8% | M46: -1%
B47: Traitement et qualité du traitement des alertes Vigiclient | C47: 4% | E47: ='RECAP DIRCOM'!EA4 -> 100% | G47: =VLOOKUP($A$5,'RECAP DIRCOM'!$G$6:$FE$312,125,FALSE) -> 89% | I47: =VLOOKUP($A$5,'RECAP DIRCOM'!$G$6:$FE$312,126,FALSE) -> 11% | K47: =VLOOKUP($A$5,'RECAP DIRCOM AN'!$G$6:$FE$312,126,FALSE) -> 25% | M47: 14%
A49: CRITERE Satisfaction Clients | C49: 10%
B50: Objectifs NPS* | C50: 5% | E50: ='RECAP DIRCOM'!EM4 -> -5 | G50: =VLOOKUP($A$5,'RECAP DIRCOM'!$G$6:$FE$312,137,FALSE) -> -23 | I50: =VLOOKUP($A$5,'RECAP DIRCOM'!$G$6:$FE$312,138,FALSE) -> 150% | K50: =VLOOKUP($A$5,'RECAP DIRCOM AN'!$G$6:$FE$312,138,FALSE) -> 144% | M50: =+K50-I50 -> -6%
B51: Enquête Qualité Haute Définition | C51: 5% | E51: ='RECAP DIRCOM'!EP4 -> 78% | G51: =VLOOKUP($A$5,'RECAP DIRCOM'!$G$6:$FE$312,140,FALSE) -> 72% | I51: =VLOOKUP($A$5,'RECAP DIRCOM'!$G$6:$FE$312,141,FALSE) -> 7% | K51: =VLOOKUP($A$5,'RECAP DIRCOM AN'!$G$6:$FE$312,141,FALSE) -> 2% | M51: -4%

Sheet DC_OBJECTIF
A1: Accueil | D1: BAROMETRE BDD - DIRECTIONS REGIONALES
D2: PV PART SUR OBJECTIFS
D3: =ACCUEIL!H7 -> 2019-07-31
D7: Excédent de collecte par ETP yc DAV | G7: Engagements crédit conso par ETP (hors clients note octroi à 9 et DRC complet) | J7: Ventes brutes IARD prevoyance Part et Pro (si DRC complet) par ETP | M7: Evolution des Bpe+JBPe par ETP | P7: PNB sur activité nouvelle (yc bonus digital) par ETP
E8: Taux d'atteinte saisonalisé | F8: =VLOOKUP(ACCUEIL!$H$7,Tableau1[],2,FALSE) -> 64% | H8: Taux d'atteinte saisonalisé | I8: =VLOOKUP(ACCUEIL!$H$7,Tableau1[],3,FALSE) -> 64% | K8: Taux d'atteinte saisonalisé | L8: =VLOOKUP(ACCUEIL!$H$7,Tableau1[],4,FALSE) -> 64% | N8: Taux d'atteinte saisonalisé | O8: =VLOOKUP(ACCUEIL!$H$7,Tableau1[],5,FALSE) -> 64% | Q8: Taux d'atteinte saisonalisé | R8: =VLOOKUP(ACCUEIL!$H$7,Tableau1[],6,FALSE) -> 64%
A9: eds | B9: Direction | C9: ETP perf | D9: Réal | E9: Obj | F9: % | G9: Réal | H9: Obj | I9: % | J9: Réal | K9: Obj | L9: % | M9: Réal | N9: Obj | O9: % | P9: Réal | Q9: Obj | R9: % | T9: <80% | U9: 100% | V9: 110% | W9: 120%
A10: 50 | B10: Aube Haute Marne | C10: =VLOOKUP($A10,'RECAP DIRCOM'!$G$6:$EV$12,3,FALSE) -> 146 | D10: =VLOOKUP($A10,'RECAP DIRCOM'!$G$6:$FZ$12,158,FALSE) -> 136 | E10: =VLOOKUP($A10,'RECAP DIRCOM'!$G$6:$FZ$12,159,FALSE) -> 116 | F10: =VLOOKUP($A10,'RECAP DIRCOM'!$G$6:$FZ$12,160,FALSE) -> 116% | G10: =VLOOKUP($A10,'RECAP DIRCOM'!$G$6:$FZ$12,161,FALSE) -> 275 | H10: =VLOOKUP($A10,'RECAP DIRCOM'!$G$6:$FZ$12,162,FALSE) -> 467 | I10: =VLOOKUP($A10,'RECAP DIRCOM'!$G$6:$FZ$12,163,FALSE) -> 58% | J10: =VLOOKUP($A10,'RECAP DIRCOM'!$G$6:$FZ$12,164,FALSE) -> 27 | K10: =VLOOKUP($A10,'RECAP DIRCOM'!$G$6:$FZ$12,165,FALSE) -> 59 | L10: =VLOOKUP($A10,'RECAP DIRCOM'!$G$6:$FZ$12,166,FALSE) -> 45% | M10: =VLOOKUP($A10,'RECAP DIRCOM'!$G$6:$FZ$12,167,FALSE) -> 2 | N10: =VLOOKUP($A10,'RECAP DIRCOM'!$G$6:$FZ$12,168,FALSE) -> 4 | O10: =VLOOKUP($A10,'RECAP DIRCOM'!$G$6:$FZ$12,169,FALSE) -> 55% | P10: =VLOOKUP($A10,'RECAP DIRCOM'!$G$6:$FZ$12,170,FALSE) -> 79 | Q10: =VLOOKUP($A10,'RECAP DIRCOM'!$G$6:$FZ$12,171,FALSE) -> 132 | R10: =VLOOKUP($A10,'RECAP DIRCOM'!$G$6:$FZ$12,172,FALSE) -> 59% | T10: =$F$8*0.8 -> 51% | U10: =$F$8 -> 64% | V10: =$F$8*1.1 -> 70% | W10: =$F$8*1.2 -> 76%
A11: 262 | B11: Bas-Rhin | C11: =VLOOKUP($A11,'RECAP DIRCOM'!$G$6:$EV$12,3,FALSE) -> 298 | D11: =VLOOKUP($A11,'RECAP DIRCOM'!$G$6:$FZ$12,158,FALSE) -> 97 | E11: =VLOOKUP($A11,'RECAP DIRCOM'!$G$6:$FZ$12,159,FALSE) -> 128 | F11: =VLOOKUP($A11,'RECAP DIRCOM'!$G$6:$FZ$12,160,FALSE) -> 75% | G11: =VLOOKUP($A11,'RECAP DIRCOM'!$G$6:$FZ$12,161,FALSE) -> 208 | H11: =VLOOKUP($A11,'RECAP DIRCOM'!$G$6:$FZ$12,162,FALSE) -> 467 | I11: =VLOOKUP($A11,'RECAP DIRCOM'!$G$6:$FZ$12,163,FALSE) -> 44% | J11: =VLOOKUP($A11,'RECAP DIRCOM'!$G$6:$FZ$12,164,FALSE) -> 26 | K11: =VLOOKUP($A11,'RECAP DIRCOM'!$G$6:$FZ$12,165,FALSE) -> 59 | L11: =VLOOKUP($A11,'RECAP DIRCOM'!$G$6:$FZ$12,166,FALSE) -> 44% | M11: =VLOOKUP($A11,'RECAP DIRCOM'!$G$6:$FZ$12,167,FALSE) -> -2 | N11: =VLOOKUP($A11,'RECAP DIRCOM'!$G$6:$FZ$12,168,FALSE) -> 4 | O11: =VLOOKUP($A11,'RECAP DIRCOM'!$G$6:$FZ$12,169,FALSE) -> -46% | P11: =VLOOKUP($A11,'RECAP DIRCOM'!$G$6:$FZ$12,170,FALSE) -> 66 | Q11: =VLOOKUP($A11,'RECAP DIRCOM'!$G$6:$FZ$12,171,FALSE) -> 136 | R11: =VLOOKUP($A11,'RECAP DIRCOM'!$G$6:$FZ$12,172,FALSE) -> 48% | T11: =$F$8*0.8 -> 51% | U11: =$F$8 -> 64% | V11: =$F$8*1.1 -> 70% | W11: =$F$8*1.2 -> 76%
A12: 264 | B12: Haut-Rhin | C12: =VLOOKUP($A12,'RECAP DIRCOM'!$G$6:$EV$12,3,FALSE) -> 179 | D12: =VLOOKUP($A12,'RECAP DIRCOM'!$G$6:$FZ$12,158,FALSE) -> 110 | E12: =VLOOKUP($A12,'RECAP DIRCOM'!$G$6:$FZ$12,159,FALSE) -> 132 | F12: =VLOOKUP($A12,'RECAP DIRCOM'!$G$6:$FZ$12,160,FALSE) -> 83% | G12: =VLOOKUP($A12,'RECAP DIRCOM'!$G$6:$FZ$12,161,FALSE) -> 203 | H12: =VLOOKUP($A12,'RECAP DIRCOM'!$G$6:$FZ$12,162,FALSE) -> 467 | I12: =VLOOKUP($A12,'RECAP DIRCOM'!$G$6:$FZ$12,163,FALSE) -> 43% | J12: =VLOOKUP($A12,'RECAP DIRCOM'!$G$6:$FZ$12,164,FALSE) -> 24 | K12: =VLOOKUP($A12,'RECAP DIRCOM'!$G$6:$FZ$12,165,FALSE) -> 59 | L12: =VLOOKUP($A12,'RECAP DIRCOM'!$G$6:$FZ$12,166,FALSE) -> 40% | M12: =VLOOKUP($A12,'RECAP DIRCOM'!$G$6:$FZ$12,167,FALSE) -> -2 | N12: =VLOOKUP($A12,'RECAP DIRCOM'!$G$6:$FZ$12,168,FALSE) -> 4 | O12: =VLOOKUP($A12,'RECAP DIRCOM'!$G$6:$FZ$12,169,FALSE) -> -51% | P12: =VLOOKUP($A12,'RECAP DIRCOM'!$G$6:$FZ$12,170,FALSE) -> 69 | Q12: =VLOOKUP($A12,'RECAP DIRCOM'!$G$6:$FZ$12,171,FALSE) -> 140 | R12: =VLOOKUP($A12,'RECAP DIRCOM'!$G$6:$FZ$12,172,FALSE) -> 49% | T12: 51% | U12: 64% | V12: 70% | W12: 76%
A13: 30 | B13: Marne-Ardennes | C13: =VLOOKUP($A13,'RECAP DIRCOM'!$G$6:$EV$12,3,FALSE) -> 239 | D13: =VLOOKUP($A13,'RECAP DIRCOM'!$G$6:$FZ$12,158,FALSE) -> 59 | E13: =VLOOKUP($A13,'RECAP DIRCOM'!$G$6:$FZ$12,159,FALSE) -> 133 | F13: =VLOOKUP($A13,'RECAP DIRCOM'!$G$6:$FZ$12,160,FALSE) -> 44% | G13: =VLOOKUP($A13,'RECAP DIRCOM'!$G$6:$FZ$12,161,FALSE) -> 271 | H13: =VLOOKUP($A13,'RECAP DIRCOM'!$G$6:$FZ$12,162,FALSE) -> 467 | I13: =VLOOKUP($A13,'RECAP DIRCOM'!$G$6:$FZ$12,163,FALSE) -> 58% | J13: =VLOOKUP($A13,'RECAP DIRCOM'!$G$6:$FZ$12,164,FALSE) -> 32 | K13: =VLOOKUP($A13,'RECAP DIRCOM'!$G$6:$FZ$12,165,FALSE) -> 59 | L13: =VLOOKUP($A13,'RECAP DIRCOM'!$G$6:$FZ$12,166,FALSE) -> 53% | M13: =VLOOKUP($A13,'RECAP DIRCOM'!$G$6:$FZ$12,167,FALSE) -> 2 | N13: =VLOOKUP($A13,'RECAP DIRCOM'!$G$6:$FZ$12,168,FALSE) -> 4 | O13: =VLOOKUP($A13,'RECAP DIRCOM'!$G$6:$FZ$12,169,FALSE) -> 47% | P13: =VLOOKUP($A13,'RECAP DIRCOM'!$G$6:$FZ$12,170,FALSE) -> 82 | Q13: =VLOOKUP($A13,'RECAP DIRCOM'!$G$6:$FZ$12,171,FALSE) -> 140 | R13: =VLOOKUP($A13,'RECAP DIRCOM'!$G$6:$FZ$12,172,FALSE) -> 58% | T13: 51% | U13: 64% | V13: 70% | W13: 76%
A14: 110 | B14: Meurthe et Moselle Meuse | C14: =VLOOKUP($A14,'RECAP DIRCOM'!$G$6:$EV$12,3,FALSE) -> 264 | D14: =VLOOKUP($A14,'RECAP DIRCOM'!$G$6:$FZ$12,158,FALSE) -> 104 | E14: =VLOOKUP($A14,'RECAP DIRCOM'!$G$6:$FZ$12,159,FALSE) -> 118 | F14: =VLOOKUP($A14,'RECAP DIRCOM'!$G$6:$FZ$12,160,FALSE) -> 88% | G14: =VLOOKUP($A14,'RECAP DIRCOM'!$G$6:$FZ$12,161,FALSE) -> 251 | H14: =VLOOKUP($A14,'RECAP DIRCOM'!$G$6:$FZ$12,162,FALSE) -> 467 | I14: =VLOOKUP($A14,'RECAP DIRCOM'!$G$6:$FZ$12,163,FALSE) -> 53% | J14: =VLOOKUP($A14,'RECAP DIRCOM'!$G$6:$FZ$12,164,FALSE) -> 27 | K14: =VLOOKUP($A14,'RECAP DIRCOM'!$G$6:$FZ$12,165,FALSE) -> 59 | L14: =VLOOKUP($A14,'RECAP DIRCOM'!$G$6:$FZ$12,166,FALSE) -> 45% | M14: =VLOOKUP($A14,'RECAP DIRCOM'!$G$6:$FZ$12,167,FALSE) -> -0 | N14: =VLOOKUP($A14,'RECAP DIRCOM'!$G$6:$FZ$12,168,FALSE) -> 4 | O14: =VLOOKUP($A14,'RECAP DIRCOM'!$G$6:$FZ$12,169,FALSE) -> -1% | P14: =VLOOKUP($A14,'RECAP DIRCOM'!$G$6:$FZ$12,170,FALSE) -> 77 | Q14: =VLOOKUP($A14,'RECAP DIRCOM'!$G$6:$FZ$12,171,FALSE) -> 131 | R14: =VLOOKUP($A14,'RECAP DIRCOM'!$G$6:$FZ$12,172,FALSE) -> 58% | T14: 51% | U14: 64% | V14: 70% | W14: 76%
A15: 160 | B15: Moselle | C15: =VLOOKUP($A15,'RECAP DIRCOM'!$G$6:$EV$12,3,FALSE) -> 306 | D15: =VLOOKUP($A15,'RECAP DIRCOM'!$G$6:$FZ$12,158,FALSE) -> 146 | E15: =VLOOKUP($A15,'RECAP DIRCOM'!$G$6:$FZ$12,159,FALSE) -> 117 | F15: =VLOOKUP($A15,'RECAP DIRCOM'!$G$6:$FZ$12,160,FALSE) -> 125% | G15: =VLOOKUP($A15,'RECAP DIRCOM'!$G$6:$FZ$12,161,FALSE) -> 250 | H15: =VLOOKUP($A15,'RECAP DIRCOM'!$G$6:$FZ$12,162,FALSE) -> 467 | I15: =VLOOKUP($A15,'RECAP DIRCOM'!$G$6:$FZ$12,163,FALSE) -> 53% | J15: =VLOOKUP($A15,'RECAP DIRCOM'!$G$6:$FZ$12,164,FALSE) -> 27 | K15: =VLOOKUP($A15,'RECAP DIRCOM'!$G$6:$FZ$12,165,FALSE) -> 59 | L15: =VLOOKUP($A15,'RECAP DIRCOM'!$G$6:$FZ$12,166,FALSE) -> 46% | M15: =VLOOKUP($A15,'RECAP DIRCOM'!$G$6:$FZ$12,167,FALSE) -> 0 | N15: =VLOOKUP($A15,'RECAP DIRCOM'!$G$6:$FZ$12,168,FALSE) -> 4 | O15: =VLOOKUP($A15,'RECAP DIRCOM'!$G$6:$FZ$12,169,FALSE) -> 6% | P15: =VLOOKUP($A15,'RECAP DIRCOM'!$G$6:$FZ$12,170,FALSE) -> 78 | Q15: =VLOOKUP($A15,'RECAP DIRCOM'!$G$6:$FZ$12,171,FALSE) -> 134 | R15: =VLOOKUP($A15,'RECAP DIRCOM'!$G$6:$FZ$12,172,FALSE) -> 58% | T15: 51% | U15: 64% | V15: 70% | W15: 76%
A16: 80 | B16: Vosges | C16: =VLOOKUP($A16,'RECAP DIRCOM'!$G$6:$EV$12,3,FALSE) -> 149 | D16: =VLOOKUP($A16,'RECAP DIRCOM'!$G$6:$FZ$12,158,FALSE) -> 118 | E16: =VLOOKUP($A16,'RECAP DIRCOM'!$G$6:$FZ$12,159,FALSE) -> 110 | F16: =VLOOKUP($A16,'RECAP DIRCOM'!$G$6:$FZ$12,160,FALSE) -> 107% | G16: =VLOOKUP($A16,'RECAP DIRCOM'!$G$6:$FZ$12,161,FALSE) -> 233 | H16: =VLOOKUP($A16,'RECAP DIRCOM'!$G$6:$FZ$12,162,FALSE) -> 467 | I16: =VLOOKUP($A16,'RECAP DIRCOM'!$G$6:$FZ$12,163,FALSE) -> 49% | J16: =VLOOKUP($A16,'RECAP DIRCOM'!$G$6:$FZ$12,164,FALSE) -> 26 | K16: =VLOOKUP($A16,'RECAP DIRCOM'!$G$6:$FZ$12,165,FALSE) -> 59 | L16: =VLOOKUP($A16,'RECAP DIRCOM'!$G$6:$FZ$12,166,FALSE) -> 43% | M16: =VLOOKUP($A16,'RECAP DIRCOM'!$G$6:$FZ$12,167,FALSE) -> -0 | N16: =VLOOKUP($A16,'RECAP DIRCOM'!$G$6:$FZ$12,168,FALSE) -> 4 | O16: =VLOOKUP($A16,'RECAP DIRCOM'!$G$6:$FZ$12,169,FALSE) -> -9% | P16: =VLOOKUP($A16,'RECAP DIRCOM'!$G$6:$FZ$12,170,FALSE) -> 74 | Q16: =VLOOKUP($A16,'RECAP DIRCOM'!$G$6:$FZ$12,171,FALSE) -> 127 | R16: =VLOOKUP($A16,'RECAP DIRCOM'!$G$6:$FZ$12,172,FALSE) -> 58% | T16: 51% | U16: 64% | V16: 70% | W16: 76%
E17: ='RECAP DIRCOM'!GG13 -> 1 | F17: ='RECAP DIRCOM'!GH13 -> 0 | H17: ='RECAP DIRCOM'!GL13 -> 3 | I17: ='RECAP DIRCOM'!GM13 -> 4 | K17: ='RECAP DIRCOM'!GQ13 -> 6 | L17: ='RECAP DIRCOM'!GR13 -> 1 | N17: ='RECAP DIRCOM'!GV13 -> 6 | O17: ='RECAP DIRCOM'!GW13 -> 1 | Q17: ='RECAP DIRCOM'!HA13 -> 2 | R17: ='RECAP DIRCOM'!HB13 -> 5
A18: Total CEGEE Directions Régionales | C18: =SUM(C10:C16) -> 1582 | E18: ='RECAP DIRCOM'!GI13 -> 0 | F18: ='RECAP DIRCOM'!GJ13 -> 6 | H18: ='RECAP DIRCOM'!GN13 -> 0 | I18: ='RECAP DIRCOM'!GO13 -> 0 | K18: ='RECAP DIRCOM'!GS13 -> 0 | L18: ='RECAP DIRCOM'!GT13 -> 0 | N18: ='RECAP DIRCOM'!GX13 -> 0 | O18: ='RECAP DIRCOM'!GY13 -> 0 | Q18: ='RECAP DIRCOM'!HC13 -> 0 | R18: ='RECAP DIRCOM'!HD13 -> 0
B21: Taux d'atteinte objectif annuel > 110 % ou 120 % en saisonnalisé en fonction des critères (collecte 110 %, autres 120 %)
B23: Taux d'atteinte objectif annuel entre 100 % et 110 % ou 120 % en saisonnalisé en fonction des critères (collecte 110 %, autres 120 %)
B25: Taux d'atteinte objectif annuel entre 80 % et 100 % en saisonnalisé
B27: Taux d'atteinte objectif annuel < 80 % en saisonnalisé

Sheet DC_TOTAL
A1: Accueil | D1: BAROMETRE BDD - DIRECTIONS REGIONALES
D2: TOTAL GENERAL
D3: =ACCUEIL!H7 -> 2019-07-31
D7: TOTAL GENERAL | G7: Total Conquête | J7: Total Equipement Bancarisation | M7: Total Epargne | P7: Total Crédits | S7: Total IARD Prévoyance | V7: Total Risques | Y7: Total Satisfaction Clients
E8: coef | F8: 100% | H8: coef | I8: ='RECAP DIRCOM'!$Y$4 -> 15% | K8: coef | L8: ='RECAP DIRCOM'!$AW$4 -> 15% | N8: coef | O8: ='RECAP DIRCOM'!$BU$4 -> 15% | Q8: coef | R8: ='RECAP DIRCOM'!$CV$4 -> 15% | T8: coef | U8: ='RECAP DIRCOM'!$DN$4 -> 20% | W8: coef | X8: ='RECAP DIRCOM'!$EF$4 -> 10% | Z8: coef | AA8: ='RECAP DIRCOM'!$EU$4 -> 10%
A9: eds | B9: Direction | C9: ETP perf | D9: Moyenne ecart au 1er | E9: % Ecart au 1er | F9: Rang CEGEE | G9: Moyenne ecart au 1er | H9: % Ecart au 1er | I9: Rang CEGEE | J9: Moyenne ecart au 1er | K9: % Ecart au 1er | L9: Rang CEGEE | M9: Moyenne ecart au 1er | N9: % Ecart au 1er | O9: Rang CEGEE | P9: Moyenne ecart au 1er | Q9: % Ecart au 1er | R9: Rang CEGEE | S9: Moyenne ecart au 1er | T9: % Ecart au 1er | U9: Rang CEGEE | V9: Moyenne ecart au 1er | W9: % Ecart au 1er | X9: Rang CEGEE | Y9: Moyenne ecart au 1er | Z9: % Ecart au 1er | AA9: Rang CEGEE
A10: 30 | B10: Marne-Ardennes | C10: 239 | D10: 6% | E10: 0% | F10: 1 | G10: 32% | H10: 0% | I10: 1 | J10: 18% | K10: 0% | L10: 1 | M10: 58% | N10: 36% | O10: 6 | P10: 4% | Q10: 0% | R10: 1 | S10: 3% | T10: 0% | U10: 1 | V10: 3% | W10: 1% | X10: 4 | Y10: 0% | Z10: 0% | AA10: 1
A11: 160 | B11: Moselle | C11: 306 | D11: 14% | E11: 9% | F11: 2 | G11: 53% | H11: 21% | I11: 3 | J11: 28% | K11: 10% | L11: 4 | M11: 34% | N11: 13% | O11: 2 | P11: 17% | Q11: 13% | R11: 6 | S11: 19% | T11: 15% | U11: 3 | V11: 1% | W11: 0% | X11: 2 | Y11: 30% | Z11: 30% | AA11: 4
A12: 50 | B12: Aube Haute Marne | C12: 146 | D12: 15% | E12: 9% | F12: 3 | G12: 42% | H12: 10% | I12: 2 | J12: 24% | K12: 6% | L12: 3 | M12: 66% | N12: 45% | O12: 7 | P12: 11% | Q12: 7% | R12: 3 | S12: 20% | T12: 17% | U12: 4 | V12: 1% | W12: 0% | X12: 1 | Y12: 14% | Z12: 14% | AA12: 2
A13: 80 | B13: Vosges | C13: 149 | D13: 19% | E13: 13% | F13: 4 | G13: 73% | H13: 41% | I13: 5 | J13: 23% | K13: 5% | L13: 2 | M13: 49% | N13: 28% | O13: 5 | P13: 8% | Q13: 4% | R13: 2 | S13: 24% | T13: 21% | U13: 5 | V13: 2% | W13: 1% | X13: 3 | Y13: 29% | Z13: 29% | AA13: 3
A14: 110 | B14: Meurthe et Moselle Meuse | C14: 264 | D14: 20% | E14: 14% | F14: 5 | G14: 64% | H14: 31% | I14: 4 | J14: 43% | K14: 25% | L14: 6 | M14: 44% | N14: 23% | O14: 4 | P14: 13% | Q14: 9% | R14: 4 | S14: 16% | T14: 12% | U14: 2 | V14: 7% | W14: 6% | X14: 6 | Y14: 35% | Z14: 35% | AA14: 5
A15: 264 | B15: Haut-Rhin | C15: 179 | D15: 29% | E15: 24% | F15: 6 | G15: 94% | H15: 62% | I15: 7 | J15: 48% | K15: 30% | L15: 7 | M15: 21% | N15: 0% | O15: 1 | P15: 14% | Q15: 10% | R15: 5 | S15: 38% | T15: 34% | U15: 7 | V15: 3% | W15: 2% | X15: 5 | Y15: 69% | Z15: 69% | AA15: 6
A16: 262 | B16: Bas-Rhin | C16: 298 | D16: 30% | E16: 24% | F16: 7 | G16: 85% | H16: 52% | I16: 6 | J16: 32% | K16: 14% | L16: 5 | M16: 40% | N16: 19% | O16: 3 | P16: 19% | Q16: 15% | R16: 7 | S16: 34% | T16: 31% | U16: 6 | V16: 8% | W16: 7% | X16: 7 | Y16: 78% | Z16: 78% | AA16: 7
A17: Total CEGEE Directions Régionales | C17: =SUM(C10:C16) -> 1582

Sheet DC_BANCA
A1: Accueil | D1: BAROMETRE BDD - DIRECTIONS REGIONALES
D2: EQUIPEMENT BANCARISATION
D3: =ACCUEIL!H7 -> 2019-07-31
D7: Ventes nettes FORFAITS avec 2 options | G7: Ventes nettes IZICARTES | J7: Ventes nettes Cartes HDG | M7: Ventes nettes CB débit différé | P7: Ventes nettes banca Pro | S7: Total Equipement Bancarisation
E8: coef | F8: ='RECAP DIRCOM'!AH4 -> 3% | H8: coef | I8: ='RECAP DIRCOM'!AK4 -> 3% | K8: coef | L8: ='RECAP DIRCOM'!AN4 -> 3% | N8: coef | O8: ='RECAP DIRCOM'!AQ4 -> 3% | Q8: coef | R8: ='RECAP DIRCOM'!AT4 -> 3% | T8: coef | U8: ='RECAP DIRCOM'!AW4 -> 15%
A9: eds | B9: Direction | C9: ETP perf | D9: Nb / ETP | E9: % Ecart au 1er | F9: Rang | G9: Nb / ETP | H9: % Ecart au 1er | I9: Rang | J9: Nb / ETP | K9: % Ecart au 1er | L9: Rang | M9: Nb / ETP | N9: % Ecart au 1er | O9: Rang | P9: Taux réal objectif | Q9: % Ecart au 1er | R9: Rang | S9: Moyenne ecart au 1er | T9: % Ecart au 1er | U9: Rang CEGEE
A10: 50 | B10: Aube Haute Marne | C10: =VLOOKUP($A10,'RECAP DIRCOM'!$G$6:$EV$12,3,FALSE) -> 146 | D10: =VLOOKUP($A10,'RECAP DIRCOM'!$G$6:$EV$12,26,FALSE) -> -13.24 | E10: =VLOOKUP($A10,'RECAP DIRCOM'!$G$6:$EV$12,27,FALSE) -> 47% | F10: =VLOOKUP($A10,'RECAP DIRCOM'!$G$6:$EV$12,28,FALSE) -> 4 | G10: =VLOOKUP($A10,'RECAP DIRCOM'!$G$6:$EV$12,29,FALSE) -> 4.42 | H10: =VLOOKUP($A10,'RECAP DIRCOM'!$G$6:$EV$12,30,FALSE) -> 43% | I10: =VLOOKUP($A10,'RECAP DIRCOM'!$G$6:$EV$12,31,FALSE) -> 4 | J10: =VLOOKUP($A10,'RECAP DIRCOM'!$G$6:$EV$12,32,FALSE) -> 9.67 | K10: =VLOOKUP($A10,'RECAP DIRCOM'!$G$6:$EV$12,33,FALSE) -> 23% | L10: =VLOOKUP($A10,'RECAP DIRCOM'!$G$6:$EV$12,34,FALSE) -> 3 | M10: =VLOOKUP($A10,'RECAP DIRCOM'!$G$6:$EV$12,35,FALSE) -> 5.36 | N10: =VLOOKUP($A10,'RECAP DIRCOM'!$G$6:$EV$12,36,FALSE) -> 3% | O10: =VLOOKUP($A10,'RECAP DIRCOM'!$G$6:$EV$12,37,FALSE) -> 2 | P10: =VLOOKUP($A10,'RECAP DIRCOM'!$G$6:$EV$12,38,FALSE) -> 81% | Q10: =VLOOKUP($A10,'RECAP DIRCOM'!$G$6:$EV$12,39,FALSE) -> 3% | R10: =VLOOKUP($A10,'RECAP DIRCOM'!$G$6:$EV$12,40,FALSE) -> 3 | S10: =VLOOKUP($A10,'RECAP DIRCOM'!$G$6:$EV$12,41,FALSE) -> 24% | T10: =VLOOKUP($A10,'RECAP DIRCOM'!$G$6:$EV$12,42,FALSE) -> 6% | U10: =VLOOKUP($A10,'RECAP DIRCOM'!$G$6:$EV$12,43,FALSE) -> 3
A11: 262 | B11: Bas-Rhin | C11: =VLOOKUP($A11,'RECAP DIRCOM'!$G$6:$EV$12,3,FALSE) -> 298 | D11: =VLOOKUP($A11,'RECAP DIRCOM'!$G$6:$EV$12,26,FALSE) -> -9.02 | E11: =VLOOKUP($A11,'RECAP DIRCOM'!$G$6:$EV$12,27,FALSE) -> 0% | F11: =VLOOKUP($A11,'RECAP DIRCOM'!$G$6:$EV$12,28,FALSE) -> 1 | G11: =VLOOKUP($A11,'RECAP DIRCOM'!$G$6:$EV$12,29,FALSE) -> 3.33 | H11: =VLOOKUP($A11,'RECAP DIRCOM'!$G$6:$EV$12,30,FALSE) -> 57% | I11: =VLOOKUP($A11,'RECAP DIRCOM'!$G$6:$EV$12,31,FALSE) -> 6 | J11: =VLOOKUP($A11,'RECAP DIRCOM'!$G$6:$EV$12,32,FALSE) -> 9.32 | K11: =VLOOKUP($A11,'RECAP DIRCOM'!$G$6:$EV$12,33,FALSE) -> 26% | L11: =VLOOKUP($A11,'RECAP DIRCOM'!$G$6:$EV$12,34,FALSE) -> 4 | M11: =VLOOKUP($A11,'RECAP DIRCOM'!$G$6:$EV$12,35,FALSE) -> 5.00 | N11: =VLOOKUP($A11,'RECAP DIRCOM'!$G$6:$EV$12,36,FALSE) -> 10% | O11: =VLOOKUP($A11,'RECAP DIRCOM'!$G$6:$EV$12,37,FALSE) -> 3 | P11: =VLOOKUP($A11,'RECAP DIRCOM'!$G$6:$EV$12,38,FALSE) -> 29% | Q11: =VLOOKUP($A11,'RECAP DIRCOM'!$G$6:$EV$12,39,FALSE) -> 65% | R11: =VLOOKUP($A11,'RECAP DIRCOM'!$G$6:$EV$12,40,FALSE) -> 6 | S11: =VLOOKUP($A11,'RECAP DIRCOM'!$G$6:$EV$12,41,FALSE) -> 32% | T11: =VLOOKUP($A11,'RECAP DIRCOM'!$G$6:$EV$12,42,FALSE) -> 14% | U11: =VLOOKUP($A11,'RECAP DIRCOM'!$G$6:$EV$12,43,FALSE) -> 5
A12: 264 | B12: Haut-Rhin | C12: =VLOOKUP($A12,'RECAP DIRCOM'!$G$6:$EV$12,3,FALSE) -> 179 | D12: =VLOOKUP($A12,'RECAP DIRCOM'!$G$6:$EV$12,26,FALSE) -> -10.01 | E12: =VLOOKUP($A12,'RECAP DIRCOM'!$G$6:$EV$12,27,FALSE) -> 11% | F12: =VLOOKUP($A12,'RECAP DIRCOM'!$G$6:$EV$12,28,FALSE) -> 2 | G12: =VLOOKUP($A12,'RECAP DIRCOM'!$G$6:$EV$12,29,FALSE) -> 3.25 | H12: =VLOOKUP($A12,'RECAP DIRCOM'!$G$6:$EV$12,30,FALSE) -> 58% | I12: =VLOOKUP($A12,'RECAP DIRCOM'!$G$6:$EV$12,31,FALSE) -> 7 | J12: =VLOOKUP($A12,'RECAP DIRCOM'!$G$6:$EV$12,32,FALSE) -> 6.66 | K12: =VLOOKUP($A12,'RECAP DIRCOM'!$G$6:$EV$12,33,FALSE) -> 47% | L12: =VLOOKUP($A12,'RECAP DIRCOM'!$G$6:$EV$12,34,FALSE) -> 7 | M12: =VLOOKUP($A12,'RECAP DIRCOM'!$G$6:$EV$12,35,FALSE) -> 2.46 | N12: =VLOOKUP($A12,'RECAP DIRCOM'!$G$6:$EV$12,36,FALSE) -> 56% | O12: =VLOOKUP($A12,'RECAP DIRCOM'!$G$6:$EV$12,37,FALSE) -> 7 | P12: =VLOOKUP($A12,'RECAP DIRCOM'!$G$6:$EV$12,38,FALSE) -> 29% | Q12: =VLOOKUP($A12,'RECAP DIRCOM'!$G$6:$EV$12,39,FALSE) -> 66% | R12: =VLOOKUP($A12,'RECAP DIRCOM'!$G$6:$EV$12,40,FALSE) -> 7 | S12: =VLOOKUP($A12,'RECAP DIRCOM'!$G$6:$EV$12,41,FALSE) -> 48% | T12: =VLOOKUP($A12,'RECAP DIRCOM'!$G$6:$EV$12,42,FALSE) -> 30% | U12: =VLOOKUP($A12,'RECAP DIRCOM'!$G$6:$EV$12,43,FALSE) -> 7
A13: 30 | B13: Marne-Ardennes | C13: =VLOOKUP($A13,'RECAP DIRCOM'!$G$6:$EV$12,3,FALSE) -> 239 | D13: =VLOOKUP($A13,'RECAP DIRCOM'!$G$6:$EV$12,26,FALSE) -> -13.89 | E13: =VLOOKUP($A13,'RECAP DIRCOM'!$G$6:$EV$12,27,FALSE) -> 54% | F13: =VLOOKUP($A13,'RECAP DIRCOM'!$G$6:$EV$12,28,FALSE) -> 5 | G13: =VLOOKUP($A13,'RECAP DIRCOM'!$G$6:$EV$12,29,FALSE) -> 7.76 | H13: =VLOOKUP($A13,'RECAP DIRCOM'!$G$6:$EV$12,30,FALSE) -> 0% | I13: =VLOOKUP($A13,'RECAP DIRCOM'!$G$6:$EV$12,31,FALSE) -> 1 | J13: =VLOOKUP($A13,'RECAP DIRCOM'!$G$6:$EV$12,32,FALSE) -> 8.30 | K13: =VLOOKUP($A13,'RECAP DIRCOM'!$G$6:$EV$12,33,FALSE) -> 34% | L13: =VLOOKUP($A13,'RECAP DIRCOM'!$G$6:$EV$12,34,FALSE) -> 5 | M13: =VLOOKUP($A13,'RECAP DIRCOM'!$G$6:$EV$12,35,FALSE) -> 5.55 | N13: =VLOOKUP($A13,'RECAP DIRCOM'!$G$6:$EV$12,36,FALSE) -> 0% | O13: =VLOOKUP($A13,'RECAP DIRCOM'!$G$6:$EV$12,37,FALSE) -> 1 | P13: =VLOOKUP($A13,'RECAP DIRCOM'!$G$6:$EV$12,38,FALSE) -> 83% | Q13: =VLOOKUP($A13,'RECAP DIRCOM'!$G$6:$EV$12,39,FALSE) -> 1% | R13: =VLOOKUP($A13,'RECAP DIRCOM'!$G$6:$EV$12,40,FALSE) -> 2 | S13: =VLOOKUP($A13,'RECAP DIRCOM'!$G$6:$EV$12,41,FALSE) -> 18% | T13: =VLOOKUP($A13,'RECAP DIRCOM'!$G$6:$EV$12,42,FALSE) -> 0% | U13: =VLOOKUP($A13,'RECAP DIRCOM'!$G$6:$EV$12,43,FALSE) -> 1
A14: 110 | B14: Meurthe et Moselle Meuse | C14: =VLOOKUP($A14,'RECAP DIRCOM'!$G$6:$EV$12,3,FALSE) -> 264 | D14: =VLOOKUP($A14,'RECAP DIRCOM'!$G$6:$EV$12,26,FALSE) -> -14.96 | E14: =VLOOKUP($A14,'RECAP DIRCOM'!$G$6:$EV$12,27,FALSE) -> 66% | F14: =VLOOKUP($A14,'RECAP DIRCOM'!$G$6:$EV$12,28,FALSE) -> 7 | G14: =VLOOKUP($A14,'RECAP DIRCOM'!$G$6:$EV$12,29,FALSE) -> 5.95 | H14: =VLOOKUP($A14,'RECAP DIRCOM'!$G$6:$EV$12,30,FALSE) -> 23% | I14: =VLOOKUP($A14,'RECAP DIRCOM'!$G$6:$EV$12,31,FALSE) -> 2 | J14: =VLOOKUP($A14,'RECAP DIRCOM'!$G$6:$EV$12,32,FALSE) -> 9.69 | K14: =VLOOKUP($A14,'RECAP DIRCOM'!$G$6:$EV$12,33,FALSE) -> 23% | L14: =VLOOKUP($A14,'RECAP DIRCOM'!$G$6:$EV$12,34,FALSE) -> 2 | M14: =VLOOKUP($A14,'RECAP DIRCOM'!$G$6:$EV$12,35,FALSE) -> 2.66 | N14: =VLOOKUP($A14,'RECAP DIRCOM'!$G$6:$EV$12,36,FALSE) -> 52% | O14: =VLOOKUP($A14,'RECAP DIRCOM'!$G$6:$EV$12,37,FALSE) -> 6 | P14: =VLOOKUP($A14,'RECAP DIRCOM'!$G$6:$EV$12,38,FALSE) -> 41% | Q14: =VLOOKUP($A14,'RECAP DIRCOM'!$G$6:$EV$12,39,FALSE) -> 52% | R14: =VLOOKUP($A14,'RECAP DIRCOM'!$G$6:$EV$12,40,FALSE) -> 5 | S14: =VLOOKUP($A14,'RECAP DIRCOM'!$G$6:$EV$12,41,FALSE) -> 43% | T14: =VLOOKUP($A14,'RECAP DIRCOM'!$G$6:$EV$12,42,FALSE) -> 25% | U14: =VLOOKUP($A14,'RECAP DIRCOM'!$G$6:$EV$12,43,FALSE) -> 6
A15: 160 | B15: Moselle | C15: =VLOOKUP($A15,'RECAP DIRCOM'!$G$6:$EV$12,3,FALSE) -> 306 | D15: =VLOOKUP($A15,'RECAP DIRCOM'!$G$6:$EV$12,26,FALSE) -> -14.22 | E15: =VLOOKUP($A15,'RECAP DIRCOM'!$G$6:$EV$12,27,FALSE) -> 58% | F15: =VLOOKUP($A15,'RECAP DIRCOM'!$G$6:$EV$12,28,FALSE) -> 6 | G15: =VLOOKUP($A15,'RECAP DIRCOM'!$G$6:$EV$12,29,FALSE) -> 4.42 | H15: =VLOOKUP($A15,'RECAP DIRCOM'!$G$6:$EV$12,30,FALSE) -> 43% | I15: =VLOOKUP($A15,'RECAP DIRCOM'!$G$6:$EV$12,31,FALSE) -> 5 | J15: =VLOOKUP($A15,'RECAP DIRCOM'!$G$6:$EV$12,32,FALSE) -> 12.59 | K15: =VLOOKUP($A15,'RECAP DIRCOM'!$G$6:$EV$12,33,FALSE) -> 0% | L15: =VLOOKUP($A15,'RECAP DIRCOM'!$G$6:$EV$12,34,FALSE) -> 1 | M15: =VLOOKUP($A15,'RECAP DIRCOM'!$G$6:$EV$12,35,FALSE) -> 3.88 | N15: =VLOOKUP($A15,'RECAP DIRCOM'!$G$6:$EV$12,36,FALSE) -> 30% | O15: =VLOOKUP($A15,'RECAP DIRCOM'!$G$6:$EV$12,37,FALSE) -> 5 | P15: =VLOOKUP($A15,'RECAP DIRCOM'!$G$6:$EV$12,38,FALSE) -> 78% | Q15: =VLOOKUP($A15,'RECAP DIRCOM'!$G$6:$EV$12,39,FALSE) -> 7% | R15: =VLOOKUP($A15,'RECAP DIRCOM'!$G$6:$EV$12,40,FALSE) -> 4 | S15: =VLOOKUP($A15,'RECAP DIRCOM'!$G$6:$EV$12,41,FALSE) -> 28% | T15: =VLOOKUP($A15,'RECAP DIRCOM'!$G$6:$EV$12,42,FALSE) -> 10% | U15: =VLOOKUP($A15,'RECAP DIRCOM'!$G$6:$EV$12,43,FALSE) -> 4
A16: 80 | B16: Vosges | C16: =VLOOKUP($A16,'RECAP DIRCOM'!$G$6:$EV$12,3,FALSE) -> 149 | D16: =VLOOKUP($A16,'RECAP DIRCOM'!$G$6:$EV$12,26,FALSE) -> -11.23 | E16: =VLOOKUP($A16,'RECAP DIRCOM'!$G$6:$EV$12,27,FALSE) -> 25% | F16: =VLOOKUP($A16,'RECAP DIRCOM'!$G$6:$EV$12,28,FALSE) -> 3 | G16: =VLOOKUP($A16,'RECAP DIRCOM'!$G$6:$EV$12,29,FALSE) -> 5.22 | H16: =VLOOKUP($A16,'RECAP DIRCOM'!$G$6:$EV$12,30,FALSE) -> 33% | I16: =VLOOKUP($A16,'RECAP DIRCOM'!$G$6:$EV$12,31,FALSE) -> 3 | J16: =VLOOKUP($A16,'RECAP DIRCOM'!$G$6:$EV$12,32,FALSE) -> 8.29 | K16: =VLOOKUP($A16,'RECAP DIRCOM'!$G$6:$EV$12,33,FALSE) -> 34% | L16: =VLOOKUP($A16,'RECAP DIRCOM'!$G$6:$EV$12,34,FALSE) -> 6 | M16: =VLOOKUP($A16,'RECAP DIRCOM'!$G$6:$EV$12,35,FALSE) -> 4.19 | N16: =VLOOKUP($A16,'RECAP DIRCOM'!$G$6:$EV$12,36,FALSE) -> 24% | O16: =VLOOKUP($A16,'RECAP DIRCOM'!$G$6:$EV$12,37,FALSE) -> 4 | P16: =VLOOKUP($A16,'RECAP DIRCOM'!$G$6:$EV$12,38,FALSE) -> 84% | Q16: =VLOOKUP($A16,'RECAP DIRCOM'!$G$6:$EV$12,39,FALSE) -> 0% | R16: =VLOOKUP($A16,'RECAP DIRCOM'!$G$6:$EV$12,40,FALSE) -> 1 | S16: =VLOOKUP($A16,'RECAP DIRCOM'!$G$6:$EV$12,41,FALSE) -> 23% | T16: =VLOOKUP($A16,'RECAP DIRCOM'!$G$6:$EV$12,42,FALSE) -> 5% | U16: =VLOOKUP($A16,'RECAP DIRCOM'!$G$6:$EV$12,43,FALSE) -> 2
A17: Total CEGEE Directions Régionales | C17: =SUM(C10:C16) -> 1582

Sheet DC_EPARGNE
A1: Accueil | D1: BAROMETRE BDD - DIRECTIONS REGIONALES
D2: EPARGNE
D3: =ACCUEIL!H7 -> 2019-07-31
D7: Excédent de collecte yc DAV | G7: CA assurance vie | J7: Activité UC (CA+Arbitrage) | M7: Excédent assurance vie | P7: Excédent Epargne Bilan (hors emprunt CTO) | S7: Total Epargne
E8: coef | F8: ='RECAP DIRCOM'!BF4 -> 2% | H8: coef | I8: ='RECAP DIRCOM'!BI4 -> 2% | K8: coef | L8: ='RECAP DIRCOM'!BL4 -> 2% | N8: coef | O8: ='RECAP DIRCOM'!BO4 -> 2% | Q8: coef | R8: ='RECAP DIRCOM'!BR4 -> 7% | T8: coef | U8: ='RECAP DIRCOM'!BU4 -> 15%
A9: eds | B9: Direction | C9: ETP perf | D9: Réal / ETP | E9: % Ecart au 1er | F9: Rang | G9: Réal / ETP | H9: % Ecart au 1er | I9: Rang | J9: Réal / ETP | K9: % Ecart au 1er | L9: Rang | M9: Réal / ETP | N9: % Ecart au 1er | O9: Rang | P9: Réal / ETP | Q9: % Ecart au 1er | R9: Rang | S9: Moyenne ecart au 1er | T9: % Ecart au 1er | U9: Rang CEGEE
A10: 50 | B10: Aube Haute Marne | C10: =VLOOKUP($A10,'RECAP DIRCOM'!$G$6:$EV$12,3,FALSE) -> 146 | D10: =VLOOKUP($A10,'RECAP DIRCOM'!$G$6:$EV$12,50,FALSE) -> 135.76 | E10: =VLOOKUP($A10,'RECAP DIRCOM'!$G$6:$EV$12,51,FALSE) -> 7% | F10: =VLOOKUP($A10,'RECAP DIRCOM'!$G$6:$EV$12,52,FALSE) -> 2 | G10: =VLOOKUP($A10,'RECAP DIRCOM'!$G$6:$EV$12,53,FALSE) -> 373.05 | H10: =VLOOKUP($A10,'RECAP DIRCOM'!$G$6:$EV$12,54,FALSE) -> 5% | I10: =VLOOKUP($A10,'RECAP DIRCOM'!$G$6:$EV$12,55,FALSE) -> 3 | J10: =VLOOKUP($A10,'RECAP DIRCOM'!$G$6:$EV$12,56,FALSE) -> 130 | K10: =VLOOKUP($A10,'RECAP DIRCOM'!$G$6:$EV$12,57,FALSE) -> 0% | L10: =VLOOKUP($A10,'RECAP DIRCOM'!$G$6:$EV$12,58,FALSE) -> 1 | M10: =VLOOKUP($A10,'RECAP DIRCOM'!$G$6:$EV$12,59,FALSE) -> 97.40 | N10: =VLOOKUP($A10,'RECAP DIRCOM'!$G$6:$EV$12,60,FALSE) -> 32% | O10: =VLOOKUP($A10,'RECAP DIRCOM'!$G$6:$EV$12,61,FALSE) -> 4 | P10: =VLOOKUP($A10,'RECAP DIRCOM'!$G$6:$EV$12,62,FALSE) -> -20.42 | Q10: =VLOOKUP($A10,'RECAP DIRCOM'!$G$6:$EV$12,63,FALSE) -> 130% | R10: =VLOOKUP($A10,'RECAP DIRCOM'!$G$6:$EV$12,64,FALSE) -> 7 | S10: =VLOOKUP($A10,'RECAP DIRCOM'!$G$6:$EV$12,65,FALSE) -> 66% | T10: =VLOOKUP($A10,'RECAP DIRCOM'!$G$6:$EV$12,66,FALSE) -> 45% | U10: =VLOOKUP($A10,'RECAP DIRCOM'!$G$6:$EV$12,67,FALSE) -> 7
A11: 262 | B11: Bas-Rhin | C11: =VLOOKUP($A11,'RECAP DIRCOM'!$G$6:$EV$12,3,FALSE) -> 298 | D11: =VLOOKUP($A11,'RECAP DIRCOM'!$G$6:$EV$12,50,FALSE) -> 96.61 | E11: =VLOOKUP($A11,'RECAP DIRCOM'!$G$6:$EV$12,51,FALSE) -> 34% | F11: =VLOOKUP($A11,'RECAP DIRCOM'!$G$6:$EV$12,52,FALSE) -> 6 | G11: =VLOOKUP($A11,'RECAP DIRCOM'!$G$6:$EV$12,53,FALSE) -> 276.87 | H11: =VLOOKUP($A11,'RECAP DIRCOM'!$G$6:$EV$12,54,FALSE) -> 30% | I11: =VLOOKUP($A11,'RECAP DIRCOM'!$G$6:$EV$12,55,FALSE) -> 6 | J11: =VLOOKUP($A11,'RECAP DIRCOM'!$G$6:$EV$12,56,FALSE) -> 109 | K11: =VLOOKUP($A11,'RECAP DIRCOM'!$G$6:$EV$12,57,FALSE) -> 16% | L11: =VLOOKUP($A11,'RECAP DIRCOM'!$G$6:$EV$12,58,FALSE) -> 3 | M11: =VLOOKUP($A11,'RECAP DIRCOM'!$G$6:$EV$12,59,FALSE) -> 50.73 | N11: =VLOOKUP($A11,'RECAP DIRCOM'!$G$6:$EV$12,60,FALSE) -> 64% | O11: =VLOOKUP($A11,'RECAP DIRCOM'!$G$6:$EV$12,61,FALSE) -> 6 | P11: =VLOOKUP($A11,'RECAP DIRCOM'!$G$6:$EV$12,62,FALSE) -> 37.92 | Q11: =VLOOKUP($A11,'RECAP DIRCOM'!$G$6:$EV$12,63,FALSE) -> 45% | R11: =VLOOKUP($A11,'RECAP DIRCOM'!$G$6:$EV$12,64,FALSE) -> 2 | S11: =VLOOKUP($A11,'RECAP DIRCOM'!$G$6:$EV$12,65,FALSE) -> 40% | T11: =VLOOKUP($A11,'RECAP DIRCOM'!$G$6:$EV$12,66,FALSE) -> 19% | U11: =VLOOKUP($A11,'RECAP DIRCOM'!$G$6:$EV$12,67,FALSE) -> 3
A12: 264 | B12: Haut-Rhin | C12: =VLOOKUP($A12,'RECAP DIRCOM'!$G$6:$EV$12,3,FALSE) -> 179 | D12: =VLOOKUP($A12,'RECAP DIRCOM'!$G$6:$EV$12,50,FALSE) -> 109.52 | E12: =VLOOKUP($A12,'RECAP DIRCOM'!$G$6:$EV$12,51,FALSE) -> 25% | F12: =VLOOKUP($A12,'RECAP DIRCOM'!$G$6:$EV$12,52,FALSE) -> 4 | G12: =VLOOKUP($A12,'RECAP DIRCOM'!$G$6:$EV$12,53,FALSE) -> 257.54 | H12: =VLOOKUP($A12,'RECAP DIRCOM'!$G$6:$EV$12,54,FALSE) -> 35% | I12: =VLOOKUP($A12,'RECAP DIRCOM'!$G$6:$EV$12,55,FALSE) -> 7 | J12: =VLOOKUP($A12,'RECAP DIRCOM'!$G$6:$EV$12,56,FALSE) -> 91 | K12: =VLOOKUP($A12,'RECAP DIRCOM'!$G$6:$EV$12,57,FALSE) -> 30% | L12: =VLOOKUP($A12,'RECAP DIRCOM'!$G$6:$EV$12,58,FALSE) -> 7 | M12: =VLOOKUP($A12,'RECAP DIRCOM'!$G$6:$EV$12,59,FALSE) -> 44.03 | N12: =VLOOKUP($A12,'RECAP DIRCOM'!$G$6:$EV$12,60,FALSE) -> 69% | O12: =VLOOKUP($A12,'RECAP DIRCOM'!$G$6:$EV$12,61,FALSE) -> 7 | P12: =VLOOKUP($A12,'RECAP DIRCOM'!$G$6:$EV$12,62,FALSE) -> 68.35 | Q12: =VLOOKUP($A12,'RECAP DIRCOM'!$G$6:$EV$12,63,FALSE) -> 0% | R12: =VLOOKUP($A12,'RECAP DIRCOM'!$G$6:$EV$12,64,FALSE) -> 1 | S12: =VLOOKUP($A12,'RECAP DIRCOM'!$G$6:$EV$12,65,FALSE) -> 21% | T12: =VLOOKUP($A12,'RECAP DIRCOM'!$G$6:$EV$12,66,FALSE) -> 0% | U12: =VLOOKUP($A12,'RECAP DIRCOM'!$G$6:$EV$12,67,FALSE) -> 1
A13: 30 | B13: Marne-Ardennes | C13: =VLOOKUP($A13,'RECAP DIRCOM'!$G$6:$EV$12,3,FALSE) -> 239 | D13: =VLOOKUP($A13,'RECAP DIRCOM'!$G$6:$EV$12,50,FALSE) -> 59.03 | E13: =VLOOKUP($A13,'RECAP DIRCOM'!$G$6:$EV$12,51,FALSE) -> 60% | F13: =VLOOKUP($A13,'RECAP DIRCOM'!$G$6:$EV$12,52,FALSE) -> 7 | G13: =VLOOKUP($A13,'RECAP DIRCOM'!$G$6:$EV$12,53,FALSE) -> 363.22 | H13: =VLOOKUP($A13,'RECAP DIRCOM'!$G$6:$EV$12,54,FALSE) -> 8% | I13: =VLOOKUP($A13,'RECAP DIRCOM'!$G$6:$EV$12,55,FALSE) -> 4 | J13: =VLOOKUP($A13,'RECAP DIRCOM'!$G$6:$EV$12,56,FALSE) -> 103 | K13: =VLOOKUP($A13,'RECAP DIRCOM'!$G$6:$EV$12,57,FALSE) -> 20% | L13: =VLOOKUP($A13,'RECAP DIRCOM'!$G$6:$EV$12,58,FALSE) -> 6 | M13: =VLOOKUP($A13,'RECAP DIRCOM'!$G$6:$EV$12,59,FALSE) -> 93.39 | N13: =VLOOKUP($A13,'RECAP DIRCOM'!$G$6:$EV$12,60,FALSE) -> 34% | O13: =VLOOKUP($A13,'RECAP DIRCOM'!$G$6:$EV$12,61,FALSE) -> 5 | P13: =VLOOKUP($A13,'RECAP DIRCOM'!$G$6:$EV$12,62,FALSE) -> 8.02 | Q13: =VLOOKUP($A13,'RECAP DIRCOM'!$G$6:$EV$12,63,FALSE) -> 88% | R13: =VLOOKUP($A13,'RECAP DIRCOM'!$G$6:$EV$12,64,FALSE) -> 6 | S13: =VLOOKUP($A13,'RECAP DIRCOM'!$G$6:$EV$12,65,FALSE) -> 58% | T13: =VLOOKUP($A13,'RECAP DIRCOM'!$G$6:$EV$12,66,FALSE) -> 36% | U13: =VLOOKUP($A13,'RECAP DIRCOM'!$G$6:$EV$12,67,FALSE) -> 6
A14: 110 | B14: Meurthe et Moselle Meuse | C14: =VLOOKUP($A14,'RECAP DIRCOM'!$G$6:$EV$12,3,FALSE) -> 264 | D14: =VLOOKUP($A14,'RECAP DIRCOM'!$G$6:$EV$12,50,FALSE) -> 103.57 | E14: =VLOOKUP($A14,'RECAP DIRCOM'!$G$6:$EV$12,51,FALSE) -> 29% | F14: =VLOOKUP($A14,'RECAP DIRCOM'!$G$6:$EV$12,52,FALSE) -> 5 | G14: =VLOOKUP($A14,'RECAP DIRCOM'!$G$6:$EV$12,53,FALSE) -> 376.18 | H14: =VLOOKUP($A14,'RECAP DIRCOM'!$G$6:$EV$12,54,FALSE) -> 5% | I14: =VLOOKUP($A14,'RECAP DIRCOM'!$G$6:$EV$12,55,FALSE) -> 2 | J14: =VLOOKUP($A14,'RECAP DIRCOM'!$G$6:$EV$12,56,FALSE) -> 108 | K14: =VLOOKUP($A14,'RECAP DIRCOM'!$G$6:$EV$12,57,FALSE) -> 17% | L14: =VLOOKUP($A14,'RECAP DIRCOM'!$G$6:$EV$12,58,FALSE) -> 5 | M14: =VLOOKUP($A14,'RECAP DIRCOM'!$G$6:$EV$12,59,FALSE) -> 126.78 | N14: =VLOOKUP($A14,'RECAP DIRCOM'!$G$6:$EV$12,60,FALSE) -> 11% | O14: =VLOOKUP($A14,'RECAP DIRCOM'!$G$6:$EV$12,61,FALSE) -> 2 | P14: =VLOOKUP($A14,'RECAP DIRCOM'!$G$6:$EV$12,62,FALSE) -> 16.26 | Q14: =VLOOKUP($A14,'RECAP DIRCOM'!$G$6:$EV$12,63,FALSE) -> 76% | R14: =VLOOKUP($A14,'RECAP DIRCOM'!$G$6:$EV$12,64,FALSE) -> 4 | S14: =VLOOKUP($A14,'RECAP DIRCOM'!$G$6:$EV$12,65,FALSE) -> 44% | T14: =VLOOKUP($A14,'RECAP DIRCOM'!$G$6:$EV$12,66,FALSE) -> 23% | U14: =VLOOKUP($A14,'RECAP DIRCOM'!$G$6:$EV$12,67,FALSE) -> 4
A15: 160 | B15: Moselle | C15: =VLOOKUP($A15,'RECAP DIRCOM'!$G$6:$EV$12,3,FALSE) -> 306 | D15: =VLOOKUP($A15,'RECAP DIRCOM'!$G$6:$EV$12,50,FALSE) -> 146.13 | E15: =VLOOKUP($A15,'RECAP DIRCOM'!$G$6:$EV$12,51,FALSE) -> 0% | F15: =VLOOKUP($A15,'RECAP DIRCOM'!$G$6:$EV$12,52,FALSE) -> 1 | G15: =VLOOKUP($A15,'RECAP DIRCOM'!$G$6:$EV$12,53,FALSE) -> 394.32 | H15: =VLOOKUP($A15,'RECAP DIRCOM'!$G$6:$EV$12,54,FALSE) -> 0% | I15: =VLOOKUP($A15,'RECAP DIRCOM'!$G$6:$EV$12,55,FALSE) -> 1 | J15: =VLOOKUP($A15,'RECAP DIRCOM'!$G$6:$EV$12,56,FALSE) -> 124 | K15: =VLOOKUP($A15,'RECAP DIRCOM'!$G$6:$EV$12,57,FALSE) -> 4% | L15: =VLOOKUP($A15,'RECAP DIRCOM'!$G$6:$EV$12,58,FALSE) -> 2 | M15: =VLOOKUP($A15,'RECAP DIRCOM'!$G$6:$EV$12,59,FALSE) -> 142.56 | N15: =VLOOKUP($A15,'RECAP DIRCOM'!$G$6:$EV$12,60,FALSE) -> 0% | O15: =VLOOKUP($A15,'RECAP DIRCOM'!$G$6:$EV$12,61,FALSE) -> 1 | P15: =VLOOKUP($A15,'RECAP DIRCOM'!$G$6:$EV$12,62,FALSE) -> 19.81 | Q15: =VLOOKUP($A15,'RECAP DIRCOM'!$G$6:$EV$12,63,FALSE) -> 71% | R15: =VLOOKUP($A15,'RECAP DIRCOM'!$G$6:$EV$12,64,FALSE) -> 3 | S15: =VLOOKUP($A15,'RECAP DIRCOM'!$G$6:$EV$12,65,FALSE) -> 34% | T15: =VLOOKUP($A15,'RECAP DIRCOM'!$G$6:$EV$12,66,FALSE) -> 13% | U15: =VLOOKUP($A15,'RECAP DIRCOM'!$G$6:$EV$12,67,FALSE) -> 2
A16: 80 | B16: Vosges | C16: =VLOOKUP($A16,'RECAP DIRCOM'!$G$6:$EV$12,3,FALSE) -> 149 | D16: =VLOOKUP($A16,'RECAP DIRCOM'!$G$6:$EV$12,50,FALSE) -> 118.29 | E16: =VLOOKUP($A16,'RECAP DIRCOM'!$G$6:$EV$12,51,FALSE) -> 19% | F16: =VLOOKUP($A16,'RECAP DIRCOM'!$G$6:$EV$12,52,FALSE) -> 3 | G16: =VLOOKUP($A16,'RECAP DIRCOM'!$G$6:$EV$12,53,FALSE) -> 363.03 | H16: =VLOOKUP($A16,'RECAP DIRCOM'!$G$6:$EV$12,54,FALSE) -> 8% | I16: =VLOOKUP($A16,'RECAP DIRCOM'!$G$6:$EV$12,55,FALSE) -> 5 | J16: =VLOOKUP($A16,'RECAP DIRCOM'!$G$6:$EV$12,56,FALSE) -> 109 | K16: =VLOOKUP($A16,'RECAP DIRCOM'!$G$6:$EV$12,57,FALSE) -> 16% | L16: =VLOOKUP($A16,'RECAP DIRCOM'!$G$6:$EV$12,58,FALSE) -> 4 | M16: =VLOOKUP($A16,'RECAP DIRCOM'!$G$6:$EV$12,59,FALSE) -> 110.80 | N16: =VLOOKUP($A16,'RECAP DIRCOM'!$G$6:$EV$12,60,FALSE) -> 22% | O16: =VLOOKUP($A16,'RECAP DIRCOM'!$G$6:$EV$12,61,FALSE) -> 3 | P16: =VLOOKUP($A16,'RECAP DIRCOM'!$G$6:$EV$12,62,FALSE) -> 9.10 | Q16: =VLOOKUP($A16,'RECAP DIRCOM'!$G$6:$EV$12,63,FALSE) -> 87% | R16: =VLOOKUP($A16,'RECAP DIRCOM'!$G$6:$EV$12,64,FALSE) -> 5 | S16: =VLOOKUP($A16,'RECAP DIRCOM'!$G$6:$EV$12,65,FALSE) -> 49% | T16: =VLOOKUP($A16,'RECAP DIRCOM'!$G$6:$EV$12,66,FALSE) -> 28% | U16: =VLOOKUP($A16,'RECAP DIRCOM'!$G$6:$EV$12,67,FALSE) -> 5
A17: Total CEGEE Directions Régionales | C17: =SUM(C10:C16) -> 1582

Sheet DC_CREDIT
A1: Accueil | D1: BAROMETRE BDD - DIRECTIONS REGIONALES
D2: CREDITS
D3: =ACCUEIL!H7 -> 2019-07-31
D7: Engagements crédit conso (hors clients note octroi à 9) | G7: % CNP crédit conso | J7: Engagements crédi immo | M7: % CNP crédit immo | P7: Taux couverture SACCEF | S7: Engagement Crédit MLT + Crédit Bail | V7: Total Crédits
E8: coef | F8: ='RECAP DIRCOM'!CD4 -> 3% | H8: coef | I8: ='RECAP DIRCOM'!CG4 -> 2% | K8: coef | L8: ='RECAP DIRCOM'!CJ4 -> 3% | N8: coef | O8: ='RECAP DIRCOM'!CM4 -> 2% | Q8: coef | R8: ='RECAP DIRCOM'!CP4 -> 2% | T8: coef | U8: ='RECAP DIRCOM'!CS4 -> 3% | W8: coef | X8: ='RECAP DIRCOM'!CV4 -> 15%
A9: eds | B9: Direction | C9: ETP perf | D9: Réal / ETP | E9: % Ecart au 1er | F9: Rang | H9: % Ecart au 1er | I9: Rang | J9: Taux réal objectif | K9: % Ecart au 1er | L9: Rang | N9: % Ecart au 1er | O9: Rang | Q9: % Ecart au 1er | R9: Rang | S9: Taux réal objectif | T9: % Ecart au 1er | U9: Rang | V9: Moyenne ecart au 1er | W9: % Ecart au 1er | X9: Rang CEGEE
A10: 50 | B10: Aube Haute Marne | C10: =VLOOKUP($A10,'RECAP DIRCOM'!$G$6:$EV$12,3,FALSE) -> 146 | D10: =VLOOKUP($A10,'RECAP DIRCOM'!$G$6:$EV$12,74,FALSE) -> 275.11 | E10: =VLOOKUP($A10,'RECAP DIRCOM'!$G$6:$EV$12,75,FALSE) -> 0% | F10: =VLOOKUP($A10,'RECAP DIRCOM'!$G$6:$EV$12,76,FALSE) -> 1 | G10: =VLOOKUP($A10,'RECAP DIRCOM'!$G$6:$EV$12,77,FALSE) -> 93% | H10: =VLOOKUP($A10,'RECAP DIRCOM'!$G$6:$EV$12,78,FALSE) -> 3% | I10: =VLOOKUP($A10,'RECAP DIRCOM'!$G$6:$EV$12,79,FALSE) -> 4 | J10: =VLOOKUP($A10,'RECAP DIRCOM'!$G$6:$EV$12,80,FALSE) -> 54% | K10: =VLOOKUP($A10,'RECAP DIRCOM'!$G$6:$EV$12,81,FALSE) -> 26% | L10: =VLOOKUP($A10,'RECAP DIRCOM'!$G$6:$EV$12,82,FALSE) -> 7 | M10: =VLOOKUP($A10,'RECAP DIRCOM'!$G$6:$EV$12,83,FALSE) -> 65% | N10: =VLOOKUP($A10,'RECAP DIRCOM'!$G$6:$EV$12,84,FALSE) -> 12% | O10: =VLOOKUP($A10,'RECAP DIRCOM'!$G$6:$EV$12,85,FALSE) -> 5 | P10: =VLOOKUP($A10,'RECAP DIRCOM'!$G$6:$EV$12,86,FALSE) -> 84% | Q10: =VLOOKUP($A10,'RECAP DIRCOM'!$G$6:$EV$12,87,FALSE) -> 10% | R10: =VLOOKUP($A10,'RECAP DIRCOM'!$G$6:$EV$12,88,FALSE) -> 5 | S10: =VLOOKUP($A10,'RECAP DIRCOM'!$G$6:$EV$12,89,FALSE) -> 70% | T10: =VLOOKUP($A10,'RECAP DIRCOM'!$G$6:$EV$12,90,FALSE) -> 11% | U10: =VLOOKUP($A10,'RECAP DIRCOM'!$G$6:$EV$12,91,FALSE) -> 4 | V10: =VLOOKUP($A10,'RECAP DIRCOM'!$G$6:$EV$12,92,FALSE) -> 11% | W10: =VLOOKUP($A10,'RECAP DIRCOM'!$G$6:$EV$12,93,FALSE) -> 7% | X10: =VLOOKUP($A10,'RECAP DIRCOM'!$G$6:$EV$12,94,FALSE) -> 3
A11: 262 | B11: Bas-Rhin | C11: =VLOOKUP($A11,'RECAP DIRCOM'!$G$6:$EV$12,3,FALSE) -> 298 | D11: =VLOOKUP($A11,'RECAP DIRCOM'!$G$6:$EV$12,74,FALSE) -> 207.58 | E11: =VLOOKUP($A11,'RECAP DIRCOM'!$G$6:$EV$12,75,FALSE) -> 25% | F11: =VLOOKUP($A11,'RECAP DIRCOM'!$G$6:$EV$12,76,FALSE) -> 6 | G11: =VLOOKUP($A11,'RECAP DIRCOM'!$G$6:$EV$12,77,FALSE) -> 93% | H11: =VLOOKUP($A11,'RECAP DIRCOM'!$G$6:$EV$12,78,FALSE) -> 3% | I11: =VLOOKUP($A11,'RECAP DIRCOM'!$G$6:$EV$12,79,FALSE) -> 3 | J11: =VLOOKUP($A11,'RECAP DIRCOM'!$G$6:$EV$12,80,FALSE) -> 56% | K11: =VLOOKUP($A11,'RECAP DIRCOM'!$G$6:$EV$12,81,FALSE) -> 23% | L11: =VLOOKUP($A11,'RECAP DIRCOM'!$G$6:$EV$12,82,FALSE) -> 6 | M11: =VLOOKUP($A11,'RECAP DIRCOM'!$G$6:$EV$12,83,FALSE) -> 58% | N11: =VLOOKUP($A11,'RECAP DIRCOM'!$G$6:$EV$12,84,FALSE) -> 22% | O11: =VLOOKUP($A11,'RECAP DIRCOM'!$G$6:$EV$12,85,FALSE) -> 7 | P11: =VLOOKUP($A11,'RECAP DIRCOM'!$G$6:$EV$12,86,FALSE) -> 83% | Q11: =VLOOKUP($A11,'RECAP DIRCOM'!$G$6:$EV$12,87,FALSE) -> 11% | R11: =VLOOKUP($A11,'RECAP DIRCOM'!$G$6:$EV$12,88,FALSE) -> 6 | S11: =VLOOKUP($A11,'RECAP DIRCOM'!$G$6:$EV$12,89,FALSE) -> 60% | T11: =VLOOKUP($A11,'RECAP DIRCOM'!$G$6:$EV$12,90,FALSE) -> 24% | U11: =VLOOKUP($A11,'RECAP DIRCOM'!$G$6:$EV$12,91,FALSE) -> 5 | V11: =VLOOKUP($A11,'RECAP DIRCOM'!$G$6:$EV$12,92,FALSE) -> 19% | W11: =VLOOKUP($A11,'RECAP DIRCOM'!$G$6:$EV$12,93,FALSE) -> 15% | X11: =VLOOKUP($A11,'RECAP DIRCOM'!$G$6:$EV$12,94,FALSE) -> 7
A12: 264 | B12: Haut-Rhin | C12: =VLOOKUP($A12,'RECAP DIRCOM'!$G$6:$EV$12,3,FALSE) -> 179 | D12: =VLOOKUP($A12,'RECAP DIRCOM'!$G$6:$EV$12,74,FALSE) -> 203.24 | E12: =VLOOKUP($A12,'RECAP DIRCOM'!$G$6:$EV$12,75,FALSE) -> 26% | F12: =VLOOKUP($A12,'RECAP DIRCOM'!$G$6:$EV$12,76,FALSE) -> 7 | G12: =VLOOKUP($A12,'RECAP DIRCOM'!$G$6:$EV$12,77,FALSE) -> 92% | H12: =VLOOKUP($A12,'RECAP DIRCOM'!$G$6:$EV$12,78,FALSE) -> 4% | I12: =VLOOKUP($A12,'RECAP DIRCOM'!$G$6:$EV$12,79,FALSE) -> 5 | J12: =VLOOKUP($A12,'RECAP DIRCOM'!$G$6:$EV$12,80,FALSE) -> 60% | K12: =VLOOKUP($A12,'RECAP DIRCOM'!$G$6:$EV$12,81,FALSE) -> 17% | L12: =VLOOKUP($A12,'RECAP DIRCOM'!$G$6:$EV$12,82,FALSE) -> 4 | M12: =VLOOKUP($A12,'RECAP DIRCOM'!$G$6:$EV$12,83,FALSE) -> 74% | N12: =VLOOKUP($A12,'RECAP DIRCOM'!$G$6:$EV$12,84,FALSE) -> 0% | O12: =VLOOKUP($A12,'RECAP DIRCOM'!$G$6:$EV$12,85,FALSE) -> 1 | P12: =VLOOKUP($A12,'RECAP DIRCOM'!$G$6:$EV$12,86,FALSE) -> 75% | Q12: =VLOOKUP($A12,'RECAP DIRCOM'!$G$6:$EV$12,87,FALSE) -> 20% | R12: =VLOOKUP($A12,'RECAP DIRCOM'!$G$6:$EV$12,88,FALSE) -> 7 | S12: =VLOOKUP($A12,'RECAP DIRCOM'!$G$6:$EV$12,89,FALSE) -> 71% | T12: =VLOOKUP($A12,'RECAP DIRCOM'!$G$6:$EV$12,90,FALSE) -> 10% | U12: =VLOOKUP($A12,'RECAP DIRCOM'!$G$6:$EV$12,91,FALSE) -> 3 | V12: =VLOOKUP($A12,'RECAP DIRCOM'!$G$6:$EV$12,92,FALSE) -> 14% | W12: =VLOOKUP($A12,'RECAP DIRCOM'!$G$6:$EV$12,93,FALSE) -> 10% | X12: =VLOOKUP($A12,'RECAP DIRCOM'!$G$6:$EV$12,94,FALSE) -> 5
A13: 30 | B13: Marne-Ardennes | C13: =VLOOKUP($A13,'RECAP DIRCOM'!$G$6:$EV$12,3,FALSE) -> 239 | D13: =VLOOKUP($A13,'RECAP DIRCOM'!$G$6:$EV$12,74,FALSE) -> 271.43 | E13: =VLOOKUP($A13,'RECAP DIRCOM'!$G$6:$EV$12,75,FALSE) -> 1% | F13: =VLOOKUP($A13,'RECAP DIRCOM'!$G$6:$EV$12,76,FALSE) -> 2 | G13: =VLOOKUP($A13,'RECAP DIRCOM'!$G$6:$EV$12,77,FALSE) -> 89% | H13: =VLOOKUP($A13,'RECAP DIRCOM'!$G$6:$EV$12,78,FALSE) -> 7% | I13: =VLOOKUP($A13,'RECAP DIRCOM'!$G$6:$EV$12,79,FALSE) -> 7 | J13: =VLOOKUP($A13,'RECAP DIRCOM'!$G$6:$EV$12,80,FALSE) -> 73% | K13: =VLOOKUP($A13,'RECAP DIRCOM'!$G$6:$EV$12,81,FALSE) -> 0% | L13: =VLOOKUP($A13,'RECAP DIRCOM'!$G$6:$EV$12,82,FALSE) -> 1 | M13: =VLOOKUP($A13,'RECAP DIRCOM'!$G$6:$EV$12,83,FALSE) -> 73% | N13: =VLOOKUP($A13,'RECAP DIRCOM'!$G$6:$EV$12,84,FALSE) -> 1% | O13: =VLOOKUP($A13,'RECAP DIRCOM'!$G$6:$EV$12,85,FALSE) -> 3 | P13: =VLOOKUP($A13,'RECAP DIRCOM'!$G$6:$EV$12,86,FALSE) -> 87% | Q13: =VLOOKUP($A13,'RECAP DIRCOM'!$G$6:$EV$12,87,FALSE) -> 7% | R13: =VLOOKUP($A13,'RECAP DIRCOM'!$G$6:$EV$12,88,FALSE) -> 3 | S13: =VLOOKUP($A13,'RECAP DIRCOM'!$G$6:$EV$12,89,FALSE) -> 73% | T13: =VLOOKUP($A13,'RECAP DIRCOM'!$G$6:$EV$12,90,FALSE) -> 8% | U13: =VLOOKUP($A13,'RECAP DIRCOM'!$G$6:$EV$12,91,FALSE) -> 2 | V13: =VLOOKUP($A13,'RECAP DIRCOM'!$G$6:$EV$12,92,FALSE) -> 4% | W13: =VLOOKUP($A13,'RECAP DIRCOM'!$G$6:$EV$12,93,FALSE) -> 0% | X13: =VLOOKUP($A13,'RECAP DIRCOM'!$G$6:$EV$12,94,FALSE) -> 1
A14: 110 | B14: Meurthe et Moselle Meuse | C14: =VLOOKUP($A14,'RECAP DIRCOM'!$G$6:$EV$12,3,FALSE) -> 264 | D14: =VLOOKUP($A14,'RECAP DIRCOM'!$G$6:$EV$12,74,FALSE) -> 251.26 | E14: =VLOOKUP($A14,'RECAP DIRCOM'!$G$6:$EV$12,75,FALSE) -> 9% | F14: =VLOOKUP($A14,'RECAP DIRCOM'!$G$6:$EV$12,76,FALSE) -> 3 | G14: =VLOOKUP($A14,'RECAP DIRCOM'!$G$6:$EV$12,77,FALSE) -> 90% | H14: =VLOOKUP($A14,'RECAP DIRCOM'!$G$6:$EV$12,78,FALSE) -> 6% | I14: =VLOOKUP($A14,'RECAP DIRCOM'!$G$6:$EV$12,79,FALSE) -> 6 | J14: =VLOOKUP($A14,'RECAP DIRCOM'!$G$6:$EV$12,80,FALSE) -> 66% | K14: =VLOOKUP($A14,'RECAP DIRCOM'!$G$6:$EV$12,81,FALSE) -> 10% | L14: =VLOOKUP($A14,'RECAP DIRCOM'!$G$6:$EV$12,82,FALSE) -> 2 | M14: =VLOOKUP($A14,'RECAP DIRCOM'!$G$6:$EV$12,83,FALSE) -> 72% | N14: =VLOOKUP($A14,'RECAP DIRCOM'!$G$6:$EV$12,84,FALSE) -> 2% | O14: =VLOOKUP($A14,'RECAP DIRCOM'!$G$6:$EV$12,85,FALSE) -> 4 | P14: =VLOOKUP($A14,'RECAP DIRCOM'!$G$6:$EV$12,86,FALSE) -> 93% | Q14: =VLOOKUP($A14,'RECAP DIRCOM'!$G$6:$EV$12,87,FALSE) -> 0% | R14: =VLOOKUP($A14,'RECAP DIRCOM'!$G$6:$EV$12,88,FALSE) -> 1 | S14: =VLOOKUP($A14,'RECAP DIRCOM'!$G$6:$EV$12,89,FALSE) -> 47% | T14: =VLOOKUP($A14,'RECAP DIRCOM'!$G$6:$EV$12,90,FALSE) -> 41% | U14: =VLOOKUP($A14,'RECAP DIRCOM'!$G$6:$EV$12,91,FALSE) -> 6 | V14: =VLOOKUP($A14,'RECAP DIRCOM'!$G$6:$EV$12,92,FALSE) -> 13% | W14: =VLOOKUP($A14,'RECAP DIRCOM'!$G$6:$EV$12,93,FALSE) -> 9% | X14: =VLOOKUP($A14,'RECAP DIRCOM'!$G$6:$EV$12,94,FALSE) -> 4
A15: 160 | B15: Moselle | C15: =VLOOKUP($A15,'RECAP DIRCOM'!$G$6:$EV$12,3,FALSE) -> 306 | D15: =VLOOKUP($A15,'RECAP DIRCOM'!$G$6:$EV$12,74,FALSE) -> 250.44 | E15: =VLOOKUP($A15,'RECAP DIRCOM'!$G$6:$EV$12,75,FALSE) -> 9% | F15: =VLOOKUP($A15,'RECAP DIRCOM'!$G$6:$EV$12,76,FALSE) -> 4 | G15: =VLOOKUP($A15,'RECAP DIRCOM'!$G$6:$EV$12,77,FALSE) -> 96% | H15: =VLOOKUP($A15,'RECAP DIRCOM'!$G$6:$EV$12,78,FALSE) -> 1% | I15: =VLOOKUP($A15,'RECAP DIRCOM'!$G$6:$EV$12,79,FALSE) -> 2 | J15: =VLOOKUP($A15,'RECAP DIRCOM'!$G$6:$EV$12,80,FALSE) -> 62% | K15: =VLOOKUP($A15,'RECAP DIRCOM'!$G$6:$EV$12,81,FALSE) -> 16% | L15: =VLOOKUP($A15,'RECAP DIRCOM'!$G$6:$EV$12,82,FALSE) -> 3 | M15: =VLOOKUP($A15,'RECAP DIRCOM'!$G$6:$EV$12,83,FALSE) -> 64% | N15: =VLOOKUP($A15,'RECAP DIRCOM'!$G$6:$EV$12,84,FALSE) -> 14% | O15: =VLOOKUP($A15,'RECAP DIRCOM'!$G$6:$EV$12,85,FALSE) -> 6 | P15: =VLOOKUP($A15,'RECAP DIRCOM'!$G$6:$EV$12,86,FALSE) -> 88% | Q15: =VLOOKUP($A15,'RECAP DIRCOM'!$G$6:$EV$12,87,FALSE) -> 5% | R15: =VLOOKUP($A15,'RECAP DIRCOM'!$G$6:$EV$12,88,FALSE) -> 2 | S15: =VLOOKUP($A15,'RECAP DIRCOM'!$G$6:$EV$12,89,FALSE) -> 43% | T15: =VLOOKUP($A15,'RECAP DIRCOM'!$G$6:$EV$12,90,FALSE) -> 46% | U15: =VLOOKUP($A15,'RECAP DIRCOM'!$G$6:$EV$12,91,FALSE) -> 7 | V15: =VLOOKUP($A15,'RECAP DIRCOM'!$G$6:$EV$12,92,FALSE) -> 17% | W15: =VLOOKUP($A15,'RECAP DIRCOM'!$G$6:$EV$12,93,FALSE) -> 13% | X15: =VLOOKUP($A15,'RECAP DIRCOM'!$G$6:$EV$12,94,FALSE) -> 6
A16: 80 | B16: Vosges | C16: =VLOOKUP($A16,'RECAP DIRCOM'!$G$6:$EV$12,3,FALSE) -> 149 | D16: =VLOOKUP($A16,'RECAP DIRCOM'!$G$6:$EV$12,74,FALSE) -> 232.80 | E16: =VLOOKUP($A16,'RECAP DIRCOM'!$G$6:$EV$12,75,FALSE) -> 15% | F16: =VLOOKUP($A16,'RECAP DIRCOM'!$G$6:$EV$12,76,FALSE) -> 5 | G16: =VLOOKUP($A16,'RECAP DIRCOM'!$G$6:$EV$12,77,FALSE) -> 96% | H16: =VLOOKUP($A16,'RECAP DIRCOM'!$G$6:$EV$12,78,FALSE) -> 0% | I16: =VLOOKUP($A16,'RECAP DIRCOM'!$G$6:$EV$12,79,FALSE) -> 1 | J16: =VLOOKUP($A16,'RECAP DIRCOM'!$G$6:$EV$12,80,FALSE) -> 60% | K16: =VLOOKUP($A16,'RECAP DIRCOM'!$G$6:$EV$12,81,FALSE) -> 17% | L16: =VLOOKUP($A16,'RECAP DIRCOM'!$G$6:$EV$12,82,FALSE) -> 5 | M16: =VLOOKUP($A16,'RECAP DIRCOM'!$G$6:$EV$12,83,FALSE) -> 74% | N16: =VLOOKUP($A16,'RECAP DIRCOM'!$G$6:$EV$12,84,FALSE) -> 0% | O16: =VLOOKUP($A16,'RECAP DIRCOM'!$G$6:$EV$12,85,FALSE) -> 2 | P16: =VLOOKUP($A16,'RECAP DIRCOM'!$G$6:$EV$12,86,FALSE) -> 87% | Q16: =VLOOKUP($A16,'RECAP DIRCOM'!$G$6:$EV$12,87,FALSE) -> 7% | R16: =VLOOKUP($A16,'RECAP DIRCOM'!$G$6:$EV$12,88,FALSE) -> 4 | S16: =VLOOKUP($A16,'RECAP DIRCOM'!$G$6:$EV$12,89,FALSE) -> 79% | T16: =VLOOKUP($A16,'RECAP DIRCOM'!$G$6:$EV$12,90,FALSE) -> 0% | U16: =VLOOKUP($A16,'RECAP DIRCOM'!$G$6:$EV$12,91,FALSE) -> 1 | V16: =VLOOKUP($A16,'RECAP DIRCOM'!$G$6:$EV$12,92,FALSE) -> 8% | W16: =VLOOKUP($A16,'RECAP DIRCOM'!$G$6:$EV$12,93,FALSE) -> 4% | X16: =VLOOKUP($A16,'RECAP DIRCOM'!$G$6:$EV$12,94,FALSE) -> 2
A17: Total CEGEE Directions Régionales | C17: =SUM(C10:C16) -> 1582

Sheet DC_IARD
A1: Accueil | D1: BAROMETRE BDD - DIRECTIONS REGIONALES
D2: IARD PREVOYANCE
D3: =ACCUEIL!H7 -> 2019-07-31
D7: Ventes nettes IARD (AUTO+MRH+Pro) | G7: Ventes nettes Prévoyance | J7: Chiffre d'affaires IARD | M7: Total IARD Prévoyance
E8: coef | F8: ='RECAP DIRCOM'!DE4 -> 7% | H8: coef | I8: ='RECAP DIRCOM'!DH4 -> 7% | K8: coef | L8: ='RECAP DIRCOM'!DK4 -> 6% | N8: coef | O8: ='RECAP DIRCOM'!DN4 -> 20%
A9: eds | B9: Direction | C9: ETP perf | D9: Nb / ETP | E9: % Ecart au 1er | F9: Rang | G9: Nb / ETP | H9: % Ecart au 1er | I9: Rang | J9: Nb / ETP | K9: % Ecart au 1er | L9: Rang | M9: Moyenne ecart au 1er | N9: % Ecart au 1er | O9: Rang CEGEE
A10: 50 | B10: Aube Haute Marne | C10: =VLOOKUP($A10,'RECAP DIRCOM'!$G$6:$EV$12,3,FALSE) -> 146 | D10: =VLOOKUP($A10,'RECAP DIRCOM'!$G$6:$EV$12,101,FALSE) -> 5.37 | E10: =VLOOKUP($A10,'RECAP DIRCOM'!$G$6:$EV$12,102,FALSE) -> 10% | F10: =VLOOKUP($A10,'RECAP DIRCOM'!$G$6:$EV$12,103,FALSE) -> 3 | G10: =VLOOKUP($A10,'RECAP DIRCOM'!$G$6:$EV$12,104,FALSE) -> 8.02 | H10: =VLOOKUP($A10,'RECAP DIRCOM'!$G$6:$EV$12,105,FALSE) -> 33% | I10: =VLOOKUP($A10,'RECAP DIRCOM'!$G$6:$EV$12,106,FALSE) -> 3 | J10: =VLOOKUP($A10,'RECAP DIRCOM'!$G$6:$EV$12,107,FALSE) -> 6.44 | K10: =VLOOKUP($A10,'RECAP DIRCOM'!$G$6:$EV$12,108,FALSE) -> 17% | L10: =VLOOKUP($A10,'RECAP DIRCOM'!$G$6:$EV$12,109,FALSE) -> 7 | M10: =VLOOKUP($A10,'RECAP DIRCOM'!$G$6:$EV$12,110,FALSE) -> 20% | N10: =VLOOKUP($A10,'RECAP DIRCOM'!$G$6:$EV$12,111,FALSE) -> 17% | O10: =VLOOKUP($A10,'RECAP DIRCOM'!$G$6:$EV$12,112,FALSE) -> 4
A11: 262 | B11: Bas-Rhin | C11: =VLOOKUP($A11,'RECAP DIRCOM'!$G$6:$EV$12,3,FALSE) -> 298 | D11: =VLOOKUP($A11,'RECAP DIRCOM'!$G$6:$EV$12,101,FALSE) -> 3.87 | E11: =VLOOKUP($A11,'RECAP DIRCOM'!$G$6:$EV$12,102,FALSE) -> 35% | F11: =VLOOKUP($A11,'RECAP DIRCOM'!$G$6:$EV$12,103,FALSE) -> 6 | G11: =VLOOKUP($A11,'RECAP DIRCOM'!$G$6:$EV$12,104,FALSE) -> 5.82 | H11: =VLOOKUP($A11,'RECAP DIRCOM'!$G$6:$EV$12,105,FALSE) -> 51% | I11: =VLOOKUP($A11,'RECAP DIRCOM'!$G$6:$EV$12,106,FALSE) -> 6 | J11: =VLOOKUP($A11,'RECAP DIRCOM'!$G$6:$EV$12,107,FALSE) -> 6.78 | K11: =VLOOKUP($A11,'RECAP DIRCOM'!$G$6:$EV$12,108,FALSE) -> 12% | L11: =VLOOKUP($A11,'RECAP DIRCOM'!$G$6:$EV$12,109,FALSE) -> 6 | M11: =VLOOKUP($A11,'RECAP DIRCOM'!$G$6:$EV$12,110,FALSE) -> 34% | N11: =VLOOKUP($A11,'RECAP DIRCOM'!$G$6:$EV$12,111,FALSE) -> 31% | O11: =VLOOKUP($A11,'RECAP DIRCOM'!$G$6:$EV$12,112,FALSE) -> 6
A12: 264 | B12: Haut-Rhin | C12: =VLOOKUP($A12,'RECAP DIRCOM'!$G$6:$EV$12,3,FALSE) -> 179 | D12: =VLOOKUP($A12,'RECAP DIRCOM'!$G$6:$EV$12,101,FALSE) -> 3.80 | E12: =VLOOKUP($A12,'RECAP DIRCOM'!$G$6:$EV$12,102,FALSE) -> 37% | F12: =VLOOKUP($A12,'RECAP DIRCOM'!$G$6:$EV$12,103,FALSE) -> 7 | G12: =VLOOKUP($A12,'RECAP DIRCOM'!$G$6:$EV$12,104,FALSE) -> 4.38 | H12: =VLOOKUP($A12,'RECAP DIRCOM'!$G$6:$EV$12,105,FALSE) -> 63% | I12: =VLOOKUP($A12,'RECAP DIRCOM'!$G$6:$EV$12,106,FALSE) -> 7 | J12: =VLOOKUP($A12,'RECAP DIRCOM'!$G$6:$EV$12,107,FALSE) -> 7.01 | K12: =VLOOKUP($A12,'RECAP DIRCOM'!$G$6:$EV$12,108,FALSE) -> 9% | L12: =VLOOKUP($A12,'RECAP DIRCOM'!$G$6:$EV$12,109,FALSE) -> 5 | M12: =VLOOKUP($A12,'RECAP DIRCOM'!$G$6:$EV$12,110,FALSE) -> 38% | N12: =VLOOKUP($A12,'RECAP DIRCOM'!$G$6:$EV$12,111,FALSE) -> 34% | O12: =VLOOKUP($A12,'RECAP DIRCOM'!$G$6:$EV$12,112,FALSE) -> 7
A13: 30 | B13: Marne-Ardennes | C13: =VLOOKUP($A13,'RECAP DIRCOM'!$G$6:$EV$12,3,FALSE) -> 239 | D13: =VLOOKUP($A13,'RECAP DIRCOM'!$G$6:$EV$12,101,FALSE) -> 5.75 | E13: =VLOOKUP($A13,'RECAP DIRCOM'!$G$6:$EV$12,102,FALSE) -> 4% | F13: =VLOOKUP($A13,'RECAP DIRCOM'!$G$6:$EV$12,103,FALSE) -> 2 | G13: =VLOOKUP($A13,'RECAP DIRCOM'!$G$6:$EV$12,104,FALSE) -> 11.89 | H13: =VLOOKUP($A13,'RECAP DIRCOM'!$G$6:$EV$12,105,FALSE) -> 0% | I13: =VLOOKUP($A13,'RECAP DIRCOM'!$G$6:$EV$12,106,FALSE) -> 1 | J13: =VLOOKUP($A13,'RECAP DIRCOM'!$G$6:$EV$12,107,FALSE) -> 7.24 | K13: =VLOOKUP($A13,'RECAP DIRCOM'!$G$6:$EV$12,108,FALSE) -> 6% | L13: =VLOOKUP($A13,'RECAP DIRCOM'!$G$6:$EV$12,109,FALSE) -> 3 | M13: =VLOOKUP($A13,'RECAP DIRCOM'!$G$6:$EV$12,110,FALSE) -> 3% | N13: =VLOOKUP($A13,'RECAP DIRCOM'!$G$6:$EV$12,111,FALSE) -> 0% | O13: =VLOOKUP($A13,'RECAP DIRCOM'!$G$6:$EV$12,112,FALSE) -> 1
A14: 110 | B14: Meurthe et Moselle Meuse | C14: =VLOOKUP($A14,'RECAP DIRCOM'!$G$6:$EV$12,3,FALSE) -> 264 | D14: =VLOOKUP($A14,'RECAP DIRCOM'!$G$6:$EV$12,101,FALSE) -> 5.99 | E14: =VLOOKUP($A14,'RECAP DIRCOM'!$G$6:$EV$12,102,FALSE) -> 0% | F14: =VLOOKUP($A14,'RECAP DIRCOM'!$G$6:$EV$12,103,FALSE) -> 1 | G14: =VLOOKUP($A14,'RECAP DIRCOM'!$G$6:$EV$12,104,FALSE) -> 6.62 | H14: =VLOOKUP($A14,'RECAP DIRCOM'!$G$6:$EV$12,105,FALSE) -> 44% | I14: =VLOOKUP($A14,'RECAP DIRCOM'!$G$6:$EV$12,106,FALSE) -> 4 | J14: =VLOOKUP($A14,'RECAP DIRCOM'!$G$6:$EV$12,107,FALSE) -> 7.74 | K14: =VLOOKUP($A14,'RECAP DIRCOM'!$G$6:$EV$12,108,FALSE) -> 0% | L14: =VLOOKUP($A14,'RECAP DIRCOM'!$G$6:$EV$12,109,FALSE) -> 1 | M14: =VLOOKUP($A14,'RECAP DIRCOM'!$G$6:$EV$12,110,FALSE) -> 16% | N14: =VLOOKUP($A14,'RECAP DIRCOM'!$G$6:$EV$12,111,FALSE) -> 12% | O14: =VLOOKUP($A14,'RECAP DIRCOM'!$G$6:$EV$12,112,FALSE) -> 2
A15: 160 | B15: Moselle | C15: =VLOOKUP($A15,'RECAP DIRCOM'!$G$6:$EV$12,3,FALSE) -> 306 | D15: =VLOOKUP($A15,'RECAP DIRCOM'!$G$6:$EV$12,101,FALSE) -> 5.07 | E15: =VLOOKUP($A15,'RECAP DIRCOM'!$G$6:$EV$12,102,FALSE) -> 15% | F15: =VLOOKUP($A15,'RECAP DIRCOM'!$G$6:$EV$12,103,FALSE) -> 4 | G15: =VLOOKUP($A15,'RECAP DIRCOM'!$G$6:$EV$12,104,FALSE) -> 8.16 | H15: =VLOOKUP($A15,'RECAP DIRCOM'!$G$6:$EV$12,105,FALSE) -> 31% | I15: =VLOOKUP($A15,'RECAP DIRCOM'!$G$6:$EV$12,106,FALSE) -> 2 | J15: =VLOOKUP($A15,'RECAP DIRCOM'!$G$6:$EV$12,107,FALSE) -> 7.14 | K15: =VLOOKUP($A15,'RECAP DIRCOM'!$G$6:$EV$12,108,FALSE) -> 8% | L15: =VLOOKUP($A15,'RECAP DIRCOM'!$G$6:$EV$12,109,FALSE) -> 4 | M15: =VLOOKUP($A15,'RECAP DIRCOM'!$G$6:$EV$12,110,FALSE) -> 19% | N15: =VLOOKUP($A15,'RECAP DIRCOM'!$G$6:$EV$12,111,FALSE) -> 15% | O15: =VLOOKUP($A15,'RECAP DIRCOM'!$G$6:$EV$12,112,FALSE) -> 3
A16: 80 | B16: Vosges | C16: =VLOOKUP($A16,'RECAP DIRCOM'!$G$6:$EV$12,3,FALSE) -> 149 | D16: =VLOOKUP($A16,'RECAP DIRCOM'!$G$6:$EV$12,101,FALSE) -> 4.88 | E16: =VLOOKUP($A16,'RECAP DIRCOM'!$G$6:$EV$12,102,FALSE) -> 19% | F16: =VLOOKUP($A16,'RECAP DIRCOM'!$G$6:$EV$12,103,FALSE) -> 5 | G16: =VLOOKUP($A16,'RECAP DIRCOM'!$G$6:$EV$12,104,FALSE) -> 6.30 | H16: =VLOOKUP($A16,'RECAP DIRCOM'!$G$6:$EV$12,105,FALSE) -> 47% | I16: =VLOOKUP($A16,'RECAP DIRCOM'!$G$6:$EV$12,106,FALSE) -> 5 | J16: =VLOOKUP($A16,'RECAP DIRCOM'!$G$6:$EV$12,107,FALSE) -> 7.44 | K16: =VLOOKUP($A16,'RECAP DIRCOM'!$G$6:$EV$12,108,FALSE) -> 4% | L16: =VLOOKUP($A16,'RECAP DIRCOM'!$G$6:$EV$12,109,FALSE) -> 2 | M16: =VLOOKUP($A16,'RECAP DIRCOM'!$G$6:$EV$12,110,FALSE) -> 24% | N16: =VLOOKUP($A16,'RECAP DIRCOM'!$G$6:$EV$12,111,FALSE) -> 21% | O16: =VLOOKUP($A16,'RECAP DIRCOM'!$G$6:$EV$12,112,FALSE) -> 5
A17: Total CEGEE Directions Régionales | C17: =SUM(C10:C16) -> 1582

Sheet DC_CONQUETE
A1: Accueil | D1: BAROMETRE BDD - DIRECTIONS REGIONALES
D2: CONQUETE
D3: =ACCUEIL!H7 -> 2019-07-31
D7: Evolution nette clients Bancarisés Principaux | G7: Evolution nette relations PREMIUM | J7: Evolution nette clients Bancarisés Principaux équipés | M7: Evolution nette clients Pro actif équipés | P7: Total Conquête
E8: coef | F8: ='RECAP DIRCOM'!M4 -> 4% | H8: coef | I8: ='RECAP DIRCOM'!P4 -> 4% | K8: coef | L8: ='RECAP DIRCOM'!S4 -> 3% | N8: coef | O8: ='RECAP DIRCOM'!V4 -> 4% | Q8: coef | R8: ='RECAP DIRCOM'!Y4 -> 15%
A9: eds | B9: Direction | C9: ETP perf | D9: Nb / ETP | E9: % Ecart au 1er | F9: Rang | G9: Nb / ETP | H9: % Ecart au 1er | I9: Rang | J9: Nb / ETP | K9: % Ecart au 1er | L9: Rang | M9: Taux réal objectif | N9: % Ecart au 1er | O9: Rang | P9: Moyenne ecart au 1er | Q9: % Ecart au 1er | R9: Rang CEGEE
A10: 50 | B10: Aube Haute Marne | C10: =VLOOKUP($A10,'RECAP DIRCOM'!$G$6:$EV$12,3,FALSE) -> 146 | D10: =VLOOKUP($A10,'RECAP DIRCOM'!$G$6:$EV$12,5,FALSE) -> -1.23 | E10: =VLOOKUP($A10,'RECAP DIRCOM'!$G$6:$EV$12,6,FALSE) -> 56% | F10: =VLOOKUP($A10,'RECAP DIRCOM'!$G$6:$EV$12,7,FALSE) -> 2 | G10: =VLOOKUP($A10,'RECAP DIRCOM'!$G$6:$EV$12,8,FALSE) -> 1.81 | H10: =VLOOKUP($A10,'RECAP DIRCOM'!$G$6:$EV$12,9,FALSE) -> 7% | I10: =VLOOKUP($A10,'RECAP DIRCOM'!$G$6:$EV$12,10,FALSE) -> 3 | J10: =VLOOKUP($A10,'RECAP DIRCOM'!$G$6:$EV$12,11,FALSE) -> 2.22 | K10: =VLOOKUP($A10,'RECAP DIRCOM'!$G$6:$EV$12,12,FALSE) -> 0% | L10: =VLOOKUP($A10,'RECAP DIRCOM'!$G$6:$EV$12,13,FALSE) -> 1 | M10: =VLOOKUP($A10,'RECAP DIRCOM'!$G$6:$EV$12,14,FALSE) -> 4% | N10: =VLOOKUP($A10,'RECAP DIRCOM'!$G$6:$EV$12,15,FALSE) -> 95% | O10: =VLOOKUP($A10,'RECAP DIRCOM'!$G$6:$EV$12,16,FALSE) -> 6 | P10: =VLOOKUP($A10,'RECAP DIRCOM'!$G$6:$EV$12,17,FALSE) -> 42% | Q10: =VLOOKUP($A10,'RECAP DIRCOM'!$G$6:$EV$12,18,FALSE) -> 10% | R10: =VLOOKUP($A10,'RECAP DIRCOM'!$G$6:$EV$12,19,FALSE) -> 2
A11: 262 | B11: Bas-Rhin | C11: =VLOOKUP($A11,'RECAP DIRCOM'!$G$6:$EV$12,3,FALSE) -> 298 | D11: =VLOOKUP($A11,'RECAP DIRCOM'!$G$6:$EV$12,5,FALSE) -> -2.25 | E11: =VLOOKUP($A11,'RECAP DIRCOM'!$G$6:$EV$12,6,FALSE) -> 111% | F11: =VLOOKUP($A11,'RECAP DIRCOM'!$G$6:$EV$12,7,FALSE) -> 4 | G11: =VLOOKUP($A11,'RECAP DIRCOM'!$G$6:$EV$12,8,FALSE) -> 1.77 | H11: =VLOOKUP($A11,'RECAP DIRCOM'!$G$6:$EV$12,9,FALSE) -> 8% | I11: =VLOOKUP($A11,'RECAP DIRCOM'!$G$6:$EV$12,10,FALSE) -> 4 | J11: =VLOOKUP($A11,'RECAP DIRCOM'!$G$6:$EV$12,11,FALSE) -> -1.81 | K11: =VLOOKUP($A11,'RECAP DIRCOM'!$G$6:$EV$12,12,FALSE) -> 142% | L11: =VLOOKUP($A11,'RECAP DIRCOM'!$G$6:$EV$12,13,FALSE) -> 6 | M11: =VLOOKUP($A11,'RECAP DIRCOM'!$G$6:$EV$12,14,FALSE) -> 6% | N11: =VLOOKUP($A11,'RECAP DIRCOM'!$G$6:$EV$12,15,FALSE) -> 92% | O11: =VLOOKUP($A11,'RECAP DIRCOM'!$G$6:$EV$12,16,FALSE) -> 5 | P11: =VLOOKUP($A11,'RECAP DIRCOM'!$G$6:$EV$12,17,FALSE) -> 85% | Q11: =VLOOKUP($A11,'RECAP DIRCOM'!$G$6:$EV$12,18,FALSE) -> 52% | R11: =VLOOKUP($A11,'RECAP DIRCOM'!$G$6:$EV$12,19,FALSE) -> 6
A12: 264 | B12: Haut-Rhin | C12: =VLOOKUP($A12,'RECAP DIRCOM'!$G$6:$EV$12,3,FALSE) -> 179 | D12: =VLOOKUP($A12,'RECAP DIRCOM'!$G$6:$EV$12,5,FALSE) -> -2.99 | E12: =VLOOKUP($A12,'RECAP DIRCOM'!$G$6:$EV$12,6,FALSE) -> 150% | F12: =VLOOKUP($A12,'RECAP DIRCOM'!$G$6:$EV$12,7,FALSE) -> 7 | G12: =VLOOKUP($A12,'RECAP DIRCOM'!$G$6:$EV$12,8,FALSE) -> 1.93 | H12: =VLOOKUP($A12,'RECAP DIRCOM'!$G$6:$EV$12,9,FALSE) -> 0% | I12: =VLOOKUP($A12,'RECAP DIRCOM'!$G$6:$EV$12,10,FALSE) -> 1 | J12: =VLOOKUP($A12,'RECAP DIRCOM'!$G$6:$EV$12,11,FALSE) -> -2.02 | K12: =VLOOKUP($A12,'RECAP DIRCOM'!$G$6:$EV$12,12,FALSE) -> 150% | L12: =VLOOKUP($A12,'RECAP DIRCOM'!$G$6:$EV$12,13,FALSE) -> 7 | M12: =VLOOKUP($A12,'RECAP DIRCOM'!$G$6:$EV$12,14,FALSE) -> 7% | N12: =VLOOKUP($A12,'RECAP DIRCOM'!$G$6:$EV$12,15,FALSE) -> 91% | O12: =VLOOKUP($A12,'RECAP DIRCOM'!$G$6:$EV$12,16,FALSE) -> 4 | P12: =VLOOKUP($A12,'RECAP DIRCOM'!$G$6:$EV$12,17,FALSE) -> 94% | Q12: =VLOOKUP($A12,'RECAP DIRCOM'!$G$6:$EV$12,18,FALSE) -> 62% | R12: =VLOOKUP($A12,'RECAP DIRCOM'!$G$6:$EV$12,19,FALSE) -> 7
A13: 30 | B13: Marne-Ardennes | C13: =VLOOKUP($A13,'RECAP DIRCOM'!$G$6:$EV$12,3,FALSE) -> 239 | D13: =VLOOKUP($A13,'RECAP DIRCOM'!$G$6:$EV$12,5,FALSE) -> -0.16 | E13: =VLOOKUP($A13,'RECAP DIRCOM'!$G$6:$EV$12,6,FALSE) -> 0% | F13: =VLOOKUP($A13,'RECAP DIRCOM'!$G$6:$EV$12,7,FALSE) -> 1 | G13: =VLOOKUP($A13,'RECAP DIRCOM'!$G$6:$EV$12,8,FALSE) -> 1.84 | H13: =VLOOKUP($A13,'RECAP DIRCOM'!$G$6:$EV$12,9,FALSE) -> 5% | I13: =VLOOKUP($A13,'RECAP DIRCOM'!$G$6:$EV$12,10,FALSE) -> 2 | J13: =VLOOKUP($A13,'RECAP DIRCOM'!$G$6:$EV$12,11,FALSE) -> 1.91 | K13: =VLOOKUP($A13,'RECAP DIRCOM'!$G$6:$EV$12,12,FALSE) -> 11% | L13: =VLOOKUP($A13,'RECAP DIRCOM'!$G$6:$EV$12,13,FALSE) -> 2 | M13: =VLOOKUP($A13,'RECAP DIRCOM'!$G$6:$EV$12,14,FALSE) -> -6% | N13: =VLOOKUP($A13,'RECAP DIRCOM'!$G$6:$EV$12,15,FALSE) -> 108% | O13: =VLOOKUP($A13,'RECAP DIRCOM'!$G$6:$EV$12,16,FALSE) -> 7 | P13: =VLOOKUP($A13,'RECAP DIRCOM'!$G$6:$EV$12,17,FALSE) -> 32% | Q13: =VLOOKUP($A13,'RECAP DIRCOM'!$G$6:$EV$12,18,FALSE) -> 0% | R13: =VLOOKUP($A13,'RECAP DIRCOM'!$G$6:$EV$12,19,FALSE) -> 1
A14: 110 | B14: Meurthe et Moselle Meuse | C14: =VLOOKUP($A14,'RECAP DIRCOM'!$G$6:$EV$12,3,FALSE) -> 264 | D14: =VLOOKUP($A14,'RECAP DIRCOM'!$G$6:$EV$12,5,FALSE) -> -1.80 | E14: =VLOOKUP($A14,'RECAP DIRCOM'!$G$6:$EV$12,6,FALSE) -> 87% | F14: =VLOOKUP($A14,'RECAP DIRCOM'!$G$6:$EV$12,7,FALSE) -> 3 | G14: =VLOOKUP($A14,'RECAP DIRCOM'!$G$6:$EV$12,8,FALSE) -> 1.46 | H14: =VLOOKUP($A14,'RECAP DIRCOM'!$G$6:$EV$12,9,FALSE) -> 25% | I14: =VLOOKUP($A14,'RECAP DIRCOM'!$G$6:$EV$12,10,FALSE) -> 6 | J14: =VLOOKUP($A14,'RECAP DIRCOM'!$G$6:$EV$12,11,FALSE) -> -0.03 | K14: =VLOOKUP($A14,'RECAP DIRCOM'!$G$6:$EV$12,12,FALSE) -> 80% | L14: =VLOOKUP($A14,'RECAP DIRCOM'!$G$6:$EV$12,13,FALSE) -> 4 | M14: =VLOOKUP($A14,'RECAP DIRCOM'!$G$6:$EV$12,14,FALSE) -> 24% | N14: =VLOOKUP($A14,'RECAP DIRCOM'!$G$6:$EV$12,15,FALSE) -> 68% | O14: =VLOOKUP($A14,'RECAP DIRCOM'!$G$6:$EV$12,16,FALSE) -> 3 | P14: =VLOOKUP($A14,'RECAP DIRCOM'!$G$6:$EV$12,17,FALSE) -> 64% | Q14: =VLOOKUP($A14,'RECAP DIRCOM'!$G$6:$EV$12,18,FALSE) -> 31% | R14: =VLOOKUP($A14,'RECAP DIRCOM'!$G$6:$EV$12,19,FALSE) -> 4
A15: 160 | B15: Moselle | C15: =VLOOKUP($A15,'RECAP DIRCOM'!$G$6:$EV$12,3,FALSE) -> 306 | D15: =VLOOKUP($A15,'RECAP DIRCOM'!$G$6:$EV$12,5,FALSE) -> -2.40 | E15: =VLOOKUP($A15,'RECAP DIRCOM'!$G$6:$EV$12,6,FALSE) -> 119% | F15: =VLOOKUP($A15,'RECAP DIRCOM'!$G$6:$EV$12,7,FALSE) -> 5 | G15: =VLOOKUP($A15,'RECAP DIRCOM'!$G$6:$EV$12,8,FALSE) -> 1.37 | H15: =VLOOKUP($A15,'RECAP DIRCOM'!$G$6:$EV$12,9,FALSE) -> 29% | I15: =VLOOKUP($A15,'RECAP DIRCOM'!$G$6:$EV$12,10,FALSE) -> 7 | J15: =VLOOKUP($A15,'RECAP DIRCOM'!$G$6:$EV$12,11,FALSE) -> 0.26 | K15: =VLOOKUP($A15,'RECAP DIRCOM'!$G$6:$EV$12,12,FALSE) -> 69% | L15: =VLOOKUP($A15,'RECAP DIRCOM'!$G$6:$EV$12,13,FALSE) -> 3 | M15: =VLOOKUP($A15,'RECAP DIRCOM'!$G$6:$EV$12,14,FALSE) -> 75% | N15: =VLOOKUP($A15,'RECAP DIRCOM'!$G$6:$EV$12,15,FALSE) -> 0% | O15: =VLOOKUP($A15,'RECAP DIRCOM'!$G$6:$EV$12,16,FALSE) -> 1 | P15: =VLOOKUP($A15,'RECAP DIRCOM'!$G$6:$EV$12,17,FALSE) -> 53% | Q15: =VLOOKUP($A15,'RECAP DIRCOM'!$G$6:$EV$12,18,FALSE) -> 21% | R15: =VLOOKUP($A15,'RECAP DIRCOM'!$G$6:$EV$12,19,FALSE) -> 3
A16: 80 | B16: Vosges | C16: =VLOOKUP($A16,'RECAP DIRCOM'!$G$6:$EV$12,3,FALSE) -> 149 | D16: =VLOOKUP($A16,'RECAP DIRCOM'!$G$6:$EV$12,5,FALSE) -> -2.66 | E16: =VLOOKUP($A16,'RECAP DIRCOM'!$G$6:$EV$12,6,FALSE) -> 132% | F16: =VLOOKUP($A16,'RECAP DIRCOM'!$G$6:$EV$12,7,FALSE) -> 6 | G16: =VLOOKUP($A16,'RECAP DIRCOM'!$G$6:$EV$12,8,FALSE) -> 1.49 | H16: =VLOOKUP($A16,'RECAP DIRCOM'!$G$6:$EV$12,9,FALSE) -> 23% | I16: =VLOOKUP($A16,'RECAP DIRCOM'!$G$6:$EV$12,10,FALSE) -> 5 | J16: =VLOOKUP($A16,'RECAP DIRCOM'!$G$6:$EV$12,11,FALSE) -> -0.35 | K16: =VLOOKUP($A16,'RECAP DIRCOM'!$G$6:$EV$12,12,FALSE) -> 91% | L16: =VLOOKUP($A16,'RECAP DIRCOM'!$G$6:$EV$12,13,FALSE) -> 5 | M16: =VLOOKUP($A16,'RECAP DIRCOM'!$G$6:$EV$12,14,FALSE) -> 38% | N16: =VLOOKUP($A16,'RECAP DIRCOM'!$G$6:$EV$12,15,FALSE) -> 50% | O16: =VLOOKUP($A16,'RECAP DIRCOM'!$G$6:$EV$12,16,FALSE) -> 2 | P16: =VLOOKUP($A16,'RECAP DIRCOM'!$G$6:$EV$12,17,FALSE) -> 73% | Q16: =VLOOKUP($A16,'RECAP DIRCOM'!$G$6:$EV$12,18,FALSE) -> 41% | R16: =VLOOKUP($A16,'RECAP DIRCOM'!$G$6:$EV$12,19,FALSE) -> 5
A17: Total CEGEE Directions Régionales | C17: =SUM(C10:C16) -> 1582

Sheet DC_RISQUES
A1: Accueil | D1: BAROMETRE BDD - DIRECTIONS REGIONALES
D2: RISQUES
D3: =ACCUEIL!H7 -> 2019-07-31
D6: Complétude conformité et fiabilisation | J6: Traitement et qualité du traitement des alertes Vigiclient | M6: Total Risques
D7: Nouvelles EER sur flux BDD | G7: EER sur flux cumulés et stock
E8: coef | F8: ='RECAP DIRCOM'!DW4 -> 3% | H8: coef | I8: ='RECAP DIRCOM'!DZ4 -> 3% | K8: coef | L8: ='RECAP DIRCOM'!EC4 -> 4% | N8: coef | O8: ='RECAP DIRCOM'!EF4 -> 10%
A9: eds | B9: Direction | C9: ETP perf | E9: % Ecart au 1er | F9: Rang | H9: % Ecart au 1er | I9: Rang | K9: % Ecart au 1er | L9: Rang | M9: Moyenne ecart au 1er | N9: % Ecart au 1er | O9: Rang CEGEE
A10: 50 | B10: Aube Haute Marne | C10: =VLOOKUP($A10,'RECAP DIRCOM'!$G$6:$EV$12,3,FALSE) -> 146 | D10: =VLOOKUP($A10,'RECAP DIRCOM'!$G$6:$EV$12,119,FALSE) -> 97% | E10: =VLOOKUP($A10,'RECAP DIRCOM'!$G$6:$EV$12,120,FALSE) -> 1% | F10: =VLOOKUP($A10,'RECAP DIRCOM'!$G$6:$EV$12,121,FALSE) -> 3 | G10: =VLOOKUP($A10,'RECAP DIRCOM'!$G$6:$EV$12,122,FALSE) -> 76% | H10: =VLOOKUP($A10,'RECAP DIRCOM'!$G$6:$EV$12,123,FALSE) -> 3% | I10: =VLOOKUP($A10,'RECAP DIRCOM'!$G$6:$EV$12,124,FALSE) -> 3 | J10: =VLOOKUP($A10,'RECAP DIRCOM'!$G$6:$EV$12,125,FALSE) -> 100% | K10: =VLOOKUP($A10,'RECAP DIRCOM'!$G$6:$EV$12,126,FALSE) -> 0% | L10: =VLOOKUP($A10,'RECAP DIRCOM'!$G$6:$EV$12,127,FALSE) -> 1 | M10: =VLOOKUP($A10,'RECAP DIRCOM'!$G$6:$EV$12,128,FALSE) -> 1% | N10: =VLOOKUP($A10,'RECAP DIRCOM'!$G$6:$EV$12,129,FALSE) -> 0% | O10: =VLOOKUP($A10,'RECAP DIRCOM'!$G$6:$EV$12,130,FALSE) -> 1
A11: 262 | B11: Bas-Rhin | C11: =VLOOKUP($A11,'RECAP DIRCOM'!$G$6:$EV$12,3,FALSE) -> 298 | D11: =VLOOKUP($A11,'RECAP DIRCOM'!$G$6:$EV$12,119,FALSE) -> 96% | E11: =VLOOKUP($A11,'RECAP DIRCOM'!$G$6:$EV$12,120,FALSE) -> 3% | F11: =VLOOKUP($A11,'RECAP DIRCOM'!$G$6:$EV$12,121,FALSE) -> 6 | G11: =VLOOKUP($A11,'RECAP DIRCOM'!$G$6:$EV$12,122,FALSE) -> 71% | H11: =VLOOKUP($A11,'RECAP DIRCOM'!$G$6:$EV$12,123,FALSE) -> 9% | I11: =VLOOKUP($A11,'RECAP DIRCOM'!$G$6:$EV$12,124,FALSE) -> 7 | J11: =VLOOKUP($A11,'RECAP DIRCOM'!$G$6:$EV$12,125,FALSE) -> 89% | K11: =VLOOKUP($A11,'RECAP DIRCOM'!$G$6:$EV$12,126,FALSE) -> 11% | L11: =VLOOKUP($A11,'RECAP DIRCOM'!$G$6:$EV$12,127,FALSE) -> 6 | M11: =VLOOKUP($A11,'RECAP DIRCOM'!$G$6:$EV$12,128,FALSE) -> 8% | N11: =VLOOKUP($A11,'RECAP DIRCOM'!$G$6:$EV$12,129,FALSE) -> 7% | O11: =VLOOKUP($A11,'RECAP DIRCOM'!$G$6:$EV$12,130,FALSE) -> 7
A12: 264 | B12: Haut-Rhin | C12: =VLOOKUP($A12,'RECAP DIRCOM'!$G$6:$EV$12,3,FALSE) -> 179 | D12: =VLOOKUP($A12,'RECAP DIRCOM'!$G$6:$EV$12,119,FALSE) -> 97% | E12: =VLOOKUP($A12,'RECAP DIRCOM'!$G$6:$EV$12,120,FALSE) -> 1% | F12: =VLOOKUP($A12,'RECAP DIRCOM'!$G$6:$EV$12,121,FALSE) -> 4 | G12: =VLOOKUP($A12,'RECAP DIRCOM'!$G$6:$EV$12,122,FALSE) -> 73% | H12: =VLOOKUP($A12,'RECAP DIRCOM'!$G$6:$EV$12,123,FALSE) -> 7% | I12: =VLOOKUP($A12,'RECAP DIRCOM'!$G$6:$EV$12,124,FALSE) -> 6 | J12: =VLOOKUP($A12,'RECAP DIRCOM'!$G$6:$EV$12,125,FALSE) -> 98% | K12: =VLOOKUP($A12,'RECAP DIRCOM'!$G$6:$EV$12,126,FALSE) -> 2% | L12: =VLOOKUP($A12,'RECAP DIRCOM'!$G$6:$EV$12,127,FALSE) -> 4 | M12: =VLOOKUP($A12,'RECAP DIRCOM'!$G$6:$EV$12,128,FALSE) -> 3% | N12: =VLOOKUP($A12,'RECAP DIRCOM'!$G$6:$EV$12,129,FALSE) -> 2% | O12: =VLOOKUP($A12,'RECAP DIRCOM'!$G$6:$EV$12,130,FALSE) -> 5
A13: 30 | B13: Marne-Ardennes | C13: =VLOOKUP($A13,'RECAP DIRCOM'!$G$6:$EV$12,3,FALSE) -> 239 | D13: =VLOOKUP($A13,'RECAP DIRCOM'!$G$6:$EV$12,119,FALSE) -> 98% | E13: =VLOOKUP($A13,'RECAP DIRCOM'!$G$6:$EV$12,120,FALSE) -> 1% | F13: =VLOOKUP($A13,'RECAP DIRCOM'!$G$6:$EV$12,121,FALSE) -> 2 | G13: =VLOOKUP($A13,'RECAP DIRCOM'!$G$6:$EV$12,122,FALSE) -> 73% | H13: =VLOOKUP($A13,'RECAP DIRCOM'!$G$6:$EV$12,123,FALSE) -> 6% | I13: =VLOOKUP($A13,'RECAP DIRCOM'!$G$6:$EV$12,124,FALSE) -> 5 | J13: =VLOOKUP($A13,'RECAP DIRCOM'!$G$6:$EV$12,125,FALSE) -> 99% | K13: =VLOOKUP($A13,'RECAP DIRCOM'!$G$6:$EV$12,126,FALSE) -> 1% | L13: =VLOOKUP($A13,'RECAP DIRCOM'!$G$6:$EV$12,127,FALSE) -> 2 | M13: =VLOOKUP($A13,'RECAP DIRCOM'!$G$6:$EV$12,128,FALSE) -> 3% | N13: =VLOOKUP($A13,'RECAP DIRCOM'!$G$6:$EV$12,129,FALSE) -> 1% | O13: =VLOOKUP($A13,'RECAP DIRCOM'!$G$6:$EV$12,130,FALSE) -> 4
A14: 110 | B14: Meurthe et Moselle Meuse | C14: =VLOOKUP($A14,'RECAP DIRCOM'!$G$6:$EV$12,3,FALSE) -> 264 | D14: =VLOOKUP($A14,'RECAP DIRCOM'!$G$6:$EV$12,119,FALSE) -> 96% | E14: =VLOOKUP($A14,'RECAP DIRCOM'!$G$6:$EV$12,120,FALSE) -> 3% | F14: =VLOOKUP($A14,'RECAP DIRCOM'!$G$6:$EV$12,121,FALSE) -> 7 | G14: =VLOOKUP($A14,'RECAP DIRCOM'!$G$6:$EV$12,122,FALSE) -> 75% | H14: =VLOOKUP($A14,'RECAP DIRCOM'!$G$6:$EV$12,123,FALSE) -> 3% | I14: =VLOOKUP($A14,'RECAP DIRCOM'!$G$6:$EV$12,124,FALSE) -> 4 | J14: =VLOOKUP($A14,'RECAP DIRCOM'!$G$6:$EV$12,125,FALSE) -> 86% | K14: =VLOOKUP($A14,'RECAP DIRCOM'!$G$6:$EV$12,126,FALSE) -> 14% | L14: =VLOOKUP($A14,'RECAP DIRCOM'!$G$6:$EV$12,127,FALSE) -> 7 | M14: =VLOOKUP($A14,'RECAP DIRCOM'!$G$6:$EV$12,128,FALSE) -> 7% | N14: =VLOOKUP($A14,'RECAP DIRCOM'!$G$6:$EV$12,129,FALSE) -> 6% | O14: =VLOOKUP($A14,'RECAP DIRCOM'!$G$6:$EV$12,130,FALSE) -> 6
A15: 160 | B15: Moselle | C15: =VLOOKUP($A15,'RECAP DIRCOM'!$G$6:$EV$12,3,FALSE) -> 306 | D15: =VLOOKUP($A15,'RECAP DIRCOM'!$G$6:$EV$12,119,FALSE) -> 97% | E15: =VLOOKUP($A15,'RECAP DIRCOM'!$G$6:$EV$12,120,FALSE) -> 2% | F15: =VLOOKUP($A15,'RECAP DIRCOM'!$G$6:$EV$12,121,FALSE) -> 5 | G15: =VLOOKUP($A15,'RECAP DIRCOM'!$G$6:$EV$12,122,FALSE) -> 78% | H15: =VLOOKUP($A15,'RECAP DIRCOM'!$G$6:$EV$12,123,FALSE) -> 0% | I15: =VLOOKUP($A15,'RECAP DIRCOM'!$G$6:$EV$12,124,FALSE) -> 2 | J15: =VLOOKUP($A15,'RECAP DIRCOM'!$G$6:$EV$12,125,FALSE) -> 99% | K15: =VLOOKUP($A15,'RECAP DIRCOM'!$G$6:$EV$12,126,FALSE) -> 1% | L15: =VLOOKUP($A15,'RECAP DIRCOM'!$G$6:$EV$12,127,FALSE) -> 3 | M15: =VLOOKUP($A15,'RECAP DIRCOM'!$G$6:$EV$12,128,FALSE) -> 1% | N15: =VLOOKUP($A15,'RECAP DIRCOM'!$G$6:$EV$12,129,FALSE) -> 0% | O15: =VLOOKUP($A15,'RECAP DIRCOM'!$G$6:$EV$12,130,FALSE) -> 2
A16: 80 | B16: Vosges | C16: =VLOOKUP($A16,'RECAP DIRCOM'!$G$6:$EV$12,3,FALSE) -> 149 | D16: =VLOOKUP($A16,'RECAP DIRCOM'!$G$6:$EV$12,119,FALSE) -> 99% | E16: =VLOOKUP($A16,'RECAP DIRCOM'!$G$6:$EV$12,120,FALSE) -> 0% | F16: =VLOOKUP($A16,'RECAP DIRCOM'!$G$6:$EV$12,121,FALSE) -> 1 | G16: =VLOOKUP($A16,'RECAP DIRCOM'!$G$6:$EV$12,122,FALSE) -> 78% | H16: =VLOOKUP($A16,'RECAP DIRCOM'!$G$6:$EV$12,123,FALSE) -> 0% | I16: =VLOOKUP($A16,'RECAP DIRCOM'!$G$6:$EV$12,124,FALSE) -> 1 | J16: =VLOOKUP($A16,'RECAP DIRCOM'!$G$6:$EV$12,125,FALSE) -> 94% | K16: =VLOOKUP($A16,'RECAP DIRCOM'!$G$6:$EV$12,126,FALSE) -> 6% | L16: =VLOOKUP($A16,'RECAP DIRCOM'!$G$6:$EV$12,127,FALSE) -> 5 | M16: =VLOOKUP($A16,'RECAP DIRCOM'!$G$6:$EV$12,128,FALSE) -> 2% | N16: =VLOOKUP($A16,'RECAP DIRCOM'!$G$6:$EV$12,129,FALSE) -> 1% | O16: =VLOOKUP($A16,'RECAP DIRCOM'!$G$6:$EV$12,130,FALSE) -> 3
A17: Total CEGEE Directions Régionales | C17: =SUM(C10:C16) -> 1582

Sheet DC_SATISFACTION
A1: Accueil | D1: BAROMETRE BDD - DIRECTIONS REGIONALES
D2: SATISFACTION CLIENTS
D3: =ACCUEIL!H7 -> 2019-07-31
D7: N P S | G7: Enquête Qualité Haute Définition | J7: Total Satisfaction Clients
E8: coef | F8: ='RECAP DIRCOM'!EO4 -> 5% | H8: coef | I8: ='RECAP DIRCOM'!ER4 -> 5% | K8: coef | L8: ='RECAP DIRCOM'!EU4 -> 10%
A9: eds | B9: Direction | C9: ETP perf | E9: % Ecart au 1er | F9: Rang | H9: % Ecart au 1er | I9: Rang | J9: Moyenne ecart au 1er | K9: % Ecart au 1er | L9: Rang CEGEE
A10: 50 | B10: Aube Haute Marne | C10: =VLOOKUP($A10,'RECAP DIRCOM'!$G$6:$EV$12,3,FALSE) -> 146 | D10: =VLOOKUP($A10,'RECAP DIRCOM'!$G$6:$EV$12,137,FALSE) -> -8 | E10: =VLOOKUP($A10,'RECAP DIRCOM'!$G$6:$EV$12,138,FALSE) -> 25% | F10: =VLOOKUP($A10,'RECAP DIRCOM'!$G$6:$EV$12,139,FALSE) -> 2 | G10: =VLOOKUP($A10,'RECAP DIRCOM'!$G$6:$EV$12,140,FALSE) -> 76% | H10: =VLOOKUP($A10,'RECAP DIRCOM'!$G$6:$EV$12,141,FALSE) -> 2% | I10: =VLOOKUP($A10,'RECAP DIRCOM'!$G$6:$EV$12,142,FALSE) -> 4 | J10: =VLOOKUP($A10,'RECAP DIRCOM'!$G$6:$EV$12,143,FALSE) -> 14% | K10: =VLOOKUP($A10,'RECAP DIRCOM'!$G$6:$EV$12,144,FALSE) -> 14% | L10: =VLOOKUP($A10,'RECAP DIRCOM'!$G$6:$EV$12,145,FALSE) -> 2
A11: 262 | B11: Bas-Rhin | C11: =VLOOKUP($A11,'RECAP DIRCOM'!$G$6:$EV$12,3,FALSE) -> 298 | D11: =VLOOKUP($A11,'RECAP DIRCOM'!$G$6:$EV$12,137,FALSE) -> -23 | E11: =VLOOKUP($A11,'RECAP DIRCOM'!$G$6:$EV$12,138,FALSE) -> 150% | F11: =VLOOKUP($A11,'RECAP DIRCOM'!$G$6:$EV$12,139,FALSE) -> 7 | G11: =VLOOKUP($A11,'RECAP DIRCOM'!$G$6:$EV$12,140,FALSE) -> 72% | H11: =VLOOKUP($A11,'RECAP DIRCOM'!$G$6:$EV$12,141,FALSE) -> 7% | I11: =VLOOKUP($A11,'RECAP DIRCOM'!$G$6:$EV$12,142,FALSE) -> 7 | J11: =VLOOKUP($A11,'RECAP DIRCOM'!$G$6:$EV$12,143,FALSE) -> 78% | K11: =VLOOKUP($A11,'RECAP DIRCOM'!$G$6:$EV$12,144,FALSE) -> 78% | L11: =VLOOKUP($A11,'RECAP DIRCOM'!$G$6:$EV$12,145,FALSE) -> 7
A12: 264 | B12: Haut-Rhin | C12: =VLOOKUP($A12,'RECAP DIRCOM'!$G$6:$EV$12,3,FALSE) -> 179 | D12: =VLOOKUP($A12,'RECAP DIRCOM'!$G$6:$EV$12,137,FALSE) -> -21 | E12: =VLOOKUP($A12,'RECAP DIRCOM'!$G$6:$EV$12,138,FALSE) -> 133% | F12: =VLOOKUP($A12,'RECAP DIRCOM'!$G$6:$EV$12,139,FALSE) -> 6 | G12: =VLOOKUP($A12,'RECAP DIRCOM'!$G$6:$EV$12,140,FALSE) -> 74% | H12: =VLOOKUP($A12,'RECAP DIRCOM'!$G$6:$EV$12,141,FALSE) -> 5% | I12: =VLOOKUP($A12,'RECAP DIRCOM'!$G$6:$EV$12,142,FALSE) -> 6 | J12: =VLOOKUP($A12,'RECAP DIRCOM'!$G$6:$EV$12,143,FALSE) -> 69% | K12: =VLOOKUP($A12,'RECAP DIRCOM'!$G$6:$EV$12,144,FALSE) -> 69% | L12: =VLOOKUP($A12,'RECAP DIRCOM'!$G$6:$EV$12,145,FALSE) -> 6
A13: 30 | B13: Marne-Ardennes | C13: =VLOOKUP($A13,'RECAP DIRCOM'!$G$6:$EV$12,3,FALSE) -> 239 | D13: =VLOOKUP($A13,'RECAP DIRCOM'!$G$6:$EV$12,137,FALSE) -> -5 | E13: =VLOOKUP($A13,'RECAP DIRCOM'!$G$6:$EV$12,138,FALSE) -> 0% | F13: =VLOOKUP($A13,'RECAP DIRCOM'!$G$6:$EV$12,139,FALSE) -> 1 | G13: =VLOOKUP($A13,'RECAP DIRCOM'!$G$6:$EV$12,140,FALSE) -> 78% | H13: =VLOOKUP($A13,'RECAP DIRCOM'!$G$6:$EV$12,141,FALSE) -> 0% | I13: =VLOOKUP($A13,'RECAP DIRCOM'!$G$6:$EV$12,142,FALSE) -> 1 | J13: =VLOOKUP($A13,'RECAP DIRCOM'!$G$6:$EV$12,143,FALSE) -> 0% | K13: =VLOOKUP($A13,'RECAP DIRCOM'!$G$6:$EV$12,144,FALSE) -> 0% | L13: =VLOOKUP($A13,'RECAP DIRCOM'!$G$6:$EV$12,145,FALSE) -> 1
A14: 110 | B14: Meurthe et Moselle Meuse | C14: =VLOOKUP($A14,'RECAP DIRCOM'!$G$6:$EV$12,3,FALSE) -> 264 | D14: =VLOOKUP($A14,'RECAP DIRCOM'!$G$6:$EV$12,137,FALSE) -> -13 | E14: =VLOOKUP($A14,'RECAP DIRCOM'!$G$6:$EV$12,138,FALSE) -> 67% | F14: =VLOOKUP($A14,'RECAP DIRCOM'!$G$6:$EV$12,139,FALSE) -> 5 | G14: =VLOOKUP($A14,'RECAP DIRCOM'!$G$6:$EV$12,140,FALSE) -> 76% | H14: =VLOOKUP($A14,'RECAP DIRCOM'!$G$6:$EV$12,141,FALSE) -> 2% | I14: =VLOOKUP($A14,'RECAP DIRCOM'!$G$6:$EV$12,142,FALSE) -> 5 | J14: =VLOOKUP($A14,'RECAP DIRCOM'!$G$6:$EV$12,143,FALSE) -> 35% | K14: =VLOOKUP($A14,'RECAP DIRCOM'!$G$6:$EV$12,144,FALSE) -> 35% | L14: =VLOOKUP($A14,'RECAP DIRCOM'!$G$6:$EV$12,145,FALSE) -> 5
A15: 160 | B15: Moselle | C15: =VLOOKUP($A15,'RECAP DIRCOM'!$G$6:$EV$12,3,FALSE) -> 306 | D15: =VLOOKUP($A15,'RECAP DIRCOM'!$G$6:$EV$12,137,FALSE) -> -12 | E15: =VLOOKUP($A15,'RECAP DIRCOM'!$G$6:$EV$12,138,FALSE) -> 58% | F15: =VLOOKUP($A15,'RECAP DIRCOM'!$G$6:$EV$12,139,FALSE) -> 3 | G15: =VLOOKUP($A15,'RECAP DIRCOM'!$G$6:$EV$12,140,FALSE) -> 77% | H15: =VLOOKUP($A15,'RECAP DIRCOM'!$G$6:$EV$12,141,FALSE) -> 1% | I15: =VLOOKUP($A15,'RECAP DIRCOM'!$G$6:$EV$12,142,FALSE) -> 3 | J15: =VLOOKUP($A15,'RECAP DIRCOM'!$G$6:$EV$12,143,FALSE) -> 30% | K15: =VLOOKUP($A15,'RECAP DIRCOM'!$G$6:$EV$12,144,FALSE) -> 30% | L15: =VLOOKUP($A15,'RECAP DIRCOM'!$G$6:$EV$12,145,FALSE) -> 4
A16: 80 | B16: Vosges | C16: =VLOOKUP($A16,'RECAP DIRCOM'!$G$6:$EV$12,3,FALSE) -> 149 | D16: =VLOOKUP($A16,'RECAP DIRCOM'!$G$6:$EV$12,137,FALSE) -> -12 | E16: =VLOOKUP($A16,'RECAP DIRCOM'!$G$6:$EV$12,138,FALSE) -> 58% | F16: =VLOOKUP($A16,'RECAP DIRCOM'!$G$6:$EV$12,139,FALSE) -> 3 | G16: =VLOOKUP($A16,'RECAP DIRCOM'!$G$6:$EV$12,140,FALSE) -> 78% | H16: =VLOOKUP($A16,'RECAP DIRCOM'!$G$6:$EV$12,141,FALSE) -> 0% | I16: =VLOOKUP($A16,'RECAP DIRCOM'!$G$6:$EV$12,142,FALSE) -> 2 | J16: =VLOOKUP($A16,'RECAP DIRCOM'!$G$6:$EV$12,143,FALSE) -> 29% | K16: =VLOOKUP($A16,'RECAP DIRCOM'!$G$6:$EV$12,144,FALSE) -> 29% | L16: =VLOOKUP($A16,'RECAP DIRCOM'!$G$6:$EV$12,145,FALSE) -> 3
A17: Total CEGEE Directions Régionales | C17: =SUM(C10:C16) -> 1582

Sheet SE_FICHE
A1: Accueil
A2: BAROMETRE BDD
A4: UNITE: | B4: TERRITOIRE | K4: ETP perf : | L4: =VLOOKUP(A5,'RECAP SECT'!$G$6:$I$23,3,FALSE) -> 76.12
A5: =VLOOKUP(B5,LISTES!$H$6:$I$23,2,FALSE) -> 5130 | B5: COLMAR
C6: Coefficient du critére | E6: Résultats | I6: Ecart au 1ier | M6: Evolution
E7: du 1ier | G7: du secteur | I7: Du mois | K7: Au 31/12/2018
A9: RANG au CLASSEMENT GENERAL | I9: =VLOOKUP($A$5,'RECAP SECT'!$G$6:$FE$253,154,FALSE) -> 15 | Q9: =VLOOKUP($A$5,'RECAP SECT AN'!$G$6:$FE$312,154,FALSE) -> 33 | S9: =+Q9-I9 -> 18
A11: CRITERE CONQUETE | C11: 15%
B12: Evolution nette Clients Bancarisés Principaux (BP +JBP) par ETP | C12: 4% | E12: ='RECAP SECT'!K4 -> 1.4 | G12: =VLOOKUP($A$5,'RECAP SECT'!$G$6:$FE$253,5,FALSE) -> -3.4 | I12: =VLOOKUP($A$5,'RECAP SECT'!$G$6:$FE$253,6,FALSE) -> 142% | Q12: =VLOOKUP($A$5,'RECAP SECT AN'!$G$6:$FE$312,6,FALSE) -> 105% | S12: =+Q12-I12 -> -38%
B13: Evolution nette relations Premium par ETP | C13: 4% | E13: ='RECAP SECT'!N4 -> 2.7 | G13: =VLOOKUP($A$5,'RECAP SECT'!$G$6:$FE$253,8,FALSE) -> 1.9 | I13: =VLOOKUP($A$5,'RECAP SECT'!$G$6:$FE$253,9,FALSE) -> 31% | Q13: =VLOOKUP($A$5,'RECAP SECT AN'!$G$6:$FE$312,9,FALSE) -> 73% | S13: =+Q13-I13 -> 42%
B14: Evolution nette Clients Bancarisés Principaux équipés par ETP | C14: 3% | E14: ='RECAP SECT'!Q4 -> 4.5 | G14: =VLOOKUP($A$5,'RECAP SECT'!$G$6:$FE$253,11,FALSE) -> -2.2 | I14: =VLOOKUP($A$5,'RECAP SECT'!$G$6:$FE$253,12,FALSE) -> 142% | Q14: =VLOOKUP($A$5,'RECAP SECT AN'!$G$6:$FE$312,12,FALSE) -> 46% | S14: =+Q14-I14 -> -96%
B15: Evolution nette Clients Pro actif équipés par rapport à l’objectif fixé | C15: 4% | E15: ='RECAP SECT'!T4 -> 100% | G15: =VLOOKUP($A$5,'RECAP SECT'!$G$6:$FE$253,14,FALSE) -> 16% | I15: =VLOOKUP($A$5,'RECAP SECT'!$G$6:$FE$253,15,FALSE) -> 75% | Q15: =VLOOKUP($A$5,'RECAP SECT AN'!$G$6:$FE$312,15,FALSE) -> 120% | S15: =+Q15-I15 -> 45%
A17: CRITERE EQUIPEMENT BANCARISATION | C17: 15%
B18: Ventes nettes forfaits (+ 2 options) par ETP | C18: 3% | E18: ='RECAP SECT'!AF4 -> -8.8 | G18: =VLOOKUP($A$5,'RECAP SECT'!$G$6:$FE$253,26,FALSE) -> -8.8 | I18: =VLOOKUP($A$5,'RECAP SECT'!$G$6:$FE$253,27,FALSE) -> 0% | Q18: =VLOOKUP($A$5,'RECAP SECT AN'!$G$6:$FE$312,27,FALSE) -> 26% | S18: =+Q18-I18 -> 26%
B19: Ventes nettes IZICARTES par ETP | C19: 3% | E19: ='RECAP SECT'!AI4 -> 10.7 | G19: =VLOOKUP($A$5,'RECAP SECT'!$G$6:$FE$253,29,FALSE) -> 4.1 | I19: =VLOOKUP($A$5,'RECAP SECT'!$G$6:$FE$253,30,FALSE) -> 61% | Q19: =VLOOKUP($A$5,'RECAP SECT AN'!$G$6:$FE$312,30,FALSE) -> 63% | S19: =+Q19-I19 -> 2%
B20: Ventes nettes cartes HDG par ETP | C20: 3% | E20: ='RECAP SECT'!AL4 -> 15.2 | G20: =VLOOKUP($A$5,'RECAP SECT'!$G$6:$FE$253,32,FALSE) -> 8.4 | I20: =VLOOKUP($A$5,'RECAP SECT'!$G$6:$FE$253,33,FALSE) -> 45% | Q20: =VLOOKUP($A$5,'RECAP SECT AN'!$G$6:$FE$312,33,FALSE) -> 67% | S20: =+Q20-I20 -> 23%
B21: Vente nette CB débit différé par ETP | C21: 3% | E21: ='RECAP SECT'!AO4 -> 7.6 | G21: =VLOOKUP($A$5,'RECAP SECT'!$G$6:$FE$253,35,FALSE) -> 3.8 | I21: =VLOOKUP($A$5,'RECAP SECT'!$G$6:$FE$253,36,FALSE) -> 50% | Q21: =VLOOKUP($A$5,'RECAP SECT AN'!$G$6:$FE$312,36,FALSE) -> 78% | S21: =+Q21-I21 -> 28%
B22: Ventes nettes banca Pro Forfaits Pro, Carte pro par rapport à l’objectif | C22: 3% | E22: ='RECAP SECT'!AR4 -> 104% | G22: =VLOOKUP($A$5,'RECAP SECT'!$G$6:$FE$253,38,FALSE) -> 23% | I22: =VLOOKUP($A$5,'RECAP SECT'!$G$6:$FE$253,39,FALSE) -> 78% | Q22: =VLOOKUP($A$5,'RECAP SECT AN'!$G$6:$FE$312,39,FALSE) -> 75% | S22: =+Q22-I22 -> -3%
A24: CRITERE EPARGNE | C24: 15%
B25: Excédents de collecte (y.c DAV) par ETP | C25: 2% | E25: ='RECAP SECT'!BD4 -> 270.3 | G25: =VLOOKUP($A$5,'RECAP SECT'!$G$6:$FE$253,50,FALSE) -> 116.3 | I25: =VLOOKUP($A$5,'RECAP SECT'!$G$6:$FE$253,51,FALSE) -> 57% | Q25: =VLOOKUP($A$5,'RECAP SECT AN'!$G$6:$FE$312,51,FALSE) -> 70% | S25: =+Q25-I25 -> 13%
B26: CA assurance vie par ETP | C26: 2% | E26: ='RECAP SECT'!BG4 -> 500.9 | G26: =VLOOKUP($A$5,'RECAP SECT'!$G$6:$FE$253,53,FALSE) -> 316.2 | I26: =VLOOKUP($A$5,'RECAP SECT'!$G$6:$FE$253,54,FALSE) -> 37% | Q26: =VLOOKUP($A$5,'RECAP SECT AN'!$G$6:$FE$312,54,FALSE) -> 45% | S26: =+Q26-I26 -> 8%
B27: Activité UC (CA+arbitrage) par ETP | C27: 2% | E27: ='RECAP SECT'!BJ4 -> 166.2 | G27: =VLOOKUP($A$5,'RECAP SECT'!$G$6:$FE$253,56,FALSE) -> 118.6 | I27: =VLOOKUP($A$5,'RECAP SECT'!$G$6:$FE$253,57,FALSE) -> 29% | Q27: =VLOOKUP($A$5,'RECAP SECT AN'!$G$6:$FE$312,57,FALSE) -> 57% | S27: =+Q27-I27 -> 28%
B28: Excédents Assurance-vie par ETP | C28: 2% | E28: ='RECAP SECT'!BM4 -> 203.4 | G28: =VLOOKUP($A$5,'RECAP SECT'!$G$6:$FE$253,59,FALSE) -> 7.6 | I28: =VLOOKUP($A$5,'RECAP SECT'!$G$6:$FE$253,60,FALSE) -> 96% | Q28: =VLOOKUP($A$5,'RECAP SECT AN'!$G$6:$FE$312,60,FALSE) -> 78% | S28: =+Q28-I28 -> -19%
B29: Excédents Epargne Bilan (Hors Emprunts CTO) par ETP | C29: 7% | E29: ='RECAP SECT'!BP4 -> 86.1 | G29: =VLOOKUP($A$5,'RECAP SECT'!$G$6:$FE$253,62,FALSE) -> 86.1 | I29: =VLOOKUP($A$5,'RECAP SECT'!$G$6:$FE$253,63,FALSE) -> 0% | Q29: =VLOOKUP($A$5,'RECAP SECT AN'!$G$6:$FE$312,63,FALSE) -> 62% | S29: =+Q29-I29 -> 62%
A31: CRITERE CREDITS | C31: 15%
B32: Engagement Conso par ETP (hors clients 9) | C32: 3% | E32: ='RECAP SECT'!CB4 -> 356.5 | G32: =VLOOKUP($A$5,'RECAP SECT'!$G$6:$FE$253,74,FALSE) -> 213.1 | I32: =VLOOKUP($A$5,'RECAP SECT'!$G$6:$FE$253,75,FALSE) -> 40% | Q32: =VLOOKUP($A$5,'RECAP SECT AN'!$G$6:$FE$312,75,FALSE) -> 42% | S32: =+Q32-I32 -> 2%
B33: % CNP sur Conso en valeur absolue | C33: 2% | E33: ='RECAP SECT'!CE4 -> 98% | G33: =VLOOKUP($A$5,'RECAP SECT'!$G$6:$FE$253,77,FALSE) -> 88% | I33: =VLOOKUP($A$5,'RECAP SECT'!$G$6:$FE$253,78,FALSE) -> 10% | Q33: =VLOOKUP($A$5,'RECAP SECT AN'!$G$6:$FE$312,78,FALSE) -> 14% | S33: 4%
B34: Engagements Immo par rapport à l’objectif | C34: 3% | E34: ='RECAP SECT'!CH4 -> 76% | G34: =VLOOKUP($A$5,'RECAP SECT'!$G$6:$FE$253,80,FALSE) -> 56% | I34: =VLOOKUP($A$5,'RECAP SECT'!$G$6:$FE$253,81,FALSE) -> 26% | Q34: =VLOOKUP($A$5,'RECAP SECT AN'!$G$6:$FE$312,81,FALSE) -> 48% | S34: 22%
B35: % CNP sur crédits immo en valeur absolue | C35: 2% | E35: ='RECAP SECT'!CK4 -> 84% | G35: =VLOOKUP($A$5,'RECAP SECT'!$G$6:$FE$253,83,FALSE) -> 66% | I35: =VLOOKUP($A$5,'RECAP SECT'!$G$6:$FE$253,84,FALSE) -> 22% | Q35: =VLOOKUP($A$5,'RECAP SECT AN'!$G$6:$FE$312,84,FALSE) -> 28% | S35: 6%
B36: Taux de couverture SACCEF | C36: 2% | E36: ='RECAP SECT'!CN4 -> 95% | G36: =VLOOKUP($A$5,'RECAP SECT'!$G$6:$FE$253,86,FALSE) -> 78% | I36: =VLOOKUP($A$5,'RECAP SECT'!$G$6:$FE$253,87,FALSE) -> 18% | Q36: =VLOOKUP($A$5,'RECAP SECT AN'!$G$6:$FE$312,87,FALSE) -> 34% | S36: 16%
B37: Engagements CMLT + CB par rapport à l’objectif | C37: 3% | E37: ='RECAP SECT'!CQ4 -> 104% | G37: =VLOOKUP($A$5,'RECAP SECT'!$G$6:$FE$253,89,FALSE) -> 37% | I37: =VLOOKUP($A$5,'RECAP SECT'!$G$6:$FE$253,90,FALSE) -> 65% | Q37: =VLOOKUP($A$5,'RECAP SECT AN'!$G$6:$FE$312,90,FALSE) -> 61% | S37: -4%
A39: CRITERE IARD PREVOYANCE | C39: 20%
B40: Ventes nettes IARD (Auto+MRH+ Pro) par ETP | C40: 7% | E40: ='RECAP SECT'!DC4 -> 8.4 | G40: =VLOOKUP($A$5,'RECAP SECT'!$G$6:$FE$253,101,FALSE) -> 4.0 | I40: =VLOOKUP($A$5,'RECAP SECT'!$G$6:$FE$253,102,FALSE) -> 53% | Q40: =VLOOKUP($A$5,'RECAP SECT AN'!$G$6:$FE$312,102,FALSE) -> 54% | S40: =+Q40-I40 -> 1%
B41: Ventes nettes Prévoyance (GAV, secur.f,prevoy loc,santé,assist.vie, obséques, Pro) par ETP | C41: 7% | E41: ='RECAP SECT'!DF4 -> 15.2 | G41: =VLOOKUP($A$5,'RECAP SECT'!$G$6:$FE$253,104,FALSE) -> 6.9 | I41: =VLOOKUP($A$5,'RECAP SECT'!$G$6:$FE$253,105,FALSE) -> 55% | Q41: =VLOOKUP($A$5,'RECAP SECT AN'!$G$6:$FE$312,105,FALSE) -> 56% | S41: =+Q41-I41 -> 1%
B42: Chiffre d’affaires IARD (Yc Pro) par ETP | C42: 6% | E42: ='RECAP SECT'!DI4 -> 10.2 | G42: =VLOOKUP($A$5,'RECAP SECT'!$G$6:$FE$253,107,FALSE) -> 7.9 | I42: =VLOOKUP($A$5,'RECAP SECT'!$G$6:$FE$253,108,FALSE) -> 22% | Q42: =VLOOKUP($A$5,'RECAP SECT AN'!$G$6:$FE$312,108,FALSE) -> 43% | S42: =+Q42-I42 -> 21%
A44: CRITERE RISQUES | C44: 10%
B45: Complétude, conformité et fiabilisation des nouvelles EER sur flux BDD | C45: 3% | E45: ='RECAP SECT'!DU4 -> 99% | G45: =VLOOKUP($A$5,'RECAP SECT'!$G$6:$FE$253,119,FALSE) -> 97% | I45: =VLOOKUP($A$5,'RECAP SECT'!$G$6:$FE$253,120,FALSE) -> 2% | Q45: =VLOOKUP($A$5,'RECAP SECT AN'!$G$6:$FE$312,120,FALSE) -> 4% | S45: =+Q45-I45 -> 1%
B46: Complétude, conformité et fiabilisation des EER sur flux cumulé et stock | C46: 3% | E46: ='RECAP SECT'!DX4 -> 79% | G46: =VLOOKUP($A$5,'RECAP SECT'!$G$6:$FE$253,122,FALSE) -> 72% | I46: =VLOOKUP($A$5,'RECAP SECT'!$G$6:$FE$253,123,FALSE) -> 8% | Q46: =VLOOKUP($A$5,'RECAP SECT AN'!$G$6:$FE$312,123,FALSE) -> 16% | S46: =+Q46-I46 -> 8%
B47: Traitement et qualité du traitement des alertes Vigiclient | C47: 4% | E47: ='RECAP SECT'!EA4 -> 100% | G47: =VLOOKUP($A$5,'RECAP SECT'!$G$6:$FE$253,125,FALSE) -> 99% | I47: =VLOOKUP($A$5,'RECAP SECT'!$G$6:$FE$253,126,FALSE) -> 1% | Q47: =VLOOKUP($A$5,'RECAP SECT AN'!$G$6:$FE$312,126,FALSE) -> 0% | S47: =+Q47-I47 -> -1%
A49: CRITERE Satisfaction Clients | C49: 10%
B50: Objectifs NPS* | C50: 5% | E50: ='RECAP SECT'!EM4 -> -2 | G50: =VLOOKUP($A$5,'RECAP SECT'!$G$6:$FE$253,137,FALSE) -> -20 | I50: =VLOOKUP($A$5,'RECAP SECT'!$G$6:$FE$253,138,FALSE) -> 104% | Q50: =VLOOKUP($A$5,'RECAP SECT AN'!$G$6:$FE$312,138,FALSE) -> 117% | S50: =+Q50-I50 -> 13%
B51: Enquête Qualité Haute Définition | C51: 5% | E51: ='RECAP SECT'!EP4 -> 80% | G51: =VLOOKUP($A$5,'RECAP SECT'!$G$6:$FE$253,140,FALSE) -> 74% | I51: =VLOOKUP($A$5,'RECAP SECT'!$G$6:$FE$253,141,FALSE) -> 7% | Q51: =VLOOKUP($A$5,'RECAP SECT AN'!$G$6:$FE$312,141,FALSE) -> 12% | S51: =+Q51-I51 -> 6%

Sheet SE_OBJECTIF
A1: Accueil | F1: BAROMETRE BDD - TERRITOIRES
F2: PV PART SUR OBJECTIFS
F3: =ACCUEIL!H7 -> 2019-07-31
F7: Excédent de collecte par ETP yc DAV | I7: Engagements crédit conso par ETP (hors clients note octroi à 9 et DRC complet) | L7: Ventes brutes IARD prevoyance Part et Pro (si DRC complet) par ETP | O7: Evolution des Bpe+JBPe par ETP | R7: PNB sur activité nouvelle (yc bonus digital) par ETP
G8: Taux d'atteinte saisonalisé | H8: =VLOOKUP(ACCUEIL!$H$7,Tableau1[],2,FALSE) -> 64% | J8: Taux d'atteinte saisonalisé | K8: =VLOOKUP(ACCUEIL!$H$7,Tableau1[],3,FALSE) -> 64% | M8: Taux d'atteinte saisonalisé | N8: =VLOOKUP(ACCUEIL!$H$7,Tableau1[],4,FALSE) -> 64% | P8: Taux d'atteinte saisonalisé | Q8: =VLOOKUP(ACCUEIL!$H$7,Tableau1[],5,FALSE) -> 64% | S8: Taux d'atteinte saisonalisé | T8: =VLOOKUP(ACCUEIL!$H$7,Tableau1[],6,FALSE) -> 64%
A9: eds | B9: Direction | C9: eds | D9: Territoire | E9: ETP perf | F9: Réal | G9: Obj | H9: % | I9: Réal | J9: Obj | K9: % | L9: Réal | M9: Obj | N9: % | O9: Réal | P9: Obj | Q9: % | R9: Réal | S9: Obj | T9: % | V9: <80% | W9: 100% | X9: 110% | Y9: 120%
A10: 50 | B10: AUBE HAUTE MARNE | C10: 21 | D10: CHAUMONT | E10: =VLOOKUP($C10,'RECAP SECT'!$G$6:$EV$253,3,FALSE) -> 46.6 | F10: =VLOOKUP($C10,'RECAP SECT'!$G$6:$FZ$26,158,FALSE) -> 186 | G10: =VLOOKUP($C10,'RECAP SECT'!$G$6:$FZ$26,159,FALSE) -> 107 | H10: =VLOOKUP($C10,'RECAP SECT'!$G$6:$FZ$26,160,FALSE) -> 172% | I10: =VLOOKUP($C10,'RECAP SECT'!$G$6:$FZ$26,161,FALSE) -> 355 | J10: =VLOOKUP($C10,'RECAP SECT'!$G$6:$FZ$26,162,FALSE) -> 467 | K10: =VLOOKUP($C10,'RECAP SECT'!$G$6:$FZ$26,163,FALSE) -> 75% | L10: =VLOOKUP($C10,'RECAP SECT'!$G$6:$FZ$26,164,FALSE) -> 38 | M10: =VLOOKUP($C10,'RECAP SECT'!$G$6:$FZ$26,165,FALSE) -> 59 | N10: =VLOOKUP($C10,'RECAP SECT'!$G$6:$FZ$26,166,FALSE) -> 63% | O10: =VLOOKUP($C10,'RECAP SECT'!$G$6:$FZ$26,167,FALSE) -> 3 | P10: =VLOOKUP($C10,'RECAP SECT'!$G$6:$FZ$26,168,FALSE) -> 4 | Q10: =VLOOKUP($C10,'RECAP SECT'!$G$6:$FZ$26,169,FALSE) -> 83% | R10: =VLOOKUP($C10,'RECAP SECT'!$G$6:$FZ$26,170,FALSE) -> 95 | S10: =VLOOKUP($C10,'RECAP SECT'!$G$6:$FZ$26,171,FALSE) -> 126 | T10: =VLOOKUP($C10,'RECAP SECT'!$G$6:$FZ$26,172,FALSE) -> 75% | V10: =$H$8*0.8 -> 51% | W10: =$H$8 -> 64% | X10: =$H$8*1.1 -> 70% | Y10: =$H$8*1.2 -> 76%
A11: 50 | B11: AUBE HAUTE MARNE | C11: 14 | D11: TROYES | E11: =VLOOKUP($C11,'RECAP SECT'!$G$6:$EV$253,3,FALSE) -> 78.5 | F11: =VLOOKUP($C11,'RECAP SECT'!$G$6:$FZ$26,158,FALSE) -> 142 | G11: =VLOOKUP($C11,'RECAP SECT'!$G$6:$FZ$26,159,FALSE) -> 122 | H11: =VLOOKUP($C11,'RECAP SECT'!$G$6:$FZ$26,160,FALSE) -> 117% | I11: =VLOOKUP($C11,'RECAP SECT'!$G$6:$FZ$26,161,FALSE) -> 301 | J11: =VLOOKUP($C11,'RECAP SECT'!$G$6:$FZ$26,162,FALSE) -> 467 | K11: =VLOOKUP($C11,'RECAP SECT'!$G$6:$FZ$26,163,FALSE) -> 64% | L11: =VLOOKUP($C11,'RECAP SECT'!$G$6:$FZ$26,164,FALSE) -> 28 | M11: =VLOOKUP($C11,'RECAP SECT'!$G$6:$FZ$26,165,FALSE) -> 59 | N11: =VLOOKUP($C11,'RECAP SECT'!$G$6:$FZ$26,166,FALSE) -> 46% | O11: =VLOOKUP($C11,'RECAP SECT'!$G$6:$FZ$26,167,FALSE) -> 2 | P11: =VLOOKUP($C11,'RECAP SECT'!$G$6:$FZ$26,168,FALSE) -> 4 | Q11: =VLOOKUP($C11,'RECAP SECT'!$G$6:$FZ$26,169,FALSE) -> 53% | R11: =VLOOKUP($C11,'RECAP SECT'!$G$6:$FZ$26,170,FALSE) -> 91 | S11: =VLOOKUP($C11,'RECAP SECT'!$G$6:$FZ$26,171,FALSE) -> 136 | T11: =VLOOKUP($C11,'RECAP SECT'!$G$6:$FZ$26,172,FALSE) -> 66% | V11: =$H$8*0.8 -> 51% | W11: =$H$8 -> 64% | X11: =$H$8*1.1 -> 70% | Y11: =$H$8*1.2 -> 76%
A12: 262 | B12: BAS-RHIN | C12: 5060 | D12: HAGUENAU | E12: =VLOOKUP($C12,'RECAP SECT'!$G$6:$EV$253,3,FALSE) -> 88.7 | F12: =VLOOKUP($C12,'RECAP SECT'!$G$6:$FZ$26,158,FALSE) -> 138 | G12: =VLOOKUP($C12,'RECAP SECT'!$G$6:$FZ$26,159,FALSE) -> 122 | H12: =VLOOKUP($C12,'RECAP SECT'!$G$6:$FZ$26,160,FALSE) -> 113% | I12: =VLOOKUP($C12,'RECAP SECT'!$G$6:$FZ$26,161,FALSE) -> 245 | J12: =VLOOKUP($C12,'RECAP SECT'!$G$6:$FZ$26,162,FALSE) -> 467 | K12: =VLOOKUP($C12,'RECAP SECT'!$G$6:$FZ$26,163,FALSE) -> 52% | L12: =VLOOKUP($C12,'RECAP SECT'!$G$6:$FZ$26,164,FALSE) -> 32 | M12: =VLOOKUP($C12,'RECAP SECT'!$G$6:$FZ$26,165,FALSE) -> 59 | N12: =VLOOKUP($C12,'RECAP SECT'!$G$6:$FZ$26,166,FALSE) -> 53% | O12: =VLOOKUP($C12,'RECAP SECT'!$G$6:$FZ$26,167,FALSE) -> -2 | P12: =VLOOKUP($C12,'RECAP SECT'!$G$6:$FZ$26,168,FALSE) -> 4 | Q12: =VLOOKUP($C12,'RECAP SECT'!$G$6:$FZ$26,169,FALSE) -> -39% | R12: =VLOOKUP($C12,'RECAP SECT'!$G$6:$FZ$26,170,FALSE) -> 80 | S12: =VLOOKUP($C12,'RECAP SECT'!$G$6:$FZ$26,171,FALSE) -> 133 | T12: =VLOOKUP($C12,'RECAP SECT'!$G$6:$FZ$26,172,FALSE) -> 59% | V12: 51% | W12: 64% | X12: 70% | Y12: 76%
A13: 262 | B13: BAS-RHIN | C13: 5101 | D13: SELESTAT | E13: =VLOOKUP($C13,'RECAP SECT'!$G$6:$EV$253,3,FALSE) -> 75.1 | F13: =VLOOKUP($C13,'RECAP SECT'!$G$6:$FZ$26,158,FALSE) -> 135 | G13: =VLOOKUP($C13,'RECAP SECT'!$G$6:$FZ$26,159,FALSE) -> 136 | H13: =VLOOKUP($C13,'RECAP SECT'!$G$6:$FZ$26,160,FALSE) -> 99% | I13: =VLOOKUP($C13,'RECAP SECT'!$G$6:$FZ$26,161,FALSE) -> 267 | J13: =VLOOKUP($C13,'RECAP SECT'!$G$6:$FZ$26,162,FALSE) -> 467 | K13: =VLOOKUP($C13,'RECAP SECT'!$G$6:$FZ$26,163,FALSE) -> 57% | L13: =VLOOKUP($C13,'RECAP SECT'!$G$6:$FZ$26,164,FALSE) -> 33 | M13: =VLOOKUP($C13,'RECAP SECT'!$G$6:$FZ$26,165,FALSE) -> 59 | N13: =VLOOKUP($C13,'RECAP SECT'!$G$6:$FZ$26,166,FALSE) -> 55% | O13: =VLOOKUP($C13,'RECAP SECT'!$G$6:$FZ$26,167,FALSE) -> -2 | P13: =VLOOKUP($C13,'RECAP SECT'!$G$6:$FZ$26,168,FALSE) -> 4 | Q13: =VLOOKUP($C13,'RECAP SECT'!$G$6:$FZ$26,169,FALSE) -> -62% | R13: =VLOOKUP($C13,'RECAP SECT'!$G$6:$FZ$26,170,FALSE) -> 78 | S13: =VLOOKUP($C13,'RECAP SECT'!$G$6:$FZ$26,171,FALSE) -> 139 | T13: =VLOOKUP($C13,'RECAP SECT'!$G$6:$FZ$26,172,FALSE) -> 56% | V13: 51% | W13: 64% | X13: 70% | Y13: 76%
A14: 262 | B14: BAS-RHIN | C14: 5006 | D14: STRASBOURG | E14: =VLOOKUP($C14,'RECAP SECT'!$G$6:$EV$253,3,FALSE) -> 92.7 | F14: =VLOOKUP($C14,'RECAP SECT'!$G$6:$FZ$26,158,FALSE) -> 69 | G14: =VLOOKUP($C14,'RECAP SECT'!$G$6:$FZ$26,159,FALSE) -> 127 | H14: =VLOOKUP($C14,'RECAP SECT'!$G$6:$FZ$26,160,FALSE) -> 54% | I14: =VLOOKUP($C14,'RECAP SECT'!$G$6:$FZ$26,161,FALSE) -> 218 | J14: =VLOOKUP($C14,'RECAP SECT'!$G$6:$FZ$26,162,FALSE) -> 467 | K14: =VLOOKUP($C14,'RECAP SECT'!$G$6:$FZ$26,163,FALSE) -> 46% | L14: =VLOOKUP($C14,'RECAP SECT'!$G$6:$FZ$26,164,FALSE) -> 27 | M14: =VLOOKUP($C14,'RECAP SECT'!$G$6:$FZ$26,165,FALSE) -> 59 | N14: =VLOOKUP($C14,'RECAP SECT'!$G$6:$FZ$26,166,FALSE) -> 46% | O14: =VLOOKUP($C14,'RECAP SECT'!$G$6:$FZ$26,167,FALSE) -> -2 | P14: =VLOOKUP($C14,'RECAP SECT'!$G$6:$FZ$26,168,FALSE) -> 4 | Q14: =VLOOKUP($C14,'RECAP SECT'!$G$6:$FZ$26,169,FALSE) -> -59% | R14: =VLOOKUP($C14,'RECAP SECT'!$G$6:$FZ$26,170,FALSE) -> 73 | S14: =VLOOKUP($C14,'RECAP SECT'!$G$6:$FZ$26,171,FALSE) -> 136 | T14: =VLOOKUP($C14,'RECAP SECT'!$G$6:$FZ$26,172,FALSE) -> 53% | V14: 51% | W14: 64% | X14: 70% | Y14: 76%
A15: 264 | B15: HAUT-RHIN | C15: 5130 | D15: COLMAR | E15: =VLOOKUP($C15,'RECAP SECT'!$G$6:$EV$253,3,FALSE) -> 76.1 | F15: =VLOOKUP($C15,'RECAP SECT'!$G$6:$FZ$26,158,FALSE) -> 116 | G15: =VLOOKUP($C15,'RECAP SECT'!$G$6:$FZ$26,159,FALSE) -> 135 | H15: =VLOOKUP($C15,'RECAP SECT'!$G$6:$FZ$26,160,FALSE) -> 85% | I15: =VLOOKUP($C15,'RECAP SECT'!$G$6:$FZ$26,161,FALSE) -> 213 | J15: =VLOOKUP($C15,'RECAP SECT'!$G$6:$FZ$26,162,FALSE) -> 467 | K15: =VLOOKUP($C15,'RECAP SECT'!$G$6:$FZ$26,163,FALSE) -> 45% | L15: =VLOOKUP($C15,'RECAP SECT'!$G$6:$FZ$26,164,FALSE) -> 29 | M15: =VLOOKUP($C15,'RECAP SECT'!$G$6:$FZ$26,165,FALSE) -> 59 | N15: =VLOOKUP($C15,'RECAP SECT'!$G$6:$FZ$26,166,FALSE) -> 48% | O15: =VLOOKUP($C15,'RECAP SECT'!$G$6:$FZ$26,167,FALSE) -> -2 | P15: =VLOOKUP($C15,'RECAP SECT'!$G$6:$FZ$26,168,FALSE) -> 4 | Q15: =VLOOKUP($C15,'RECAP SECT'!$G$6:$FZ$26,169,FALSE) -> -54% | R15: =VLOOKUP($C15,'RECAP SECT'!$G$6:$FZ$26,170,FALSE) -> 71 | S15: =VLOOKUP($C15,'RECAP SECT'!$G$6:$FZ$26,171,FALSE) -> 140 | T15: =VLOOKUP($C15,'RECAP SECT'!$G$6:$FZ$26,172,FALSE) -> 50% | V15: 51% | W15: 64% | X15: 70% | Y15: 76%
A16: 264 | B16: HAUT-RHIN | C16: 5169 | D16: MULHOUSE | E16: =VLOOKUP($C16,'RECAP SECT'!$G$6:$EV$253,3,FALSE) -> 78.1 | F16: =VLOOKUP($C16,'RECAP SECT'!$G$6:$FZ$26,158,FALSE) -> 138 | G16: =VLOOKUP($C16,'RECAP SECT'!$G$6:$FZ$26,159,FALSE) -> 129 | H16: =VLOOKUP($C16,'RECAP SECT'!$G$6:$FZ$26,160,FALSE) -> 107% | I16: =VLOOKUP($C16,'RECAP SECT'!$G$6:$FZ$26,161,FALSE) -> 259 | J16: =VLOOKUP($C16,'RECAP SECT'!$G$6:$FZ$26,162,FALSE) -> 467 | K16: =VLOOKUP($C16,'RECAP SECT'!$G$6:$FZ$26,163,FALSE) -> 55% | L16: =VLOOKUP($C16,'RECAP SECT'!$G$6:$FZ$26,164,FALSE) -> 26 | M16: =VLOOKUP($C16,'RECAP SECT'!$G$6:$FZ$26,165,FALSE) -> 59 | N16: =VLOOKUP($C16,'RECAP SECT'!$G$6:$FZ$26,166,FALSE) -> 44% | O16: =VLOOKUP($C16,'RECAP SECT'!$G$6:$FZ$26,167,FALSE) -> -3 | P16: =VLOOKUP($C16,'RECAP SECT'!$G$6:$FZ$26,168,FALSE) -> 4 | Q16: =VLOOKUP($C16,'RECAP SECT'!$G$6:$FZ$26,169,FALSE) -> -64% | R16: =VLOOKUP($C16,'RECAP SECT'!$G$6:$FZ$26,170,FALSE) -> 90 | S16: =VLOOKUP($C16,'RECAP SECT'!$G$6:$FZ$26,171,FALSE) -> 140 | T16: =VLOOKUP($C16,'RECAP SECT'!$G$6:$FZ$26,172,FALSE) -> 64% | V16: 51% | W16: 64% | X16: 70% | Y16: 76%
A17: 30 | B17: MARNE-ARDENNES | C17: 6 | D17: CHALONS EN CHAMPAGNE | E17: =VLOOKUP($C17,'RECAP SECT'!$G$6:$EV$253,3,FALSE) -> 49.2 | F17: =VLOOKUP($C17,'RECAP SECT'!$G$6:$FZ$26,158,FALSE) -> 4 | G17: =VLOOKUP($C17,'RECAP SECT'!$G$6:$FZ$26,159,FALSE) -> 130 | H17: =VLOOKUP($C17,'RECAP SECT'!$G$6:$FZ$26,160,FALSE) -> 3% | I17: =VLOOKUP($C17,'RECAP SECT'!$G$6:$FZ$26,161,FALSE) -> 285 | J17: =VLOOKUP($C17,'RECAP SECT'!$G$6:$FZ$26,162,FALSE) -> 467 | K17: =VLOOKUP($C17,'RECAP SECT'!$G$6:$FZ$26,163,FALSE) -> 60% | L17: =VLOOKUP($C17,'RECAP SECT'!$G$6:$FZ$26,164,FALSE) -> 38 | M17: =VLOOKUP($C17,'RECAP SECT'!$G$6:$FZ$26,165,FALSE) -> 59 | N17: =VLOOKUP($C17,'RECAP SECT'!$G$6:$FZ$26,166,FALSE) -> 64% | O17: =VLOOKUP($C17,'RECAP SECT'!$G$6:$FZ$26,167,FALSE) -> 0 | P17: =VLOOKUP($C17,'RECAP SECT'!$G$6:$FZ$26,168,FALSE) -> 4 | Q17: =VLOOKUP($C17,'RECAP SECT'!$G$6:$FZ$26,169,FALSE) -> 4% | R17: =VLOOKUP($C17,'RECAP SECT'!$G$6:$FZ$26,170,FALSE) -> 87 | S17: =VLOOKUP($C17,'RECAP SECT'!$G$6:$FZ$26,171,FALSE) -> 137 | T17: =VLOOKUP($C17,'RECAP SECT'!$G$6:$FZ$26,172,FALSE) -> 63% | V17: 51% | W17: 64% | X17: 70% | Y17: 76%
A18: 30 | B18: MARNE-ARDENNES | C18: 2 | D18: CHARLEVILLE MEZIERES | E18: =VLOOKUP($C18,'RECAP SECT'!$G$6:$EV$253,3,FALSE) -> 62.6 | F18: =VLOOKUP($C18,'RECAP SECT'!$G$6:$FZ$26,158,FALSE) -> -7 | G18: =VLOOKUP($C18,'RECAP SECT'!$G$6:$FZ$26,159,FALSE) -> 122 | H18: =VLOOKUP($C18,'RECAP SECT'!$G$6:$FZ$26,160,FALSE) -> -6% | I18: =VLOOKUP($C18,'RECAP SECT'!$G$6:$FZ$26,161,FALSE) -> 293 | J18: =VLOOKUP($C18,'RECAP SECT'!$G$6:$FZ$26,162,FALSE) -> 467 | K18: =VLOOKUP($C18,'RECAP SECT'!$G$6:$FZ$26,163,FALSE) -> 62% | L18: =VLOOKUP($C18,'RECAP SECT'!$G$6:$FZ$26,164,FALSE) -> 40 | M18: =VLOOKUP($C18,'RECAP SECT'!$G$6:$FZ$26,165,FALSE) -> 59 | N18: =VLOOKUP($C18,'RECAP SECT'!$G$6:$FZ$26,166,FALSE) -> 67% | O18: =VLOOKUP($C18,'RECAP SECT'!$G$6:$FZ$26,167,FALSE) -> 5 | P18: =VLOOKUP($C18,'RECAP SECT'!$G$6:$FZ$26,168,FALSE) -> 4 | Q18: =VLOOKUP($C18,'RECAP SECT'!$G$6:$FZ$26,169,FALSE) -> 113% | R18: =VLOOKUP($C18,'RECAP SECT'!$G$6:$FZ$26,170,FALSE) -> 96 | S18: =VLOOKUP($C18,'RECAP SECT'!$G$6:$FZ$26,171,FALSE) -> 132 | T18: =VLOOKUP($C18,'RECAP SECT'!$G$6:$FZ$26,172,FALSE) -> 72% | V18: 51% | W18: 64% | X18: 70% | Y18: 76%
A19: 30 | B19: MARNE-ARDENNES | C19: 11 | D19: REIMS | E19: =VLOOKUP($C19,'RECAP SECT'!$G$6:$EV$253,3,FALSE) -> 91.1 | F19: =VLOOKUP($C19,'RECAP SECT'!$G$6:$FZ$26,158,FALSE) -> 157 | G19: =VLOOKUP($C19,'RECAP SECT'!$G$6:$FZ$26,159,FALSE) -> 143 | H19: =VLOOKUP($C19,'RECAP SECT'!$G$6:$FZ$26,160,FALSE) -> 109% | I19: =VLOOKUP($C19,'RECAP SECT'!$G$6:$FZ$26,161,FALSE) -> 357 | J19: =VLOOKUP($C19,'RECAP SECT'!$G$6:$FZ$26,162,FALSE) -> 467 | K19: =VLOOKUP($C19,'RECAP SECT'!$G$6:$FZ$26,163,FALSE) -> 76% | L19: =VLOOKUP($C19,'RECAP SECT'!$G$6:$FZ$26,164,FALSE) -> 35 | M19: =VLOOKUP($C19,'RECAP SECT'!$G$6:$FZ$26,165,FALSE) -> 59 | N19: =VLOOKUP($C19,'RECAP SECT'!$G$6:$FZ$26,166,FALSE) -> 59% | O19: =VLOOKUP($C19,'RECAP SECT'!$G$6:$FZ$26,167,FALSE) -> 2 | P19: =VLOOKUP($C19,'RECAP SECT'!$G$6:$FZ$26,168,FALSE) -> 4 | Q19: =VLOOKUP($C19,'RECAP SECT'!$G$6:$FZ$26,169,FALSE) -> 45% | R19: =VLOOKUP($C19,'RECAP SECT'!$G$6:$FZ$26,170,FALSE) -> 103 | S19: =VLOOKUP($C19,'RECAP SECT'!$G$6:$FZ$26,171,FALSE) -> 148 | T19: =VLOOKUP($C19,'RECAP SECT'!$G$6:$FZ$26,172,FALSE) -> 69% | V19: 51% | W19: 64% | X19: 70% | Y19: 76%
A20: 110 | B20: MEURTHE ET MOSELLE MEUSE | C20: 26 | D20: NANCY | E20: =VLOOKUP($C20,'RECAP SECT'!$G$6:$EV$253,3,FALSE) -> 79.3 | F20: =VLOOKUP($C20,'RECAP SECT'!$G$6:$FZ$26,158,FALSE) -> 103 | G20: =VLOOKUP($C20,'RECAP SECT'!$G$6:$FZ$26,159,FALSE) -> 118 | H20: =VLOOKUP($C20,'RECAP SECT'!$G$6:$FZ$26,160,FALSE) -> 87% | I20: =VLOOKUP($C20,'RECAP SECT'!$G$6:$FZ$26,161,FALSE) -> 274 | J20: =VLOOKUP($C20,'RECAP SECT'!$G$6:$FZ$26,162,FALSE) -> 467 | K20: =VLOOKUP($C20,'RECAP SECT'!$G$6:$FZ$26,163,FALSE) -> 58% | L20: =VLOOKUP($C20,'RECAP SECT'!$G$6:$FZ$26,164,FALSE) -> 31 | M20: =VLOOKUP($C20,'RECAP SECT'!$G$6:$FZ$26,165,FALSE) -> 59 | N20: =VLOOKUP($C20,'RECAP SECT'!$G$6:$FZ$26,166,FALSE) -> 53% | O20: =VLOOKUP($C20,'RECAP SECT'!$G$6:$FZ$26,167,FALSE) -> 0 | P20: =VLOOKUP($C20,'RECAP SECT'!$G$6:$FZ$26,168,FALSE) -> 4 | Q20: =VLOOKUP($C20,'RECAP SECT'!$G$6:$FZ$26,169,FALSE) -> 2% | R20: =VLOOKUP($C20,'RECAP SECT'!$G$6:$FZ$26,170,FALSE) -> 84 | S20: =VLOOKUP($C20,'RECAP SECT'!$G$6:$FZ$26,171,FALSE) -> 131 | T20: =VLOOKUP($C20,'RECAP SECT'!$G$6:$FZ$26,172,FALSE) -> 64% | V20: 51% | W20: 64% | X20: 70% | Y20: 76%
A21: 110 | B21: MEURTHE ET MOSELLE MEUSE | C21: 27 | D21: PONT A MOUSSON | E21: =VLOOKUP($C21,'RECAP SECT'!$G$6:$EV$253,3,FALSE) -> 87.7 | F21: =VLOOKUP($C21,'RECAP SECT'!$G$6:$FZ$26,158,FALSE) -> 138 | G21: =VLOOKUP($C21,'RECAP SECT'!$G$6:$FZ$26,159,FALSE) -> 118 | H21: =VLOOKUP($C21,'RECAP SECT'!$G$6:$FZ$26,160,FALSE) -> 116% | I21: =VLOOKUP($C21,'RECAP SECT'!$G$6:$FZ$26,161,FALSE) -> 285 | J21: =VLOOKUP($C21,'RECAP SECT'!$G$6:$FZ$26,162,FALSE) -> 467 | K21: =VLOOKUP($C21,'RECAP SECT'!$G$6:$FZ$26,163,FALSE) -> 61% | L21: =VLOOKUP($C21,'RECAP SECT'!$G$6:$FZ$26,164,FALSE) -> 32 | M21: =VLOOKUP($C21,'RECAP SECT'!$G$6:$FZ$26,165,FALSE) -> 59 | N21: =VLOOKUP($C21,'RECAP SECT'!$G$6:$FZ$26,166,FALSE) -> 53% | O21: =VLOOKUP($C21,'RECAP SECT'!$G$6:$FZ$26,167,FALSE) -> 1 | P21: =VLOOKUP($C21,'RECAP SECT'!$G$6:$FZ$26,168,FALSE) -> 4 | Q21: =VLOOKUP($C21,'RECAP SECT'!$G$6:$FZ$26,169,FALSE) -> 17% | R21: =VLOOKUP($C21,'RECAP SECT'!$G$6:$FZ$26,170,FALSE) -> 93 | S21: =VLOOKUP($C21,'RECAP SECT'!$G$6:$FZ$26,171,FALSE) -> 132 | T21: =VLOOKUP($C21,'RECAP SECT'!$G$6:$FZ$26,172,FALSE) -> 70% | V21: 51% | W21: 64% | X21: 70% | Y21: 76%
A22: 110 | B22: MEURTHE ET MOSELLE MEUSE | C22: 31 | D22: VERDUN | E22: =VLOOKUP($C22,'RECAP SECT'!$G$6:$EV$253,3,FALSE) -> 64.7 | F22: =VLOOKUP($C22,'RECAP SECT'!$G$6:$FZ$26,158,FALSE) -> 109 | G22: =VLOOKUP($C22,'RECAP SECT'!$G$6:$FZ$26,159,FALSE) -> 116 | H22: =VLOOKUP($C22,'RECAP SECT'!$G$6:$FZ$26,160,FALSE) -> 94% | I22: =VLOOKUP($C22,'RECAP SECT'!$G$6:$FZ$26,161,FALSE) -> 304 | J22: =VLOOKUP($C22,'RECAP SECT'!$G$6:$FZ$26,162,FALSE) -> 467 | K22: =VLOOKUP($C22,'RECAP SECT'!$G$6:$FZ$26,163,FALSE) -> 64% | L22: =VLOOKUP($C22,'RECAP SECT'!$G$6:$FZ$26,164,FALSE) -> 29 | M22: =VLOOKUP($C22,'RECAP SECT'!$G$6:$FZ$26,165,FALSE) -> 59 | N22: =VLOOKUP($C22,'RECAP SECT'!$G$6:$FZ$26,166,FALSE) -> 48% | O22: =VLOOKUP($C22,'RECAP SECT'!$G$6:$FZ$26,167,FALSE) -> -1 | P22: =VLOOKUP($C22,'RECAP SECT'!$G$6:$FZ$26,168,FALSE) -> 4 | Q22: =VLOOKUP($C22,'RECAP SECT'!$G$6:$FZ$26,169,FALSE) -> -32% | R22: =VLOOKUP($C22,'RECAP SECT'!$G$6:$FZ$26,170,FALSE) -> 84 | S22: =VLOOKUP($C22,'RECAP SECT'!$G$6:$FZ$26,171,FALSE) -> 130 | T22: =VLOOKUP($C22,'RECAP SECT'!$G$6:$FZ$26,172,FALSE) -> 64% | V22: 51% | W22: 64% | X22: 70% | Y22: 76%
A23: 160 | B23: MOSELLE | C23: 45 | D23: METZ | E23: =VLOOKUP($C23,'RECAP SECT'!$G$6:$EV$253,3,FALSE) -> 103.2 | F23: =VLOOKUP($C23,'RECAP SECT'!$G$6:$FZ$26,158,FALSE) -> 270 | G23: =VLOOKUP($C23,'RECAP SECT'!$G$6:$FZ$26,159,FALSE) -> 125 | H23: =VLOOKUP($C23,'RECAP SECT'!$G$6:$FZ$26,160,FALSE) -> 216% | I23: =VLOOKUP($C23,'RECAP SECT'!$G$6:$FZ$26,161,FALSE) -> 286 | J23: =VLOOKUP($C23,'RECAP SECT'!$G$6:$FZ$26,162,FALSE) -> 467 | K23: =VLOOKUP($C23,'RECAP SECT'!$G$6:$FZ$26,163,FALSE) -> 61% | L23: =VLOOKUP($C23,'RECAP SECT'!$G$6:$FZ$26,164,FALSE) -> 30 | M23: =VLOOKUP($C23,'RECAP SECT'!$G$6:$FZ$26,165,FALSE) -> 59 | N23: =VLOOKUP($C23,'RECAP SECT'!$G$6:$FZ$26,166,FALSE) -> 50% | O23: =VLOOKUP($C23,'RECAP SECT'!$G$6:$FZ$26,167,FALSE) -> 1 | P23: =VLOOKUP($C23,'RECAP SECT'!$G$6:$FZ$26,168,FALSE) -> 4 | Q23: =VLOOKUP($C23,'RECAP SECT'!$G$6:$FZ$26,169,FALSE) -> 29% | R23: =VLOOKUP($C23,'RECAP SECT'!$G$6:$FZ$26,170,FALSE) -> 86 | S23: =VLOOKUP($C23,'RECAP SECT'!$G$6:$FZ$26,171,FALSE) -> 136 | T23: =VLOOKUP($C23,'RECAP SECT'!$G$6:$FZ$26,172,FALSE) -> 63% | V23: 51% | W23: 64% | X23: 70% | Y23: 76%
A24: 160 | B24: MOSELLE | C24: 42 | D24: MOSELLE EST | E24: =VLOOKUP($C24,'RECAP SECT'!$G$6:$EV$253,3,FALSE) -> 86.1 | F24: =VLOOKUP($C24,'RECAP SECT'!$G$6:$FZ$26,158,FALSE) -> 91 | G24: =VLOOKUP($C24,'RECAP SECT'!$G$6:$FZ$26,159,FALSE) -> 106 | H24: =VLOOKUP($C24,'RECAP SECT'!$G$6:$FZ$26,160,FALSE) -> 85% | I24: =VLOOKUP($C24,'RECAP SECT'!$G$6:$FZ$26,161,FALSE) -> 264 | J24: =VLOOKUP($C24,'RECAP SECT'!$G$6:$FZ$26,162,FALSE) -> 467 | K24: =VLOOKUP($C24,'RECAP SECT'!$G$6:$FZ$26,163,FALSE) -> 56% | L24: =VLOOKUP($C24,'RECAP SECT'!$G$6:$FZ$26,164,FALSE) -> 31 | M24: =VLOOKUP($C24,'RECAP SECT'!$G$6:$FZ$26,165,FALSE) -> 59 | N24: =VLOOKUP($C24,'RECAP SECT'!$G$6:$FZ$26,166,FALSE) -> 52% | O24: =VLOOKUP($C24,'RECAP SECT'!$G$6:$FZ$26,167,FALSE) -> 0 | P24: =VLOOKUP($C24,'RECAP SECT'!$G$6:$FZ$26,168,FALSE) -> 4 | Q24: =VLOOKUP($C24,'RECAP SECT'!$G$6:$FZ$26,169,FALSE) -> 3% | R24: =VLOOKUP($C24,'RECAP SECT'!$G$6:$FZ$26,170,FALSE) -> 86 | S24: =VLOOKUP($C24,'RECAP SECT'!$G$6:$FZ$26,171,FALSE) -> 131 | T24: =VLOOKUP($C24,'RECAP SECT'!$G$6:$FZ$26,172,FALSE) -> 65% | V24: 51% | W24: 64% | X24: 70% | Y24: 76%
A25: 160 | B25: MOSELLE | C25: 44 | D25: MOSELLE NORD | E25: =VLOOKUP($C25,'RECAP SECT'!$G$6:$EV$253,3,FALSE) -> 80.5 | F25: =VLOOKUP($C25,'RECAP SECT'!$G$6:$FZ$26,158,FALSE) -> 113 | G25: =VLOOKUP($C25,'RECAP SECT'!$G$6:$FZ$26,159,FALSE) -> 119 | H25: =VLOOKUP($C25,'RECAP SECT'!$G$6:$FZ$26,160,FALSE) -> 94% | I25: =VLOOKUP($C25,'RECAP SECT'!$G$6:$FZ$26,161,FALSE) -> 304 | J25: =VLOOKUP($C25,'RECAP SECT'!$G$6:$FZ$26,162,FALSE) -> 467 | K25: =VLOOKUP($C25,'RECAP SECT'!$G$6:$FZ$26,163,FALSE) -> 65% | L25: =VLOOKUP($C25,'RECAP SECT'!$G$6:$FZ$26,164,FALSE) -> 33 | M25: =VLOOKUP($C25,'RECAP SECT'!$G$6:$FZ$26,165,FALSE) -> 59 | N25: =VLOOKUP($C25,'RECAP SECT'!$G$6:$FZ$26,166,FALSE) -> 55% | O25: =VLOOKUP($C25,'RECAP SECT'!$G$6:$FZ$26,167,FALSE) -> -1 | P25: =VLOOKUP($C25,'RECAP SECT'!$G$6:$FZ$26,168,FALSE) -> 4 | Q25: =VLOOKUP($C25,'RECAP SECT'!$G$6:$FZ$26,169,FALSE) -> -16% | R25: =VLOOKUP($C25,'RECAP SECT'!$G$6:$FZ$26,170,FALSE) -> 94 | S25: =VLOOKUP($C25,'RECAP SECT'!$G$6:$FZ$26,171,FALSE) -> 134 | T25: =VLOOKUP($C25,'RECAP SECT'!$G$6:$FZ$26,172,FALSE) -> 69% | V25: 51% | W25: 64% | X25: 70% | Y25: 76%
A26: 80 | B26: VOSGES | C26: 57 | D26: EPINAL | E26: =VLOOKUP($C26,'RECAP SECT'!$G$6:$EV$253,3,FALSE) -> 68.7 | F26: =VLOOKUP($C26,'RECAP SECT'!$G$6:$FZ$26,158,FALSE) -> 111 | G26: =VLOOKUP($C26,'RECAP SECT'!$G$6:$FZ$26,159,FALSE) -> 108 | H26: =VLOOKUP($C26,'RECAP SECT'!$G$6:$FZ$26,160,FALSE) -> 102% | I26: =VLOOKUP($C26,'RECAP SECT'!$G$6:$FZ$26,161,FALSE) -> 252 | J26: =VLOOKUP($C26,'RECAP SECT'!$G$6:$FZ$26,162,FALSE) -> 467 | K26: =VLOOKUP($C26,'RECAP SECT'!$G$6:$FZ$26,163,FALSE) -> 53% | L26: =VLOOKUP($C26,'RECAP SECT'!$G$6:$FZ$26,164,FALSE) -> 31 | M26: =VLOOKUP($C26,'RECAP SECT'!$G$6:$FZ$26,165,FALSE) -> 59 | N26: =VLOOKUP($C26,'RECAP SECT'!$G$6:$FZ$26,166,FALSE) -> 51% | O26: =VLOOKUP($C26,'RECAP SECT'!$G$6:$FZ$26,167,FALSE) -> 1 | P26: =VLOOKUP($C26,'RECAP SECT'!$G$6:$FZ$26,168,FALSE) -> 4 | Q26: =VLOOKUP($C26,'RECAP SECT'!$G$6:$FZ$26,169,FALSE) -> 13% | R26: =VLOOKUP($C26,'RECAP SECT'!$G$6:$FZ$26,170,FALSE) -> 82 | S26: =VLOOKUP($C26,'RECAP SECT'!$G$6:$FZ$26,171,FALSE) -> 126 | T26: =VLOOKUP($C26,'RECAP SECT'!$G$6:$FZ$26,172,FALSE) -> 64% | V26: 51% | W26: 64% | X26: 70% | Y26: 76%
A27: 80 | B27: VOSGES | C27: 55 | D27: SAINT DIE | E27: =VLOOKUP($C27,'RECAP SECT'!$G$6:$EV$253,3,FALSE) -> 58.0 | F27: =VLOOKUP($C27,'RECAP SECT'!$G$6:$FZ$26,158,FALSE) -> 172 | G27: =VLOOKUP($C27,'RECAP SECT'!$G$6:$FZ$26,159,FALSE) -> 113 | H27: =VLOOKUP($C27,'RECAP SECT'!$G$6:$FZ$26,160,FALSE) -> 152% | I27: =VLOOKUP($C27,'RECAP SECT'!$G$6:$FZ$26,161,FALSE) -> 299 | J27: =VLOOKUP($C27,'RECAP SECT'!$G$6:$FZ$26,162,FALSE) -> 467 | K27: =VLOOKUP($C27,'RECAP SECT'!$G$6:$FZ$26,163,FALSE) -> 63% | L27: =VLOOKUP($C27,'RECAP SECT'!$G$6:$FZ$26,164,FALSE) -> 30 | M27: =VLOOKUP($C27,'RECAP SECT'!$G$6:$FZ$26,165,FALSE) -> 59 | N27: =VLOOKUP($C27,'RECAP SECT'!$G$6:$FZ$26,166,FALSE) -> 51% | O27: =VLOOKUP($C27,'RECAP SECT'!$G$6:$FZ$26,167,FALSE) -> -2 | P27: =VLOOKUP($C27,'RECAP SECT'!$G$6:$FZ$26,168,FALSE) -> 4 | Q27: =VLOOKUP($C27,'RECAP SECT'!$G$6:$FZ$26,169,FALSE) -> -39% | R27: =VLOOKUP($C27,'RECAP SECT'!$G$6:$FZ$26,170,FALSE) -> 93 | S27: =VLOOKUP($C27,'RECAP SECT'!$G$6:$FZ$26,171,FALSE) -> 127 | T27: =VLOOKUP($C27,'RECAP SECT'!$G$6:$FZ$26,172,FALSE) -> 73% | V27: 51% | W27: 64% | X27: 70% | Y27: 76%
A28: Total CEGEE | C28: Directions Régionales | E28: =SUM(E10:E27) -> 1367 | G28: ='RECAP SECT'!GG24 -> 2 | H28: ='RECAP SECT'!GH24 -> 1 | J28: ='RECAP SECT'!GL24 -> 2 | K28: ='RECAP SECT'!GM24 -> 11 | M28: ='RECAP SECT'!GQ24 -> 6 | N28: ='RECAP SECT'!GR24 -> 10 | P28: ='RECAP SECT'!GV24 -> 15 | Q28: ='RECAP SECT'!GW24 -> 1 | S28: ='RECAP SECT'!HA24 -> 1 | T28: ='RECAP SECT'!HB24 -> 5
G29: ='RECAP SECT'!GI24 -> 0 | H29: ='RECAP SECT'!GJ24 -> 15 | J29: ='RECAP SECT'!GN24 -> 5 | K29: ='RECAP SECT'!GO24 -> 0 | M29: ='RECAP SECT'!GS24 -> 2 | N29: ='RECAP SECT'!GT24 -> 0 | P29: ='RECAP SECT'!GX24 -> 0 | Q29: ='RECAP SECT'!GY24 -> 2 | S29: ='RECAP SECT'!HC24 -> 12 | T29: ='RECAP SECT'!HD24 -> 0
D32: Taux d'atteinte objectif annuel > 110 % ou 120 % en saisonnalisé en fonction des critères (collecte 110 %, autres 120 %)
D34: Taux d'atteinte objectif annuel entre 100 % et 110 % ou 120 % en saisonnalisé en fonction des critères (collecte 110 %, autres 120 %)
D36: Taux d'atteinte objectif annuel entre 80 % et 100 % en saisonnalisé
D38: Taux d'atteinte objectif annuel < 80 % en saisonnalisé

Sheet SE_TOTAL
A1: Accueil | F1: BAROMETRE BDD - TERRITOIRES
F2: TOTAL GENERAL
F3: =ACCUEIL!H7 -> 2019-07-31
F7: TOTAL GENERAL | I7: Total Conquête | L7: Total Equipement Bancarisation | O7: Total Epargne | R7: Total Crédits | U7: Total IARD Prévoyance | X7: Total Risques | AA7: Total Satisfaction Clients
G8: coef | H8: 100% | J8: coef | K8: ='RECAP DIRCOM'!$Y$4 -> 15% | M8: coef | N8: ='RECAP DIRCOM'!$AW$4 -> 15% | P8: coef | Q8: ='RECAP DIRCOM'!$BU$4 -> 15% | S8: coef | T8: ='RECAP DIRCOM'!$CV$4 -> 15% | V8: coef | W8: ='RECAP DIRCOM'!$DN$4 -> 20% | Y8: coef | Z8: ='RECAP DIRCOM'!$EF$4 -> 10% | AB8: coef | AC8: ='RECAP DIRCOM'!$EU$4 -> 10%
A9: eds | B9: Direction | C9: eds | D9: Territoire | E9: ETP perf | F9: Moyenne ecart au 1er | G9: % Ecart au 1er | H9: Rang CEGEE | I9: Moyenne ecart au 1er | J9: % Ecart au 1er | K9: Rang CEGEE | L9: Moyenne ecart au 1er | M9: % Ecart au 1er | N9: Rang CEGEE | O9: Moyenne ecart au 1er | P9: % Ecart au 1er | Q9: Rang CEGEE | R9: Moyenne ecart au 1er | S9: % Ecart au 1er | T9: Rang CEGEE | U9: Moyenne ecart au 1er | V9: % Ecart au 1er | W9: Rang CEGEE | X9: Moyenne ecart au 1er | Y9: % Ecart au 1er | Z9: Rang CEGEE | AA9: Moyenne ecart au 1er | AB9: % Ecart au 1er | AC9: Rang CEGEE
A10: 50 | B10: AUBE HAUTE MARNE | C10: 21 | D10: CHAUMONT | E10: =VLOOKUP($C10,'RECAP SECT'!$G$6:$EV$253,3,FALSE) -> 46.6 | F10: =VLOOKUP($C10,'RECAP SECT'!$G$6:$FF$253,152,FALSE) -> 16% | G10: =VLOOKUP($C10,'RECAP SECT'!$G$6:$FF$253,153,FALSE) -> 0% | H10: =VLOOKUP($C10,'RECAP SECT'!$G$6:$FF$253,154,FALSE) -> 1 | I10: =VLOOKUP($C10,'RECAP SECT'!$G$6:$FF$253,17,FALSE) -> 50% | J10: =VLOOKUP($C10,'RECAP SECT'!$G$6:$FF$253,18,FALSE) -> 35% | K10: =VLOOKUP($C10,'RECAP SECT'!$G$6:$FF$253,19,FALSE) -> 2 | L10: =VLOOKUP($C10,'RECAP SECT'!$G$6:$FF$253,41,FALSE) -> 31% | M10: =VLOOKUP($C10,'RECAP SECT'!$G$6:$FF$253,42,FALSE) -> 3% | N10: =VLOOKUP($C10,'RECAP SECT'!$G$6:$FF$253,43,FALSE) -> 3 | O10: =VLOOKUP($C10,'RECAP SECT'!$G$6:$FF$253,65,FALSE) -> 60% | P10: =VLOOKUP($C10,'RECAP SECT'!$G$6:$FF$253,66,FALSE) -> 49% | Q10: =VLOOKUP($C10,'RECAP SECT'!$G$6:$FF$253,67,FALSE) -> 13 | R10: =VLOOKUP($C10,'RECAP SECT'!$G$6:$FF$253,92,FALSE) -> 18% | S10: =VLOOKUP($C10,'RECAP SECT'!$G$6:$FF$253,93,FALSE) -> 10% | T10: =VLOOKUP($C10,'RECAP SECT'!$G$6:$FF$253,94,FALSE) -> 6 | U10: =VLOOKUP($C10,'RECAP SECT'!$G$6:$FF$253,110,FALSE) -> 10% | V10: =VLOOKUP($C10,'RECAP SECT'!$G$6:$FF$253,111,FALSE) -> 7% | W10: =VLOOKUP($C10,'RECAP SECT'!$G$6:$FF$253,112,FALSE) -> 2 | X10: =VLOOKUP($C10,'RECAP SECT'!$G$6:$FF$253,128,FALSE) -> 1% | Y10: =VLOOKUP($C10,'RECAP SECT'!$G$6:$FF$253,129,FALSE) -> 0% | Z10: =VLOOKUP($C10,'RECAP SECT'!$G$6:$FF$253,130,FALSE) -> 1 | AA10: =VLOOKUP($C10,'RECAP SECT'!$G$6:$FF$253,143,FALSE) -> 1% | AB10: =VLOOKUP($C10,'RECAP SECT'!$G$6:$FF$253,144,FALSE) -> 1% | AC10: =VLOOKUP($C10,'RECAP SECT'!$G$6:$FF$253,145,FALSE) -> 2
A11: 30 | B11: MARNE-ARDENNES | C11: 11 | D11: REIMS | E11: =VLOOKUP($C11,'RECAP SECT'!$G$6:$EV$253,3,FALSE) -> 91.1 | F11: =VLOOKUP($C11,'RECAP SECT'!$G$6:$FF$253,152,FALSE) -> 17% | G11: =VLOOKUP($C11,'RECAP SECT'!$G$6:$FF$253,153,FALSE) -> 1% | H11: =VLOOKUP($C11,'RECAP SECT'!$G$6:$FF$253,154,FALSE) -> 2 | I11: =VLOOKUP($C11,'RECAP SECT'!$G$6:$FF$253,17,FALSE) -> 55% | J11: =VLOOKUP($C11,'RECAP SECT'!$G$6:$FF$253,18,FALSE) -> 40% | K11: =VLOOKUP($C11,'RECAP SECT'!$G$6:$FF$253,19,FALSE) -> 3 | L11: =VLOOKUP($C11,'RECAP SECT'!$G$6:$FF$253,41,FALSE) -> 28% | M11: =VLOOKUP($C11,'RECAP SECT'!$G$6:$FF$253,42,FALSE) -> 0% | N11: =VLOOKUP($C11,'RECAP SECT'!$G$6:$FF$253,43,FALSE) -> 1 | O11: =VLOOKUP($C11,'RECAP SECT'!$G$6:$FF$253,65,FALSE) -> 51% | P11: =VLOOKUP($C11,'RECAP SECT'!$G$6:$FF$253,66,FALSE) -> 40% | Q11: =VLOOKUP($C11,'RECAP SECT'!$G$6:$FF$253,67,FALSE) -> 8 | R11: =VLOOKUP($C11,'RECAP SECT'!$G$6:$FF$253,92,FALSE) -> 13% | S11: =VLOOKUP($C11,'RECAP SECT'!$G$6:$FF$253,93,FALSE) -> 5% | T11: =VLOOKUP($C11,'RECAP SECT'!$G$6:$FF$253,94,FALSE) -> 4 | U11: =VLOOKUP($C11,'RECAP SECT'!$G$6:$FF$253,110,FALSE) -> 22% | V11: =VLOOKUP($C11,'RECAP SECT'!$G$6:$FF$253,111,FALSE) -> 19% | W11: =VLOOKUP($C11,'RECAP SECT'!$G$6:$FF$253,112,FALSE) -> 5 | X11: =VLOOKUP($C11,'RECAP SECT'!$G$6:$FF$253,128,FALSE) -> 4% | Y11: =VLOOKUP($C11,'RECAP SECT'!$G$6:$FF$253,129,FALSE) -> 3% | Z11: =VLOOKUP($C11,'RECAP SECT'!$G$6:$FF$253,130,FALSE) -> 11 | AA11: =VLOOKUP($C11,'RECAP SECT'!$G$6:$FF$253,143,FALSE) -> 0% | AB11: =VLOOKUP($C11,'RECAP SECT'!$G$6:$FF$253,144,FALSE) -> 0% | AC11: =VLOOKUP($C11,'RECAP SECT'!$G$6:$FF$253,145,FALSE) -> 1
A12: 30 | B12: MARNE-ARDENNES | C12: 2 | D12: CHARLEVILLE MEZIERES | E12: =VLOOKUP($C12,'RECAP SECT'!$G$6:$EV$253,3,FALSE) -> 62.6 | F12: =VLOOKUP($C12,'RECAP SECT'!$G$6:$FF$253,152,FALSE) -> 18% | G12: =VLOOKUP($C12,'RECAP SECT'!$G$6:$FF$253,153,FALSE) -> 2% | H12: =VLOOKUP($C12,'RECAP SECT'!$G$6:$FF$253,154,FALSE) -> 3 | I12: =VLOOKUP($C12,'RECAP SECT'!$G$6:$FF$253,17,FALSE) -> 15% | J12: =VLOOKUP($C12,'RECAP SECT'!$G$6:$FF$253,18,FALSE) -> 0% | K12: =VLOOKUP($C12,'RECAP SECT'!$G$6:$FF$253,19,FALSE) -> 1 | L12: =VLOOKUP($C12,'RECAP SECT'!$G$6:$FF$253,41,FALSE) -> 40% | M12: =VLOOKUP($C12,'RECAP SECT'!$G$6:$FF$253,42,FALSE) -> 13% | N12: =VLOOKUP($C12,'RECAP SECT'!$G$6:$FF$253,43,FALSE) -> 7 | O12: =VLOOKUP($C12,'RECAP SECT'!$G$6:$FF$253,65,FALSE) -> 104% | P12: =VLOOKUP($C12,'RECAP SECT'!$G$6:$FF$253,66,FALSE) -> 93% | Q12: =VLOOKUP($C12,'RECAP SECT'!$G$6:$FF$253,67,FALSE) -> 18 | R12: =VLOOKUP($C12,'RECAP SECT'!$G$6:$FF$253,92,FALSE) -> 8% | S12: =VLOOKUP($C12,'RECAP SECT'!$G$6:$FF$253,93,FALSE) -> 0% | T12: =VLOOKUP($C12,'RECAP SECT'!$G$6:$FF$253,94,FALSE) -> 1 | U12: =VLOOKUP($C12,'RECAP SECT'!$G$6:$FF$253,110,FALSE) -> 3% | V12: =VLOOKUP($C12,'RECAP SECT'!$G$6:$FF$253,111,FALSE) -> 0% | W12: =VLOOKUP($C12,'RECAP SECT'!$G$6:$FF$253,112,FALSE) -> 1 | X12: =VLOOKUP($C12,'RECAP SECT'!$G$6:$FF$253,128,FALSE) -> 2% | Y12: =VLOOKUP($C12,'RECAP SECT'!$G$6:$FF$253,129,FALSE) -> 1% | Z12: =VLOOKUP($C12,'RECAP SECT'!$G$6:$FF$253,130,FALSE) -> 5 | AA12: =VLOOKUP($C12,'RECAP SECT'!$G$6:$FF$253,143,FALSE) -> 25% | AB12: =VLOOKUP($C12,'RECAP SECT'!$G$6:$FF$253,144,FALSE) -> 25% | AC12: =VLOOKUP($C12,'RECAP SECT'!$G$6:$FF$253,145,FALSE) -> 7
A13: 160 | B13: MOSELLE | C13: 45 | D13: METZ | E13: =VLOOKUP($C13,'RECAP SECT'!$G$6:$EV$253,3,FALSE) -> 103.2 | F13: =VLOOKUP($C13,'RECAP SECT'!$G$6:$FF$253,152,FALSE) -> 22% | G13: =VLOOKUP($C13,'RECAP SECT'!$G$6:$FF$253,153,FALSE) -> 6% | H13: =VLOOKUP($C13,'RECAP SECT'!$G$6:$FF$253,154,FALSE) -> 4 | I13: =VLOOKUP($C13,'RECAP SECT'!$G$6:$FF$253,17,FALSE) -> 64% | J13: =VLOOKUP($C13,'RECAP SECT'!$G$6:$FF$253,18,FALSE) -> 49% | K13: =VLOOKUP($C13,'RECAP SECT'!$G$6:$FF$253,19,FALSE) -> 4 | L13: =VLOOKUP($C13,'RECAP SECT'!$G$6:$FF$253,41,FALSE) -> 46% | M13: =VLOOKUP($C13,'RECAP SECT'!$G$6:$FF$253,42,FALSE) -> 18% | N13: =VLOOKUP($C13,'RECAP SECT'!$G$6:$FF$253,43,FALSE) -> 13 | O13: =VLOOKUP($C13,'RECAP SECT'!$G$6:$FF$253,65,FALSE) -> 11% | P13: =VLOOKUP($C13,'RECAP SECT'!$G$6:$FF$253,66,FALSE) -> 0% | Q13: =VLOOKUP($C13,'RECAP SECT'!$G$6:$FF$253,67,FALSE) -> 1 | R13: =VLOOKUP($C13,'RECAP SECT'!$G$6:$FF$253,92,FALSE) -> 24% | S13: =VLOOKUP($C13,'RECAP SECT'!$G$6:$FF$253,93,FALSE) -> 16% | T13: =VLOOKUP($C13,'RECAP SECT'!$G$6:$FF$253,94,FALSE) -> 13 | U13: =VLOOKUP($C13,'RECAP SECT'!$G$6:$FF$253,110,FALSE) -> 35% | V13: =VLOOKUP($C13,'RECAP SECT'!$G$6:$FF$253,111,FALSE) -> 32% | W13: =VLOOKUP($C13,'RECAP SECT'!$G$6:$FF$253,112,FALSE) -> 11 | X13: =VLOOKUP($C13,'RECAP SECT'!$G$6:$FF$253,128,FALSE) -> 3% | Y13: =VLOOKUP($C13,'RECAP SECT'!$G$6:$FF$253,129,FALSE) -> 2% | Z13: =VLOOKUP($C13,'RECAP SECT'!$G$6:$FF$253,130,FALSE) -> 8 | AA13: =VLOOKUP($C13,'RECAP SECT'!$G$6:$FF$253,143,FALSE) -> 30% | AB13: =VLOOKUP($C13,'RECAP SECT'!$G$6:$FF$253,144,FALSE) -> 30% | AC13: =VLOOKUP($C13,'RECAP SECT'!$G$6:$FF$253,145,FALSE) -> 9
A14: 30 | B14: MARNE-ARDENNES | C14: 6 | D14: CHALONS EN CHAMPAGNE | E14: =VLOOKUP($C14,'RECAP SECT'!$G$6:$EV$253,3,FALSE) -> 49.2 | F14: =VLOOKUP($C14,'RECAP SECT'!$G$6:$FF$253,152,FALSE) -> 22% | G14: =VLOOKUP($C14,'RECAP SECT'!$G$6:$FF$253,153,FALSE) -> 6% | H14: =VLOOKUP($C14,'RECAP SECT'!$G$6:$FF$253,154,FALSE) -> 5 | I14: =VLOOKUP($C14,'RECAP SECT'!$G$6:$FF$253,17,FALSE) -> 94% | J14: =VLOOKUP($C14,'RECAP SECT'!$G$6:$FF$253,18,FALSE) -> 79% | K14: =VLOOKUP($C14,'RECAP SECT'!$G$6:$FF$253,19,FALSE) -> 15 | L14: =VLOOKUP($C14,'RECAP SECT'!$G$6:$FF$253,41,FALSE) -> 39% | M14: =VLOOKUP($C14,'RECAP SECT'!$G$6:$FF$253,42,FALSE) -> 11% | N14: =VLOOKUP($C14,'RECAP SECT'!$G$6:$FF$253,43,FALSE) -> 6 | O14: =VLOOKUP($C14,'RECAP SECT'!$G$6:$FF$253,65,FALSE) -> 34% | P14: =VLOOKUP($C14,'RECAP SECT'!$G$6:$FF$253,66,FALSE) -> 22% | Q14: =VLOOKUP($C14,'RECAP SECT'!$G$6:$FF$253,67,FALSE) -> 5 | R14: =VLOOKUP($C14,'RECAP SECT'!$G$6:$FF$253,92,FALSE) -> 15% | S14: =VLOOKUP($C14,'RECAP SECT'!$G$6:$FF$253,93,FALSE) -> 8% | T14: =VLOOKUP($C14,'RECAP SECT'!$G$6:$FF$253,94,FALSE) -> 5 | U14: =VLOOKUP($C14,'RECAP SECT'!$G$6:$FF$253,110,FALSE) -> 15% | V14: =VLOOKUP($C14,'RECAP SECT'!$G$6:$FF$253,111,FALSE) -> 12% | W14: =VLOOKUP($C14,'RECAP SECT'!$G$6:$FF$253,112,FALSE) -> 3 | X14: =VLOOKUP($C14,'RECAP SECT'!$G$6:$FF$253,128,FALSE) -> 3% | Y14: =VLOOKUP($C14,'RECAP SECT'!$G$6:$FF$253,129,FALSE) -> 2% | Z14: =VLOOKUP($C14,'RECAP SECT'!$G$6:$FF$253,130,FALSE) -> 7 | AA14: =VLOOKUP($C14,'RECAP SECT'!$G$6:$FF$253,143,FALSE) -> 18% | AB14: =VLOOKUP($C14,'RECAP SECT'!$G$6:$FF$253,144,FALSE) -> 18% | AC14: =VLOOKUP($C14,'RECAP SECT'!$G$6:$FF$253,145,FALSE) -> 4
A15: 80 | B15: VOSGES | C15: 55 | D15: SAINT DIE | E15: =VLOOKUP($C15,'RECAP SECT'!$G$6:$EV$253,3,FALSE) -> 58.0 | F15: =VLOOKUP($C15,'RECAP SECT'!$G$6:$FF$253,152,FALSE) -> 25% | G15: =VLOOKUP($C15,'RECAP SECT'!$G$6:$FF$253,153,FALSE) -> 9% | H15: =VLOOKUP($C15,'RECAP SECT'!$G$6:$FF$253,154,FALSE) -> 6 | I15: =VLOOKUP($C15,'RECAP SECT'!$G$6:$FF$253,17,FALSE) -> 70% | J15: =VLOOKUP($C15,'RECAP SECT'!$G$6:$FF$253,18,FALSE) -> 54% | K15: =VLOOKUP($C15,'RECAP SECT'!$G$6:$FF$253,19,FALSE) -> 8 | L15: =VLOOKUP($C15,'RECAP SECT'!$G$6:$FF$253,41,FALSE) -> 31% | M15: =VLOOKUP($C15,'RECAP SECT'!$G$6:$FF$253,42,FALSE) -> 3% | N15: =VLOOKUP($C15,'RECAP SECT'!$G$6:$FF$253,43,FALSE) -> 2 | O15: =VLOOKUP($C15,'RECAP SECT'!$G$6:$FF$253,65,FALSE) -> 61% | P15: =VLOOKUP($C15,'RECAP SECT'!$G$6:$FF$253,66,FALSE) -> 50% | Q15: =VLOOKUP($C15,'RECAP SECT'!$G$6:$FF$253,67,FALSE) -> 14 | R15: =VLOOKUP($C15,'RECAP SECT'!$G$6:$FF$253,92,FALSE) -> 12% | S15: =VLOOKUP($C15,'RECAP SECT'!$G$6:$FF$253,93,FALSE) -> 5% | T15: =VLOOKUP($C15,'RECAP SECT'!$G$6:$FF$253,94,FALSE) -> 2 | U15: =VLOOKUP($C15,'RECAP SECT'!$G$6:$FF$253,110,FALSE) -> 35% | V15: =VLOOKUP($C15,'RECAP SECT'!$G$6:$FF$253,111,FALSE) -> 31% | W15: =VLOOKUP($C15,'RECAP SECT'!$G$6:$FF$253,112,FALSE) -> 10 | X15: =VLOOKUP($C15,'RECAP SECT'!$G$6:$FF$253,128,FALSE) -> 1% | Y15: =VLOOKUP($C15,'RECAP SECT'!$G$6:$FF$253,129,FALSE) -> 0% | Z15: =VLOOKUP($C15,'RECAP SECT'!$G$6:$FF$253,130,FALSE) -> 3 | AA15: =VLOOKUP($C15,'RECAP SECT'!$G$6:$FF$253,143,FALSE) -> 18% | AB15: =VLOOKUP($C15,'RECAP SECT'!$G$6:$FF$253,144,FALSE) -> 18% | AC15: =VLOOKUP($C15,'RECAP SECT'!$G$6:$FF$253,145,FALSE) -> 5
A16: 160 | B16: MOSELLE | C16: 42 | D16: MOSELLE EST | E16: =VLOOKUP($C16,'RECAP SECT'!$G$6:$EV$253,3,FALSE) -> 86.1 | F16: =VLOOKUP($C16,'RECAP SECT'!$G$6:$FF$253,152,FALSE) -> 26% | G16: =VLOOKUP($C16,'RECAP SECT'!$G$6:$FF$253,153,FALSE) -> 10% | H16: =VLOOKUP($C16,'RECAP SECT'!$G$6:$FF$253,154,FALSE) -> 7 | I16: =VLOOKUP($C16,'RECAP SECT'!$G$6:$FF$253,17,FALSE) -> 66% | J16: =VLOOKUP($C16,'RECAP SECT'!$G$6:$FF$253,18,FALSE) -> 51% | K16: =VLOOKUP($C16,'RECAP SECT'!$G$6:$FF$253,19,FALSE) -> 6 | L16: =VLOOKUP($C16,'RECAP SECT'!$G$6:$FF$253,41,FALSE) -> 36% | M16: =VLOOKUP($C16,'RECAP SECT'!$G$6:$FF$253,42,FALSE) -> 8% | N16: =VLOOKUP($C16,'RECAP SECT'!$G$6:$FF$253,43,FALSE) -> 4 | O16: =VLOOKUP($C16,'RECAP SECT'!$G$6:$FF$253,65,FALSE) -> 59% | P16: =VLOOKUP($C16,'RECAP SECT'!$G$6:$FF$253,66,FALSE) -> 48% | Q16: =VLOOKUP($C16,'RECAP SECT'!$G$6:$FF$253,67,FALSE) -> 12 | R16: =VLOOKUP($C16,'RECAP SECT'!$G$6:$FF$253,92,FALSE) -> 23% | S16: =VLOOKUP($C16,'RECAP SECT'!$G$6:$FF$253,93,FALSE) -> 16% | T16: =VLOOKUP($C16,'RECAP SECT'!$G$6:$FF$253,94,FALSE) -> 12 | U16: =VLOOKUP($C16,'RECAP SECT'!$G$6:$FF$253,110,FALSE) -> 35% | V16: =VLOOKUP($C16,'RECAP SECT'!$G$6:$FF$253,111,FALSE) -> 32% | W16: =VLOOKUP($C16,'RECAP SECT'!$G$6:$FF$253,112,FALSE) -> 12 | X16: =VLOOKUP($C16,'RECAP SECT'!$G$6:$FF$253,128,FALSE) -> 1% | Y16: =VLOOKUP($C16,'RECAP SECT'!$G$6:$FF$253,129,FALSE) -> 0% | Z16: =VLOOKUP($C16,'RECAP SECT'!$G$6:$FF$253,130,FALSE) -> 2 | AA16: =VLOOKUP($C16,'RECAP SECT'!$G$6:$FF$253,143,FALSE) -> 12% | AB16: =VLOOKUP($C16,'RECAP SECT'!$G$6:$FF$253,144,FALSE) -> 12% | AC16: =VLOOKUP($C16,'RECAP SECT'!$G$6:$FF$253,145,FALSE) -> 3
A17: 262 | B17: BAS-RHIN | C17: 5060 | D17: HAGUENAU | E17: =VLOOKUP($C17,'RECAP SECT'!$G$6:$EV$253,3,FALSE) -> 88.7 | F17: =VLOOKUP($C17,'RECAP SECT'!$G$6:$FF$253,152,FALSE) -> 27% | G17: =VLOOKUP($C17,'RECAP SECT'!$G$6:$FF$253,153,FALSE) -> 11% | H17: =VLOOKUP($C17,'RECAP SECT'!$G$6:$FF$253,154,FALSE) -> 8 | I17: =VLOOKUP($C17,'RECAP SECT'!$G$6:$FF$253,17,FALSE) -> 83% | J17: =VLOOKUP($C17,'RECAP SECT'!$G$6:$FF$253,18,FALSE) -> 67% | K17: =VLOOKUP($C17,'RECAP SECT'!$G$6:$FF$253,19,FALSE) -> 13 | L17: =VLOOKUP($C17,'RECAP SECT'!$G$6:$FF$253,41,FALSE) -> 37% | M17: =VLOOKUP($C17,'RECAP SECT'!$G$6:$FF$253,42,FALSE) -> 9% | N17: =VLOOKUP($C17,'RECAP SECT'!$G$6:$FF$253,43,FALSE) -> 5 | O17: =VLOOKUP($C17,'RECAP SECT'!$G$6:$FF$253,65,FALSE) -> 30% | P17: =VLOOKUP($C17,'RECAP SECT'!$G$6:$FF$253,66,FALSE) -> 18% | Q17: =VLOOKUP($C17,'RECAP SECT'!$G$6:$FF$253,67,FALSE) -> 3 | R17: =VLOOKUP($C17,'RECAP SECT'!$G$6:$FF$253,92,FALSE) -> 28% | S17: =VLOOKUP($C17,'RECAP SECT'!$G$6:$FF$253,93,FALSE) -> 20% | T17: =VLOOKUP($C17,'RECAP SECT'!$G$6:$FF$253,94,FALSE) -> 17 | U17: =VLOOKUP($C17,'RECAP SECT'!$G$6:$FF$253,110,FALSE) -> 29% | V17: =VLOOKUP($C17,'RECAP SECT'!$G$6:$FF$253,111,FALSE) -> 26% | W17: =VLOOKUP($C17,'RECAP SECT'!$G$6:$FF$253,112,FALSE) -> 8 | X17: =VLOOKUP($C17,'RECAP SECT'!$G$6:$FF$253,128,FALSE) -> 8% | Y17: =VLOOKUP($C17,'RECAP SECT'!$G$6:$FF$253,129,FALSE) -> 7% | Z17: =VLOOKUP($C17,'RECAP SECT'!$G$6:$FF$253,130,FALSE) -> 15 | AA17: =VLOOKUP($C17,'RECAP SECT'!$G$6:$FF$253,143,FALSE) -> 34% | AB17: =VLOOKUP($C17,'RECAP SECT'!$G$6:$FF$253,144,FALSE) -> 34% | AC17: =VLOOKUP($C17,'RECAP SECT'!$G$6:$FF$253,145,FALSE) -> 10
A18: 110 | B18: MEURTHE ET MOSELLE MEUSE | C18: 27 | D18: PONT A MOUSSON | E18: =VLOOKUP($C18,'RECAP SECT'!$G$6:$EV$253,3,FALSE) -> 87.7 | F18: =VLOOKUP($C18,'RECAP SECT'!$G$6:$FF$253,152,FALSE) -> 29% | G18: =VLOOKUP($C18,'RECAP SECT'!$G$6:$FF$253,153,FALSE) -> 13% | H18: =VLOOKUP($C18,'RECAP SECT'!$G$6:$FF$253,154,FALSE) -> 9 | I18: =VLOOKUP($C18,'RECAP SECT'!$G$6:$FF$253,17,FALSE) -> 67% | J18: =VLOOKUP($C18,'RECAP SECT'!$G$6:$FF$253,18,FALSE) -> 52% | K18: =VLOOKUP($C18,'RECAP SECT'!$G$6:$FF$253,19,FALSE) -> 7 | L18: =VLOOKUP($C18,'RECAP SECT'!$G$6:$FF$253,41,FALSE) -> 58% | M18: =VLOOKUP($C18,'RECAP SECT'!$G$6:$FF$253,42,FALSE) -> 30% | N18: =VLOOKUP($C18,'RECAP SECT'!$G$6:$FF$253,43,FALSE) -> 16 | O18: =VLOOKUP($C18,'RECAP SECT'!$G$6:$FF$253,65,FALSE) -> 57% | P18: =VLOOKUP($C18,'RECAP SECT'!$G$6:$FF$253,66,FALSE) -> 46% | Q18: =VLOOKUP($C18,'RECAP SECT'!$G$6:$FF$253,67,FALSE) -> 10 | R18: =VLOOKUP($C18,'RECAP SECT'!$G$6:$FF$253,92,FALSE) -> 19% | S18: =VLOOKUP($C18,'RECAP SECT'!$G$6:$FF$253,93,FALSE) -> 11% | T18: =VLOOKUP($C18,'RECAP SECT'!$G$6:$FF$253,94,FALSE) -> 7 | U18: =VLOOKUP($C18,'RECAP SECT'!$G$6:$FF$253,110,FALSE) -> 24% | V18: =VLOOKUP($C18,'RECAP SECT'!$G$6:$FF$253,111,FALSE) -> 20% | W18: =VLOOKUP($C18,'RECAP SECT'!$G$6:$FF$253,112,FALSE) -> 6 | X18: =VLOOKUP($C18,'RECAP SECT'!$G$6:$FF$253,128,FALSE) -> 8% | Y18: =VLOOKUP($C18,'RECAP SECT'!$G$6:$FF$253,129,FALSE) -> 7% | Z18: =VLOOKUP($C18,'RECAP SECT'!$G$6:$FF$253,130,FALSE) -> 16 | AA18: =VLOOKUP($C18,'RECAP SECT'!$G$6:$FF$253,143,FALSE) -> 38% | AB18: =VLOOKUP($C18,'RECAP SECT'!$G$6:$FF$253,144,FALSE) -> 38% | AC18: =VLOOKUP($C18,'RECAP SECT'!$G$6:$FF$253,145,FALSE) -> 11
A19: 110 | B19: MEURTHE ET MOSELLE MEUSE | C19: 31 | D19: VERDUN | E19: =VLOOKUP($C19,'RECAP SECT'!$G$6:$EV$253,3,FALSE) -> 64.7 | F19: =VLOOKUP($C19,'RECAP SECT'!$G$6:$FF$253,152,FALSE) -> 31% | G19: =VLOOKUP($C19,'RECAP SECT'!$G$6:$FF$253,153,FALSE) -> 15% | H19: =VLOOKUP($C19,'RECAP SECT'!$G$6:$FF$253,154,FALSE) -> 10 | I19: =VLOOKUP($C19,'RECAP SECT'!$G$6:$FF$253,17,FALSE) -> 78% | J19: =VLOOKUP($C19,'RECAP SECT'!$G$6:$FF$253,18,FALSE) -> 63% | K19: =VLOOKUP($C19,'RECAP SECT'!$G$6:$FF$253,19,FALSE) -> 10 | L19: =VLOOKUP($C19,'RECAP SECT'!$G$6:$FF$253,41,FALSE) -> 62% | M19: =VLOOKUP($C19,'RECAP SECT'!$G$6:$FF$253,42,FALSE) -> 34% | N19: =VLOOKUP($C19,'RECAP SECT'!$G$6:$FF$253,43,FALSE) -> 17 | O19: =VLOOKUP($C19,'RECAP SECT'!$G$6:$FF$253,65,FALSE) -> 42% | P19: =VLOOKUP($C19,'RECAP SECT'!$G$6:$FF$253,66,FALSE) -> 31% | Q19: =VLOOKUP($C19,'RECAP SECT'!$G$6:$FF$253,67,FALSE) -> 7 | R19: =VLOOKUP($C19,'RECAP SECT'!$G$6:$FF$253,92,FALSE) -> 22% | S19: =VLOOKUP($C19,'RECAP SECT'!$G$6:$FF$253,93,FALSE) -> 15% | T19: =VLOOKUP($C19,'RECAP SECT'!$G$6:$FF$253,94,FALSE) -> 11 | U19: =VLOOKUP($C19,'RECAP SECT'!$G$6:$FF$253,110,FALSE) -> 38% | V19: =VLOOKUP($C19,'RECAP SECT'!$G$6:$FF$253,111,FALSE) -> 34% | W19: =VLOOKUP($C19,'RECAP SECT'!$G$6:$FF$253,112,FALSE) -> 13 | X19: =VLOOKUP($C19,'RECAP SECT'!$G$6:$FF$253,128,FALSE) -> 5% | Y19: =VLOOKUP($C19,'RECAP SECT'!$G$6:$FF$253,129,FALSE) -> 4% | Z19: =VLOOKUP($C19,'RECAP SECT'!$G$6:$FF$253,130,FALSE) -> 13 | AA19: =VLOOKUP($C19,'RECAP SECT'!$G$6:$FF$253,143,FALSE) -> 20% | AB19: =VLOOKUP($C19,'RECAP SECT'!$G$6:$FF$253,144,FALSE) -> 20% | AC19: =VLOOKUP($C19,'RECAP SECT'!$G$6:$FF$253,145,FALSE) -> 6
A20: 110 | B20: MEURTHE ET MOSELLE MEUSE | C20: 26 | D20: NANCY | E20: =VLOOKUP($C20,'RECAP SECT'!$G$6:$EV$253,3,FALSE) -> 79.3 | F20: =VLOOKUP($C20,'RECAP SECT'!$G$6:$FF$253,152,FALSE) -> 32% | G20: =VLOOKUP($C20,'RECAP SECT'!$G$6:$FF$253,153,FALSE) -> 16% | H20: =VLOOKUP($C20,'RECAP SECT'!$G$6:$FF$253,154,FALSE) -> 11 | I20: =VLOOKUP($C20,'RECAP SECT'!$G$6:$FF$253,17,FALSE) -> 80% | J20: =VLOOKUP($C20,'RECAP SECT'!$G$6:$FF$253,18,FALSE) -> 65% | K20: =VLOOKUP($C20,'RECAP SECT'!$G$6:$FF$253,19,FALSE) -> 11 | L20: =VLOOKUP($C20,'RECAP SECT'!$G$6:$FF$253,41,FALSE) -> 47% | M20: =VLOOKUP($C20,'RECAP SECT'!$G$6:$FF$253,42,FALSE) -> 20% | N20: =VLOOKUP($C20,'RECAP SECT'!$G$6:$FF$253,43,FALSE) -> 15 | O20: =VLOOKUP($C20,'RECAP SECT'!$G$6:$FF$253,65,FALSE) -> 59% | P20: =VLOOKUP($C20,'RECAP SECT'!$G$6:$FF$253,66,FALSE) -> 47% | Q20: =VLOOKUP($C20,'RECAP SECT'!$G$6:$FF$253,67,FALSE) -> 11 | R20: =VLOOKUP($C20,'RECAP SECT'!$G$6:$FF$253,92,FALSE) -> 21% | S20: =VLOOKUP($C20,'RECAP SECT'!$G$6:$FF$253,93,FALSE) -> 14% | T20: =VLOOKUP($C20,'RECAP SECT'!$G$6:$FF$253,94,FALSE) -> 10 | U20: =VLOOKUP($C20,'RECAP SECT'!$G$6:$FF$253,110,FALSE) -> 26% | V20: =VLOOKUP($C20,'RECAP SECT'!$G$6:$FF$253,111,FALSE) -> 23% | W20: =VLOOKUP($C20,'RECAP SECT'!$G$6:$FF$253,112,FALSE) -> 7 | X20: =VLOOKUP($C20,'RECAP SECT'!$G$6:$FF$253,128,FALSE) -> 10% | Y20: =VLOOKUP($C20,'RECAP SECT'!$G$6:$FF$253,129,FALSE) -> 9% | Z20: =VLOOKUP($C20,'RECAP SECT'!$G$6:$FF$253,130,FALSE) -> 18 | AA20: =VLOOKUP($C20,'RECAP SECT'!$G$6:$FF$253,143,FALSE) -> 45% | AB20: =VLOOKUP($C20,'RECAP SECT'!$G$6:$FF$253,144,FALSE) -> 45% | AC20: =VLOOKUP($C20,'RECAP SECT'!$G$6:$FF$253,145,FALSE) -> 13
A21: 80 | B21: VOSGES | C21: 57 | D21: EPINAL | E21: =VLOOKUP($C21,'RECAP SECT'!$G$6:$EV$253,3,FALSE) -> 68.7 | F21: =VLOOKUP($C21,'RECAP SECT'!$G$6:$FF$253,152,FALSE) -> 32% | G21: =VLOOKUP($C21,'RECAP SECT'!$G$6:$FF$253,153,FALSE) -> 16% | H21: =VLOOKUP($C21,'RECAP SECT'!$G$6:$FF$253,154,FALSE) -> 12 | I21: =VLOOKUP($C21,'RECAP SECT'!$G$6:$FF$253,17,FALSE) -> 90% | J21: =VLOOKUP($C21,'RECAP SECT'!$G$6:$FF$253,18,FALSE) -> 75% | K21: =VLOOKUP($C21,'RECAP SECT'!$G$6:$FF$253,19,FALSE) -> 14 | L21: =VLOOKUP($C21,'RECAP SECT'!$G$6:$FF$253,41,FALSE) -> 41% | M21: =VLOOKUP($C21,'RECAP SECT'!$G$6:$FF$253,42,FALSE) -> 14% | N21: =VLOOKUP($C21,'RECAP SECT'!$G$6:$FF$253,43,FALSE) -> 8 | O21: =VLOOKUP($C21,'RECAP SECT'!$G$6:$FF$253,65,FALSE) -> 54% | P21: =VLOOKUP($C21,'RECAP SECT'!$G$6:$FF$253,66,FALSE) -> 42% | Q21: =VLOOKUP($C21,'RECAP SECT'!$G$6:$FF$253,67,FALSE) -> 9 | R21: =VLOOKUP($C21,'RECAP SECT'!$G$6:$FF$253,92,FALSE) -> 21% | S21: =VLOOKUP($C21,'RECAP SECT'!$G$6:$FF$253,93,FALSE) -> 13% | T21: =VLOOKUP($C21,'RECAP SECT'!$G$6:$FF$253,94,FALSE) -> 9 | U21: =VLOOKUP($C21,'RECAP SECT'!$G$6:$FF$253,110,FALSE) -> 33% | V21: =VLOOKUP($C21,'RECAP SECT'!$G$6:$FF$253,111,FALSE) -> 29% | W21: =VLOOKUP($C21,'RECAP SECT'!$G$6:$FF$253,112,FALSE) -> 9 | X21: =VLOOKUP($C21,'RECAP SECT'!$G$6:$FF$253,128,FALSE) -> 4% | Y21: =VLOOKUP($C21,'RECAP SECT'!$G$6:$FF$253,129,FALSE) -> 4% | Z21: =VLOOKUP($C21,'RECAP SECT'!$G$6:$FF$253,130,FALSE) -> 12 | AA21: =VLOOKUP($C21,'RECAP SECT'!$G$6:$FF$253,143,FALSE) -> 42% | AB21: =VLOOKUP($C21,'RECAP SECT'!$G$6:$FF$253,144,FALSE) -> 42% | AC21: =VLOOKUP($C21,'RECAP SECT'!$G$6:$FF$253,145,FALSE) -> 12
A22: 160 | B22: MOSELLE | C22: 44 | D22: MOSELLE NORD | E22: =VLOOKUP($C22,'RECAP SECT'!$G$6:$EV$253,3,FALSE) -> 80.5 | F22: =VLOOKUP($C22,'RECAP SECT'!$G$6:$FF$253,152,FALSE) -> 32% | G22: =VLOOKUP($C22,'RECAP SECT'!$G$6:$FF$253,153,FALSE) -> 16% | H22: =VLOOKUP($C22,'RECAP SECT'!$G$6:$FF$253,154,FALSE) -> 13 | I22: =VLOOKUP($C22,'RECAP SECT'!$G$6:$FF$253,17,FALSE) -> 75% | J22: =VLOOKUP($C22,'RECAP SECT'!$G$6:$FF$253,18,FALSE) -> 60% | K22: =VLOOKUP($C22,'RECAP SECT'!$G$6:$FF$253,19,FALSE) -> 9 | L22: =VLOOKUP($C22,'RECAP SECT'!$G$6:$FF$253,41,FALSE) -> 43% | M22: =VLOOKUP($C22,'RECAP SECT'!$G$6:$FF$253,42,FALSE) -> 15% | N22: =VLOOKUP($C22,'RECAP SECT'!$G$6:$FF$253,43,FALSE) -> 11 | O22: =VLOOKUP($C22,'RECAP SECT'!$G$6:$FF$253,65,FALSE) -> 75% | P22: =VLOOKUP($C22,'RECAP SECT'!$G$6:$FF$253,66,FALSE) -> 64% | Q22: =VLOOKUP($C22,'RECAP SECT'!$G$6:$FF$253,67,FALSE) -> 16 | R22: =VLOOKUP($C22,'RECAP SECT'!$G$6:$FF$253,92,FALSE) -> 25% | S22: =VLOOKUP($C22,'RECAP SECT'!$G$6:$FF$253,93,FALSE) -> 17% | T22: =VLOOKUP($C22,'RECAP SECT'!$G$6:$FF$253,94,FALSE) -> 15 | U22: =VLOOKUP($C22,'RECAP SECT'!$G$6:$FF$253,110,FALSE) -> 21% | V22: =VLOOKUP($C22,'RECAP SECT'!$G$6:$FF$253,111,FALSE) -> 18% | W22: =VLOOKUP($C22,'RECAP SECT'!$G$6:$FF$253,112,FALSE) -> 4 | X22: =VLOOKUP($C22,'RECAP SECT'!$G$6:$FF$253,128,FALSE) -> 1% | Y22: =VLOOKUP($C22,'RECAP SECT'!$G$6:$FF$253,129,FALSE) -> 0% | Z22: =VLOOKUP($C22,'RECAP SECT'!$G$6:$FF$253,130,FALSE) -> 4 | AA22: =VLOOKUP($C22,'RECAP SECT'!$G$6:$FF$253,143,FALSE) -> 53% | AB22: =VLOOKUP($C22,'RECAP SECT'!$G$6:$FF$253,144,FALSE) -> 53% | AC22: =VLOOKUP($C22,'RECAP SECT'!$G$6:$FF$253,145,FALSE) -> 14
A23: 50 | B23: AUBE HAUTE MARNE | C23: 14 | D23: TROYES | E23: =VLOOKUP($C23,'RECAP SECT'!$G$6:$EV$253,3,FALSE) -> 78.5 | F23: =VLOOKUP($C23,'RECAP SECT'!$G$6:$FF$253,152,FALSE) -> 33% | G23: =VLOOKUP($C23,'RECAP SECT'!$G$6:$FF$253,153,FALSE) -> 17% | H23: =VLOOKUP($C23,'RECAP SECT'!$G$6:$FF$253,154,FALSE) -> 14 | I23: =VLOOKUP($C23,'RECAP SECT'!$G$6:$FF$253,17,FALSE) -> 66% | J23: =VLOOKUP($C23,'RECAP SECT'!$G$6:$FF$253,18,FALSE) -> 50% | K23: =VLOOKUP($C23,'RECAP SECT'!$G$6:$FF$253,19,FALSE) -> 5 | L23: =VLOOKUP($C23,'RECAP SECT'!$G$6:$FF$253,41,FALSE) -> 42% | M23: =VLOOKUP($C23,'RECAP SECT'!$G$6:$FF$253,42,FALSE) -> 14% | N23: =VLOOKUP($C23,'RECAP SECT'!$G$6:$FF$253,43,FALSE) -> 9 | O23: =VLOOKUP($C23,'RECAP SECT'!$G$6:$FF$253,65,FALSE) -> 82% | P23: =VLOOKUP($C23,'RECAP SECT'!$G$6:$FF$253,66,FALSE) -> 71% | Q23: =VLOOKUP($C23,'RECAP SECT'!$G$6:$FF$253,67,FALSE) -> 17 | R23: =VLOOKUP($C23,'RECAP SECT'!$G$6:$FF$253,92,FALSE) -> 20% | S23: =VLOOKUP($C23,'RECAP SECT'!$G$6:$FF$253,93,FALSE) -> 12% | T23: =VLOOKUP($C23,'RECAP SECT'!$G$6:$FF$253,94,FALSE) -> 8 | U23: =VLOOKUP($C23,'RECAP SECT'!$G$6:$FF$253,110,FALSE) -> 42% | V23: =VLOOKUP($C23,'RECAP SECT'!$G$6:$FF$253,111,FALSE) -> 39% | W23: =VLOOKUP($C23,'RECAP SECT'!$G$6:$FF$253,112,FALSE) -> 15 | X23: =VLOOKUP($C23,'RECAP SECT'!$G$6:$FF$253,128,FALSE) -> 2% | Y23: =VLOOKUP($C23,'RECAP SECT'!$G$6:$FF$253,129,FALSE) -> 1% | Z23: =VLOOKUP($C23,'RECAP SECT'!$G$6:$FF$253,130,FALSE) -> 6 | AA23: =VLOOKUP($C23,'RECAP SECT'!$G$6:$FF$253,143,FALSE) -> 29% | AB23: =VLOOKUP($C23,'RECAP SECT'!$G$6:$FF$253,144,FALSE) -> 29% | AC23: =VLOOKUP($C23,'RECAP SECT'!$G$6:$FF$253,145,FALSE) -> 8
A24: 264 | B24: HAUT-RHIN | C24: 5130 | D24: COLMAR | E24: =VLOOKUP($C24,'RECAP SECT'!$G$6:$EV$253,3,FALSE) -> 76.1 | F24: =VLOOKUP($C24,'RECAP SECT'!$G$6:$FF$253,152,FALSE) -> 35% | G24: =VLOOKUP($C24,'RECAP SECT'!$G$6:$FF$253,153,FALSE) -> 19% | H24: =VLOOKUP($C24,'RECAP SECT'!$G$6:$FF$253,154,FALSE) -> 15 | I24: =VLOOKUP($C24,'RECAP SECT'!$G$6:$FF$253,17,FALSE) -> 95% | J24: =VLOOKUP($C24,'RECAP SECT'!$G$6:$FF$253,18,FALSE) -> 79% | K24: =VLOOKUP($C24,'RECAP SECT'!$G$6:$FF$253,19,FALSE) -> 16 | L24: =VLOOKUP($C24,'RECAP SECT'!$G$6:$FF$253,41,FALSE) -> 47% | M24: =VLOOKUP($C24,'RECAP SECT'!$G$6:$FF$253,42,FALSE) -> 19% | N24: =VLOOKUP($C24,'RECAP SECT'!$G$6:$FF$253,43,FALSE) -> 14 | O24: =VLOOKUP($C24,'RECAP SECT'!$G$6:$FF$253,65,FALSE) -> 29% | P24: =VLOOKUP($C24,'RECAP SECT'!$G$6:$FF$253,66,FALSE) -> 18% | Q24: =VLOOKUP($C24,'RECAP SECT'!$G$6:$FF$253,67,FALSE) -> 2 | R24: =VLOOKUP($C24,'RECAP SECT'!$G$6:$FF$253,92,FALSE) -> 33% | S24: =VLOOKUP($C24,'RECAP SECT'!$G$6:$FF$253,93,FALSE) -> 25% | T24: =VLOOKUP($C24,'RECAP SECT'!$G$6:$FF$253,94,FALSE) -> 18 | U24: =VLOOKUP($C24,'RECAP SECT'!$G$6:$FF$253,110,FALSE) -> 44% | V24: =VLOOKUP($C24,'RECAP SECT'!$G$6:$FF$253,111,FALSE) -> 41% | W24: =VLOOKUP($C24,'RECAP SECT'!$G$6:$FF$253,112,FALSE) -> 16 | X24: =VLOOKUP($C24,'RECAP SECT'!$G$6:$FF$253,128,FALSE) -> 3% | Y24: =VLOOKUP($C24,'RECAP SECT'!$G$6:$FF$253,129,FALSE) -> 3% | Z24: =VLOOKUP($C24,'RECAP SECT'!$G$6:$FF$253,130,FALSE) -> 9 | AA24: =VLOOKUP($C24,'RECAP SECT'!$G$6:$FF$253,143,FALSE) -> 55% | AB24: =VLOOKUP($C24,'RECAP SECT'!$G$6:$FF$253,144,FALSE) -> 55% | AC24: =VLOOKUP($C24,'RECAP SECT'!$G$6:$FF$253,145,FALSE) -> 15
A25: 264 | B25: HAUT-RHIN | C25: 5169 | D25: MULHOUSE | E25: =VLOOKUP($C25,'RECAP SECT'!$G$6:$EV$253,3,FALSE) -> 78.1 | F25: =VLOOKUP($C25,'RECAP SECT'!$G$6:$FF$253,152,FALSE) -> 37% | G25: =VLOOKUP($C25,'RECAP SECT'!$G$6:$FF$253,153,FALSE) -> 21% | H25: =VLOOKUP($C25,'RECAP SECT'!$G$6:$FF$253,154,FALSE) -> 16 | I25: =VLOOKUP($C25,'RECAP SECT'!$G$6:$FF$253,17,FALSE) -> 95% | J25: =VLOOKUP($C25,'RECAP SECT'!$G$6:$FF$253,18,FALSE) -> 80% | K25: =VLOOKUP($C25,'RECAP SECT'!$G$6:$FF$253,19,FALSE) -> 17 | L25: =VLOOKUP($C25,'RECAP SECT'!$G$6:$FF$253,41,FALSE) -> 65% | M25: =VLOOKUP($C25,'RECAP SECT'!$G$6:$FF$253,42,FALSE) -> 37% | N25: =VLOOKUP($C25,'RECAP SECT'!$G$6:$FF$253,43,FALSE) -> 18 | O25: =VLOOKUP($C25,'RECAP SECT'!$G$6:$FF$253,65,FALSE) -> 32% | P25: =VLOOKUP($C25,'RECAP SECT'!$G$6:$FF$253,66,FALSE) -> 21% | Q25: =VLOOKUP($C25,'RECAP SECT'!$G$6:$FF$253,67,FALSE) -> 4 | R25: =VLOOKUP($C25,'RECAP SECT'!$G$6:$FF$253,92,FALSE) -> 12% | S25: =VLOOKUP($C25,'RECAP SECT'!$G$6:$FF$253,93,FALSE) -> 5% | T25: =VLOOKUP($C25,'RECAP SECT'!$G$6:$FF$253,94,FALSE) -> 3 | U25: =VLOOKUP($C25,'RECAP SECT'!$G$6:$FF$253,110,FALSE) -> 48% | V25: =VLOOKUP($C25,'RECAP SECT'!$G$6:$FF$253,111,FALSE) -> 44% | W25: =VLOOKUP($C25,'RECAP SECT'!$G$6:$FF$253,112,FALSE) -> 17 | X25: =VLOOKUP($C25,'RECAP SECT'!$G$6:$FF$253,128,FALSE) -> 4% | Y25: =VLOOKUP($C25,'RECAP SECT'!$G$6:$FF$253,129,FALSE) -> 3% | Z25: =VLOOKUP($C25,'RECAP SECT'!$G$6:$FF$253,130,FALSE) -> 10 | AA25: =VLOOKUP($C25,'RECAP SECT'!$G$6:$FF$253,143,FALSE) -> 62% | AB25: =VLOOKUP($C25,'RECAP SECT'!$G$6:$FF$253,144,FALSE) -> 62% | AC25: =VLOOKUP($C25,'RECAP SECT'!$G$6:$FF$253,145,FALSE) -> 16
A26: 262 | B26: BAS-RHIN | C26: 5101 | D26: SELESTAT | E26: =VLOOKUP($C26,'RECAP SECT'!$G$6:$EV$253,3,FALSE) -> 75.1 | F26: =VLOOKUP($C26,'RECAP SECT'!$G$6:$FF$253,152,FALSE) -> 39% | G26: =VLOOKUP($C26,'RECAP SECT'!$G$6:$FF$253,153,FALSE) -> 23% | H26: =VLOOKUP($C26,'RECAP SECT'!$G$6:$FF$253,154,FALSE) -> 17 | I26: =VLOOKUP($C26,'RECAP SECT'!$G$6:$FF$253,17,FALSE) -> 104% | J26: =VLOOKUP($C26,'RECAP SECT'!$G$6:$FF$253,18,FALSE) -> 89% | K26: =VLOOKUP($C26,'RECAP SECT'!$G$6:$FF$253,19,FALSE) -> 18 | L26: =VLOOKUP($C26,'RECAP SECT'!$G$6:$FF$253,41,FALSE) -> 43% | M26: =VLOOKUP($C26,'RECAP SECT'!$G$6:$FF$253,42,FALSE) -> 15% | N26: =VLOOKUP($C26,'RECAP SECT'!$G$6:$FF$253,43,FALSE) -> 10 | O26: =VLOOKUP($C26,'RECAP SECT'!$G$6:$FF$253,65,FALSE) -> 42% | P26: =VLOOKUP($C26,'RECAP SECT'!$G$6:$FF$253,66,FALSE) -> 31% | Q26: =VLOOKUP($C26,'RECAP SECT'!$G$6:$FF$253,67,FALSE) -> 6 | R26: =VLOOKUP($C26,'RECAP SECT'!$G$6:$FF$253,92,FALSE) -> 24% | S26: =VLOOKUP($C26,'RECAP SECT'!$G$6:$FF$253,93,FALSE) -> 17% | T26: =VLOOKUP($C26,'RECAP SECT'!$G$6:$FF$253,94,FALSE) -> 14 | U26: =VLOOKUP($C26,'RECAP SECT'!$G$6:$FF$253,110,FALSE) -> 41% | V26: =VLOOKUP($C26,'RECAP SECT'!$G$6:$FF$253,111,FALSE) -> 37% | W26: =VLOOKUP($C26,'RECAP SECT'!$G$6:$FF$253,112,FALSE) -> 14 | X26: =VLOOKUP($C26,'RECAP SECT'!$G$6:$FF$253,128,FALSE) -> 7% | Y26: =VLOOKUP($C26,'RECAP SECT'!$G$6:$FF$253,129,FALSE) -> 6% | Z26: =VLOOKUP($C26,'RECAP SECT'!$G$6:$FF$253,130,FALSE) -> 14 | AA26: =VLOOKUP($C26,'RECAP SECT'!$G$6:$FF$253,143,FALSE) -> 79% | AB26: =VLOOKUP($C26,'RECAP SECT'!$G$6:$FF$253,144,FALSE) -> 79% | AC26: =VLOOKUP($C26,'RECAP SECT'!$G$6:$FF$253,145,FALSE) -> 17
A27: 262 | B27: BAS-RHIN | C27: 5006 | D27: STRASBOURG | E27: =VLOOKUP($C27,'RECAP SECT'!$G$6:$EV$253,3,FALSE) -> 92.7 | F27: =VLOOKUP($C27,'RECAP SECT'!$G$6:$FF$253,152,FALSE) -> 44% | G27: =VLOOKUP($C27,'RECAP SECT'!$G$6:$FF$253,153,FALSE) -> 28% | H27: =VLOOKUP($C27,'RECAP SECT'!$G$6:$FF$253,154,FALSE) -> 18 | I27: =VLOOKUP($C27,'RECAP SECT'!$G$6:$FF$253,17,FALSE) -> 81% | J27: =VLOOKUP($C27,'RECAP SECT'!$G$6:$FF$253,18,FALSE) -> 66% | K27: =VLOOKUP($C27,'RECAP SECT'!$G$6:$FF$253,19,FALSE) -> 12 | L27: =VLOOKUP($C27,'RECAP SECT'!$G$6:$FF$253,41,FALSE) -> 44% | M27: =VLOOKUP($C27,'RECAP SECT'!$G$6:$FF$253,42,FALSE) -> 16% | N27: =VLOOKUP($C27,'RECAP SECT'!$G$6:$FF$253,43,FALSE) -> 12 | O27: =VLOOKUP($C27,'RECAP SECT'!$G$6:$FF$253,65,FALSE) -> 70% | P27: =VLOOKUP($C27,'RECAP SECT'!$G$6:$FF$253,66,FALSE) -> 59% | Q27: =VLOOKUP($C27,'RECAP SECT'!$G$6:$FF$253,67,FALSE) -> 15 | R27: =VLOOKUP($C27,'RECAP SECT'!$G$6:$FF$253,92,FALSE) -> 27% | S27: =VLOOKUP($C27,'RECAP SECT'!$G$6:$FF$253,93,FALSE) -> 20% | T27: =VLOOKUP($C27,'RECAP SECT'!$G$6:$FF$253,94,FALSE) -> 16 | U27: =VLOOKUP($C27,'RECAP SECT'!$G$6:$FF$253,110,FALSE) -> 57% | V27: =VLOOKUP($C27,'RECAP SECT'!$G$6:$FF$253,111,FALSE) -> 53% | W27: =VLOOKUP($C27,'RECAP SECT'!$G$6:$FF$253,112,FALSE) -> 18 | X27: =VLOOKUP($C27,'RECAP SECT'!$G$6:$FF$253,128,FALSE) -> 9% | Y27: =VLOOKUP($C27,'RECAP SECT'!$G$6:$FF$253,129,FALSE) -> 9% | Z27: =VLOOKUP($C27,'RECAP SECT'!$G$6:$FF$253,130,FALSE) -> 17 | AA27: =VLOOKUP($C27,'RECAP SECT'!$G$6:$FF$253,143,FALSE) -> 83% | AB27: =VLOOKUP($C27,'RECAP SECT'!$G$6:$FF$253,144,FALSE) -> 83% | AC27: =VLOOKUP($C27,'RECAP SECT'!$G$6:$FF$253,145,FALSE) -> 18
A28: Total CEGEE Directions Régionales | E28: =SUM(E10:E27) -> 1367

Sheet SE_BANCA
A1: Accueil | F1: BAROMETRE BDD - TERRITOIRES
F2: EQUIPEMENT BANCARISATION
F3: =ACCUEIL!H7 -> 2019-07-31
F7: Ventes nettes FORFAITS avec 2 options | I7: Ventes nettes IZICARTES | L7: Ventes nettes Cartes HDG | O7: Ventes nettes CB débit différé | R7: Ventes nettes banca Pro | U7: Total Equipement Bancarisation
G8: coef | H8: ='RECAP DIRCOM'!AH4 -> 3% | J8: coef | K8: ='RECAP DIRCOM'!AK4 -> 3% | M8: coef | N8: ='RECAP DIRCOM'!AN4 -> 3% | P8: coef | Q8: ='RECAP DIRCOM'!AQ4 -> 3% | S8: coef | T8: ='RECAP DIRCOM'!AT4 -> 3% | V8: coef | W8: ='RECAP DIRCOM'!AW4 -> 15%
A9: eds | B9: Direction | C9: eds | D9: Territoire | E9: ETP perf | F9: Nb / ETP | G9: % Ecart au 1er | H9: Rang | I9: Nb / ETP | J9: % Ecart au 1er | K9: Rang | L9: Nb / ETP | M9: % Ecart au 1er | N9: Rang | O9: Nb / ETP | P9: % Ecart au 1er | Q9: Rang | R9: Taux réal objectif | S9: % Ecart au 1er | T9: Rang | U9: Moyenne ecart au 1er | V9: % Ecart au 1er | W9: Rang CEGEE
A10: 50 | B10: AUBE HAUTE MARNE | C10: 21 | D10: CHAUMONT | E10: =VLOOKUP($C10,'RECAP SECT'!$G$6:$EV$253,3,FALSE) -> 46.6 | F10: =VLOOKUP($C10,'RECAP SECT'!$G$6:$EV$253,26,FALSE) -> -13.85 | G10: =VLOOKUP($C10,'RECAP SECT'!$G$6:$EV$253,27,FALSE) -> 58% | H10: =VLOOKUP($C10,'RECAP SECT'!$G$6:$EV$253,28,FALSE) -> 7 | I10: =VLOOKUP($C10,'RECAP SECT'!$G$6:$EV$253,29,FALSE) -> 4.06 | J10: =VLOOKUP($C10,'RECAP SECT'!$G$6:$EV$253,30,FALSE) -> 62% | K10: =VLOOKUP($C10,'RECAP SECT'!$G$6:$EV$253,31,FALSE) -> 14 | L10: =VLOOKUP($C10,'RECAP SECT'!$G$6:$EV$253,32,FALSE) -> 9.62 | M10: =VLOOKUP($C10,'RECAP SECT'!$G$6:$EV$253,33,FALSE) -> 37% | N10: =VLOOKUP($C10,'RECAP SECT'!$G$6:$EV$253,34,FALSE) -> 13 | O10: =VLOOKUP($C10,'RECAP SECT'!$G$6:$EV$253,35,FALSE) -> 7.56 | P10: =VLOOKUP($C10,'RECAP SECT'!$G$6:$EV$253,36,FALSE) -> 0% | Q10: =VLOOKUP($C10,'RECAP SECT'!$G$6:$EV$253,37,FALSE) -> 1 | R10: =VLOOKUP($C10,'RECAP SECT'!$G$6:$EV$253,38,FALSE) -> 104% | S10: =VLOOKUP($C10,'RECAP SECT'!$G$6:$EV$253,39,FALSE) -> 0% | T10: =VLOOKUP($C10,'RECAP SECT'!$G$6:$EV$253,40,FALSE) -> 1 | U10: =VLOOKUP($C10,'RECAP SECT'!$G$6:$EV$253,41,FALSE) -> 31% | V10: =VLOOKUP($C10,'RECAP SECT'!$G$6:$EV$253,42,FALSE) -> 3% | W10: =VLOOKUP($C10,'RECAP SECT'!$G$6:$EV$253,43,FALSE) -> 3
A11: 50 | B11: AUBE HAUTE MARNE | C11: 14 | D11: TROYES | E11: =VLOOKUP($C11,'RECAP SECT'!$G$6:$EV$253,3,FALSE) -> 78.5 | F11: =VLOOKUP($C11,'RECAP SECT'!$G$6:$EV$253,26,FALSE) -> -16.43 | G11: =VLOOKUP($C11,'RECAP SECT'!$G$6:$EV$253,27,FALSE) -> 87% | H11: =VLOOKUP($C11,'RECAP SECT'!$G$6:$EV$253,28,FALSE) -> 14 | I11: =VLOOKUP($C11,'RECAP SECT'!$G$6:$EV$253,29,FALSE) -> 5.82 | J11: =VLOOKUP($C11,'RECAP SECT'!$G$6:$EV$253,30,FALSE) -> 46% | K11: =VLOOKUP($C11,'RECAP SECT'!$G$6:$EV$253,31,FALSE) -> 9 | L11: =VLOOKUP($C11,'RECAP SECT'!$G$6:$EV$253,32,FALSE) -> 12.30 | M11: =VLOOKUP($C11,'RECAP SECT'!$G$6:$EV$253,33,FALSE) -> 19% | N11: =VLOOKUP($C11,'RECAP SECT'!$G$6:$EV$253,34,FALSE) -> 4 | O11: =VLOOKUP($C11,'RECAP SECT'!$G$6:$EV$253,35,FALSE) -> 5.49 | P11: =VLOOKUP($C11,'RECAP SECT'!$G$6:$EV$253,36,FALSE) -> 27% | Q11: =VLOOKUP($C11,'RECAP SECT'!$G$6:$EV$253,37,FALSE) -> 8 | R11: =VLOOKUP($C11,'RECAP SECT'!$G$6:$EV$253,38,FALSE) -> 73% | S11: =VLOOKUP($C11,'RECAP SECT'!$G$6:$EV$253,39,FALSE) -> 30% | T11: =VLOOKUP($C11,'RECAP SECT'!$G$6:$EV$253,40,FALSE) -> 9 | U11: =VLOOKUP($C11,'RECAP SECT'!$G$6:$EV$253,41,FALSE) -> 42% | V11: =VLOOKUP($C11,'RECAP SECT'!$G$6:$EV$253,42,FALSE) -> 14% | W11: =VLOOKUP($C11,'RECAP SECT'!$G$6:$EV$253,43,FALSE) -> 9
A12: 262 | B12: BAS-RHIN | C12: 5060 | D12: HAGUENAU | E12: =VLOOKUP($C12,'RECAP SECT'!$G$6:$EV$253,3,FALSE) -> 88.7 | F12: =VLOOKUP($C12,'RECAP SECT'!$G$6:$EV$253,26,FALSE) -> -10.14 | G12: =VLOOKUP($C12,'RECAP SECT'!$G$6:$EV$253,27,FALSE) -> 16% | H12: =VLOOKUP($C12,'RECAP SECT'!$G$6:$EV$253,28,FALSE) -> 2 | I12: =VLOOKUP($C12,'RECAP SECT'!$G$6:$EV$253,29,FALSE) -> 5.42 | J12: =VLOOKUP($C12,'RECAP SECT'!$G$6:$EV$253,30,FALSE) -> 49% | K12: =VLOOKUP($C12,'RECAP SECT'!$G$6:$EV$253,31,FALSE) -> 10 | L12: =VLOOKUP($C12,'RECAP SECT'!$G$6:$EV$253,32,FALSE) -> 12.12 | M12: =VLOOKUP($C12,'RECAP SECT'!$G$6:$EV$253,33,FALSE) -> 20% | N12: =VLOOKUP($C12,'RECAP SECT'!$G$6:$EV$253,34,FALSE) -> 6 | O12: =VLOOKUP($C12,'RECAP SECT'!$G$6:$EV$253,35,FALSE) -> 4.59 | P12: =VLOOKUP($C12,'RECAP SECT'!$G$6:$EV$253,36,FALSE) -> 39% | Q12: =VLOOKUP($C12,'RECAP SECT'!$G$6:$EV$253,37,FALSE) -> 10 | R12: =VLOOKUP($C12,'RECAP SECT'!$G$6:$EV$253,38,FALSE) -> 39% | S12: =VLOOKUP($C12,'RECAP SECT'!$G$6:$EV$253,39,FALSE) -> 63% | T12: =VLOOKUP($C12,'RECAP SECT'!$G$6:$EV$253,40,FALSE) -> 11 | U12: =VLOOKUP($C12,'RECAP SECT'!$G$6:$EV$253,41,FALSE) -> 37% | V12: =VLOOKUP($C12,'RECAP SECT'!$G$6:$EV$253,42,FALSE) -> 9% | W12: =VLOOKUP($C12,'RECAP SECT'!$G$6:$EV$253,43,FALSE) -> 5
A13: 262 | B13: BAS-RHIN | C13: 5101 | D13: SELESTAT | E13: =VLOOKUP($C13,'RECAP SECT'!$G$6:$EV$253,3,FALSE) -> 75.1 | F13: =VLOOKUP($C13,'RECAP SECT'!$G$6:$EV$253,26,FALSE) -> -11.04 | G13: =VLOOKUP($C13,'RECAP SECT'!$G$6:$EV$253,27,FALSE) -> 26% | H13: =VLOOKUP($C13,'RECAP SECT'!$G$6:$EV$253,28,FALSE) -> 4 | I13: =VLOOKUP($C13,'RECAP SECT'!$G$6:$EV$253,29,FALSE) -> 2.28 | J13: =VLOOKUP($C13,'RECAP SECT'!$G$6:$EV$253,30,FALSE) -> 79% | K13: =VLOOKUP($C13,'RECAP SECT'!$G$6:$EV$253,31,FALSE) -> 18 | L13: =VLOOKUP($C13,'RECAP SECT'!$G$6:$EV$253,32,FALSE) -> 11.65 | M13: =VLOOKUP($C13,'RECAP SECT'!$G$6:$EV$253,33,FALSE) -> 23% | N13: =VLOOKUP($C13,'RECAP SECT'!$G$6:$EV$253,34,FALSE) -> 7 | O13: =VLOOKUP($C13,'RECAP SECT'!$G$6:$EV$253,35,FALSE) -> 6.08 | P13: =VLOOKUP($C13,'RECAP SECT'!$G$6:$EV$253,36,FALSE) -> 20% | Q13: =VLOOKUP($C13,'RECAP SECT'!$G$6:$EV$253,37,FALSE) -> 7 | R13: =VLOOKUP($C13,'RECAP SECT'!$G$6:$EV$253,38,FALSE) -> 35% | S13: =VLOOKUP($C13,'RECAP SECT'!$G$6:$EV$253,39,FALSE) -> 66% | T13: =VLOOKUP($C13,'RECAP SECT'!$G$6:$EV$253,40,FALSE) -> 13 | U13: =VLOOKUP($C13,'RECAP SECT'!$G$6:$EV$253,41,FALSE) -> 43% | V13: =VLOOKUP($C13,'RECAP SECT'!$G$6:$EV$253,42,FALSE) -> 15% | W13: =VLOOKUP($C13,'RECAP SECT'!$G$6:$EV$253,43,FALSE) -> 10
A14: 262 | B14: BAS-RHIN | C14: 5006 | D14: STRASBOURG | E14: =VLOOKUP($C14,'RECAP SECT'!$G$6:$EV$253,3,FALSE) -> 92.7 | F14: =VLOOKUP($C14,'RECAP SECT'!$G$6:$EV$253,26,FALSE) -> -10.38 | G14: =VLOOKUP($C14,'RECAP SECT'!$G$6:$EV$253,27,FALSE) -> 18% | H14: =VLOOKUP($C14,'RECAP SECT'!$G$6:$EV$253,28,FALSE) -> 3 | I14: =VLOOKUP($C14,'RECAP SECT'!$G$6:$EV$253,29,FALSE) -> 3.68 | J14: =VLOOKUP($C14,'RECAP SECT'!$G$6:$EV$253,30,FALSE) -> 66% | K14: =VLOOKUP($C14,'RECAP SECT'!$G$6:$EV$253,31,FALSE) -> 16 | L14: =VLOOKUP($C14,'RECAP SECT'!$G$6:$EV$253,32,FALSE) -> 8.98 | M14: =VLOOKUP($C14,'RECAP SECT'!$G$6:$EV$253,33,FALSE) -> 41% | N14: =VLOOKUP($C14,'RECAP SECT'!$G$6:$EV$253,34,FALSE) -> 16 | O14: =VLOOKUP($C14,'RECAP SECT'!$G$6:$EV$253,35,FALSE) -> 6.79 | P14: =VLOOKUP($C14,'RECAP SECT'!$G$6:$EV$253,36,FALSE) -> 10% | Q14: =VLOOKUP($C14,'RECAP SECT'!$G$6:$EV$253,37,FALSE) -> 3 | R14: =VLOOKUP($C14,'RECAP SECT'!$G$6:$EV$253,38,FALSE) -> 17% | S14: =VLOOKUP($C14,'RECAP SECT'!$G$6:$EV$253,39,FALSE) -> 83% | T14: =VLOOKUP($C14,'RECAP SECT'!$G$6:$EV$253,40,FALSE) -> 17 | U14: =VLOOKUP($C14,'RECAP SECT'!$G$6:$EV$253,41,FALSE) -> 44% | V14: =VLOOKUP($C14,'RECAP SECT'!$G$6:$EV$253,42,FALSE) -> 16% | W14: =VLOOKUP($C14,'RECAP SECT'!$G$6:$EV$253,43,FALSE) -> 12
A15: 264 | B15: HAUT-RHIN | C15: 5130 | D15: COLMAR | E15: =VLOOKUP($C15,'RECAP SECT'!$G$6:$EV$253,3,FALSE) -> 76.1 | F15: =VLOOKUP($C15,'RECAP SECT'!$G$6:$EV$253,26,FALSE) -> -8.78 | G15: =VLOOKUP($C15,'RECAP SECT'!$G$6:$EV$253,27,FALSE) -> 0% | H15: =VLOOKUP($C15,'RECAP SECT'!$G$6:$EV$253,28,FALSE) -> 1 | I15: =VLOOKUP($C15,'RECAP SECT'!$G$6:$EV$253,29,FALSE) -> 4.14 | J15: =VLOOKUP($C15,'RECAP SECT'!$G$6:$EV$253,30,FALSE) -> 61% | K15: =VLOOKUP($C15,'RECAP SECT'!$G$6:$EV$253,31,FALSE) -> 13 | L15: =VLOOKUP($C15,'RECAP SECT'!$G$6:$EV$253,32,FALSE) -> 8.39 | M15: =VLOOKUP($C15,'RECAP SECT'!$G$6:$EV$253,33,FALSE) -> 45% | N15: =VLOOKUP($C15,'RECAP SECT'!$G$6:$EV$253,34,FALSE) -> 17 | O15: =VLOOKUP($C15,'RECAP SECT'!$G$6:$EV$253,35,FALSE) -> 3.78 | P15: =VLOOKUP($C15,'RECAP SECT'!$G$6:$EV$253,36,FALSE) -> 50% | Q15: =VLOOKUP($C15,'RECAP SECT'!$G$6:$EV$253,37,FALSE) -> 14 | R15: =VLOOKUP($C15,'RECAP SECT'!$G$6:$EV$253,38,FALSE) -> 23% | S15: =VLOOKUP($C15,'RECAP SECT'!$G$6:$EV$253,39,FALSE) -> 78% | T15: =VLOOKUP($C15,'RECAP SECT'!$G$6:$EV$253,40,FALSE) -> 16 | U15: =VLOOKUP($C15,'RECAP SECT'!$G$6:$EV$253,41,FALSE) -> 47% | V15: =VLOOKUP($C15,'RECAP SECT'!$G$6:$EV$253,42,FALSE) -> 19% | W15: =VLOOKUP($C15,'RECAP SECT'!$G$6:$EV$253,43,FALSE) -> 14
A16: 264 | B16: HAUT-RHIN | C16: 5169 | D16: MULHOUSE | E16: =VLOOKUP($C16,'RECAP SECT'!$G$6:$EV$253,3,FALSE) -> 78.1 | F16: =VLOOKUP($C16,'RECAP SECT'!$G$6:$EV$253,26,FALSE) -> -14.44 | G16: =VLOOKUP($C16,'RECAP SECT'!$G$6:$EV$253,27,FALSE) -> 65% | H16: =VLOOKUP($C16,'RECAP SECT'!$G$6:$EV$253,28,FALSE) -> 10 | I16: =VLOOKUP($C16,'RECAP SECT'!$G$6:$EV$253,29,FALSE) -> 3.43 | J16: =VLOOKUP($C16,'RECAP SECT'!$G$6:$EV$253,30,FALSE) -> 68% | K16: =VLOOKUP($C16,'RECAP SECT'!$G$6:$EV$253,31,FALSE) -> 17 | L16: =VLOOKUP($C16,'RECAP SECT'!$G$6:$EV$253,32,FALSE) -> 7.11 | M16: =VLOOKUP($C16,'RECAP SECT'!$G$6:$EV$253,33,FALSE) -> 53% | N16: =VLOOKUP($C16,'RECAP SECT'!$G$6:$EV$253,34,FALSE) -> 18 | O16: =VLOOKUP($C16,'RECAP SECT'!$G$6:$EV$253,35,FALSE) -> 1.96 | P16: =VLOOKUP($C16,'RECAP SECT'!$G$6:$EV$253,36,FALSE) -> 74% | Q16: =VLOOKUP($C16,'RECAP SECT'!$G$6:$EV$253,37,FALSE) -> 18 | R16: =VLOOKUP($C16,'RECAP SECT'!$G$6:$EV$253,38,FALSE) -> 34% | S16: =VLOOKUP($C16,'RECAP SECT'!$G$6:$EV$253,39,FALSE) -> 67% | T16: =VLOOKUP($C16,'RECAP SECT'!$G$6:$EV$253,40,FALSE) -> 14 | U16: =VLOOKUP($C16,'RECAP SECT'!$G$6:$EV$253,41,FALSE) -> 65% | V16: =VLOOKUP($C16,'RECAP SECT'!$G$6:$EV$253,42,FALSE) -> 37% | W16: =VLOOKUP($C16,'RECAP SECT'!$G$6:$EV$253,43,FALSE) -> 18
A17: 30 | B17: MARNE-ARDENNES | C17: 6 | D17: CHALONS EN CHAMPAGNE | E17: =VLOOKUP($C17,'RECAP SECT'!$G$6:$EV$253,3,FALSE) -> 49.2 | F17: =VLOOKUP($C17,'RECAP SECT'!$G$6:$EV$253,26,FALSE) -> -14.31 | G17: =VLOOKUP($C17,'RECAP SECT'!$G$6:$EV$253,27,FALSE) -> 63% | H17: =VLOOKUP($C17,'RECAP SECT'!$G$6:$EV$253,28,FALSE) -> 8 | I17: =VLOOKUP($C17,'RECAP SECT'!$G$6:$EV$253,29,FALSE) -> 9.29 | J17: =VLOOKUP($C17,'RECAP SECT'!$G$6:$EV$253,30,FALSE) -> 13% | K17: =VLOOKUP($C17,'RECAP SECT'!$G$6:$EV$253,31,FALSE) -> 2 | L17: =VLOOKUP($C17,'RECAP SECT'!$G$6:$EV$253,32,FALSE) -> 9.29 | M17: =VLOOKUP($C17,'RECAP SECT'!$G$6:$EV$253,33,FALSE) -> 39% | N17: =VLOOKUP($C17,'RECAP SECT'!$G$6:$EV$253,34,FALSE) -> 14 | O17: =VLOOKUP($C17,'RECAP SECT'!$G$6:$EV$253,35,FALSE) -> 6.44 | P17: =VLOOKUP($C17,'RECAP SECT'!$G$6:$EV$253,36,FALSE) -> 15% | Q17: =VLOOKUP($C17,'RECAP SECT'!$G$6:$EV$253,37,FALSE) -> 4 | R17: =VLOOKUP($C17,'RECAP SECT'!$G$6:$EV$253,38,FALSE) -> 38% | S17: =VLOOKUP($C17,'RECAP SECT'!$G$6:$EV$253,39,FALSE) -> 64% | T17: =VLOOKUP($C17,'RECAP SECT'!$G$6:$EV$253,40,FALSE) -> 12 | U17: =VLOOKUP($C17,'RECAP SECT'!$G$6:$EV$253,41,FALSE) -> 39% | V17: =VLOOKUP($C17,'RECAP SECT'!$G$6:$EV$253,42,FALSE) -> 11% | W17: =VLOOKUP($C17,'RECAP SECT'!$G$6:$EV$253,43,FALSE) -> 6
A18: 30 | B18: MARNE-ARDENNES | C18: 2 | D18: CHARLEVILLE MEZIERES | E18: =VLOOKUP($C18,'RECAP SECT'!$G$6:$EV$253,3,FALSE) -> 62.6 | F18: =VLOOKUP($C18,'RECAP SECT'!$G$6:$EV$253,26,FALSE) -> -19.60 | G18: =VLOOKUP($C18,'RECAP SECT'!$G$6:$EV$253,27,FALSE) -> 123% | H18: =VLOOKUP($C18,'RECAP SECT'!$G$6:$EV$253,28,FALSE) -> 18 | I18: =VLOOKUP($C18,'RECAP SECT'!$G$6:$EV$253,29,FALSE) -> 6.75 | J18: =VLOOKUP($C18,'RECAP SECT'!$G$6:$EV$253,30,FALSE) -> 37% | K18: =VLOOKUP($C18,'RECAP SECT'!$G$6:$EV$253,31,FALSE) -> 5 | L18: =VLOOKUP($C18,'RECAP SECT'!$G$6:$EV$253,32,FALSE) -> 10.34 | M18: =VLOOKUP($C18,'RECAP SECT'!$G$6:$EV$253,33,FALSE) -> 32% | N18: =VLOOKUP($C18,'RECAP SECT'!$G$6:$EV$253,34,FALSE) -> 10 | O18: =VLOOKUP($C18,'RECAP SECT'!$G$6:$EV$253,35,FALSE) -> 6.99 | P18: =VLOOKUP($C18,'RECAP SECT'!$G$6:$EV$253,36,FALSE) -> 8% | Q18: =VLOOKUP($C18,'RECAP SECT'!$G$6:$EV$253,37,FALSE) -> 2 | R18: =VLOOKUP($C18,'RECAP SECT'!$G$6:$EV$253,38,FALSE) -> 102% | S18: =VLOOKUP($C18,'RECAP SECT'!$G$6:$EV$253,39,FALSE) -> 3% | T18: =VLOOKUP($C18,'RECAP SECT'!$G$6:$EV$253,40,FALSE) -> 2 | U18: =VLOOKUP($C18,'RECAP SECT'!$G$6:$EV$253,41,FALSE) -> 40% | V18: =VLOOKUP($C18,'RECAP SECT'!$G$6:$EV$253,42,FALSE) -> 13% | W18: =VLOOKUP($C18,'RECAP SECT'!$G$6:$EV$253,43,FALSE) -> 7
A19: 30 | B19: MARNE-ARDENNES | C19: 11 | D19: REIMS | E19: =VLOOKUP($C19,'RECAP SECT'!$G$6:$EV$253,3,FALSE) -> 91.1 | F19: =VLOOKUP($C19,'RECAP SECT'!$G$6:$EV$253,26,FALSE) -> -15.23 | G19: =VLOOKUP($C19,'RECAP SECT'!$G$6:$EV$253,27,FALSE) -> 74% | H19: =VLOOKUP($C19,'RECAP SECT'!$G$6:$EV$253,28,FALSE) -> 11 | I19: =VLOOKUP($C19,'RECAP SECT'!$G$6:$EV$253,29,FALSE) -> 10.70 | J19: =VLOOKUP($C19,'RECAP SECT'!$G$6:$EV$253,30,FALSE) -> 0% | K19: =VLOOKUP($C19,'RECAP SECT'!$G$6:$EV$253,31,FALSE) -> 1 | L19: =VLOOKUP($C19,'RECAP SECT'!$G$6:$EV$253,32,FALSE) -> 9.65 | M19: =VLOOKUP($C19,'RECAP SECT'!$G$6:$EV$253,33,FALSE) -> 36% | N19: =VLOOKUP($C19,'RECAP SECT'!$G$6:$EV$253,34,FALSE) -> 12 | O19: =VLOOKUP($C19,'RECAP SECT'!$G$6:$EV$253,35,FALSE) -> 6.26 | P19: =VLOOKUP($C19,'RECAP SECT'!$G$6:$EV$253,36,FALSE) -> 17% | Q19: =VLOOKUP($C19,'RECAP SECT'!$G$6:$EV$253,37,FALSE) -> 5 | R19: =VLOOKUP($C19,'RECAP SECT'!$G$6:$EV$253,38,FALSE) -> 91% | S19: =VLOOKUP($C19,'RECAP SECT'!$G$6:$EV$253,39,FALSE) -> 12% | T19: =VLOOKUP($C19,'RECAP SECT'!$G$6:$EV$253,40,FALSE) -> 5 | U19: =VLOOKUP($C19,'RECAP SECT'!$G$6:$EV$253,41,FALSE) -> 28% | V19: =VLOOKUP($C19,'RECAP SECT'!$G$6:$EV$253,42,FALSE) -> 0% | W19: =VLOOKUP($C19,'RECAP SECT'!$G$6:$EV$253,43,FALSE) -> 1
A20: 110 | B20: MEURTHE ET MOSELLE MEUSE | C20: 26 | D20: NANCY | E20: =VLOOKUP($C20,'RECAP SECT'!$G$6:$EV$253,3,FALSE) -> 79.3 | F20: =VLOOKUP($C20,'RECAP SECT'!$G$6:$EV$253,26,FALSE) -> -16.31 | G20: =VLOOKUP($C20,'RECAP SECT'!$G$6:$EV$253,27,FALSE) -> 86% | H20: =VLOOKUP($C20,'RECAP SECT'!$G$6:$EV$253,28,FALSE) -> 13 | I20: =VLOOKUP($C20,'RECAP SECT'!$G$6:$EV$253,29,FALSE) -> 4.74 | J20: =VLOOKUP($C20,'RECAP SECT'!$G$6:$EV$253,30,FALSE) -> 56% | K20: =VLOOKUP($C20,'RECAP SECT'!$G$6:$EV$253,31,FALSE) -> 12 | L20: =VLOOKUP($C20,'RECAP SECT'!$G$6:$EV$253,32,FALSE) -> 10.00 | M20: =VLOOKUP($C20,'RECAP SECT'!$G$6:$EV$253,33,FALSE) -> 34% | N20: =VLOOKUP($C20,'RECAP SECT'!$G$6:$EV$253,34,FALSE) -> 11 | O20: =VLOOKUP($C20,'RECAP SECT'!$G$6:$EV$253,35,FALSE) -> 3.72 | P20: =VLOOKUP($C20,'RECAP SECT'!$G$6:$EV$253,36,FALSE) -> 51% | Q20: =VLOOKUP($C20,'RECAP SECT'!$G$6:$EV$253,37,FALSE) -> 15 | R20: =VLOOKUP($C20,'RECAP SECT'!$G$6:$EV$253,38,FALSE) -> 93% | S20: =VLOOKUP($C20,'RECAP SECT'!$G$6:$EV$253,39,FALSE) -> 11% | T20: =VLOOKUP($C20,'RECAP SECT'!$G$6:$EV$253,40,FALSE) -> 4 | U20: =VLOOKUP($C20,'RECAP SECT'!$G$6:$EV$253,41,FALSE) -> 47% | V20: =VLOOKUP($C20,'RECAP SECT'!$G$6:$EV$253,42,FALSE) -> 20% | W20: =VLOOKUP($C20,'RECAP SECT'!$G$6:$EV$253,43,FALSE) -> 15
A21: 110 | B21: MEURTHE ET MOSELLE MEUSE | C21: 27 | D21: PONT A MOUSSON | E21: =VLOOKUP($C21,'RECAP SECT'!$G$6:$EV$253,3,FALSE) -> 87.7 | F21: =VLOOKUP($C21,'RECAP SECT'!$G$6:$EV$253,26,FALSE) -> -16.89 | G21: =VLOOKUP($C21,'RECAP SECT'!$G$6:$EV$253,27,FALSE) -> 93% | H21: =VLOOKUP($C21,'RECAP SECT'!$G$6:$EV$253,28,FALSE) -> 15 | I21: =VLOOKUP($C21,'RECAP SECT'!$G$6:$EV$253,29,FALSE) -> 8.40 | J21: =VLOOKUP($C21,'RECAP SECT'!$G$6:$EV$253,30,FALSE) -> 22% | K21: =VLOOKUP($C21,'RECAP SECT'!$G$6:$EV$253,31,FALSE) -> 3 | L21: =VLOOKUP($C21,'RECAP SECT'!$G$6:$EV$253,32,FALSE) -> 12.13 | M21: =VLOOKUP($C21,'RECAP SECT'!$G$6:$EV$253,33,FALSE) -> 20% | N21: =VLOOKUP($C21,'RECAP SECT'!$G$6:$EV$253,34,FALSE) -> 5 | O21: =VLOOKUP($C21,'RECAP SECT'!$G$6:$EV$253,35,FALSE) -> 2.79 | P21: =VLOOKUP($C21,'RECAP SECT'!$G$6:$EV$253,36,FALSE) -> 63% | Q21: =VLOOKUP($C21,'RECAP SECT'!$G$6:$EV$253,37,FALSE) -> 16 | R21: =VLOOKUP($C21,'RECAP SECT'!$G$6:$EV$253,38,FALSE) -> 9% | S21: =VLOOKUP($C21,'RECAP SECT'!$G$6:$EV$253,39,FALSE) -> 92% | T21: =VLOOKUP($C21,'RECAP SECT'!$G$6:$EV$253,40,FALSE) -> 18 | U21: =VLOOKUP($C21,'RECAP SECT'!$G$6:$EV$253,41,FALSE) -> 58% | V21: =VLOOKUP($C21,'RECAP SECT'!$G$6:$EV$253,42,FALSE) -> 30% | W21: =VLOOKUP($C21,'RECAP SECT'!$G$6:$EV$253,43,FALSE) -> 16
A22: 110 | B22: MEURTHE ET MOSELLE MEUSE | C22: 31 | D22: VERDUN | E22: =VLOOKUP($C22,'RECAP SECT'!$G$6:$EV$253,3,FALSE) -> 64.7 | F22: =VLOOKUP($C22,'RECAP SECT'!$G$6:$EV$253,26,FALSE) -> -18.12 | G22: =VLOOKUP($C22,'RECAP SECT'!$G$6:$EV$253,27,FALSE) -> 107% | H22: =VLOOKUP($C22,'RECAP SECT'!$G$6:$EV$253,28,FALSE) -> 17 | I22: =VLOOKUP($C22,'RECAP SECT'!$G$6:$EV$253,29,FALSE) -> 7.09 | J22: =VLOOKUP($C22,'RECAP SECT'!$G$6:$EV$253,30,FALSE) -> 34% | K22: =VLOOKUP($C22,'RECAP SECT'!$G$6:$EV$253,31,FALSE) -> 4 | L22: =VLOOKUP($C22,'RECAP SECT'!$G$6:$EV$253,32,FALSE) -> 10.83 | M22: =VLOOKUP($C22,'RECAP SECT'!$G$6:$EV$253,33,FALSE) -> 29% | N22: =VLOOKUP($C22,'RECAP SECT'!$G$6:$EV$253,34,FALSE) -> 8 | O22: =VLOOKUP($C22,'RECAP SECT'!$G$6:$EV$253,35,FALSE) -> 2.49 | P22: =VLOOKUP($C22,'RECAP SECT'!$G$6:$EV$253,36,FALSE) -> 67% | Q22: =VLOOKUP($C22,'RECAP SECT'!$G$6:$EV$253,37,FALSE) -> 17 | R22: =VLOOKUP($C22,'RECAP SECT'!$G$6:$EV$253,38,FALSE) -> 28% | S22: =VLOOKUP($C22,'RECAP SECT'!$G$6:$EV$253,39,FALSE) -> 73% | T22: =VLOOKUP($C22,'RECAP SECT'!$G$6:$EV$253,40,FALSE) -> 15 | U22: =VLOOKUP($C22,'RECAP SECT'!$G$6:$EV$253,41,FALSE) -> 62% | V22: =VLOOKUP($C22,'RECAP SECT'!$G$6:$EV$253,42,FALSE) -> 34% | W22: =VLOOKUP($C22,'RECAP SECT'!$G$6:$EV$253,43,FALSE) -> 17
A23: 160 | B23: MOSELLE | C23: 45 | D23: METZ | E23: =VLOOKUP($C23,'RECAP SECT'!$G$6:$EV$253,3,FALSE) -> 103.2 | F23: =VLOOKUP($C23,'RECAP SECT'!$G$6:$EV$253,26,FALSE) -> -17.55 | G23: =VLOOKUP($C23,'RECAP SECT'!$G$6:$EV$253,27,FALSE) -> 100% | H23: =VLOOKUP($C23,'RECAP SECT'!$G$6:$EV$253,28,FALSE) -> 16 | I23: =VLOOKUP($C23,'RECAP SECT'!$G$6:$EV$253,29,FALSE) -> 4.99 | J23: =VLOOKUP($C23,'RECAP SECT'!$G$6:$EV$253,30,FALSE) -> 53% | K23: =VLOOKUP($C23,'RECAP SECT'!$G$6:$EV$253,31,FALSE) -> 11 | L23: =VLOOKUP($C23,'RECAP SECT'!$G$6:$EV$253,32,FALSE) -> 12.90 | M23: =VLOOKUP($C23,'RECAP SECT'!$G$6:$EV$253,33,FALSE) -> 15% | N23: =VLOOKUP($C23,'RECAP SECT'!$G$6:$EV$253,34,FALSE) -> 3 | O23: =VLOOKUP($C23,'RECAP SECT'!$G$6:$EV$253,35,FALSE) -> 4.44 | P23: =VLOOKUP($C23,'RECAP SECT'!$G$6:$EV$253,36,FALSE) -> 41% | Q23: =VLOOKUP($C23,'RECAP SECT'!$G$6:$EV$253,37,FALSE) -> 11 | R23: =VLOOKUP($C23,'RECAP SECT'!$G$6:$EV$253,38,FALSE) -> 83% | S23: =VLOOKUP($C23,'RECAP SECT'!$G$6:$EV$253,39,FALSE) -> 20% | T23: =VLOOKUP($C23,'RECAP SECT'!$G$6:$EV$253,40,FALSE) -> 8 | U23: =VLOOKUP($C23,'RECAP SECT'!$G$6:$EV$253,41,FALSE) -> 46% | V23: =VLOOKUP($C23,'RECAP SECT'!$G$6:$EV$253,42,FALSE) -> 18% | W23: =VLOOKUP($C23,'RECAP SECT'!$G$6:$EV$253,43,FALSE) -> 13
A24: 160 | B24: MOSELLE | C24: 42 | D24: MOSELLE EST | E24: =VLOOKUP($C24,'RECAP SECT'!$G$6:$EV$253,3,FALSE) -> 86.1 | F24: =VLOOKUP($C24,'RECAP SECT'!$G$6:$EV$253,26,FALSE) -> -14.41 | G24: =VLOOKUP($C24,'RECAP SECT'!$G$6:$EV$253,27,FALSE) -> 64% | H24: =VLOOKUP($C24,'RECAP SECT'!$G$6:$EV$253,28,FALSE) -> 9 | I24: =VLOOKUP($C24,'RECAP SECT'!$G$6:$EV$253,29,FALSE) -> 3.93 | J24: =VLOOKUP($C24,'RECAP SECT'!$G$6:$EV$253,30,FALSE) -> 63% | K24: =VLOOKUP($C24,'RECAP SECT'!$G$6:$EV$253,31,FALSE) -> 15 | L24: =VLOOKUP($C24,'RECAP SECT'!$G$6:$EV$253,32,FALSE) -> 15.17 | M24: =VLOOKUP($C24,'RECAP SECT'!$G$6:$EV$253,33,FALSE) -> 0% | N24: =VLOOKUP($C24,'RECAP SECT'!$G$6:$EV$253,34,FALSE) -> 1 | O24: =VLOOKUP($C24,'RECAP SECT'!$G$6:$EV$253,35,FALSE) -> 4.15 | P24: =VLOOKUP($C24,'RECAP SECT'!$G$6:$EV$253,36,FALSE) -> 45% | Q24: =VLOOKUP($C24,'RECAP SECT'!$G$6:$EV$253,37,FALSE) -> 12 | R24: =VLOOKUP($C24,'RECAP SECT'!$G$6:$EV$253,38,FALSE) -> 95% | S24: =VLOOKUP($C24,'RECAP SECT'!$G$6:$EV$253,39,FALSE) -> 9% | T24: =VLOOKUP($C24,'RECAP SECT'!$G$6:$EV$253,40,FALSE) -> 3 | U24: =VLOOKUP($C24,'RECAP SECT'!$G$6:$EV$253,41,FALSE) -> 36% | V24: =VLOOKUP($C24,'RECAP SECT'!$G$6:$EV$253,42,FALSE) -> 8% | W24: =VLOOKUP($C24,'RECAP SECT'!$G$6:$EV$253,43,FALSE) -> 4
A25: 160 | B25: MOSELLE | C25: 44 | D25: MOSELLE NORD | E25: =VLOOKUP($C25,'RECAP SECT'!$G$6:$EV$253,3,FALSE) -> 80.5 | F25: =VLOOKUP($C25,'RECAP SECT'!$G$6:$EV$253,26,FALSE) -> -16.22 | G25: =VLOOKUP($C25,'RECAP SECT'!$G$6:$EV$253,27,FALSE) -> 85% | H25: =VLOOKUP($C25,'RECAP SECT'!$G$6:$EV$253,28,FALSE) -> 12 | I25: =VLOOKUP($C25,'RECAP SECT'!$G$6:$EV$253,29,FALSE) -> 6.22 | J25: =VLOOKUP($C25,'RECAP SECT'!$G$6:$EV$253,30,FALSE) -> 42% | K25: =VLOOKUP($C25,'RECAP SECT'!$G$6:$EV$253,31,FALSE) -> 7 | L25: =VLOOKUP($C25,'RECAP SECT'!$G$6:$EV$253,32,FALSE) -> 15.16 | M25: =VLOOKUP($C25,'RECAP SECT'!$G$6:$EV$253,33,FALSE) -> 0% | N25: =VLOOKUP($C25,'RECAP SECT'!$G$6:$EV$253,34,FALSE) -> 2 | O25: =VLOOKUP($C25,'RECAP SECT'!$G$6:$EV$253,35,FALSE) -> 4.66 | P25: =VLOOKUP($C25,'RECAP SECT'!$G$6:$EV$253,36,FALSE) -> 38% | Q25: =VLOOKUP($C25,'RECAP SECT'!$G$6:$EV$253,37,FALSE) -> 9 | R25: =VLOOKUP($C25,'RECAP SECT'!$G$6:$EV$253,38,FALSE) -> 51% | S25: =VLOOKUP($C25,'RECAP SECT'!$G$6:$EV$253,39,FALSE) -> 51% | T25: =VLOOKUP($C25,'RECAP SECT'!$G$6:$EV$253,40,FALSE) -> 10 | U25: =VLOOKUP($C25,'RECAP SECT'!$G$6:$EV$253,41,FALSE) -> 43% | V25: =VLOOKUP($C25,'RECAP SECT'!$G$6:$EV$253,42,FALSE) -> 15% | W25: =VLOOKUP($C25,'RECAP SECT'!$G$6:$EV$253,43,FALSE) -> 11
A26: 80 | B26: VOSGES | C26: 57 | D26: EPINAL | E26: =VLOOKUP($C26,'RECAP SECT'!$G$6:$EV$253,3,FALSE) -> 68.7 | F26: =VLOOKUP($C26,'RECAP SECT'!$G$6:$EV$253,26,FALSE) -> -13.45 | G26: =VLOOKUP($C26,'RECAP SECT'!$G$6:$EV$253,27,FALSE) -> 53% | H26: =VLOOKUP($C26,'RECAP SECT'!$G$6:$EV$253,28,FALSE) -> 6 | I26: =VLOOKUP($C26,'RECAP SECT'!$G$6:$EV$253,29,FALSE) -> 5.85 | J26: =VLOOKUP($C26,'RECAP SECT'!$G$6:$EV$253,30,FALSE) -> 45% | K26: =VLOOKUP($C26,'RECAP SECT'!$G$6:$EV$253,31,FALSE) -> 8 | L26: =VLOOKUP($C26,'RECAP SECT'!$G$6:$EV$253,32,FALSE) -> 9.04 | M26: =VLOOKUP($C26,'RECAP SECT'!$G$6:$EV$253,33,FALSE) -> 40% | N26: =VLOOKUP($C26,'RECAP SECT'!$G$6:$EV$253,34,FALSE) -> 15 | O26: =VLOOKUP($C26,'RECAP SECT'!$G$6:$EV$253,35,FALSE) -> 3.89 | P26: =VLOOKUP($C26,'RECAP SECT'!$G$6:$EV$253,36,FALSE) -> 49% | Q26: =VLOOKUP($C26,'RECAP SECT'!$G$6:$EV$253,37,FALSE) -> 13 | R26: =VLOOKUP($C26,'RECAP SECT'!$G$6:$EV$253,38,FALSE) -> 84% | S26: =VLOOKUP($C26,'RECAP SECT'!$G$6:$EV$253,39,FALSE) -> 20% | T26: =VLOOKUP($C26,'RECAP SECT'!$G$6:$EV$253,40,FALSE) -> 7 | U26: =VLOOKUP($C26,'RECAP SECT'!$G$6:$EV$253,41,FALSE) -> 41% | V26: =VLOOKUP($C26,'RECAP SECT'!$G$6:$EV$253,42,FALSE) -> 14% | W26: =VLOOKUP($C26,'RECAP SECT'!$G$6:$EV$253,43,FALSE) -> 8
A27: 80 | B27: VOSGES | C27: 55 | D27: SAINT DIE | E27: =VLOOKUP($C27,'RECAP SECT'!$G$6:$EV$253,3,FALSE) -> 58.0 | F27: =VLOOKUP($C27,'RECAP SECT'!$G$6:$EV$253,26,FALSE) -> -12.87 | G27: =VLOOKUP($C27,'RECAP SECT'!$G$6:$EV$253,27,FALSE) -> 47% | H27: =VLOOKUP($C27,'RECAP SECT'!$G$6:$EV$253,28,FALSE) -> 5 | I27: =VLOOKUP($C27,'RECAP SECT'!$G$6:$EV$253,29,FALSE) -> 6.46 | J27: =VLOOKUP($C27,'RECAP SECT'!$G$6:$EV$253,30,FALSE) -> 40% | K27: =VLOOKUP($C27,'RECAP SECT'!$G$6:$EV$253,31,FALSE) -> 6 | L27: =VLOOKUP($C27,'RECAP SECT'!$G$6:$EV$253,32,FALSE) -> 10.56 | M27: =VLOOKUP($C27,'RECAP SECT'!$G$6:$EV$253,33,FALSE) -> 30% | N27: =VLOOKUP($C27,'RECAP SECT'!$G$6:$EV$253,34,FALSE) -> 9 | O27: =VLOOKUP($C27,'RECAP SECT'!$G$6:$EV$253,35,FALSE) -> 6.14 | P27: =VLOOKUP($C27,'RECAP SECT'!$G$6:$EV$253,36,FALSE) -> 19% | Q27: =VLOOKUP($C27,'RECAP SECT'!$G$6:$EV$253,37,FALSE) -> 6 | R27: =VLOOKUP($C27,'RECAP SECT'!$G$6:$EV$253,38,FALSE) -> 84% | S27: =VLOOKUP($C27,'RECAP SECT'!$G$6:$EV$253,39,FALSE) -> 19% | T27: =VLOOKUP($C27,'RECAP SECT'!$G$6:$EV$253,40,FALSE) -> 6 | U27: =VLOOKUP($C27,'RECAP SECT'!$G$6:$EV$253,41,FALSE) -> 31% | V27: =VLOOKUP($C27,'RECAP SECT'!$G$6:$EV$253,42,FALSE) -> 3% | W27: =VLOOKUP($C27,'RECAP SECT'!$G$6:$EV$253,43,FALSE) -> 2
A28: Total CEGEE Directions Régionales | E28: =SUM(E10:E27) -> 1367

Sheet SE_EPARGNE
A1: Accueil | F1: BAROMETRE BDD - TERRITOIRES
F2: EPARGNE
F3: =ACCUEIL!H7 -> 2019-07-31
F7: Excédent de collecte yc DAV | I7: CA assurance vie | L7: Activité UC (CA+Arbitrage) | O7: Excédent assurance vie | R7: Excédent Epargne Bilan (hors emprunt CTO) | U7: Total Epargne
G8: coef | H8: ='RECAP DIRCOM'!BF4 -> 2% | J8: coef | K8: ='RECAP DIRCOM'!BI4 -> 2% | M8: coef | N8: ='RECAP DIRCOM'!BL4 -> 2% | P8: coef | Q8: ='RECAP DIRCOM'!BO4 -> 2% | S8: coef | T8: ='RECAP DIRCOM'!BR4 -> 7% | V8: coef | W8: ='RECAP DIRCOM'!BU4 -> 15%
A9: eds | B9: Direction | C9: eds | D9: Territoire | E9: ETP perf | F9: Réal / ETP | G9: % Ecart au 1er | H9: Rang | I9: Réal / ETP | J9: % Ecart au 1er | K9: Rang | L9: Réal / ETP | M9: % Ecart au 1er | N9: Rang | O9: Réal / ETP | P9: % Ecart au 1er | Q9: Rang | R9: Réal / ETP | S9: % Ecart au 1er | T9: Rang | U9: Moyenne ecart au 1er | V9: % Ecart au 1er | W9: Rang CEGEE
A10: 50 | B10: AUBE HAUTE MARNE | C10: 21 | D10: CHAUMONT | E10: =VLOOKUP($C10,'RECAP SECT'!$G$6:$EV$253,3,FALSE) -> 46.6 | F10: =VLOOKUP($C10,'RECAP SECT'!$G$6:$EV$253,50,FALSE) -> 185.73 | G10: =VLOOKUP($C10,'RECAP SECT'!$G$6:$EV$253,51,FALSE) -> 31% | H10: =VLOOKUP($C10,'RECAP SECT'!$G$6:$EV$253,52,FALSE) -> 2 | I10: =VLOOKUP($C10,'RECAP SECT'!$G$6:$EV$253,53,FALSE) -> 432.46 | J10: =VLOOKUP($C10,'RECAP SECT'!$G$6:$EV$253,54,FALSE) -> 14% | K10: =VLOOKUP($C10,'RECAP SECT'!$G$6:$EV$253,55,FALSE) -> 8 | L10: =VLOOKUP($C10,'RECAP SECT'!$G$6:$EV$253,56,FALSE) -> 127 | M10: =VLOOKUP($C10,'RECAP SECT'!$G$6:$EV$253,57,FALSE) -> 23% | N10: =VLOOKUP($C10,'RECAP SECT'!$G$6:$EV$253,58,FALSE) -> 10 | O10: =VLOOKUP($C10,'RECAP SECT'!$G$6:$EV$253,59,FALSE) -> 102.64 | P10: =VLOOKUP($C10,'RECAP SECT'!$G$6:$EV$253,60,FALSE) -> 50% | Q10: =VLOOKUP($C10,'RECAP SECT'!$G$6:$EV$253,61,FALSE) -> 10 | R10: =VLOOKUP($C10,'RECAP SECT'!$G$6:$EV$253,62,FALSE) -> 4.40 | S10: =VLOOKUP($C10,'RECAP SECT'!$G$6:$EV$253,63,FALSE) -> 95% | T10: =VLOOKUP($C10,'RECAP SECT'!$G$6:$EV$253,64,FALSE) -> 13 | U10: =VLOOKUP($C10,'RECAP SECT'!$G$6:$EV$253,65,FALSE) -> 60% | V10: =VLOOKUP($C10,'RECAP SECT'!$G$6:$EV$253,66,FALSE) -> 49% | W10: =VLOOKUP($C10,'RECAP SECT'!$G$6:$EV$253,67,FALSE) -> 13
A11: 50 | B11: AUBE HAUTE MARNE | C11: 14 | D11: TROYES | E11: =VLOOKUP($C11,'RECAP SECT'!$G$6:$EV$253,3,FALSE) -> 78.5 | F11: =VLOOKUP($C11,'RECAP SECT'!$G$6:$EV$253,50,FALSE) -> 142.47 | G11: =VLOOKUP($C11,'RECAP SECT'!$G$6:$EV$253,51,FALSE) -> 47% | H11: =VLOOKUP($C11,'RECAP SECT'!$G$6:$EV$253,52,FALSE) -> 5 | I11: =VLOOKUP($C11,'RECAP SECT'!$G$6:$EV$253,53,FALSE) -> 437.73 | J11: =VLOOKUP($C11,'RECAP SECT'!$G$6:$EV$253,54,FALSE) -> 13% | K11: =VLOOKUP($C11,'RECAP SECT'!$G$6:$EV$253,55,FALSE) -> 6 | L11: =VLOOKUP($C11,'RECAP SECT'!$G$6:$EV$253,56,FALSE) -> 166 | M11: =VLOOKUP($C11,'RECAP SECT'!$G$6:$EV$253,57,FALSE) -> 0% | N11: =VLOOKUP($C11,'RECAP SECT'!$G$6:$EV$253,58,FALSE) -> 1 | O11: =VLOOKUP($C11,'RECAP SECT'!$G$6:$EV$253,59,FALSE) -> 120.38 | P11: =VLOOKUP($C11,'RECAP SECT'!$G$6:$EV$253,60,FALSE) -> 41% | Q11: =VLOOKUP($C11,'RECAP SECT'!$G$6:$EV$253,61,FALSE) -> 8 | R11: =VLOOKUP($C11,'RECAP SECT'!$G$6:$EV$253,62,FALSE) -> -40.61 | S11: =VLOOKUP($C11,'RECAP SECT'!$G$6:$EV$253,63,FALSE) -> 147% | T11: =VLOOKUP($C11,'RECAP SECT'!$G$6:$EV$253,64,FALSE) -> 18 | U11: =VLOOKUP($C11,'RECAP SECT'!$G$6:$EV$253,65,FALSE) -> 82% | V11: =VLOOKUP($C11,'RECAP SECT'!$G$6:$EV$253,66,FALSE) -> 71% | W11: =VLOOKUP($C11,'RECAP SECT'!$G$6:$EV$253,67,FALSE) -> 17
A12: 262 | B12: BAS-RHIN | C12: 5060 | D12: HAGUENAU | E12: =VLOOKUP($C12,'RECAP SECT'!$G$6:$EV$253,3,FALSE) -> 88.7 | F12: =VLOOKUP($C12,'RECAP SECT'!$G$6:$EV$253,50,FALSE) -> 138.31 | G12: =VLOOKUP($C12,'RECAP SECT'!$G$6:$EV$253,51,FALSE) -> 49% | H12: =VLOOKUP($C12,'RECAP SECT'!$G$6:$EV$253,52,FALSE) -> 7 | I12: =VLOOKUP($C12,'RECAP SECT'!$G$6:$EV$253,53,FALSE) -> 306.32 | J12: =VLOOKUP($C12,'RECAP SECT'!$G$6:$EV$253,54,FALSE) -> 39% | K12: =VLOOKUP($C12,'RECAP SECT'!$G$6:$EV$253,55,FALSE) -> 17 | L12: =VLOOKUP($C12,'RECAP SECT'!$G$6:$EV$253,56,FALSE) -> 106 | M12: =VLOOKUP($C12,'RECAP SECT'!$G$6:$EV$253,57,FALSE) -> 36% | N12: =VLOOKUP($C12,'RECAP SECT'!$G$6:$EV$253,58,FALSE) -> 16 | O12: =VLOOKUP($C12,'RECAP SECT'!$G$6:$EV$253,59,FALSE) -> 61.29 | P12: =VLOOKUP($C12,'RECAP SECT'!$G$6:$EV$253,60,FALSE) -> 70% | Q12: =VLOOKUP($C12,'RECAP SECT'!$G$6:$EV$253,61,FALSE) -> 14 | R12: =VLOOKUP($C12,'RECAP SECT'!$G$6:$EV$253,62,FALSE) -> 78.70 | S12: =VLOOKUP($C12,'RECAP SECT'!$G$6:$EV$253,63,FALSE) -> 9% | T12: =VLOOKUP($C12,'RECAP SECT'!$G$6:$EV$253,64,FALSE) -> 2 | U12: =VLOOKUP($C12,'RECAP SECT'!$G$6:$EV$253,65,FALSE) -> 30% | V12: =VLOOKUP($C12,'RECAP SECT'!$G$6:$EV$253,66,FALSE) -> 18% | W12: =VLOOKUP($C12,'RECAP SECT'!$G$6:$EV$253,67,FALSE) -> 3
A13: 262 | B13: BAS-RHIN | C13: 5101 | D13: SELESTAT | E13: =VLOOKUP($C13,'RECAP SECT'!$G$6:$EV$253,3,FALSE) -> 75.1 | F13: =VLOOKUP($C13,'RECAP SECT'!$G$6:$EV$253,50,FALSE) -> 134.93 | G13: =VLOOKUP($C13,'RECAP SECT'!$G$6:$EV$253,51,FALSE) -> 50% | H13: =VLOOKUP($C13,'RECAP SECT'!$G$6:$EV$253,52,FALSE) -> 9 | I13: =VLOOKUP($C13,'RECAP SECT'!$G$6:$EV$253,53,FALSE) -> 322.31 | J13: =VLOOKUP($C13,'RECAP SECT'!$G$6:$EV$253,54,FALSE) -> 36% | K13: =VLOOKUP($C13,'RECAP SECT'!$G$6:$EV$253,55,FALSE) -> 15 | L13: =VLOOKUP($C13,'RECAP SECT'!$G$6:$EV$253,56,FALSE) -> 134 | M13: =VLOOKUP($C13,'RECAP SECT'!$G$6:$EV$253,57,FALSE) -> 19% | N13: =VLOOKUP($C13,'RECAP SECT'!$G$6:$EV$253,58,FALSE) -> 7 | O13: =VLOOKUP($C13,'RECAP SECT'!$G$6:$EV$253,59,FALSE) -> 48.97 | P13: =VLOOKUP($C13,'RECAP SECT'!$G$6:$EV$253,60,FALSE) -> 76% | Q13: =VLOOKUP($C13,'RECAP SECT'!$G$6:$EV$253,61,FALSE) -> 16 | R13: =VLOOKUP($C13,'RECAP SECT'!$G$6:$EV$253,62,FALSE) -> 53.16 | S13: =VLOOKUP($C13,'RECAP SECT'!$G$6:$EV$253,63,FALSE) -> 38% | T13: =VLOOKUP($C13,'RECAP SECT'!$G$6:$EV$253,64,FALSE) -> 6 | U13: =VLOOKUP($C13,'RECAP SECT'!$G$6:$EV$253,65,FALSE) -> 42% | V13: =VLOOKUP($C13,'RECAP SECT'!$G$6:$EV$253,66,FALSE) -> 31% | W13: =VLOOKUP($C13,'RECAP SECT'!$G$6:$EV$253,67,FALSE) -> 6
A14: 262 | B14: BAS-RHIN | C14: 5006 | D14: STRASBOURG | E14: =VLOOKUP($C14,'RECAP SECT'!$G$6:$EV$253,3,FALSE) -> 92.7 | F14: =VLOOKUP($C14,'RECAP SECT'!$G$6:$EV$253,50,FALSE) -> 69.35 | G14: =VLOOKUP($C14,'RECAP SECT'!$G$6:$EV$253,51,FALSE) -> 74% | H14: =VLOOKUP($C14,'RECAP SECT'!$G$6:$EV$253,52,FALSE) -> 16 | I14: =VLOOKUP($C14,'RECAP SECT'!$G$6:$EV$253,53,FALSE) -> 337.16 | J14: =VLOOKUP($C14,'RECAP SECT'!$G$6:$EV$253,54,FALSE) -> 33% | K14: =VLOOKUP($C14,'RECAP SECT'!$G$6:$EV$253,55,FALSE) -> 14 | L14: =VLOOKUP($C14,'RECAP SECT'!$G$6:$EV$253,56,FALSE) -> 141 | M14: =VLOOKUP($C14,'RECAP SECT'!$G$6:$EV$253,57,FALSE) -> 15% | N14: =VLOOKUP($C14,'RECAP SECT'!$G$6:$EV$253,58,FALSE) -> 5 | O14: =VLOOKUP($C14,'RECAP SECT'!$G$6:$EV$253,59,FALSE) -> 65.00 | P14: =VLOOKUP($C14,'RECAP SECT'!$G$6:$EV$253,60,FALSE) -> 68% | Q14: =VLOOKUP($C14,'RECAP SECT'!$G$6:$EV$253,61,FALSE) -> 13 | R14: =VLOOKUP($C14,'RECAP SECT'!$G$6:$EV$253,62,FALSE) -> 3.68 | S14: =VLOOKUP($C14,'RECAP SECT'!$G$6:$EV$253,63,FALSE) -> 96% | T14: =VLOOKUP($C14,'RECAP SECT'!$G$6:$EV$253,64,FALSE) -> 14 | U14: =VLOOKUP($C14,'RECAP SECT'!$G$6:$EV$253,65,FALSE) -> 70% | V14: =VLOOKUP($C14,'RECAP SECT'!$G$6:$EV$253,66,FALSE) -> 59% | W14: =VLOOKUP($C14,'RECAP SECT'!$G$6:$EV$253,67,FALSE) -> 15
A15: 264 | B15: HAUT-RHIN | C15: 5130 | D15: COLMAR | E15: =VLOOKUP($C15,'RECAP SECT'!$G$6:$EV$253,3,FALSE) -> 76.1 | F15: =VLOOKUP($C15,'RECAP SECT'!$G$6:$EV$253,50,FALSE) -> 116.25 | G15: =VLOOKUP($C15,'RECAP SECT'!$G$6:$EV$253,51,FALSE) -> 57% | H15: =VLOOKUP($C15,'RECAP SECT'!$G$6:$EV$253,52,FALSE) -> 10 | I15: =VLOOKUP($C15,'RECAP SECT'!$G$6:$EV$253,53,FALSE) -> 316.17 | J15: =VLOOKUP($C15,'RECAP SECT'!$G$6:$EV$253,54,FALSE) -> 37% | K15: =VLOOKUP($C15,'RECAP SECT'!$G$6:$EV$253,55,FALSE) -> 16 | L15: =VLOOKUP($C15,'RECAP SECT'!$G$6:$EV$253,56,FALSE) -> 119 | M15: =VLOOKUP($C15,'RECAP SECT'!$G$6:$EV$253,57,FALSE) -> 29% | N15: =VLOOKUP($C15,'RECAP SECT'!$G$6:$EV$253,58,FALSE) -> 13 | O15: =VLOOKUP($C15,'RECAP SECT'!$G$6:$EV$253,59,FALSE) -> 7.56 | P15: =VLOOKUP($C15,'RECAP SECT'!$G$6:$EV$253,60,FALSE) -> 96% | Q15: =VLOOKUP($C15,'RECAP SECT'!$G$6:$EV$253,61,FALSE) -> 18 | R15: =VLOOKUP($C15,'RECAP SECT'!$G$6:$EV$253,62,FALSE) -> 86.10 | S15: =VLOOKUP($C15,'RECAP SECT'!$G$6:$EV$253,63,FALSE) -> 0% | T15: =VLOOKUP($C15,'RECAP SECT'!$G$6:$EV$253,64,FALSE) -> 1 | U15: =VLOOKUP($C15,'RECAP SECT'!$G$6:$EV$253,65,FALSE) -> 29% | V15: =VLOOKUP($C15,'RECAP SECT'!$G$6:$EV$253,66,FALSE) -> 18% | W15: =VLOOKUP($C15,'RECAP SECT'!$G$6:$EV$253,67,FALSE) -> 2
A16: 264 | B16: HAUT-RHIN | C16: 5169 | D16: MULHOUSE | E16: =VLOOKUP($C16,'RECAP SECT'!$G$6:$EV$253,3,FALSE) -> 78.1 | F16: =VLOOKUP($C16,'RECAP SECT'!$G$6:$EV$253,50,FALSE) -> 138.32 | G16: =VLOOKUP($C16,'RECAP SECT'!$G$6:$EV$253,51,FALSE) -> 49% | H16: =VLOOKUP($C16,'RECAP SECT'!$G$6:$EV$253,52,FALSE) -> 6 | I16: =VLOOKUP($C16,'RECAP SECT'!$G$6:$EV$253,53,FALSE) -> 283.52 | J16: =VLOOKUP($C16,'RECAP SECT'!$G$6:$EV$253,54,FALSE) -> 43% | K16: =VLOOKUP($C16,'RECAP SECT'!$G$6:$EV$253,55,FALSE) -> 18 | L16: =VLOOKUP($C16,'RECAP SECT'!$G$6:$EV$253,56,FALSE) -> 93 | M16: =VLOOKUP($C16,'RECAP SECT'!$G$6:$EV$253,57,FALSE) -> 44% | N16: =VLOOKUP($C16,'RECAP SECT'!$G$6:$EV$253,58,FALSE) -> 18 | O16: =VLOOKUP($C16,'RECAP SECT'!$G$6:$EV$253,59,FALSE) -> 93.81 | P16: =VLOOKUP($C16,'RECAP SECT'!$G$6:$EV$253,60,FALSE) -> 54% | Q16: =VLOOKUP($C16,'RECAP SECT'!$G$6:$EV$253,61,FALSE) -> 12 | R16: =VLOOKUP($C16,'RECAP SECT'!$G$6:$EV$253,62,FALSE) -> 73.11 | S16: =VLOOKUP($C16,'RECAP SECT'!$G$6:$EV$253,63,FALSE) -> 15% | T16: =VLOOKUP($C16,'RECAP SECT'!$G$6:$EV$253,64,FALSE) -> 4 | U16: =VLOOKUP($C16,'RECAP SECT'!$G$6:$EV$253,65,FALSE) -> 32% | V16: =VLOOKUP($C16,'RECAP SECT'!$G$6:$EV$253,66,FALSE) -> 21% | W16: =VLOOKUP($C16,'RECAP SECT'!$G$6:$EV$253,67,FALSE) -> 4
A17: 30 | B17: MARNE-ARDENNES | C17: 6 | D17: CHALONS EN CHAMPAGNE | E17: =VLOOKUP($C17,'RECAP SECT'!$G$6:$EV$253,3,FALSE) -> 49.2 | F17: =VLOOKUP($C17,'RECAP SECT'!$G$6:$EV$253,50,FALSE) -> 4.39 | G17: =VLOOKUP($C17,'RECAP SECT'!$G$6:$EV$253,51,FALSE) -> 98% | H17: =VLOOKUP($C17,'RECAP SECT'!$G$6:$EV$253,52,FALSE) -> 17 | I17: =VLOOKUP($C17,'RECAP SECT'!$G$6:$EV$253,53,FALSE) -> 400.38 | J17: =VLOOKUP($C17,'RECAP SECT'!$G$6:$EV$253,54,FALSE) -> 20% | K17: =VLOOKUP($C17,'RECAP SECT'!$G$6:$EV$253,55,FALSE) -> 9 | L17: =VLOOKUP($C17,'RECAP SECT'!$G$6:$EV$253,56,FALSE) -> 144 | M17: =VLOOKUP($C17,'RECAP SECT'!$G$6:$EV$253,57,FALSE) -> 14% | N17: =VLOOKUP($C17,'RECAP SECT'!$G$6:$EV$253,58,FALSE) -> 4 | O17: =VLOOKUP($C17,'RECAP SECT'!$G$6:$EV$253,59,FALSE) -> 56.96 | P17: =VLOOKUP($C17,'RECAP SECT'!$G$6:$EV$253,60,FALSE) -> 72% | Q17: =VLOOKUP($C17,'RECAP SECT'!$G$6:$EV$253,61,FALSE) -> 15 | R17: =VLOOKUP($C17,'RECAP SECT'!$G$6:$EV$253,62,FALSE) -> 74.43 | S17: =VLOOKUP($C17,'RECAP SECT'!$G$6:$EV$253,63,FALSE) -> 14% | T17: =VLOOKUP($C17,'RECAP SECT'!$G$6:$EV$253,64,FALSE) -> 3 | U17: =VLOOKUP($C17,'RECAP SECT'!$G$6:$EV$253,65,FALSE) -> 34% | V17: =VLOOKUP($C17,'RECAP SECT'!$G$6:$EV$253,66,FALSE) -> 22% | W17: =VLOOKUP($C17,'RECAP SECT'!$G$6:$EV$253,67,FALSE) -> 5
A18: 30 | B18: MARNE-ARDENNES | C18: 2 | D18: CHARLEVILLE MEZIERES | E18: =VLOOKUP($C18,'RECAP SECT'!$G$6:$EV$253,3,FALSE) -> 62.6 | F18: =VLOOKUP($C18,'RECAP SECT'!$G$6:$EV$253,50,FALSE) -> -6.82 | G18: =VLOOKUP($C18,'RECAP SECT'!$G$6:$EV$253,51,FALSE) -> 103% | H18: =VLOOKUP($C18,'RECAP SECT'!$G$6:$EV$253,52,FALSE) -> 18 | I18: =VLOOKUP($C18,'RECAP SECT'!$G$6:$EV$253,53,FALSE) -> 342.88 | J18: =VLOOKUP($C18,'RECAP SECT'!$G$6:$EV$253,54,FALSE) -> 32% | K18: =VLOOKUP($C18,'RECAP SECT'!$G$6:$EV$253,55,FALSE) -> 13 | L18: =VLOOKUP($C18,'RECAP SECT'!$G$6:$EV$253,56,FALSE) -> 99 | M18: =VLOOKUP($C18,'RECAP SECT'!$G$6:$EV$253,57,FALSE) -> 40% | N18: =VLOOKUP($C18,'RECAP SECT'!$G$6:$EV$253,58,FALSE) -> 17 | O18: =VLOOKUP($C18,'RECAP SECT'!$G$6:$EV$253,59,FALSE) -> 15.89 | P18: =VLOOKUP($C18,'RECAP SECT'!$G$6:$EV$253,60,FALSE) -> 92% | Q18: =VLOOKUP($C18,'RECAP SECT'!$G$6:$EV$253,61,FALSE) -> 17 | R18: =VLOOKUP($C18,'RECAP SECT'!$G$6:$EV$253,62,FALSE) -> -40.23 | S18: =VLOOKUP($C18,'RECAP SECT'!$G$6:$EV$253,63,FALSE) -> 147% | T18: =VLOOKUP($C18,'RECAP SECT'!$G$6:$EV$253,64,FALSE) -> 17 | U18: =VLOOKUP($C18,'RECAP SECT'!$G$6:$EV$253,65,FALSE) -> 104% | V18: =VLOOKUP($C18,'RECAP SECT'!$G$6:$EV$253,66,FALSE) -> 93% | W18: =VLOOKUP($C18,'RECAP SECT'!$G$6:$EV$253,67,FALSE) -> 18
A19: 30 | B19: MARNE-ARDENNES | C19: 11 | D19: REIMS | E19: =VLOOKUP($C19,'RECAP SECT'!$G$6:$EV$253,3,FALSE) -> 91.1 | F19: =VLOOKUP($C19,'RECAP SECT'!$G$6:$EV$253,50,FALSE) -> 157.21 | G19: =VLOOKUP($C19,'RECAP SECT'!$G$6:$EV$253,51,FALSE) -> 42% | H19: =VLOOKUP($C19,'RECAP SECT'!$G$6:$EV$253,52,FALSE) -> 4 | I19: =VLOOKUP($C19,'RECAP SECT'!$G$6:$EV$253,53,FALSE) -> 500.91 | J19: =VLOOKUP($C19,'RECAP SECT'!$G$6:$EV$253,54,FALSE) -> 0% | K19: =VLOOKUP($C19,'RECAP SECT'!$G$6:$EV$253,55,FALSE) -> 1 | L19: =VLOOKUP($C19,'RECAP SECT'!$G$6:$EV$253,56,FALSE) -> 125 | M19: =VLOOKUP($C19,'RECAP SECT'!$G$6:$EV$253,57,FALSE) -> 25% | N19: =VLOOKUP($C19,'RECAP SECT'!$G$6:$EV$253,58,FALSE) -> 11 | O19: =VLOOKUP($C19,'RECAP SECT'!$G$6:$EV$253,59,FALSE) -> 203.36 | P19: =VLOOKUP($C19,'RECAP SECT'!$G$6:$EV$253,60,FALSE) -> 0% | Q19: =VLOOKUP($C19,'RECAP SECT'!$G$6:$EV$253,61,FALSE) -> 1 | R19: =VLOOKUP($C19,'RECAP SECT'!$G$6:$EV$253,62,FALSE) -> 8.52 | S19: =VLOOKUP($C19,'RECAP SECT'!$G$6:$EV$253,63,FALSE) -> 90% | T19: =VLOOKUP($C19,'RECAP SECT'!$G$6:$EV$253,64,FALSE) -> 11 | U19: =VLOOKUP($C19,'RECAP SECT'!$G$6:$EV$253,65,FALSE) -> 51% | V19: =VLOOKUP($C19,'RECAP SECT'!$G$6:$EV$253,66,FALSE) -> 40% | W19: =VLOOKUP($C19,'RECAP SECT'!$G$6:$EV$253,67,FALSE) -> 8
A20: 110 | B20: MEURTHE ET MOSELLE MEUSE | C20: 26 | D20: NANCY | E20: =VLOOKUP($C20,'RECAP SECT'!$G$6:$EV$253,3,FALSE) -> 79.3 | F20: =VLOOKUP($C20,'RECAP SECT'!$G$6:$EV$253,50,FALSE) -> 103.44 | G20: =VLOOKUP($C20,'RECAP SECT'!$G$6:$EV$253,51,FALSE) -> 62% | H20: =VLOOKUP($C20,'RECAP SECT'!$G$6:$EV$253,52,FALSE) -> 14 | I20: =VLOOKUP($C20,'RECAP SECT'!$G$6:$EV$253,53,FALSE) -> 458.68 | J20: =VLOOKUP($C20,'RECAP SECT'!$G$6:$EV$253,54,FALSE) -> 8% | K20: =VLOOKUP($C20,'RECAP SECT'!$G$6:$EV$253,55,FALSE) -> 5 | L20: =VLOOKUP($C20,'RECAP SECT'!$G$6:$EV$253,56,FALSE) -> 130 | M20: =VLOOKUP($C20,'RECAP SECT'!$G$6:$EV$253,57,FALSE) -> 22% | N20: =VLOOKUP($C20,'RECAP SECT'!$G$6:$EV$253,58,FALSE) -> 8 | O20: =VLOOKUP($C20,'RECAP SECT'!$G$6:$EV$253,59,FALSE) -> 157.38 | P20: =VLOOKUP($C20,'RECAP SECT'!$G$6:$EV$253,60,FALSE) -> 23% | Q20: =VLOOKUP($C20,'RECAP SECT'!$G$6:$EV$253,61,FALSE) -> 5 | R20: =VLOOKUP($C20,'RECAP SECT'!$G$6:$EV$253,62,FALSE) -> 6.29 | S20: =VLOOKUP($C20,'RECAP SECT'!$G$6:$EV$253,63,FALSE) -> 93% | T20: =VLOOKUP($C20,'RECAP SECT'!$G$6:$EV$253,64,FALSE) -> 12 | U20: =VLOOKUP($C20,'RECAP SECT'!$G$6:$EV$253,65,FALSE) -> 59% | V20: =VLOOKUP($C20,'RECAP SECT'!$G$6:$EV$253,66,FALSE) -> 47% | W20: =VLOOKUP($C20,'RECAP SECT'!$G$6:$EV$253,67,FALSE) -> 11
A21: 110 | B21: MEURTHE ET MOSELLE MEUSE | C21: 27 | D21: PONT A MOUSSON | E21: =VLOOKUP($C21,'RECAP SECT'!$G$6:$EV$253,3,FALSE) -> 87.7 | F21: =VLOOKUP($C21,'RECAP SECT'!$G$6:$EV$253,50,FALSE) -> 137.50 | G21: =VLOOKUP($C21,'RECAP SECT'!$G$6:$EV$253,51,FALSE) -> 49% | H21: =VLOOKUP($C21,'RECAP SECT'!$G$6:$EV$253,52,FALSE) -> 8 | I21: =VLOOKUP($C21,'RECAP SECT'!$G$6:$EV$253,53,FALSE) -> 394.73 | J21: =VLOOKUP($C21,'RECAP SECT'!$G$6:$EV$253,54,FALSE) -> 21% | K21: =VLOOKUP($C21,'RECAP SECT'!$G$6:$EV$253,55,FALSE) -> 10 | L21: =VLOOKUP($C21,'RECAP SECT'!$G$6:$EV$253,56,FALSE) -> 112 | M21: =VLOOKUP($C21,'RECAP SECT'!$G$6:$EV$253,57,FALSE) -> 32% | N21: =VLOOKUP($C21,'RECAP SECT'!$G$6:$EV$253,58,FALSE) -> 15 | O21: =VLOOKUP($C21,'RECAP SECT'!$G$6:$EV$253,59,FALSE) -> 148.26 | P21: =VLOOKUP($C21,'RECAP SECT'!$G$6:$EV$253,60,FALSE) -> 27% | Q21: =VLOOKUP($C21,'RECAP SECT'!$G$6:$EV$253,61,FALSE) -> 6 | R21: =VLOOKUP($C21,'RECAP SECT'!$G$6:$EV$253,62,FALSE) -> 12.83 | S21: =VLOOKUP($C21,'RECAP SECT'!$G$6:$EV$253,63,FALSE) -> 85% | T21: =VLOOKUP($C21,'RECAP SECT'!$G$6:$EV$253,64,FALSE) -> 10 | U21: =VLOOKUP($C21,'RECAP SECT'!$G$6:$EV$253,65,FALSE) -> 57% | V21: =VLOOKUP($C21,'RECAP SECT'!$G$6:$EV$253,66,FALSE) -> 46% | W21: =VLOOKUP($C21,'RECAP SECT'!$G$6:$EV$253,67,FALSE) -> 10
A22: 110 | B22: MEURTHE ET MOSELLE MEUSE | C22: 31 | D22: VERDUN | E22: =VLOOKUP($C22,'RECAP SECT'!$G$6:$EV$253,3,FALSE) -> 64.7 | F22: =VLOOKUP($C22,'RECAP SECT'!$G$6:$EV$253,50,FALSE) -> 109.39 | G22: =VLOOKUP($C22,'RECAP SECT'!$G$6:$EV$253,51,FALSE) -> 60% | H22: =VLOOKUP($C22,'RECAP SECT'!$G$6:$EV$253,52,FALSE) -> 13 | I22: =VLOOKUP($C22,'RECAP SECT'!$G$6:$EV$253,53,FALSE) -> 437.55 | J22: =VLOOKUP($C22,'RECAP SECT'!$G$6:$EV$253,54,FALSE) -> 13% | K22: =VLOOKUP($C22,'RECAP SECT'!$G$6:$EV$253,55,FALSE) -> 7 | L22: =VLOOKUP($C22,'RECAP SECT'!$G$6:$EV$253,56,FALSE) -> 128 | M22: =VLOOKUP($C22,'RECAP SECT'!$G$6:$EV$253,57,FALSE) -> 23% | N22: =VLOOKUP($C22,'RECAP SECT'!$G$6:$EV$253,58,FALSE) -> 9 | O22: =VLOOKUP($C22,'RECAP SECT'!$G$6:$EV$253,59,FALSE) -> 123.41 | P22: =VLOOKUP($C22,'RECAP SECT'!$G$6:$EV$253,60,FALSE) -> 39% | Q22: =VLOOKUP($C22,'RECAP SECT'!$G$6:$EV$253,61,FALSE) -> 7 | R22: =VLOOKUP($C22,'RECAP SECT'!$G$6:$EV$253,62,FALSE) -> 41.25 | S22: =VLOOKUP($C22,'RECAP SECT'!$G$6:$EV$253,63,FALSE) -> 52% | T22: =VLOOKUP($C22,'RECAP SECT'!$G$6:$EV$253,64,FALSE) -> 7 | U22: =VLOOKUP($C22,'RECAP SECT'!$G$6:$EV$253,65,FALSE) -> 42% | V22: =VLOOKUP($C22,'RECAP SECT'!$G$6:$EV$253,66,FALSE) -> 31% | W22: =VLOOKUP($C22,'RECAP SECT'!$G$6:$EV$253,67,FALSE) -> 7
A23: 160 | B23: MOSELLE | C23: 45 | D23: METZ | E23: =VLOOKUP($C23,'RECAP SECT'!$G$6:$EV$253,3,FALSE) -> 103.2 | F23: =VLOOKUP($C23,'RECAP SECT'!$G$6:$EV$253,50,FALSE) -> 270.32 | G23: =VLOOKUP($C23,'RECAP SECT'!$G$6:$EV$253,51,FALSE) -> 0% | H23: =VLOOKUP($C23,'RECAP SECT'!$G$6:$EV$253,52,FALSE) -> 1 | I23: =VLOOKUP($C23,'RECAP SECT'!$G$6:$EV$253,53,FALSE) -> 476.99 | J23: =VLOOKUP($C23,'RECAP SECT'!$G$6:$EV$253,54,FALSE) -> 5% | K23: =VLOOKUP($C23,'RECAP SECT'!$G$6:$EV$253,55,FALSE) -> 3 | L23: =VLOOKUP($C23,'RECAP SECT'!$G$6:$EV$253,56,FALSE) -> 152 | M23: =VLOOKUP($C23,'RECAP SECT'!$G$6:$EV$253,57,FALSE) -> 9% | N23: =VLOOKUP($C23,'RECAP SECT'!$G$6:$EV$253,58,FALSE) -> 2 | O23: =VLOOKUP($C23,'RECAP SECT'!$G$6:$EV$253,59,FALSE) -> 195.16 | P23: =VLOOKUP($C23,'RECAP SECT'!$G$6:$EV$253,60,FALSE) -> 4% | Q23: =VLOOKUP($C23,'RECAP SECT'!$G$6:$EV$253,61,FALSE) -> 2 | R23: =VLOOKUP($C23,'RECAP SECT'!$G$6:$EV$253,62,FALSE) -> 69.48 | S23: =VLOOKUP($C23,'RECAP SECT'!$G$6:$EV$253,63,FALSE) -> 19% | T23: =VLOOKUP($C23,'RECAP SECT'!$G$6:$EV$253,64,FALSE) -> 5 | U23: =VLOOKUP($C23,'RECAP SECT'!$G$6:$EV$253,65,FALSE) -> 11% | V23: =VLOOKUP($C23,'RECAP SECT'!$G$6:$EV$253,66,FALSE) -> 0% | W23: =VLOOKUP($C23,'RECAP SECT'!$G$6:$EV$253,67,FALSE) -> 1
A24: 160 | B24: MOSELLE | C24: 42 | D24: MOSELLE EST | E24: =VLOOKUP($C24,'RECAP SECT'!$G$6:$EV$253,3,FALSE) -> 86.1 | F24: =VLOOKUP($C24,'RECAP SECT'!$G$6:$EV$253,50,FALSE) -> 90.75 | G24: =VLOOKUP($C24,'RECAP SECT'!$G$6:$EV$253,51,FALSE) -> 66% | H24: =VLOOKUP($C24,'RECAP SECT'!$G$6:$EV$253,52,FALSE) -> 15 | I24: =VLOOKUP($C24,'RECAP SECT'!$G$6:$EV$253,53,FALSE) -> 392.41 | J24: =VLOOKUP($C24,'RECAP SECT'!$G$6:$EV$253,54,FALSE) -> 22% | K24: =VLOOKUP($C24,'RECAP SECT'!$G$6:$EV$253,55,FALSE) -> 11 | L24: =VLOOKUP($C24,'RECAP SECT'!$G$6:$EV$253,56,FALSE) -> 123 | M24: =VLOOKUP($C24,'RECAP SECT'!$G$6:$EV$253,57,FALSE) -> 26% | N24: =VLOOKUP($C24,'RECAP SECT'!$G$6:$EV$253,58,FALSE) -> 12 | O24: =VLOOKUP($C24,'RECAP SECT'!$G$6:$EV$253,59,FALSE) -> 117.26 | P24: =VLOOKUP($C24,'RECAP SECT'!$G$6:$EV$253,60,FALSE) -> 42% | Q24: =VLOOKUP($C24,'RECAP SECT'!$G$6:$EV$253,61,FALSE) -> 9 | R24: =VLOOKUP($C24,'RECAP SECT'!$G$6:$EV$253,62,FALSE) -> 14.93 | S24: =VLOOKUP($C24,'RECAP SECT'!$G$6:$EV$253,63,FALSE) -> 83% | T24: =VLOOKUP($C24,'RECAP SECT'!$G$6:$EV$253,64,FALSE) -> 9 | U24: =VLOOKUP($C24,'RECAP SECT'!$G$6:$EV$253,65,FALSE) -> 59% | V24: =VLOOKUP($C24,'RECAP SECT'!$G$6:$EV$253,66,FALSE) -> 48% | W24: =VLOOKUP($C24,'RECAP SECT'!$G$6:$EV$253,67,FALSE) -> 12
A25: 160 | B25: MOSELLE | C25: 44 | D25: MOSELLE NORD | E25: =VLOOKUP($C25,'RECAP SECT'!$G$6:$EV$253,3,FALSE) -> 80.5 | F25: =VLOOKUP($C25,'RECAP SECT'!$G$6:$EV$253,50,FALSE) -> 112.60 | G25: =VLOOKUP($C25,'RECAP SECT'!$G$6:$EV$253,51,FALSE) -> 58% | H25: =VLOOKUP($C25,'RECAP SECT'!$G$6:$EV$253,52,FALSE) -> 11 | I25: =VLOOKUP($C25,'RECAP SECT'!$G$6:$EV$253,53,FALSE) -> 469.69 | J25: =VLOOKUP($C25,'RECAP SECT'!$G$6:$EV$253,54,FALSE) -> 6% | K25: =VLOOKUP($C25,'RECAP SECT'!$G$6:$EV$253,55,FALSE) -> 4 | L25: =VLOOKUP($C25,'RECAP SECT'!$G$6:$EV$253,56,FALSE) -> 146 | M25: =VLOOKUP($C25,'RECAP SECT'!$G$6:$EV$253,57,FALSE) -> 12% | N25: =VLOOKUP($C25,'RECAP SECT'!$G$6:$EV$253,58,FALSE) -> 3 | O25: =VLOOKUP($C25,'RECAP SECT'!$G$6:$EV$253,59,FALSE) -> 167.01 | P25: =VLOOKUP($C25,'RECAP SECT'!$G$6:$EV$253,60,FALSE) -> 18% | Q25: =VLOOKUP($C25,'RECAP SECT'!$G$6:$EV$253,61,FALSE) -> 4 | R25: =VLOOKUP($C25,'RECAP SECT'!$G$6:$EV$253,62,FALSE) -> -29.63 | S25: =VLOOKUP($C25,'RECAP SECT'!$G$6:$EV$253,63,FALSE) -> 134% | T25: =VLOOKUP($C25,'RECAP SECT'!$G$6:$EV$253,64,FALSE) -> 16 | U25: =VLOOKUP($C25,'RECAP SECT'!$G$6:$EV$253,65,FALSE) -> 75% | V25: =VLOOKUP($C25,'RECAP SECT'!$G$6:$EV$253,66,FALSE) -> 64% | W25: =VLOOKUP($C25,'RECAP SECT'!$G$6:$EV$253,67,FALSE) -> 16
A26: 80 | B26: VOSGES | C26: 57 | D26: EPINAL | E26: =VLOOKUP($C26,'RECAP SECT'!$G$6:$EV$253,3,FALSE) -> 68.7 | F26: =VLOOKUP($C26,'RECAP SECT'!$G$6:$EV$253,50,FALSE) -> 111.08 | G26: =VLOOKUP($C26,'RECAP SECT'!$G$6:$EV$253,51,FALSE) -> 59% | H26: =VLOOKUP($C26,'RECAP SECT'!$G$6:$EV$253,52,FALSE) -> 12 | I26: =VLOOKUP($C26,'RECAP SECT'!$G$6:$EV$253,53,FALSE) -> 381.68 | J26: =VLOOKUP($C26,'RECAP SECT'!$G$6:$EV$253,54,FALSE) -> 24% | K26: =VLOOKUP($C26,'RECAP SECT'!$G$6:$EV$253,55,FALSE) -> 12 | L26: =VLOOKUP($C26,'RECAP SECT'!$G$6:$EV$253,56,FALSE) -> 118 | M26: =VLOOKUP($C26,'RECAP SECT'!$G$6:$EV$253,57,FALSE) -> 29% | N26: =VLOOKUP($C26,'RECAP SECT'!$G$6:$EV$253,58,FALSE) -> 14 | O26: =VLOOKUP($C26,'RECAP SECT'!$G$6:$EV$253,59,FALSE) -> 94.91 | P26: =VLOOKUP($C26,'RECAP SECT'!$G$6:$EV$253,60,FALSE) -> 53% | Q26: =VLOOKUP($C26,'RECAP SECT'!$G$6:$EV$253,61,FALSE) -> 11 | R26: =VLOOKUP($C26,'RECAP SECT'!$G$6:$EV$253,62,FALSE) -> 27.38 | S26: =VLOOKUP($C26,'RECAP SECT'!$G$6:$EV$253,63,FALSE) -> 68% | T26: =VLOOKUP($C26,'RECAP SECT'!$G$6:$EV$253,64,FALSE) -> 8 | U26: =VLOOKUP($C26,'RECAP SECT'!$G$6:$EV$253,65,FALSE) -> 54% | V26: =VLOOKUP($C26,'RECAP SECT'!$G$6:$EV$253,66,FALSE) -> 42% | W26: =VLOOKUP($C26,'RECAP SECT'!$G$6:$EV$253,67,FALSE) -> 9
A27: 80 | B27: VOSGES | C27: 55 | D27: SAINT DIE | E27: =VLOOKUP($C27,'RECAP SECT'!$G$6:$EV$253,3,FALSE) -> 58.0 | F27: =VLOOKUP($C27,'RECAP SECT'!$G$6:$EV$253,50,FALSE) -> 171.89 | G27: =VLOOKUP($C27,'RECAP SECT'!$G$6:$EV$253,51,FALSE) -> 36% | H27: =VLOOKUP($C27,'RECAP SECT'!$G$6:$EV$253,52,FALSE) -> 3 | I27: =VLOOKUP($C27,'RECAP SECT'!$G$6:$EV$253,53,FALSE) -> 479.22 | J27: =VLOOKUP($C27,'RECAP SECT'!$G$6:$EV$253,54,FALSE) -> 4% | K27: =VLOOKUP($C27,'RECAP SECT'!$G$6:$EV$253,55,FALSE) -> 2 | L27: =VLOOKUP($C27,'RECAP SECT'!$G$6:$EV$253,56,FALSE) -> 139 | M27: =VLOOKUP($C27,'RECAP SECT'!$G$6:$EV$253,57,FALSE) -> 17% | N27: =VLOOKUP($C27,'RECAP SECT'!$G$6:$EV$253,58,FALSE) -> 6 | O27: =VLOOKUP($C27,'RECAP SECT'!$G$6:$EV$253,59,FALSE) -> 171.81 | P27: =VLOOKUP($C27,'RECAP SECT'!$G$6:$EV$253,60,FALSE) -> 16% | Q27: =VLOOKUP($C27,'RECAP SECT'!$G$6:$EV$253,61,FALSE) -> 3 | R27: =VLOOKUP($C27,'RECAP SECT'!$G$6:$EV$253,62,FALSE) -> -9.06 | S27: =VLOOKUP($C27,'RECAP SECT'!$G$6:$EV$253,63,FALSE) -> 111% | T27: =VLOOKUP($C27,'RECAP SECT'!$G$6:$EV$253,64,FALSE) -> 15 | U27: =VLOOKUP($C27,'RECAP SECT'!$G$6:$EV$253,65,FALSE) -> 61% | V27: =VLOOKUP($C27,'RECAP SECT'!$G$6:$EV$253,66,FALSE) -> 50% | W27: =VLOOKUP($C27,'RECAP SECT'!$G$6:$EV$253,67,FALSE) -> 14
A28: Total CEGEE Directions Régionales | E28: =SUM(E10:E27) -> 1367

Sheet SE_CREDIT
A1: Accueil | F1: BAROMETRE BDD - TERRITOIRES
F2: CREDITS
F3: =ACCUEIL!H7 -> 2019-07-31
F7: Engagements crédit conso (hors clients note octroi à 9) | I7: % CNP crédit conso | L7: Engagements crédi immo | O7: % CNP crédit immo | R7: Taux couverture SACCEF | U7: Engagement Crédit MLT + Crédit Bail | X7: Total Crédits
G8: coef | H8: ='RECAP DIRCOM'!CD4 -> 3% | J8: coef | K8: ='RECAP DIRCOM'!CG4 -> 2% | M8: coef | N8: ='RECAP DIRCOM'!CJ4 -> 3% | P8: coef | Q8: ='RECAP DIRCOM'!CM4 -> 2% | S8: coef | T8: ='RECAP DIRCOM'!CP4 -> 2% | V8: coef | W8: ='RECAP DIRCOM'!CS4 -> 3% | Y8: coef | Z8: ='RECAP DIRCOM'!CV4 -> 15%
A9: eds | B9: Direction | C9: eds | D9: Territoire | E9: ETP perf | F9: Réal / ETP | G9: % Ecart au 1er | H9: Rang | J9: % Ecart au 1er | K9: Rang | L9: Taux réal objectif | M9: % Ecart au 1er | N9: Rang | P9: % Ecart au 1er | Q9: Rang | S9: % Ecart au 1er | T9: Rang | U9: Taux réal objectif | V9: % Ecart au 1er | W9: Rang | X9: Moyenne ecart au 1er | Y9: % Ecart au 1er | Z9: Rang CEGEE
A10: 50 | B10: AUBE HAUTE MARNE | C10: 21 | D10: CHAUMONT | E10: =VLOOKUP($C10,'RECAP SECT'!$G$6:$EV$253,3,FALSE) -> 46.6 | F10: =VLOOKUP($C10,'RECAP SECT'!$G$6:$EV$253,74,FALSE) -> 354.88 | G10: =VLOOKUP($C10,'RECAP SECT'!$G$6:$EV$253,75,FALSE) -> 0% | H10: =VLOOKUP($C10,'RECAP SECT'!$G$6:$EV$253,76,FALSE) -> 2 | I10: =VLOOKUP($C10,'RECAP SECT'!$G$6:$EV$253,77,FALSE) -> 93% | J10: =VLOOKUP($C10,'RECAP SECT'!$G$6:$EV$253,78,FALSE) -> 5% | K10: =VLOOKUP($C10,'RECAP SECT'!$G$6:$EV$253,79,FALSE) -> 11 | L10: =VLOOKUP($C10,'RECAP SECT'!$G$6:$EV$253,80,FALSE) -> 44% | M10: =VLOOKUP($C10,'RECAP SECT'!$G$6:$EV$253,81,FALSE) -> 42% | N10: =VLOOKUP($C10,'RECAP SECT'!$G$6:$EV$253,82,FALSE) -> 18 | O10: =VLOOKUP($C10,'RECAP SECT'!$G$6:$EV$253,83,FALSE) -> 61% | P10: =VLOOKUP($C10,'RECAP SECT'!$G$6:$EV$253,84,FALSE) -> 28% | Q10: =VLOOKUP($C10,'RECAP SECT'!$G$6:$EV$253,85,FALSE) -> 16 | R10: =VLOOKUP($C10,'RECAP SECT'!$G$6:$EV$253,86,FALSE) -> 88% | S10: =VLOOKUP($C10,'RECAP SECT'!$G$6:$EV$253,87,FALSE) -> 7% | T10: =VLOOKUP($C10,'RECAP SECT'!$G$6:$EV$253,88,FALSE) -> 6 | U10: =VLOOKUP($C10,'RECAP SECT'!$G$6:$EV$253,89,FALSE) -> 83% | V10: =VLOOKUP($C10,'RECAP SECT'!$G$6:$EV$253,90,FALSE) -> 21% | W10: =VLOOKUP($C10,'RECAP SECT'!$G$6:$EV$253,91,FALSE) -> 4 | X10: =VLOOKUP($C10,'RECAP SECT'!$G$6:$EV$253,92,FALSE) -> 18% | Y10: =VLOOKUP($C10,'RECAP SECT'!$G$6:$EV$253,93,FALSE) -> 10% | Z10: =VLOOKUP($C10,'RECAP SECT'!$G$6:$EV$253,94,FALSE) -> 6
A11: 50 | B11: AUBE HAUTE MARNE | C11: 14 | D11: TROYES | E11: =VLOOKUP($C11,'RECAP SECT'!$G$6:$EV$253,3,FALSE) -> 78.5 | F11: =VLOOKUP($C11,'RECAP SECT'!$G$6:$EV$253,74,FALSE) -> 301.47 | G11: =VLOOKUP($C11,'RECAP SECT'!$G$6:$EV$253,75,FALSE) -> 15% | H11: =VLOOKUP($C11,'RECAP SECT'!$G$6:$EV$253,76,FALSE) -> 5 | I11: =VLOOKUP($C11,'RECAP SECT'!$G$6:$EV$253,77,FALSE) -> 93% | J11: =VLOOKUP($C11,'RECAP SECT'!$G$6:$EV$253,78,FALSE) -> 5% | K11: =VLOOKUP($C11,'RECAP SECT'!$G$6:$EV$253,79,FALSE) -> 12 | L11: =VLOOKUP($C11,'RECAP SECT'!$G$6:$EV$253,80,FALSE) -> 59% | M11: =VLOOKUP($C11,'RECAP SECT'!$G$6:$EV$253,81,FALSE) -> 22% | N11: =VLOOKUP($C11,'RECAP SECT'!$G$6:$EV$253,82,FALSE) -> 13 | O11: =VLOOKUP($C11,'RECAP SECT'!$G$6:$EV$253,83,FALSE) -> 67% | P11: =VLOOKUP($C11,'RECAP SECT'!$G$6:$EV$253,84,FALSE) -> 21% | Q11: =VLOOKUP($C11,'RECAP SECT'!$G$6:$EV$253,85,FALSE) -> 11 | R11: =VLOOKUP($C11,'RECAP SECT'!$G$6:$EV$253,86,FALSE) -> 83% | S11: =VLOOKUP($C11,'RECAP SECT'!$G$6:$EV$253,87,FALSE) -> 13% | T11: =VLOOKUP($C11,'RECAP SECT'!$G$6:$EV$253,88,FALSE) -> 14 | U11: =VLOOKUP($C11,'RECAP SECT'!$G$6:$EV$253,89,FALSE) -> 67% | V11: =VLOOKUP($C11,'RECAP SECT'!$G$6:$EV$253,90,FALSE) -> 36% | W11: =VLOOKUP($C11,'RECAP SECT'!$G$6:$EV$253,91,FALSE) -> 6 | X11: =VLOOKUP($C11,'RECAP SECT'!$G$6:$EV$253,92,FALSE) -> 20% | Y11: =VLOOKUP($C11,'RECAP SECT'!$G$6:$EV$253,93,FALSE) -> 12% | Z11: =VLOOKUP($C11,'RECAP SECT'!$G$6:$EV$253,94,FALSE) -> 8
A12: 262 | B12: BAS-RHIN | C12: 5060 | D12: HAGUENAU | E12: =VLOOKUP($C12,'RECAP SECT'!$G$6:$EV$253,3,FALSE) -> 88.7 | F12: =VLOOKUP($C12,'RECAP SECT'!$G$6:$EV$253,74,FALSE) -> 244.75 | G12: =VLOOKUP($C12,'RECAP SECT'!$G$6:$EV$253,75,FALSE) -> 31% | H12: =VLOOKUP($C12,'RECAP SECT'!$G$6:$EV$253,76,FALSE) -> 16 | I12: =VLOOKUP($C12,'RECAP SECT'!$G$6:$EV$253,77,FALSE) -> 97% | J12: =VLOOKUP($C12,'RECAP SECT'!$G$6:$EV$253,78,FALSE) -> 1% | K12: =VLOOKUP($C12,'RECAP SECT'!$G$6:$EV$253,79,FALSE) -> 2 | L12: =VLOOKUP($C12,'RECAP SECT'!$G$6:$EV$253,80,FALSE) -> 51% | M12: =VLOOKUP($C12,'RECAP SECT'!$G$6:$EV$253,81,FALSE) -> 33% | N12: =VLOOKUP($C12,'RECAP SECT'!$G$6:$EV$253,82,FALSE) -> 17 | O12: =VLOOKUP($C12,'RECAP SECT'!$G$6:$EV$253,83,FALSE) -> 62% | P12: =VLOOKUP($C12,'RECAP SECT'!$G$6:$EV$253,84,FALSE) -> 27% | Q12: =VLOOKUP($C12,'RECAP SECT'!$G$6:$EV$253,85,FALSE) -> 14 | R12: =VLOOKUP($C12,'RECAP SECT'!$G$6:$EV$253,86,FALSE) -> 85% | S12: =VLOOKUP($C12,'RECAP SECT'!$G$6:$EV$253,87,FALSE) -> 10% | T12: =VLOOKUP($C12,'RECAP SECT'!$G$6:$EV$253,88,FALSE) -> 12 | U12: =VLOOKUP($C12,'RECAP SECT'!$G$6:$EV$253,89,FALSE) -> 53% | V12: =VLOOKUP($C12,'RECAP SECT'!$G$6:$EV$253,90,FALSE) -> 50% | W12: =VLOOKUP($C12,'RECAP SECT'!$G$6:$EV$253,91,FALSE) -> 13 | X12: =VLOOKUP($C12,'RECAP SECT'!$G$6:$EV$253,92,FALSE) -> 28% | Y12: =VLOOKUP($C12,'RECAP SECT'!$G$6:$EV$253,93,FALSE) -> 20% | Z12: =VLOOKUP($C12,'RECAP SECT'!$G$6:$EV$253,94,FALSE) -> 17
A13: 262 | B13: BAS-RHIN | C13: 5101 | D13: SELESTAT | E13: =VLOOKUP($C13,'RECAP SECT'!$G$6:$EV$253,3,FALSE) -> 75.1 | F13: =VLOOKUP($C13,'RECAP SECT'!$G$6:$EV$253,74,FALSE) -> 266.97 | G13: =VLOOKUP($C13,'RECAP SECT'!$G$6:$EV$253,75,FALSE) -> 25% | H13: =VLOOKUP($C13,'RECAP SECT'!$G$6:$EV$253,76,FALSE) -> 12 | I13: =VLOOKUP($C13,'RECAP SECT'!$G$6:$EV$253,77,FALSE) -> 95% | J13: =VLOOKUP($C13,'RECAP SECT'!$G$6:$EV$253,78,FALSE) -> 3% | K13: =VLOOKUP($C13,'RECAP SECT'!$G$6:$EV$253,79,FALSE) -> 9 | L13: =VLOOKUP($C13,'RECAP SECT'!$G$6:$EV$253,80,FALSE) -> 51% | M13: =VLOOKUP($C13,'RECAP SECT'!$G$6:$EV$253,81,FALSE) -> 33% | N13: =VLOOKUP($C13,'RECAP SECT'!$G$6:$EV$253,82,FALSE) -> 16 | O13: =VLOOKUP($C13,'RECAP SECT'!$G$6:$EV$253,83,FALSE) -> 63% | P13: =VLOOKUP($C13,'RECAP SECT'!$G$6:$EV$253,84,FALSE) -> 25% | Q13: =VLOOKUP($C13,'RECAP SECT'!$G$6:$EV$253,85,FALSE) -> 13 | R13: =VLOOKUP($C13,'RECAP SECT'!$G$6:$EV$253,86,FALSE) -> 83% | S13: =VLOOKUP($C13,'RECAP SECT'!$G$6:$EV$253,87,FALSE) -> 12% | T13: =VLOOKUP($C13,'RECAP SECT'!$G$6:$EV$253,88,FALSE) -> 13 | U13: =VLOOKUP($C13,'RECAP SECT'!$G$6:$EV$253,89,FALSE) -> 66% | V13: =VLOOKUP($C13,'RECAP SECT'!$G$6:$EV$253,90,FALSE) -> 37% | W13: =VLOOKUP($C13,'RECAP SECT'!$G$6:$EV$253,91,FALSE) -> 9 | X13: =VLOOKUP($C13,'RECAP SECT'!$G$6:$EV$253,92,FALSE) -> 24% | Y13: =VLOOKUP($C13,'RECAP SECT'!$G$6:$EV$253,93,FALSE) -> 17% | Z13: =VLOOKUP($C13,'RECAP SECT'!$G$6:$EV$253,94,FALSE) -> 14
A14: 262 | B14: BAS-RHIN | C14: 5006 | D14: STRASBOURG | E14: =VLOOKUP($C14,'RECAP SECT'!$G$6:$EV$253,3,FALSE) -> 92.7 | F14: =VLOOKUP($C14,'RECAP SECT'!$G$6:$EV$253,74,FALSE) -> 217.81 | G14: =VLOOKUP($C14,'RECAP SECT'!$G$6:$EV$253,75,FALSE) -> 39% | H14: =VLOOKUP($C14,'RECAP SECT'!$G$6:$EV$253,76,FALSE) -> 17 | I14: =VLOOKUP($C14,'RECAP SECT'!$G$6:$EV$253,77,FALSE) -> 88% | J14: =VLOOKUP($C14,'RECAP SECT'!$G$6:$EV$253,78,FALSE) -> 10% | K14: =VLOOKUP($C14,'RECAP SECT'!$G$6:$EV$253,79,FALSE) -> 16 | L14: =VLOOKUP($C14,'RECAP SECT'!$G$6:$EV$253,80,FALSE) -> 65% | M14: =VLOOKUP($C14,'RECAP SECT'!$G$6:$EV$253,81,FALSE) -> 15% | N14: =VLOOKUP($C14,'RECAP SECT'!$G$6:$EV$253,82,FALSE) -> 7 | O14: =VLOOKUP($C14,'RECAP SECT'!$G$6:$EV$253,83,FALSE) -> 51% | P14: =VLOOKUP($C14,'RECAP SECT'!$G$6:$EV$253,84,FALSE) -> 39% | Q14: =VLOOKUP($C14,'RECAP SECT'!$G$6:$EV$253,85,FALSE) -> 18 | R14: =VLOOKUP($C14,'RECAP SECT'!$G$6:$EV$253,86,FALSE) -> 82% | S14: =VLOOKUP($C14,'RECAP SECT'!$G$6:$EV$253,87,FALSE) -> 14% | T14: =VLOOKUP($C14,'RECAP SECT'!$G$6:$EV$253,88,FALSE) -> 15 | U14: =VLOOKUP($C14,'RECAP SECT'!$G$6:$EV$253,89,FALSE) -> 61% | V14: =VLOOKUP($C14,'RECAP SECT'!$G$6:$EV$253,90,FALSE) -> 42% | W14: =VLOOKUP($C14,'RECAP SECT'!$G$6:$EV$253,91,FALSE) -> 10 | X14: =VLOOKUP($C14,'RECAP SECT'!$G$6:$EV$253,92,FALSE) -> 27% | Y14: =VLOOKUP($C14,'RECAP SECT'!$G$6:$EV$253,93,FALSE) -> 20% | Z14: =VLOOKUP($C14,'RECAP SECT'!$G$6:$EV$253,94,FALSE) -> 16
A15: 264 | B15: HAUT-RHIN | C15: 5130 | D15: COLMAR | E15: =VLOOKUP($C15,'RECAP SECT'!$G$6:$EV$253,3,FALSE) -> 76.1 | F15: =VLOOKUP($C15,'RECAP SECT'!$G$6:$EV$253,74,FALSE) -> 213.12 | G15: =VLOOKUP($C15,'RECAP SECT'!$G$6:$EV$253,75,FALSE) -> 40% | H15: =VLOOKUP($C15,'RECAP SECT'!$G$6:$EV$253,76,FALSE) -> 18 | I15: =VLOOKUP($C15,'RECAP SECT'!$G$6:$EV$253,77,FALSE) -> 88% | J15: =VLOOKUP($C15,'RECAP SECT'!$G$6:$EV$253,78,FALSE) -> 10% | K15: =VLOOKUP($C15,'RECAP SECT'!$G$6:$EV$253,79,FALSE) -> 17 | L15: =VLOOKUP($C15,'RECAP SECT'!$G$6:$EV$253,80,FALSE) -> 56% | M15: =VLOOKUP($C15,'RECAP SECT'!$G$6:$EV$253,81,FALSE) -> 26% | N15: =VLOOKUP($C15,'RECAP SECT'!$G$6:$EV$253,82,FALSE) -> 14 | O15: =VLOOKUP($C15,'RECAP SECT'!$G$6:$EV$253,83,FALSE) -> 66% | P15: =VLOOKUP($C15,'RECAP SECT'!$G$6:$EV$253,84,FALSE) -> 22% | Q15: =VLOOKUP($C15,'RECAP SECT'!$G$6:$EV$253,85,FALSE) -> 12 | R15: =VLOOKUP($C15,'RECAP SECT'!$G$6:$EV$253,86,FALSE) -> 78% | S15: =VLOOKUP($C15,'RECAP SECT'!$G$6:$EV$253,87,FALSE) -> 18% | T15: =VLOOKUP($C15,'RECAP SECT'!$G$6:$EV$253,88,FALSE) -> 17 | U15: =VLOOKUP($C15,'RECAP SECT'!$G$6:$EV$253,89,FALSE) -> 37% | V15: =VLOOKUP($C15,'RECAP SECT'!$G$6:$EV$253,90,FALSE) -> 65% | W15: =VLOOKUP($C15,'RECAP SECT'!$G$6:$EV$253,91,FALSE) -> 17 | X15: =VLOOKUP($C15,'RECAP SECT'!$G$6:$EV$253,92,FALSE) -> 33% | Y15: =VLOOKUP($C15,'RECAP SECT'!$G$6:$EV$253,93,FALSE) -> 25% | Z15: =VLOOKUP($C15,'RECAP SECT'!$G$6:$EV$253,94,FALSE) -> 18
A16: 264 | B16: HAUT-RHIN | C16: 5169 | D16: MULHOUSE | E16: =VLOOKUP($C16,'RECAP SECT'!$G$6:$EV$253,3,FALSE) -> 78.1 | F16: =VLOOKUP($C16,'RECAP SECT'!$G$6:$EV$253,74,FALSE) -> 259.23 | G16: =VLOOKUP($C16,'RECAP SECT'!$G$6:$EV$253,75,FALSE) -> 27% | H16: =VLOOKUP($C16,'RECAP SECT'!$G$6:$EV$253,76,FALSE) -> 14 | I16: =VLOOKUP($C16,'RECAP SECT'!$G$6:$EV$253,77,FALSE) -> 95% | J16: =VLOOKUP($C16,'RECAP SECT'!$G$6:$EV$253,78,FALSE) -> 3% | K16: =VLOOKUP($C16,'RECAP SECT'!$G$6:$EV$253,79,FALSE) -> 6 | L16: =VLOOKUP($C16,'RECAP SECT'!$G$6:$EV$253,80,FALSE) -> 64% | M16: =VLOOKUP($C16,'RECAP SECT'!$G$6:$EV$253,81,FALSE) -> 15% | N16: =VLOOKUP($C16,'RECAP SECT'!$G$6:$EV$253,82,FALSE) -> 8 | O16: =VLOOKUP($C16,'RECAP SECT'!$G$6:$EV$253,83,FALSE) -> 81% | P16: =VLOOKUP($C16,'RECAP SECT'!$G$6:$EV$253,84,FALSE) -> 5% | Q16: =VLOOKUP($C16,'RECAP SECT'!$G$6:$EV$253,85,FALSE) -> 2 | R16: =VLOOKUP($C16,'RECAP SECT'!$G$6:$EV$253,86,FALSE) -> 73% | S16: =VLOOKUP($C16,'RECAP SECT'!$G$6:$EV$253,87,FALSE) -> 23% | T16: =VLOOKUP($C16,'RECAP SECT'!$G$6:$EV$253,88,FALSE) -> 18 | U16: =VLOOKUP($C16,'RECAP SECT'!$G$6:$EV$253,89,FALSE) -> 104% | V16: =VLOOKUP($C16,'RECAP SECT'!$G$6:$EV$253,90,FALSE) -> 0% | W16: =VLOOKUP($C16,'RECAP SECT'!$G$6:$EV$253,91,FALSE) -> 1 | X16: =VLOOKUP($C16,'RECAP SECT'!$G$6:$EV$253,92,FALSE) -> 12% | Y16: =VLOOKUP($C16,'RECAP SECT'!$G$6:$EV$253,93,FALSE) -> 5% | Z16: =VLOOKUP($C16,'RECAP SECT'!$G$6:$EV$253,94,FALSE) -> 3
A17: 30 | B17: MARNE-ARDENNES | C17: 6 | D17: CHALONS EN CHAMPAGNE | E17: =VLOOKUP($C17,'RECAP SECT'!$G$6:$EV$253,3,FALSE) -> 49.2 | F17: =VLOOKUP($C17,'RECAP SECT'!$G$6:$EV$253,74,FALSE) -> 284.84 | G17: =VLOOKUP($C17,'RECAP SECT'!$G$6:$EV$253,75,FALSE) -> 20% | H17: =VLOOKUP($C17,'RECAP SECT'!$G$6:$EV$253,76,FALSE) -> 10 | I17: =VLOOKUP($C17,'RECAP SECT'!$G$6:$EV$253,77,FALSE) -> 95% | J17: =VLOOKUP($C17,'RECAP SECT'!$G$6:$EV$253,78,FALSE) -> 3% | K17: =VLOOKUP($C17,'RECAP SECT'!$G$6:$EV$253,79,FALSE) -> 7 | L17: =VLOOKUP($C17,'RECAP SECT'!$G$6:$EV$253,80,FALSE) -> 67% | M17: =VLOOKUP($C17,'RECAP SECT'!$G$6:$EV$253,81,FALSE) -> 11% | N17: =VLOOKUP($C17,'RECAP SECT'!$G$6:$EV$253,82,FALSE) -> 5 | O17: =VLOOKUP($C17,'RECAP SECT'!$G$6:$EV$253,83,FALSE) -> 72% | P17: =VLOOKUP($C17,'RECAP SECT'!$G$6:$EV$253,84,FALSE) -> 15% | Q17: =VLOOKUP($C17,'RECAP SECT'!$G$6:$EV$253,85,FALSE) -> 8 | R17: =VLOOKUP($C17,'RECAP SECT'!$G$6:$EV$253,86,FALSE) -> 88% | S17: =VLOOKUP($C17,'RECAP SECT'!$G$6:$EV$253,87,FALSE) -> 7% | T17: =VLOOKUP($C17,'RECAP SECT'!$G$6:$EV$253,88,FALSE) -> 7 | U17: =VLOOKUP($C17,'RECAP SECT'!$G$6:$EV$253,89,FALSE) -> 75% | V17: =VLOOKUP($C17,'RECAP SECT'!$G$6:$EV$253,90,FALSE) -> 29% | W17: =VLOOKUP($C17,'RECAP SECT'!$G$6:$EV$253,91,FALSE) -> 5 | X17: =VLOOKUP($C17,'RECAP SECT'!$G$6:$EV$253,92,FALSE) -> 15% | Y17: =VLOOKUP($C17,'RECAP SECT'!$G$6:$EV$253,93,FALSE) -> 8% | Z17: =VLOOKUP($C17,'RECAP SECT'!$G$6:$EV$253,94,FALSE) -> 5
A18: 30 | B18: MARNE-ARDENNES | C18: 2 | D18: CHARLEVILLE MEZIERES | E18: =VLOOKUP($C18,'RECAP SECT'!$G$6:$EV$253,3,FALSE) -> 62.6 | F18: =VLOOKUP($C18,'RECAP SECT'!$G$6:$EV$253,74,FALSE) -> 293.41 | G18: =VLOOKUP($C18,'RECAP SECT'!$G$6:$EV$253,75,FALSE) -> 18% | H18: =VLOOKUP($C18,'RECAP SECT'!$G$6:$EV$253,76,FALSE) -> 7 | I18: =VLOOKUP($C18,'RECAP SECT'!$G$6:$EV$253,77,FALSE) -> 97% | J18: =VLOOKUP($C18,'RECAP SECT'!$G$6:$EV$253,78,FALSE) -> 1% | K18: =VLOOKUP($C18,'RECAP SECT'!$G$6:$EV$253,79,FALSE) -> 3 | L18: =VLOOKUP($C18,'RECAP SECT'!$G$6:$EV$253,80,FALSE) -> 73% | M18: =VLOOKUP($C18,'RECAP SECT'!$G$6:$EV$253,81,FALSE) -> 4% | N18: =VLOOKUP($C18,'RECAP SECT'!$G$6:$EV$253,82,FALSE) -> 2 | O18: =VLOOKUP($C18,'RECAP SECT'!$G$6:$EV$253,83,FALSE) -> 84% | P18: =VLOOKUP($C18,'RECAP SECT'!$G$6:$EV$253,84,FALSE) -> 0% | Q18: =VLOOKUP($C18,'RECAP SECT'!$G$6:$EV$253,85,FALSE) -> 1 | R18: =VLOOKUP($C18,'RECAP SECT'!$G$6:$EV$253,86,FALSE) -> 86% | S18: =VLOOKUP($C18,'RECAP SECT'!$G$6:$EV$253,87,FALSE) -> 9% | T18: =VLOOKUP($C18,'RECAP SECT'!$G$6:$EV$253,88,FALSE) -> 11 | U18: =VLOOKUP($C18,'RECAP SECT'!$G$6:$EV$253,89,FALSE) -> 95% | V18: =VLOOKUP($C18,'RECAP SECT'!$G$6:$EV$253,90,FALSE) -> 9% | W18: =VLOOKUP($C18,'RECAP SECT'!$G$6:$EV$253,91,FALSE) -> 2 | X18: =VLOOKUP($C18,'RECAP SECT'!$G$6:$EV$253,92,FALSE) -> 8% | Y18: =VLOOKUP($C18,'RECAP SECT'!$G$6:$EV$253,93,FALSE) -> 0% | Z18: =VLOOKUP($C18,'RECAP SECT'!$G$6:$EV$253,94,FALSE) -> 1
A19: 30 | B19: MARNE-ARDENNES | C19: 11 | D19: REIMS | E19: =VLOOKUP($C19,'RECAP SECT'!$G$6:$EV$253,3,FALSE) -> 91.1 | F19: =VLOOKUP($C19,'RECAP SECT'!$G$6:$EV$253,74,FALSE) -> 356.50 | G19: =VLOOKUP($C19,'RECAP SECT'!$G$6:$EV$253,75,FALSE) -> 0% | H19: =VLOOKUP($C19,'RECAP SECT'!$G$6:$EV$253,76,FALSE) -> 1 | I19: =VLOOKUP($C19,'RECAP SECT'!$G$6:$EV$253,77,FALSE) -> 83% | J19: =VLOOKUP($C19,'RECAP SECT'!$G$6:$EV$253,78,FALSE) -> 15% | K19: =VLOOKUP($C19,'RECAP SECT'!$G$6:$EV$253,79,FALSE) -> 18 | L19: =VLOOKUP($C19,'RECAP SECT'!$G$6:$EV$253,80,FALSE) -> 76% | M19: =VLOOKUP($C19,'RECAP SECT'!$G$6:$EV$253,81,FALSE) -> 0% | N19: =VLOOKUP($C19,'RECAP SECT'!$G$6:$EV$253,82,FALSE) -> 1 | O19: =VLOOKUP($C19,'RECAP SECT'!$G$6:$EV$253,83,FALSE) -> 68% | P19: =VLOOKUP($C19,'RECAP SECT'!$G$6:$EV$253,84,FALSE) -> 20% | Q19: =VLOOKUP($C19,'RECAP SECT'!$G$6:$EV$253,85,FALSE) -> 9 | R19: =VLOOKUP($C19,'RECAP SECT'!$G$6:$EV$253,86,FALSE) -> 87% | S19: =VLOOKUP($C19,'RECAP SECT'!$G$6:$EV$253,87,FALSE) -> 8% | T19: =VLOOKUP($C19,'RECAP SECT'!$G$6:$EV$253,88,FALSE) -> 8 | U19: =VLOOKUP($C19,'RECAP SECT'!$G$6:$EV$253,89,FALSE) -> 67% | V19: =VLOOKUP($C19,'RECAP SECT'!$G$6:$EV$253,90,FALSE) -> 36% | W19: =VLOOKUP($C19,'RECAP SECT'!$G$6:$EV$253,91,FALSE) -> 7 | X19: =VLOOKUP($C19,'RECAP SECT'!$G$6:$EV$253,92,FALSE) -> 13% | Y19: =VLOOKUP($C19,'RECAP SECT'!$G$6:$EV$253,93,FALSE) -> 5% | Z19: =VLOOKUP($C19,'RECAP SECT'!$G$6:$EV$253,94,FALSE) -> 4
A20: 110 | B20: MEURTHE ET MOSELLE MEUSE | C20: 26 | D20: NANCY | E20: =VLOOKUP($C20,'RECAP SECT'!$G$6:$EV$253,3,FALSE) -> 79.3 | F20: =VLOOKUP($C20,'RECAP SECT'!$G$6:$EV$253,74,FALSE) -> 273.66 | G20: =VLOOKUP($C20,'RECAP SECT'!$G$6:$EV$253,75,FALSE) -> 23% | H20: =VLOOKUP($C20,'RECAP SECT'!$G$6:$EV$253,76,FALSE) -> 11 | I20: =VLOOKUP($C20,'RECAP SECT'!$G$6:$EV$253,77,FALSE) -> 90% | J20: =VLOOKUP($C20,'RECAP SECT'!$G$6:$EV$253,78,FALSE) -> 8% | K20: =VLOOKUP($C20,'RECAP SECT'!$G$6:$EV$253,79,FALSE) -> 15 | L20: =VLOOKUP($C20,'RECAP SECT'!$G$6:$EV$253,80,FALSE) -> 69% | M20: =VLOOKUP($C20,'RECAP SECT'!$G$6:$EV$253,81,FALSE) -> 8% | N20: =VLOOKUP($C20,'RECAP SECT'!$G$6:$EV$253,82,FALSE) -> 3 | O20: =VLOOKUP($C20,'RECAP SECT'!$G$6:$EV$253,83,FALSE) -> 67% | P20: =VLOOKUP($C20,'RECAP SECT'!$G$6:$EV$253,84,FALSE) -> 20% | Q20: =VLOOKUP($C20,'RECAP SECT'!$G$6:$EV$253,85,FALSE) -> 10 | R20: =VLOOKUP($C20,'RECAP SECT'!$G$6:$EV$253,86,FALSE) -> 95% | S20: =VLOOKUP($C20,'RECAP SECT'!$G$6:$EV$253,87,FALSE) -> 0% | T20: =VLOOKUP($C20,'RECAP SECT'!$G$6:$EV$253,88,FALSE) -> 2 | U20: =VLOOKUP($C20,'RECAP SECT'!$G$6:$EV$253,89,FALSE) -> 46% | V20: =VLOOKUP($C20,'RECAP SECT'!$G$6:$EV$253,90,FALSE) -> 56% | W20: =VLOOKUP($C20,'RECAP SECT'!$G$6:$EV$253,91,FALSE) -> 14 | X20: =VLOOKUP($C20,'RECAP SECT'!$G$6:$EV$253,92,FALSE) -> 21% | Y20: =VLOOKUP($C20,'RECAP SECT'!$G$6:$EV$253,93,FALSE) -> 14% | Z20: =VLOOKUP($C20,'RECAP SECT'!$G$6:$EV$253,94,FALSE) -> 10
A21: 110 | B21: MEURTHE ET MOSELLE MEUSE | C21: 27 | D21: PONT A MOUSSON | E21: =VLOOKUP($C21,'RECAP SECT'!$G$6:$EV$253,3,FALSE) -> 87.7 | F21: =VLOOKUP($C21,'RECAP SECT'!$G$6:$EV$253,74,FALSE) -> 284.88 | G21: =VLOOKUP($C21,'RECAP SECT'!$G$6:$EV$253,75,FALSE) -> 20% | H21: =VLOOKUP($C21,'RECAP SECT'!$G$6:$EV$253,76,FALSE) -> 9 | I21: =VLOOKUP($C21,'RECAP SECT'!$G$6:$EV$253,77,FALSE) -> 90% | J21: =VLOOKUP($C21,'RECAP SECT'!$G$6:$EV$253,78,FALSE) -> 8% | K21: =VLOOKUP($C21,'RECAP SECT'!$G$6:$EV$253,79,FALSE) -> 14 | L21: =VLOOKUP($C21,'RECAP SECT'!$G$6:$EV$253,80,FALSE) -> 67% | M21: =VLOOKUP($C21,'RECAP SECT'!$G$6:$EV$253,81,FALSE) -> 11% | N21: =VLOOKUP($C21,'RECAP SECT'!$G$6:$EV$253,82,FALSE) -> 4 | O21: =VLOOKUP($C21,'RECAP SECT'!$G$6:$EV$253,83,FALSE) -> 73% | P21: =VLOOKUP($C21,'RECAP SECT'!$G$6:$EV$253,84,FALSE) -> 14% | Q21: =VLOOKUP($C21,'RECAP SECT'!$G$6:$EV$253,85,FALSE) -> 6 | R21: =VLOOKUP($C21,'RECAP SECT'!$G$6:$EV$253,86,FALSE) -> 93% | S21: =VLOOKUP($C21,'RECAP SECT'!$G$6:$EV$253,87,FALSE) -> 2% | T21: =VLOOKUP($C21,'RECAP SECT'!$G$6:$EV$253,88,FALSE) -> 3 | U21: =VLOOKUP($C21,'RECAP SECT'!$G$6:$EV$253,89,FALSE) -> 54% | V21: =VLOOKUP($C21,'RECAP SECT'!$G$6:$EV$253,90,FALSE) -> 48% | W21: =VLOOKUP($C21,'RECAP SECT'!$G$6:$EV$253,91,FALSE) -> 12 | X21: =VLOOKUP($C21,'RECAP SECT'!$G$6:$EV$253,92,FALSE) -> 19% | Y21: =VLOOKUP($C21,'RECAP SECT'!$G$6:$EV$253,93,FALSE) -> 11% | Z21: =VLOOKUP($C21,'RECAP SECT'!$G$6:$EV$253,94,FALSE) -> 7
A22: 110 | B22: MEURTHE ET MOSELLE MEUSE | C22: 31 | D22: VERDUN | E22: =VLOOKUP($C22,'RECAP SECT'!$G$6:$EV$253,3,FALSE) -> 64.7 | F22: =VLOOKUP($C22,'RECAP SECT'!$G$6:$EV$253,74,FALSE) -> 303.54 | G22: =VLOOKUP($C22,'RECAP SECT'!$G$6:$EV$253,75,FALSE) -> 15% | H22: =VLOOKUP($C22,'RECAP SECT'!$G$6:$EV$253,76,FALSE) -> 4 | I22: =VLOOKUP($C22,'RECAP SECT'!$G$6:$EV$253,77,FALSE) -> 91% | J22: =VLOOKUP($C22,'RECAP SECT'!$G$6:$EV$253,78,FALSE) -> 7% | K22: =VLOOKUP($C22,'RECAP SECT'!$G$6:$EV$253,79,FALSE) -> 13 | L22: =VLOOKUP($C22,'RECAP SECT'!$G$6:$EV$253,80,FALSE) -> 59% | M22: =VLOOKUP($C22,'RECAP SECT'!$G$6:$EV$253,81,FALSE) -> 21% | N22: =VLOOKUP($C22,'RECAP SECT'!$G$6:$EV$253,82,FALSE) -> 11 | O22: =VLOOKUP($C22,'RECAP SECT'!$G$6:$EV$253,83,FALSE) -> 79% | P22: =VLOOKUP($C22,'RECAP SECT'!$G$6:$EV$253,84,FALSE) -> 6% | Q22: =VLOOKUP($C22,'RECAP SECT'!$G$6:$EV$253,85,FALSE) -> 3 | R22: =VLOOKUP($C22,'RECAP SECT'!$G$6:$EV$253,86,FALSE) -> 91% | S22: =VLOOKUP($C22,'RECAP SECT'!$G$6:$EV$253,87,FALSE) -> 4% | T22: =VLOOKUP($C22,'RECAP SECT'!$G$6:$EV$253,88,FALSE) -> 4 | U22: =VLOOKUP($C22,'RECAP SECT'!$G$6:$EV$253,89,FALSE) -> 37% | V22: =VLOOKUP($C22,'RECAP SECT'!$G$6:$EV$253,90,FALSE) -> 64% | W22: =VLOOKUP($C22,'RECAP SECT'!$G$6:$EV$253,91,FALSE) -> 16 | X22: =VLOOKUP($C22,'RECAP SECT'!$G$6:$EV$253,92,FALSE) -> 22% | Y22: =VLOOKUP($C22,'RECAP SECT'!$G$6:$EV$253,93,FALSE) -> 15% | Z22: =VLOOKUP($C22,'RECAP SECT'!$G$6:$EV$253,94,FALSE) -> 11
A23: 160 | B23: MOSELLE | C23: 45 | D23: METZ | E23: =VLOOKUP($C23,'RECAP SECT'!$G$6:$EV$253,3,FALSE) -> 103.2 | F23: =VLOOKUP($C23,'RECAP SECT'!$G$6:$EV$253,74,FALSE) -> 286.30 | G23: =VLOOKUP($C23,'RECAP SECT'!$G$6:$EV$253,75,FALSE) -> 20% | H23: =VLOOKUP($C23,'RECAP SECT'!$G$6:$EV$253,76,FALSE) -> 8 | I23: =VLOOKUP($C23,'RECAP SECT'!$G$6:$EV$253,77,FALSE) -> 95% | J23: =VLOOKUP($C23,'RECAP SECT'!$G$6:$EV$253,78,FALSE) -> 3% | K23: =VLOOKUP($C23,'RECAP SECT'!$G$6:$EV$253,79,FALSE) -> 8 | L23: =VLOOKUP($C23,'RECAP SECT'!$G$6:$EV$253,80,FALSE) -> 67% | M23: =VLOOKUP($C23,'RECAP SECT'!$G$6:$EV$253,81,FALSE) -> 12% | N23: =VLOOKUP($C23,'RECAP SECT'!$G$6:$EV$253,82,FALSE) -> 6 | O23: =VLOOKUP($C23,'RECAP SECT'!$G$6:$EV$253,83,FALSE) -> 57% | P23: =VLOOKUP($C23,'RECAP SECT'!$G$6:$EV$253,84,FALSE) -> 32% | Q23: =VLOOKUP($C23,'RECAP SECT'!$G$6:$EV$253,85,FALSE) -> 17 | R23: =VLOOKUP($C23,'RECAP SECT'!$G$6:$EV$253,86,FALSE) -> 90% | S23: =VLOOKUP($C23,'RECAP SECT'!$G$6:$EV$253,87,FALSE) -> 5% | T23: =VLOOKUP($C23,'RECAP SECT'!$G$6:$EV$253,88,FALSE) -> 5 | U23: =VLOOKUP($C23,'RECAP SECT'!$G$6:$EV$253,89,FALSE) -> 40% | V23: =VLOOKUP($C23,'RECAP SECT'!$G$6:$EV$253,90,FALSE) -> 61% | W23: =VLOOKUP($C23,'RECAP SECT'!$G$6:$EV$253,91,FALSE) -> 15 | X23: =VLOOKUP($C23,'RECAP SECT'!$G$6:$EV$253,92,FALSE) -> 24% | Y23: =VLOOKUP($C23,'RECAP SECT'!$G$6:$EV$253,93,FALSE) -> 16% | Z23: =VLOOKUP($C23,'RECAP SECT'!$G$6:$EV$253,94,FALSE) -> 13
A24: 160 | B24: MOSELLE | C24: 42 | D24: MOSELLE EST | E24: =VLOOKUP($C24,'RECAP SECT'!$G$6:$EV$253,3,FALSE) -> 86.1 | F24: =VLOOKUP($C24,'RECAP SECT'!$G$6:$EV$253,74,FALSE) -> 264.20 | G24: =VLOOKUP($C24,'RECAP SECT'!$G$6:$EV$253,75,FALSE) -> 26% | H24: =VLOOKUP($C24,'RECAP SECT'!$G$6:$EV$253,76,FALSE) -> 13 | I24: =VLOOKUP($C24,'RECAP SECT'!$G$6:$EV$253,77,FALSE) -> 96% | J24: =VLOOKUP($C24,'RECAP SECT'!$G$6:$EV$253,78,FALSE) -> 2% | K24: =VLOOKUP($C24,'RECAP SECT'!$G$6:$EV$253,79,FALSE) -> 4 | L24: =VLOOKUP($C24,'RECAP SECT'!$G$6:$EV$253,80,FALSE) -> 55% | M24: =VLOOKUP($C24,'RECAP SECT'!$G$6:$EV$253,81,FALSE) -> 28% | N24: =VLOOKUP($C24,'RECAP SECT'!$G$6:$EV$253,82,FALSE) -> 15 | O24: =VLOOKUP($C24,'RECAP SECT'!$G$6:$EV$253,83,FALSE) -> 75% | P24: =VLOOKUP($C24,'RECAP SECT'!$G$6:$EV$253,84,FALSE) -> 11% | Q24: =VLOOKUP($C24,'RECAP SECT'!$G$6:$EV$253,85,FALSE) -> 5 | R24: =VLOOKUP($C24,'RECAP SECT'!$G$6:$EV$253,86,FALSE) -> 78% | S24: =VLOOKUP($C24,'RECAP SECT'!$G$6:$EV$253,87,FALSE) -> 18% | T24: =VLOOKUP($C24,'RECAP SECT'!$G$6:$EV$253,88,FALSE) -> 16 | U24: =VLOOKUP($C24,'RECAP SECT'!$G$6:$EV$253,89,FALSE) -> 60% | V24: =VLOOKUP($C24,'RECAP SECT'!$G$6:$EV$253,90,FALSE) -> 43% | W24: =VLOOKUP($C24,'RECAP SECT'!$G$6:$EV$253,91,FALSE) -> 11 | X24: =VLOOKUP($C24,'RECAP SECT'!$G$6:$EV$253,92,FALSE) -> 23% | Y24: =VLOOKUP($C24,'RECAP SECT'!$G$6:$EV$253,93,FALSE) -> 16% | Z24: =VLOOKUP($C24,'RECAP SECT'!$G$6:$EV$253,94,FALSE) -> 12
A25: 160 | B25: MOSELLE | C25: 44 | D25: MOSELLE NORD | E25: =VLOOKUP($C25,'RECAP SECT'!$G$6:$EV$253,3,FALSE) -> 80.5 | F25: =VLOOKUP($C25,'RECAP SECT'!$G$6:$EV$253,74,FALSE) -> 303.61 | G25: =VLOOKUP($C25,'RECAP SECT'!$G$6:$EV$253,75,FALSE) -> 15% | H25: =VLOOKUP($C25,'RECAP SECT'!$G$6:$EV$253,76,FALSE) -> 3 | I25: =VLOOKUP($C25,'RECAP SECT'!$G$6:$EV$253,77,FALSE) -> 96% | J25: =VLOOKUP($C25,'RECAP SECT'!$G$6:$EV$253,78,FALSE) -> 2% | K25: =VLOOKUP($C25,'RECAP SECT'!$G$6:$EV$253,79,FALSE) -> 5 | L25: =VLOOKUP($C25,'RECAP SECT'!$G$6:$EV$253,80,FALSE) -> 62% | M25: =VLOOKUP($C25,'RECAP SECT'!$G$6:$EV$253,81,FALSE) -> 18% | N25: =VLOOKUP($C25,'RECAP SECT'!$G$6:$EV$253,82,FALSE) -> 9 | O25: =VLOOKUP($C25,'RECAP SECT'!$G$6:$EV$253,83,FALSE) -> 62% | P25: =VLOOKUP($C25,'RECAP SECT'!$G$6:$EV$253,84,FALSE) -> 27% | Q25: =VLOOKUP($C25,'RECAP SECT'!$G$6:$EV$253,85,FALSE) -> 15 | R25: =VLOOKUP($C25,'RECAP SECT'!$G$6:$EV$253,86,FALSE) -> 95% | S25: =VLOOKUP($C25,'RECAP SECT'!$G$6:$EV$253,87,FALSE) -> 0% | T25: =VLOOKUP($C25,'RECAP SECT'!$G$6:$EV$253,88,FALSE) -> 1 | U25: =VLOOKUP($C25,'RECAP SECT'!$G$6:$EV$253,89,FALSE) -> 29% | V25: =VLOOKUP($C25,'RECAP SECT'!$G$6:$EV$253,90,FALSE) -> 72% | W25: =VLOOKUP($C25,'RECAP SECT'!$G$6:$EV$253,91,FALSE) -> 18 | X25: =VLOOKUP($C25,'RECAP SECT'!$G$6:$EV$253,92,FALSE) -> 25% | Y25: =VLOOKUP($C25,'RECAP SECT'!$G$6:$EV$253,93,FALSE) -> 17% | Z25: =VLOOKUP($C25,'RECAP SECT'!$G$6:$EV$253,94,FALSE) -> 15
A26: 80 | B26: VOSGES | C26: 57 | D26: EPINAL | E26: =VLOOKUP($C26,'RECAP SECT'!$G$6:$EV$253,3,FALSE) -> 68.7 | F26: =VLOOKUP($C26,'RECAP SECT'!$G$6:$EV$253,74,FALSE) -> 252.13 | G26: =VLOOKUP($C26,'RECAP SECT'!$G$6:$EV$253,75,FALSE) -> 29% | H26: =VLOOKUP($C26,'RECAP SECT'!$G$6:$EV$253,76,FALSE) -> 15 | I26: =VLOOKUP($C26,'RECAP SECT'!$G$6:$EV$253,77,FALSE) -> 95% | J26: =VLOOKUP($C26,'RECAP SECT'!$G$6:$EV$253,78,FALSE) -> 3% | K26: =VLOOKUP($C26,'RECAP SECT'!$G$6:$EV$253,79,FALSE) -> 10 | L26: =VLOOKUP($C26,'RECAP SECT'!$G$6:$EV$253,80,FALSE) -> 61% | M26: =VLOOKUP($C26,'RECAP SECT'!$G$6:$EV$253,81,FALSE) -> 20% | N26: =VLOOKUP($C26,'RECAP SECT'!$G$6:$EV$253,82,FALSE) -> 10 | O26: =VLOOKUP($C26,'RECAP SECT'!$G$6:$EV$253,83,FALSE) -> 72% | P26: =VLOOKUP($C26,'RECAP SECT'!$G$6:$EV$253,84,FALSE) -> 15% | Q26: =VLOOKUP($C26,'RECAP SECT'!$G$6:$EV$253,85,FALSE) -> 7 | R26: =VLOOKUP($C26,'RECAP SECT'!$G$6:$EV$253,86,FALSE) -> 87% | S26: =VLOOKUP($C26,'RECAP SECT'!$G$6:$EV$253,87,FALSE) -> 8% | T26: =VLOOKUP($C26,'RECAP SECT'!$G$6:$EV$253,88,FALSE) -> 9 | U26: =VLOOKUP($C26,'RECAP SECT'!$G$6:$EV$253,89,FALSE) -> 66% | V26: =VLOOKUP($C26,'RECAP SECT'!$G$6:$EV$253,90,FALSE) -> 37% | W26: =VLOOKUP($C26,'RECAP SECT'!$G$6:$EV$253,91,FALSE) -> 8 | X26: =VLOOKUP($C26,'RECAP SECT'!$G$6:$EV$253,92,FALSE) -> 21% | Y26: =VLOOKUP($C26,'RECAP SECT'!$G$6:$EV$253,93,FALSE) -> 13% | Z26: =VLOOKUP($C26,'RECAP SECT'!$G$6:$EV$253,94,FALSE) -> 9
A27: 80 | B27: VOSGES | C27: 55 | D27: SAINT DIE | E27: =VLOOKUP($C27,'RECAP SECT'!$G$6:$EV$253,3,FALSE) -> 58.0 | F27: =VLOOKUP($C27,'RECAP SECT'!$G$6:$EV$253,74,FALSE) -> 298.58 | G27: =VLOOKUP($C27,'RECAP SECT'!$G$6:$EV$253,75,FALSE) -> 16% | H27: =VLOOKUP($C27,'RECAP SECT'!$G$6:$EV$253,76,FALSE) -> 6 | I27: =VLOOKUP($C27,'RECAP SECT'!$G$6:$EV$253,77,FALSE) -> 98% | J27: =VLOOKUP($C27,'RECAP SECT'!$G$6:$EV$253,78,FALSE) -> 0% | K27: =VLOOKUP($C27,'RECAP SECT'!$G$6:$EV$253,79,FALSE) -> 1 | L27: =VLOOKUP($C27,'RECAP SECT'!$G$6:$EV$253,80,FALSE) -> 59% | M27: =VLOOKUP($C27,'RECAP SECT'!$G$6:$EV$253,81,FALSE) -> 21% | N27: =VLOOKUP($C27,'RECAP SECT'!$G$6:$EV$253,82,FALSE) -> 12 | O27: =VLOOKUP($C27,'RECAP SECT'!$G$6:$EV$253,83,FALSE) -> 76% | P27: =VLOOKUP($C27,'RECAP SECT'!$G$6:$EV$253,84,FALSE) -> 10% | Q27: =VLOOKUP($C27,'RECAP SECT'!$G$6:$EV$253,85,FALSE) -> 4 | R27: =VLOOKUP($C27,'RECAP SECT'!$G$6:$EV$253,86,FALSE) -> 86% | S27: =VLOOKUP($C27,'RECAP SECT'!$G$6:$EV$253,87,FALSE) -> 9% | T27: =VLOOKUP($C27,'RECAP SECT'!$G$6:$EV$253,88,FALSE) -> 10 | U27: =VLOOKUP($C27,'RECAP SECT'!$G$6:$EV$253,89,FALSE) -> 93% | V27: =VLOOKUP($C27,'RECAP SECT'!$G$6:$EV$253,90,FALSE) -> 11% | W27: =VLOOKUP($C27,'RECAP SECT'!$G$6:$EV$253,91,FALSE) -> 3 | X27: =VLOOKUP($C27,'RECAP SECT'!$G$6:$EV$253,92,FALSE) -> 12% | Y27: =VLOOKUP($C27,'RECAP SECT'!$G$6:$EV$253,93,FALSE) -> 5% | Z27: =VLOOKUP($C27,'RECAP SECT'!$G$6:$EV$253,94,FALSE) -> 2
A28: Total CEGEE Directions Régionales | E28: =SUM(E10:E27) -> 1367

Sheet SE_IARD
A1: Accueil | F1: BAROMETRE BDD - TERRITOIRES
F2: IARD PREVOYANCE
F3: =ACCUEIL!H7 -> 2019-07-31
F7: Ventes nettes IARD (AUTO+MRH+Pro) | I7: Ventes nettes Prévoyance | L7: Chiffre d'affaires IARD | O7: Total IARD Prévoyance
G8: coef | H8: ='RECAP DIRCOM'!DE4 -> 7% | J8: coef | K8: ='RECAP DIRCOM'!DH4 -> 7% | M8: coef | N8: ='RECAP DIRCOM'!DK4 -> 6% | P8: coef | Q8: ='RECAP DIRCOM'!DN4 -> 20%
A9: eds | B9: Direction | C9: eds | D9: Territoire | E9: ETP perf | F9: Nb / ETP | G9: % Ecart au 1er | H9: Rang | I9: Nb / ETP | J9: % Ecart au 1er | K9: Rang | L9: Nb / ETP | M9: % Ecart au 1er | N9: Rang | O9: Moyenne ecart au 1er | P9: % Ecart au 1er | Q9: Rang CEGEE
A10: 50 | B10: AUBE HAUTE MARNE | C10: 21 | D10: CHAUMONT | E10: =VLOOKUP($C10,'RECAP SECT'!$G$6:$EV$253,3,FALSE) -> 46.6 | F10: =VLOOKUP($C10,'RECAP SECT'!$G$6:$EV$253,101,FALSE) -> 7.75 | G10: =VLOOKUP($C10,'RECAP SECT'!$G$6:$EV$253,102,FALSE) -> 8% | H10: =VLOOKUP($C10,'RECAP SECT'!$G$6:$EV$253,103,FALSE) -> 3 | I10: =VLOOKUP($C10,'RECAP SECT'!$G$6:$EV$253,104,FALSE) -> 13.70 | J10: =VLOOKUP($C10,'RECAP SECT'!$G$6:$EV$253,105,FALSE) -> 10% | K10: =VLOOKUP($C10,'RECAP SECT'!$G$6:$EV$253,106,FALSE) -> 3 | L10: =VLOOKUP($C10,'RECAP SECT'!$G$6:$EV$253,107,FALSE) -> 8.99 | M10: =VLOOKUP($C10,'RECAP SECT'!$G$6:$EV$253,108,FALSE) -> 12% | N10: =VLOOKUP($C10,'RECAP SECT'!$G$6:$EV$253,109,FALSE) -> 4 | O10: =VLOOKUP($C10,'RECAP SECT'!$G$6:$EV$253,110,FALSE) -> 10% | P10: =VLOOKUP($C10,'RECAP SECT'!$G$6:$EV$253,111,FALSE) -> 7% | Q10: =VLOOKUP($C10,'RECAP SECT'!$G$6:$EV$253,112,FALSE) -> 2
A11: 50 | B11: AUBE HAUTE MARNE | C11: 14 | D11: TROYES | E11: =VLOOKUP($C11,'RECAP SECT'!$G$6:$EV$253,3,FALSE) -> 78.5 | F11: =VLOOKUP($C11,'RECAP SECT'!$G$6:$EV$253,101,FALSE) -> 5.40 | G11: =VLOOKUP($C11,'RECAP SECT'!$G$6:$EV$253,102,FALSE) -> 36% | H11: =VLOOKUP($C11,'RECAP SECT'!$G$6:$EV$253,103,FALSE) -> 11 | I11: =VLOOKUP($C11,'RECAP SECT'!$G$6:$EV$253,104,FALSE) -> 6.79 | J11: =VLOOKUP($C11,'RECAP SECT'!$G$6:$EV$253,105,FALSE) -> 55% | K11: =VLOOKUP($C11,'RECAP SECT'!$G$6:$EV$253,106,FALSE) -> 14 | L11: =VLOOKUP($C11,'RECAP SECT'!$G$6:$EV$253,107,FALSE) -> 6.66 | M11: =VLOOKUP($C11,'RECAP SECT'!$G$6:$EV$253,108,FALSE) -> 35% | N11: =VLOOKUP($C11,'RECAP SECT'!$G$6:$EV$253,109,FALSE) -> 17 | O11: =VLOOKUP($C11,'RECAP SECT'!$G$6:$EV$253,110,FALSE) -> 42% | P11: =VLOOKUP($C11,'RECAP SECT'!$G$6:$EV$253,111,FALSE) -> 39% | Q11: =VLOOKUP($C11,'RECAP SECT'!$G$6:$EV$253,112,FALSE) -> 15
A12: 262 | B12: BAS-RHIN | C12: 5060 | D12: HAGUENAU | E12: =VLOOKUP($C12,'RECAP SECT'!$G$6:$EV$253,3,FALSE) -> 88.7 | F12: =VLOOKUP($C12,'RECAP SECT'!$G$6:$EV$253,101,FALSE) -> 5.80 | G12: =VLOOKUP($C12,'RECAP SECT'!$G$6:$EV$253,102,FALSE) -> 31% | H12: =VLOOKUP($C12,'RECAP SECT'!$G$6:$EV$253,103,FALSE) -> 9 | I12: =VLOOKUP($C12,'RECAP SECT'!$G$6:$EV$253,104,FALSE) -> 8.33 | J12: =VLOOKUP($C12,'RECAP SECT'!$G$6:$EV$253,105,FALSE) -> 45% | K12: =VLOOKUP($C12,'RECAP SECT'!$G$6:$EV$253,106,FALSE) -> 8 | L12: =VLOOKUP($C12,'RECAP SECT'!$G$6:$EV$253,107,FALSE) -> 9.27 | M12: =VLOOKUP($C12,'RECAP SECT'!$G$6:$EV$253,108,FALSE) -> 9% | N12: =VLOOKUP($C12,'RECAP SECT'!$G$6:$EV$253,109,FALSE) -> 2 | O12: =VLOOKUP($C12,'RECAP SECT'!$G$6:$EV$253,110,FALSE) -> 29% | P12: =VLOOKUP($C12,'RECAP SECT'!$G$6:$EV$253,111,FALSE) -> 26% | Q12: =VLOOKUP($C12,'RECAP SECT'!$G$6:$EV$253,112,FALSE) -> 8
A13: 262 | B13: BAS-RHIN | C13: 5101 | D13: SELESTAT | E13: =VLOOKUP($C13,'RECAP SECT'!$G$6:$EV$253,3,FALSE) -> 75.1 | F13: =VLOOKUP($C13,'RECAP SECT'!$G$6:$EV$253,101,FALSE) -> 4.62 | G13: =VLOOKUP($C13,'RECAP SECT'!$G$6:$EV$253,102,FALSE) -> 45% | H13: =VLOOKUP($C13,'RECAP SECT'!$G$6:$EV$253,103,FALSE) -> 16 | I13: =VLOOKUP($C13,'RECAP SECT'!$G$6:$EV$253,104,FALSE) -> 7.22 | J13: =VLOOKUP($C13,'RECAP SECT'!$G$6:$EV$253,105,FALSE) -> 52% | K13: =VLOOKUP($C13,'RECAP SECT'!$G$6:$EV$253,106,FALSE) -> 12 | L13: =VLOOKUP($C13,'RECAP SECT'!$G$6:$EV$253,107,FALSE) -> 8.00 | M13: =VLOOKUP($C13,'RECAP SECT'!$G$6:$EV$253,108,FALSE) -> 22% | N13: =VLOOKUP($C13,'RECAP SECT'!$G$6:$EV$253,109,FALSE) -> 13 | O13: =VLOOKUP($C13,'RECAP SECT'!$G$6:$EV$253,110,FALSE) -> 41% | P13: =VLOOKUP($C13,'RECAP SECT'!$G$6:$EV$253,111,FALSE) -> 37% | Q13: =VLOOKUP($C13,'RECAP SECT'!$G$6:$EV$253,112,FALSE) -> 14
A14: 262 | B14: BAS-RHIN | C14: 5006 | D14: STRASBOURG | E14: =VLOOKUP($C14,'RECAP SECT'!$G$6:$EV$253,3,FALSE) -> 92.7 | F14: =VLOOKUP($C14,'RECAP SECT'!$G$6:$EV$253,101,FALSE) -> 3.15 | G14: =VLOOKUP($C14,'RECAP SECT'!$G$6:$EV$253,102,FALSE) -> 63% | H14: =VLOOKUP($C14,'RECAP SECT'!$G$6:$EV$253,103,FALSE) -> 18 | I14: =VLOOKUP($C14,'RECAP SECT'!$G$6:$EV$253,104,FALSE) -> 4.91 | J14: =VLOOKUP($C14,'RECAP SECT'!$G$6:$EV$253,105,FALSE) -> 68% | K14: =VLOOKUP($C14,'RECAP SECT'!$G$6:$EV$253,106,FALSE) -> 17 | L14: =VLOOKUP($C14,'RECAP SECT'!$G$6:$EV$253,107,FALSE) -> 6.47 | M14: =VLOOKUP($C14,'RECAP SECT'!$G$6:$EV$253,108,FALSE) -> 37% | N14: =VLOOKUP($C14,'RECAP SECT'!$G$6:$EV$253,109,FALSE) -> 18 | O14: =VLOOKUP($C14,'RECAP SECT'!$G$6:$EV$253,110,FALSE) -> 57% | P14: =VLOOKUP($C14,'RECAP SECT'!$G$6:$EV$253,111,FALSE) -> 53% | Q14: =VLOOKUP($C14,'RECAP SECT'!$G$6:$EV$253,112,FALSE) -> 18
A15: 264 | B15: HAUT-RHIN | C15: 5130 | D15: COLMAR | E15: =VLOOKUP($C15,'RECAP SECT'!$G$6:$EV$253,3,FALSE) -> 76.1 | F15: =VLOOKUP($C15,'RECAP SECT'!$G$6:$EV$253,101,FALSE) -> 3.98 | G15: =VLOOKUP($C15,'RECAP SECT'!$G$6:$EV$253,102,FALSE) -> 53% | H15: =VLOOKUP($C15,'RECAP SECT'!$G$6:$EV$253,103,FALSE) -> 17 | I15: =VLOOKUP($C15,'RECAP SECT'!$G$6:$EV$253,104,FALSE) -> 6.88 | J15: =VLOOKUP($C15,'RECAP SECT'!$G$6:$EV$253,105,FALSE) -> 55% | K15: =VLOOKUP($C15,'RECAP SECT'!$G$6:$EV$253,106,FALSE) -> 13 | L15: =VLOOKUP($C15,'RECAP SECT'!$G$6:$EV$253,107,FALSE) -> 7.95 | M15: =VLOOKUP($C15,'RECAP SECT'!$G$6:$EV$253,108,FALSE) -> 22% | N15: =VLOOKUP($C15,'RECAP SECT'!$G$6:$EV$253,109,FALSE) -> 14 | O15: =VLOOKUP($C15,'RECAP SECT'!$G$6:$EV$253,110,FALSE) -> 44% | P15: =VLOOKUP($C15,'RECAP SECT'!$G$6:$EV$253,111,FALSE) -> 41% | Q15: =VLOOKUP($C15,'RECAP SECT'!$G$6:$EV$253,112,FALSE) -> 16
A16: 264 | B16: HAUT-RHIN | C16: 5169 | D16: MULHOUSE | E16: =VLOOKUP($C16,'RECAP SECT'!$G$6:$EV$253,3,FALSE) -> 78.1 | F16: =VLOOKUP($C16,'RECAP SECT'!$G$6:$EV$253,101,FALSE) -> 4.84 | G16: =VLOOKUP($C16,'RECAP SECT'!$G$6:$EV$253,102,FALSE) -> 43% | H16: =VLOOKUP($C16,'RECAP SECT'!$G$6:$EV$253,103,FALSE) -> 14 | I16: =VLOOKUP($C16,'RECAP SECT'!$G$6:$EV$253,104,FALSE) -> 3.34 | J16: =VLOOKUP($C16,'RECAP SECT'!$G$6:$EV$253,105,FALSE) -> 78% | K16: =VLOOKUP($C16,'RECAP SECT'!$G$6:$EV$253,106,FALSE) -> 18 | L16: =VLOOKUP($C16,'RECAP SECT'!$G$6:$EV$253,107,FALSE) -> 8.35 | M16: =VLOOKUP($C16,'RECAP SECT'!$G$6:$EV$253,108,FALSE) -> 18% | N16: =VLOOKUP($C16,'RECAP SECT'!$G$6:$EV$253,109,FALSE) -> 11 | O16: =VLOOKUP($C16,'RECAP SECT'!$G$6:$EV$253,110,FALSE) -> 48% | P16: =VLOOKUP($C16,'RECAP SECT'!$G$6:$EV$253,111,FALSE) -> 44% | Q16: =VLOOKUP($C16,'RECAP SECT'!$G$6:$EV$253,112,FALSE) -> 17
A17: 30 | B17: MARNE-ARDENNES | C17: 6 | D17: CHALONS EN CHAMPAGNE | E17: =VLOOKUP($C17,'RECAP SECT'!$G$6:$EV$253,3,FALSE) -> 49.2 | F17: =VLOOKUP($C17,'RECAP SECT'!$G$6:$EV$253,101,FALSE) -> 6.04 | G17: =VLOOKUP($C17,'RECAP SECT'!$G$6:$EV$253,102,FALSE) -> 28% | H17: =VLOOKUP($C17,'RECAP SECT'!$G$6:$EV$253,103,FALSE) -> 7 | I17: =VLOOKUP($C17,'RECAP SECT'!$G$6:$EV$253,104,FALSE) -> 15.17 | J17: =VLOOKUP($C17,'RECAP SECT'!$G$6:$EV$253,105,FALSE) -> 0% | K17: =VLOOKUP($C17,'RECAP SECT'!$G$6:$EV$253,106,FALSE) -> 1 | L17: =VLOOKUP($C17,'RECAP SECT'!$G$6:$EV$253,107,FALSE) -> 8.54 | M17: =VLOOKUP($C17,'RECAP SECT'!$G$6:$EV$253,108,FALSE) -> 16% | N17: =VLOOKUP($C17,'RECAP SECT'!$G$6:$EV$253,109,FALSE) -> 9 | O17: =VLOOKUP($C17,'RECAP SECT'!$G$6:$EV$253,110,FALSE) -> 15% | P17: =VLOOKUP($C17,'RECAP SECT'!$G$6:$EV$253,111,FALSE) -> 12% | Q17: =VLOOKUP($C17,'RECAP SECT'!$G$6:$EV$253,112,FALSE) -> 3
A18: 30 | B18: MARNE-ARDENNES | C18: 2 | D18: CHARLEVILLE MEZIERES | E18: =VLOOKUP($C18,'RECAP SECT'!$G$6:$EV$253,3,FALSE) -> 62.6 | F18: =VLOOKUP($C18,'RECAP SECT'!$G$6:$EV$253,101,FALSE) -> 8.43 | G18: =VLOOKUP($C18,'RECAP SECT'!$G$6:$EV$253,102,FALSE) -> 0% | H18: =VLOOKUP($C18,'RECAP SECT'!$G$6:$EV$253,103,FALSE) -> 1 | I18: =VLOOKUP($C18,'RECAP SECT'!$G$6:$EV$253,104,FALSE) -> 13.76 | J18: =VLOOKUP($C18,'RECAP SECT'!$G$6:$EV$253,105,FALSE) -> 9% | K18: =VLOOKUP($C18,'RECAP SECT'!$G$6:$EV$253,106,FALSE) -> 2 | L18: =VLOOKUP($C18,'RECAP SECT'!$G$6:$EV$253,107,FALSE) -> 10.22 | M18: =VLOOKUP($C18,'RECAP SECT'!$G$6:$EV$253,108,FALSE) -> 0% | N18: =VLOOKUP($C18,'RECAP SECT'!$G$6:$EV$253,109,FALSE) -> 1 | O18: =VLOOKUP($C18,'RECAP SECT'!$G$6:$EV$253,110,FALSE) -> 3% | P18: =VLOOKUP($C18,'RECAP SECT'!$G$6:$EV$253,111,FALSE) -> 0% | Q18: =VLOOKUP($C18,'RECAP SECT'!$G$6:$EV$253,112,FALSE) -> 1
A19: 30 | B19: MARNE-ARDENNES | C19: 11 | D19: REIMS | E19: =VLOOKUP($C19,'RECAP SECT'!$G$6:$EV$253,3,FALSE) -> 91.1 | F19: =VLOOKUP($C19,'RECAP SECT'!$G$6:$EV$253,101,FALSE) -> 6.03 | G19: =VLOOKUP($C19,'RECAP SECT'!$G$6:$EV$253,102,FALSE) -> 28% | H19: =VLOOKUP($C19,'RECAP SECT'!$G$6:$EV$253,103,FALSE) -> 8 | I19: =VLOOKUP($C19,'RECAP SECT'!$G$6:$EV$253,104,FALSE) -> 13.55 | J19: =VLOOKUP($C19,'RECAP SECT'!$G$6:$EV$253,105,FALSE) -> 11% | K19: =VLOOKUP($C19,'RECAP SECT'!$G$6:$EV$253,106,FALSE) -> 4 | L19: =VLOOKUP($C19,'RECAP SECT'!$G$6:$EV$253,107,FALSE) -> 7.34 | M19: =VLOOKUP($C19,'RECAP SECT'!$G$6:$EV$253,108,FALSE) -> 28% | N19: =VLOOKUP($C19,'RECAP SECT'!$G$6:$EV$253,109,FALSE) -> 15 | O19: =VLOOKUP($C19,'RECAP SECT'!$G$6:$EV$253,110,FALSE) -> 22% | P19: =VLOOKUP($C19,'RECAP SECT'!$G$6:$EV$253,111,FALSE) -> 19% | Q19: =VLOOKUP($C19,'RECAP SECT'!$G$6:$EV$253,112,FALSE) -> 5
A20: 110 | B20: MEURTHE ET MOSELLE MEUSE | C20: 26 | D20: NANCY | E20: =VLOOKUP($C20,'RECAP SECT'!$G$6:$EV$253,3,FALSE) -> 79.3 | F20: =VLOOKUP($C20,'RECAP SECT'!$G$6:$EV$253,101,FALSE) -> 7.85 | G20: =VLOOKUP($C20,'RECAP SECT'!$G$6:$EV$253,102,FALSE) -> 7% | H20: =VLOOKUP($C20,'RECAP SECT'!$G$6:$EV$253,103,FALSE) -> 2 | I20: =VLOOKUP($C20,'RECAP SECT'!$G$6:$EV$253,104,FALSE) -> 6.65 | J20: =VLOOKUP($C20,'RECAP SECT'!$G$6:$EV$253,105,FALSE) -> 56% | K20: =VLOOKUP($C20,'RECAP SECT'!$G$6:$EV$253,106,FALSE) -> 15 | L20: =VLOOKUP($C20,'RECAP SECT'!$G$6:$EV$253,107,FALSE) -> 8.93 | M20: =VLOOKUP($C20,'RECAP SECT'!$G$6:$EV$253,108,FALSE) -> 13% | N20: =VLOOKUP($C20,'RECAP SECT'!$G$6:$EV$253,109,FALSE) -> 6 | O20: =VLOOKUP($C20,'RECAP SECT'!$G$6:$EV$253,110,FALSE) -> 26% | P20: =VLOOKUP($C20,'RECAP SECT'!$G$6:$EV$253,111,FALSE) -> 23% | Q20: =VLOOKUP($C20,'RECAP SECT'!$G$6:$EV$253,112,FALSE) -> 7
A21: 110 | B21: MEURTHE ET MOSELLE MEUSE | C21: 27 | D21: PONT A MOUSSON | E21: =VLOOKUP($C21,'RECAP SECT'!$G$6:$EV$253,3,FALSE) -> 87.7 | F21: =VLOOKUP($C21,'RECAP SECT'!$G$6:$EV$253,101,FALSE) -> 7.33 | G21: =VLOOKUP($C21,'RECAP SECT'!$G$6:$EV$253,102,FALSE) -> 13% | H21: =VLOOKUP($C21,'RECAP SECT'!$G$6:$EV$253,103,FALSE) -> 4 | I21: =VLOOKUP($C21,'RECAP SECT'!$G$6:$EV$253,104,FALSE) -> 8.32 | J21: =VLOOKUP($C21,'RECAP SECT'!$G$6:$EV$253,105,FALSE) -> 45% | K21: =VLOOKUP($C21,'RECAP SECT'!$G$6:$EV$253,106,FALSE) -> 10 | L21: =VLOOKUP($C21,'RECAP SECT'!$G$6:$EV$253,107,FALSE) -> 9.07 | M21: =VLOOKUP($C21,'RECAP SECT'!$G$6:$EV$253,108,FALSE) -> 11% | N21: =VLOOKUP($C21,'RECAP SECT'!$G$6:$EV$253,109,FALSE) -> 3 | O21: =VLOOKUP($C21,'RECAP SECT'!$G$6:$EV$253,110,FALSE) -> 24% | P21: =VLOOKUP($C21,'RECAP SECT'!$G$6:$EV$253,111,FALSE) -> 20% | Q21: =VLOOKUP($C21,'RECAP SECT'!$G$6:$EV$253,112,FALSE) -> 6
A22: 110 | B22: MEURTHE ET MOSELLE MEUSE | C22: 31 | D22: VERDUN | E22: =VLOOKUP($C22,'RECAP SECT'!$G$6:$EV$253,3,FALSE) -> 64.7 | F22: =VLOOKUP($C22,'RECAP SECT'!$G$6:$EV$253,101,FALSE) -> 4.90 | G22: =VLOOKUP($C22,'RECAP SECT'!$G$6:$EV$253,102,FALSE) -> 42% | H22: =VLOOKUP($C22,'RECAP SECT'!$G$6:$EV$253,103,FALSE) -> 13 | I22: =VLOOKUP($C22,'RECAP SECT'!$G$6:$EV$253,104,FALSE) -> 7.59 | J22: =VLOOKUP($C22,'RECAP SECT'!$G$6:$EV$253,105,FALSE) -> 50% | K22: =VLOOKUP($C22,'RECAP SECT'!$G$6:$EV$253,106,FALSE) -> 11 | L22: =VLOOKUP($C22,'RECAP SECT'!$G$6:$EV$253,107,FALSE) -> 8.33 | M22: =VLOOKUP($C22,'RECAP SECT'!$G$6:$EV$253,108,FALSE) -> 19% | N22: =VLOOKUP($C22,'RECAP SECT'!$G$6:$EV$253,109,FALSE) -> 12 | O22: =VLOOKUP($C22,'RECAP SECT'!$G$6:$EV$253,110,FALSE) -> 38% | P22: =VLOOKUP($C22,'RECAP SECT'!$G$6:$EV$253,111,FALSE) -> 34% | Q22: =VLOOKUP($C22,'RECAP SECT'!$G$6:$EV$253,112,FALSE) -> 13
A23: 160 | B23: MOSELLE | C23: 45 | D23: METZ | E23: =VLOOKUP($C23,'RECAP SECT'!$G$6:$EV$253,3,FALSE) -> 103.2 | F23: =VLOOKUP($C23,'RECAP SECT'!$G$6:$EV$253,101,FALSE) -> 5.52 | G23: =VLOOKUP($C23,'RECAP SECT'!$G$6:$EV$253,102,FALSE) -> 34% | H23: =VLOOKUP($C23,'RECAP SECT'!$G$6:$EV$253,103,FALSE) -> 10 | I23: =VLOOKUP($C23,'RECAP SECT'!$G$6:$EV$253,104,FALSE) -> 9.22 | J23: =VLOOKUP($C23,'RECAP SECT'!$G$6:$EV$253,105,FALSE) -> 39% | K23: =VLOOKUP($C23,'RECAP SECT'!$G$6:$EV$253,106,FALSE) -> 6 | L23: =VLOOKUP($C23,'RECAP SECT'!$G$6:$EV$253,107,FALSE) -> 7.16 | M23: =VLOOKUP($C23,'RECAP SECT'!$G$6:$EV$253,108,FALSE) -> 30% | N23: =VLOOKUP($C23,'RECAP SECT'!$G$6:$EV$253,109,FALSE) -> 16 | O23: =VLOOKUP($C23,'RECAP SECT'!$G$6:$EV$253,110,FALSE) -> 35% | P23: =VLOOKUP($C23,'RECAP SECT'!$G$6:$EV$253,111,FALSE) -> 32% | Q23: =VLOOKUP($C23,'RECAP SECT'!$G$6:$EV$253,112,FALSE) -> 11
A24: 160 | B24: MOSELLE | C24: 42 | D24: MOSELLE EST | E24: =VLOOKUP($C24,'RECAP SECT'!$G$6:$EV$253,3,FALSE) -> 86.1 | F24: =VLOOKUP($C24,'RECAP SECT'!$G$6:$EV$253,101,FALSE) -> 4.72 | G24: =VLOOKUP($C24,'RECAP SECT'!$G$6:$EV$253,102,FALSE) -> 44% | H24: =VLOOKUP($C24,'RECAP SECT'!$G$6:$EV$253,103,FALSE) -> 15 | I24: =VLOOKUP($C24,'RECAP SECT'!$G$6:$EV$253,104,FALSE) -> 8.78 | J24: =VLOOKUP($C24,'RECAP SECT'!$G$6:$EV$253,105,FALSE) -> 42% | K24: =VLOOKUP($C24,'RECAP SECT'!$G$6:$EV$253,106,FALSE) -> 7 | L24: =VLOOKUP($C24,'RECAP SECT'!$G$6:$EV$253,107,FALSE) -> 8.45 | M24: =VLOOKUP($C24,'RECAP SECT'!$G$6:$EV$253,108,FALSE) -> 17% | N24: =VLOOKUP($C24,'RECAP SECT'!$G$6:$EV$253,109,FALSE) -> 10 | O24: =VLOOKUP($C24,'RECAP SECT'!$G$6:$EV$253,110,FALSE) -> 35% | P24: =VLOOKUP($C24,'RECAP SECT'!$G$6:$EV$253,111,FALSE) -> 32% | Q24: =VLOOKUP($C24,'RECAP SECT'!$G$6:$EV$253,112,FALSE) -> 12
A25: 160 | B25: MOSELLE | C25: 44 | D25: MOSELLE NORD | E25: =VLOOKUP($C25,'RECAP SECT'!$G$6:$EV$253,3,FALSE) -> 80.5 | F25: =VLOOKUP($C25,'RECAP SECT'!$G$6:$EV$253,101,FALSE) -> 7.18 | G25: =VLOOKUP($C25,'RECAP SECT'!$G$6:$EV$253,102,FALSE) -> 15% | H25: =VLOOKUP($C25,'RECAP SECT'!$G$6:$EV$253,103,FALSE) -> 5 | I25: =VLOOKUP($C25,'RECAP SECT'!$G$6:$EV$253,104,FALSE) -> 9.84 | J25: =VLOOKUP($C25,'RECAP SECT'!$G$6:$EV$253,105,FALSE) -> 35% | K25: =VLOOKUP($C25,'RECAP SECT'!$G$6:$EV$253,106,FALSE) -> 5 | L25: =VLOOKUP($C25,'RECAP SECT'!$G$6:$EV$253,107,FALSE) -> 8.96 | M25: =VLOOKUP($C25,'RECAP SECT'!$G$6:$EV$253,108,FALSE) -> 12% | N25: =VLOOKUP($C25,'RECAP SECT'!$G$6:$EV$253,109,FALSE) -> 5 | O25: =VLOOKUP($C25,'RECAP SECT'!$G$6:$EV$253,110,FALSE) -> 21% | P25: =VLOOKUP($C25,'RECAP SECT'!$G$6:$EV$253,111,FALSE) -> 18% | Q25: =VLOOKUP($C25,'RECAP SECT'!$G$6:$EV$253,112,FALSE) -> 4
A26: 80 | B26: VOSGES | C26: 57 | D26: EPINAL | E26: =VLOOKUP($C26,'RECAP SECT'!$G$6:$EV$253,3,FALSE) -> 68.7 | F26: =VLOOKUP($C26,'RECAP SECT'!$G$6:$EV$253,101,FALSE) -> 6.39 | G26: =VLOOKUP($C26,'RECAP SECT'!$G$6:$EV$253,102,FALSE) -> 24% | H26: =VLOOKUP($C26,'RECAP SECT'!$G$6:$EV$253,103,FALSE) -> 6 | I26: =VLOOKUP($C26,'RECAP SECT'!$G$6:$EV$253,104,FALSE) -> 6.61 | J26: =VLOOKUP($C26,'RECAP SECT'!$G$6:$EV$253,105,FALSE) -> 56% | K26: =VLOOKUP($C26,'RECAP SECT'!$G$6:$EV$253,106,FALSE) -> 16 | L26: =VLOOKUP($C26,'RECAP SECT'!$G$6:$EV$253,107,FALSE) -> 8.74 | M26: =VLOOKUP($C26,'RECAP SECT'!$G$6:$EV$253,108,FALSE) -> 14% | N26: =VLOOKUP($C26,'RECAP SECT'!$G$6:$EV$253,109,FALSE) -> 7 | O26: =VLOOKUP($C26,'RECAP SECT'!$G$6:$EV$253,110,FALSE) -> 33% | P26: =VLOOKUP($C26,'RECAP SECT'!$G$6:$EV$253,111,FALSE) -> 29% | Q26: =VLOOKUP($C26,'RECAP SECT'!$G$6:$EV$253,112,FALSE) -> 9
A27: 80 | B27: VOSGES | C27: 55 | D27: SAINT DIE | E27: =VLOOKUP($C27,'RECAP SECT'!$G$6:$EV$253,3,FALSE) -> 58.0 | F27: =VLOOKUP($C27,'RECAP SECT'!$G$6:$EV$253,101,FALSE) -> 4.95 | G27: =VLOOKUP($C27,'RECAP SECT'!$G$6:$EV$253,102,FALSE) -> 41% | H27: =VLOOKUP($C27,'RECAP SECT'!$G$6:$EV$253,103,FALSE) -> 12 | I27: =VLOOKUP($C27,'RECAP SECT'!$G$6:$EV$253,104,FALSE) -> 8.32 | J27: =VLOOKUP($C27,'RECAP SECT'!$G$6:$EV$253,105,FALSE) -> 45% | K27: =VLOOKUP($C27,'RECAP SECT'!$G$6:$EV$253,106,FALSE) -> 9 | L27: =VLOOKUP($C27,'RECAP SECT'!$G$6:$EV$253,107,FALSE) -> 8.72 | M27: =VLOOKUP($C27,'RECAP SECT'!$G$6:$EV$253,108,FALSE) -> 15% | N27: =VLOOKUP($C27,'RECAP SECT'!$G$6:$EV$253,109,FALSE) -> 8 | O27: =VLOOKUP($C27,'RECAP SECT'!$G$6:$EV$253,110,FALSE) -> 35% | P27: =VLOOKUP($C27,'RECAP SECT'!$G$6:$EV$253,111,FALSE) -> 31% | Q27: =VLOOKUP($C27,'RECAP SECT'!$G$6:$EV$253,112,FALSE) -> 10
A28: Total CEGEE Directions Régionales | E28: =SUM(E10:E27) -> 1367

Sheet SE_CONQUETE
A1: Accueil | F1: BAROMETRE BDD - TERRITOIRES
F2: CONQUETE
F3: =ACCUEIL!H7 -> 2019-07-31
F7: Evolution nette clients Bancarisés Principaux | I7: Evolution nette relations PREMIUM | L7: Evolution nette clients Bancarisés Principaux équipés | O7: Evolution nette clients Pro actif équipés | R7: Total Conquête
G8: coef | H8: ='RECAP DIRCOM'!M4 -> 4% | J8: coef | K8: ='RECAP DIRCOM'!P4 -> 4% | M8: coef | N8: ='RECAP DIRCOM'!S4 -> 3% | P8: coef | Q8: ='RECAP DIRCOM'!V4 -> 4% | S8: coef | T8: ='RECAP DIRCOM'!Y4 -> 15%
A9: eds | B9: Direction | C9: eds | D9: Territoire | E9: ETP perf | F9: Nb / ETP | G9: % Ecart au 1er | H9: Rang | I9: Nb / ETP | J9: % Ecart au 1er | K9: Rang | L9: Nb / ETP | M9: % Ecart au 1er | N9: Rang | O9: Taux réal objectif | P9: % Ecart au 1er | Q9: Rang | R9: Moyenne ecart au 1er | S9: % Ecart au 1er | T9: Rang CEGEE
A10: 50 | B10: AUBE HAUTE MARNE | C10: 21 | D10: CHAUMONT | E10: =VLOOKUP($C10,'RECAP SECT'!$G$6:$EV$253,3,FALSE) -> 46.6 | F10: =VLOOKUP($C10,'RECAP SECT'!$G$6:$EV$253,5,FALSE) -> -0.56 | G10: =VLOOKUP($C10,'RECAP SECT'!$G$6:$EV$253,6,FALSE) -> 58% | H10: =VLOOKUP($C10,'RECAP SECT'!$G$6:$EV$253,7,FALSE) -> 3 | I10: =VLOOKUP($C10,'RECAP SECT'!$G$6:$EV$253,8,FALSE) -> 2.73 | J10: =VLOOKUP($C10,'RECAP SECT'!$G$6:$EV$253,9,FALSE) -> 0% | K10: =VLOOKUP($C10,'RECAP SECT'!$G$6:$EV$253,10,FALSE) -> 1 | L10: =VLOOKUP($C10,'RECAP SECT'!$G$6:$EV$253,11,FALSE) -> 3.33 | M10: =VLOOKUP($C10,'RECAP SECT'!$G$6:$EV$253,12,FALSE) -> 26% | N10: =VLOOKUP($C10,'RECAP SECT'!$G$6:$EV$253,13,FALSE) -> 2 | O10: =VLOOKUP($C10,'RECAP SECT'!$G$6:$EV$253,14,FALSE) -> -25% | P10: =VLOOKUP($C10,'RECAP SECT'!$G$6:$EV$253,15,FALSE) -> 111% | Q10: =VLOOKUP($C10,'RECAP SECT'!$G$6:$EV$253,16,FALSE) -> 16 | R10: =VLOOKUP($C10,'RECAP SECT'!$G$6:$EV$253,17,FALSE) -> 50% | S10: =VLOOKUP($C10,'RECAP SECT'!$G$6:$EV$253,18,FALSE) -> 35% | T10: =VLOOKUP($C10,'RECAP SECT'!$G$6:$EV$253,19,FALSE) -> 2
A11: 50 | B11: AUBE HAUTE MARNE | C11: 14 | D11: TROYES | E11: =VLOOKUP($C11,'RECAP SECT'!$G$6:$EV$253,3,FALSE) -> 78.5 | F11: =VLOOKUP($C11,'RECAP SECT'!$G$6:$EV$253,5,FALSE) -> -1.95 | G11: =VLOOKUP($C11,'RECAP SECT'!$G$6:$EV$253,6,FALSE) -> 99% | H11: =VLOOKUP($C11,'RECAP SECT'!$G$6:$EV$253,7,FALSE) -> 7 | I11: =VLOOKUP($C11,'RECAP SECT'!$G$6:$EV$253,8,FALSE) -> 1.75 | J11: =VLOOKUP($C11,'RECAP SECT'!$G$6:$EV$253,9,FALSE) -> 36% | K11: =VLOOKUP($C11,'RECAP SECT'!$G$6:$EV$253,10,FALSE) -> 11 | L11: =VLOOKUP($C11,'RECAP SECT'!$G$6:$EV$253,11,FALSE) -> 2.15 | M11: =VLOOKUP($C11,'RECAP SECT'!$G$6:$EV$253,12,FALSE) -> 50% | N11: =VLOOKUP($C11,'RECAP SECT'!$G$6:$EV$253,13,FALSE) -> 3 | O11: =VLOOKUP($C11,'RECAP SECT'!$G$6:$EV$253,14,FALSE) -> 18% | P11: =VLOOKUP($C11,'RECAP SECT'!$G$6:$EV$253,15,FALSE) -> 73% | Q11: =VLOOKUP($C11,'RECAP SECT'!$G$6:$EV$253,16,FALSE) -> 8 | R11: =VLOOKUP($C11,'RECAP SECT'!$G$6:$EV$253,17,FALSE) -> 66% | S11: =VLOOKUP($C11,'RECAP SECT'!$G$6:$EV$253,18,FALSE) -> 50% | T11: =VLOOKUP($C11,'RECAP SECT'!$G$6:$EV$253,19,FALSE) -> 5
A12: 262 | B12: BAS-RHIN | C12: 5060 | D12: HAGUENAU | E12: =VLOOKUP($C12,'RECAP SECT'!$G$6:$EV$253,3,FALSE) -> 88.7 | F12: =VLOOKUP($C12,'RECAP SECT'!$G$6:$EV$253,5,FALSE) -> -2.15 | G12: =VLOOKUP($C12,'RECAP SECT'!$G$6:$EV$253,6,FALSE) -> 105% | H12: =VLOOKUP($C12,'RECAP SECT'!$G$6:$EV$253,7,FALSE) -> 9 | I12: =VLOOKUP($C12,'RECAP SECT'!$G$6:$EV$253,8,FALSE) -> 2.20 | J12: =VLOOKUP($C12,'RECAP SECT'!$G$6:$EV$253,9,FALSE) -> 19% | K12: =VLOOKUP($C12,'RECAP SECT'!$G$6:$EV$253,10,FALSE) -> 5 | L12: =VLOOKUP($C12,'RECAP SECT'!$G$6:$EV$253,11,FALSE) -> -1.54 | M12: =VLOOKUP($C12,'RECAP SECT'!$G$6:$EV$253,12,FALSE) -> 129% | N12: =VLOOKUP($C12,'RECAP SECT'!$G$6:$EV$253,13,FALSE) -> 13 | O12: =VLOOKUP($C12,'RECAP SECT'!$G$6:$EV$253,14,FALSE) -> 0% | P12: =VLOOKUP($C12,'RECAP SECT'!$G$6:$EV$253,15,FALSE) -> 89% | Q12: =VLOOKUP($C12,'RECAP SECT'!$G$6:$EV$253,16,FALSE) -> 11 | R12: =VLOOKUP($C12,'RECAP SECT'!$G$6:$EV$253,17,FALSE) -> 83% | S12: =VLOOKUP($C12,'RECAP SECT'!$G$6:$EV$253,18,FALSE) -> 67% | T12: =VLOOKUP($C12,'RECAP SECT'!$G$6:$EV$253,19,FALSE) -> 13
A13: 262 | B13: BAS-RHIN | C13: 5101 | D13: SELESTAT | E13: =VLOOKUP($C13,'RECAP SECT'!$G$6:$EV$253,3,FALSE) -> 75.1 | F13: =VLOOKUP($C13,'RECAP SECT'!$G$6:$EV$253,5,FALSE) -> -3.54 | G13: =VLOOKUP($C13,'RECAP SECT'!$G$6:$EV$253,6,FALSE) -> 146% | H13: =VLOOKUP($C13,'RECAP SECT'!$G$6:$EV$253,7,FALSE) -> 16 | I13: =VLOOKUP($C13,'RECAP SECT'!$G$6:$EV$253,8,FALSE) -> 2.46 | J13: =VLOOKUP($C13,'RECAP SECT'!$G$6:$EV$253,9,FALSE) -> 10% | K13: =VLOOKUP($C13,'RECAP SECT'!$G$6:$EV$253,10,FALSE) -> 3 | L13: =VLOOKUP($C13,'RECAP SECT'!$G$6:$EV$253,11,FALSE) -> -2.46 | M13: =VLOOKUP($C13,'RECAP SECT'!$G$6:$EV$253,12,FALSE) -> 148% | N13: =VLOOKUP($C13,'RECAP SECT'!$G$6:$EV$253,13,FALSE) -> 17 | O13: =VLOOKUP($C13,'RECAP SECT'!$G$6:$EV$253,14,FALSE) -> -40% | P13: =VLOOKUP($C13,'RECAP SECT'!$G$6:$EV$253,15,FALSE) -> 125% | Q13: =VLOOKUP($C13,'RECAP SECT'!$G$6:$EV$253,16,FALSE) -> 17 | R13: =VLOOKUP($C13,'RECAP SECT'!$G$6:$EV$253,17,FALSE) -> 104% | S13: =VLOOKUP($C13,'RECAP SECT'!$G$6:$EV$253,18,FALSE) -> 89% | T13: =VLOOKUP($C13,'RECAP SECT'!$G$6:$EV$253,19,FALSE) -> 18
A14: 262 | B14: BAS-RHIN | C14: 5006 | D14: STRASBOURG | E14: =VLOOKUP($C14,'RECAP SECT'!$G$6:$EV$253,3,FALSE) -> 92.7 | F14: =VLOOKUP($C14,'RECAP SECT'!$G$6:$EV$253,5,FALSE) -> -2.31 | G14: =VLOOKUP($C14,'RECAP SECT'!$G$6:$EV$253,6,FALSE) -> 110% | H14: =VLOOKUP($C14,'RECAP SECT'!$G$6:$EV$253,7,FALSE) -> 10 | I14: =VLOOKUP($C14,'RECAP SECT'!$G$6:$EV$253,8,FALSE) -> 1.61 | J14: =VLOOKUP($C14,'RECAP SECT'!$G$6:$EV$253,9,FALSE) -> 41% | K14: =VLOOKUP($C14,'RECAP SECT'!$G$6:$EV$253,10,FALSE) -> 15 | L14: =VLOOKUP($C14,'RECAP SECT'!$G$6:$EV$253,11,FALSE) -> -2.34 | M14: =VLOOKUP($C14,'RECAP SECT'!$G$6:$EV$253,12,FALSE) -> 146% | N14: =VLOOKUP($C14,'RECAP SECT'!$G$6:$EV$253,13,FALSE) -> 16 | O14: =VLOOKUP($C14,'RECAP SECT'!$G$6:$EV$253,14,FALSE) -> 49% | P14: =VLOOKUP($C14,'RECAP SECT'!$G$6:$EV$253,15,FALSE) -> 46% | Q14: =VLOOKUP($C14,'RECAP SECT'!$G$6:$EV$253,16,FALSE) -> 7 | R14: =VLOOKUP($C14,'RECAP SECT'!$G$6:$EV$253,17,FALSE) -> 81% | S14: =VLOOKUP($C14,'RECAP SECT'!$G$6:$EV$253,18,FALSE) -> 66% | T14: =VLOOKUP($C14,'RECAP SECT'!$G$6:$EV$253,19,FALSE) -> 12
A15: 264 | B15: HAUT-RHIN | C15: 5130 | D15: COLMAR | E15: =VLOOKUP($C15,'RECAP SECT'!$G$6:$EV$253,3,FALSE) -> 76.1 | F15: =VLOOKUP($C15,'RECAP SECT'!$G$6:$EV$253,5,FALSE) -> -3.42 | G15: =VLOOKUP($C15,'RECAP SECT'!$G$6:$EV$253,6,FALSE) -> 142% | H15: =VLOOKUP($C15,'RECAP SECT'!$G$6:$EV$253,7,FALSE) -> 14 | I15: =VLOOKUP($C15,'RECAP SECT'!$G$6:$EV$253,8,FALSE) -> 1.89 | J15: =VLOOKUP($C15,'RECAP SECT'!$G$6:$EV$253,9,FALSE) -> 31% | K15: =VLOOKUP($C15,'RECAP SECT'!$G$6:$EV$253,10,FALSE) -> 8 | L15: =VLOOKUP($C15,'RECAP SECT'!$G$6:$EV$253,11,FALSE) -> -2.15 | M15: =VLOOKUP($C15,'RECAP SECT'!$G$6:$EV$253,12,FALSE) -> 142% | N15: =VLOOKUP($C15,'RECAP SECT'!$G$6:$EV$253,13,FALSE) -> 15 | O15: =VLOOKUP($C15,'RECAP SECT'!$G$6:$EV$253,14,FALSE) -> 16% | P15: =VLOOKUP($C15,'RECAP SECT'!$G$6:$EV$253,15,FALSE) -> 75% | Q15: =VLOOKUP($C15,'RECAP SECT'!$G$6:$EV$253,16,FALSE) -> 9 | R15: =VLOOKUP($C15,'RECAP SECT'!$G$6:$EV$253,17,FALSE) -> 95% | S15: =VLOOKUP($C15,'RECAP SECT'!$G$6:$EV$253,18,FALSE) -> 79% | T15: =VLOOKUP($C15,'RECAP SECT'!$G$6:$EV$253,19,FALSE) -> 16
A16: 264 | B16: HAUT-RHIN | C16: 5169 | D16: MULHOUSE | E16: =VLOOKUP($C16,'RECAP SECT'!$G$6:$EV$253,3,FALSE) -> 78.1 | F16: =VLOOKUP($C16,'RECAP SECT'!$G$6:$EV$253,5,FALSE) -> -3.55 | G16: =VLOOKUP($C16,'RECAP SECT'!$G$6:$EV$253,6,FALSE) -> 146% | H16: =VLOOKUP($C16,'RECAP SECT'!$G$6:$EV$253,7,FALSE) -> 17 | I16: =VLOOKUP($C16,'RECAP SECT'!$G$6:$EV$253,8,FALSE) -> 2.60 | J16: =VLOOKUP($C16,'RECAP SECT'!$G$6:$EV$253,9,FALSE) -> 5% | K16: =VLOOKUP($C16,'RECAP SECT'!$G$6:$EV$253,10,FALSE) -> 2 | L16: =VLOOKUP($C16,'RECAP SECT'!$G$6:$EV$253,11,FALSE) -> -2.55 | M16: =VLOOKUP($C16,'RECAP SECT'!$G$6:$EV$253,12,FALSE) -> 150% | N16: =VLOOKUP($C16,'RECAP SECT'!$G$6:$EV$253,13,FALSE) -> 18 | O16: =VLOOKUP($C16,'RECAP SECT'!$G$6:$EV$253,14,FALSE) -> -4% | P16: =VLOOKUP($C16,'RECAP SECT'!$G$6:$EV$253,15,FALSE) -> 92% | Q16: =VLOOKUP($C16,'RECAP SECT'!$G$6:$EV$253,16,FALSE) -> 13 | R16: =VLOOKUP($C16,'RECAP SECT'!$G$6:$EV$253,17,FALSE) -> 95% | S16: =VLOOKUP($C16,'RECAP SECT'!$G$6:$EV$253,18,FALSE) -> 80% | T16: =VLOOKUP($C16,'RECAP SECT'!$G$6:$EV$253,19,FALSE) -> 17
A17: 30 | B17: MARNE-ARDENNES | C17: 6 | D17: CHALONS EN CHAMPAGNE | E17: =VLOOKUP($C17,'RECAP SECT'!$G$6:$EV$253,3,FALSE) -> 49.2 | F17: =VLOOKUP($C17,'RECAP SECT'!$G$6:$EV$253,5,FALSE) -> -1.93 | G17: =VLOOKUP($C17,'RECAP SECT'!$G$6:$EV$253,6,FALSE) -> 98% | H17: =VLOOKUP($C17,'RECAP SECT'!$G$6:$EV$253,7,FALSE) -> 6 | I17: =VLOOKUP($C17,'RECAP SECT'!$G$6:$EV$253,8,FALSE) -> 1.75 | J17: =VLOOKUP($C17,'RECAP SECT'!$G$6:$EV$253,9,FALSE) -> 36% | K17: =VLOOKUP($C17,'RECAP SECT'!$G$6:$EV$253,10,FALSE) -> 10 | L17: =VLOOKUP($C17,'RECAP SECT'!$G$6:$EV$253,11,FALSE) -> 0.16 | M17: =VLOOKUP($C17,'RECAP SECT'!$G$6:$EV$253,12,FALSE) -> 93% | N17: =VLOOKUP($C17,'RECAP SECT'!$G$6:$EV$253,13,FALSE) -> 8 | O17: =VLOOKUP($C17,'RECAP SECT'!$G$6:$EV$253,14,FALSE) -> -68% | P17: =VLOOKUP($C17,'RECAP SECT'!$G$6:$EV$253,15,FALSE) -> 150% | Q17: =VLOOKUP($C17,'RECAP SECT'!$G$6:$EV$253,16,FALSE) -> 18 | R17: =VLOOKUP($C17,'RECAP SECT'!$G$6:$EV$253,17,FALSE) -> 94% | S17: =VLOOKUP($C17,'RECAP SECT'!$G$6:$EV$253,18,FALSE) -> 79% | T17: =VLOOKUP($C17,'RECAP SECT'!$G$6:$EV$253,19,FALSE) -> 15
A18: 30 | B18: MARNE-ARDENNES | C18: 2 | D18: CHARLEVILLE MEZIERES | E18: =VLOOKUP($C18,'RECAP SECT'!$G$6:$EV$253,3,FALSE) -> 62.6 | F18: =VLOOKUP($C18,'RECAP SECT'!$G$6:$EV$253,5,FALSE) -> 1.39 | G18: =VLOOKUP($C18,'RECAP SECT'!$G$6:$EV$253,6,FALSE) -> 0% | H18: =VLOOKUP($C18,'RECAP SECT'!$G$6:$EV$253,7,FALSE) -> 1 | I18: =VLOOKUP($C18,'RECAP SECT'!$G$6:$EV$253,8,FALSE) -> 2.14 | J18: =VLOOKUP($C18,'RECAP SECT'!$G$6:$EV$253,9,FALSE) -> 22% | K18: =VLOOKUP($C18,'RECAP SECT'!$G$6:$EV$253,10,FALSE) -> 6 | L18: =VLOOKUP($C18,'RECAP SECT'!$G$6:$EV$253,11,FALSE) -> 4.53 | M18: =VLOOKUP($C18,'RECAP SECT'!$G$6:$EV$253,12,FALSE) -> 0% | N18: =VLOOKUP($C18,'RECAP SECT'!$G$6:$EV$253,13,FALSE) -> 1 | O18: =VLOOKUP($C18,'RECAP SECT'!$G$6:$EV$253,14,FALSE) -> 60% | P18: =VLOOKUP($C18,'RECAP SECT'!$G$6:$EV$253,15,FALSE) -> 36% | Q18: =VLOOKUP($C18,'RECAP SECT'!$G$6:$EV$253,16,FALSE) -> 5 | R18: =VLOOKUP($C18,'RECAP SECT'!$G$6:$EV$253,17,FALSE) -> 15% | S18: =VLOOKUP($C18,'RECAP SECT'!$G$6:$EV$253,18,FALSE) -> 0% | T18: =VLOOKUP($C18,'RECAP SECT'!$G$6:$EV$253,19,FALSE) -> 1
A19: 30 | B19: MARNE-ARDENNES | C19: 11 | D19: REIMS | E19: =VLOOKUP($C19,'RECAP SECT'!$G$6:$EV$253,3,FALSE) -> 91.1 | F19: =VLOOKUP($C19,'RECAP SECT'!$G$6:$EV$253,5,FALSE) -> -0.33 | G19: =VLOOKUP($C19,'RECAP SECT'!$G$6:$EV$253,6,FALSE) -> 51% | H19: =VLOOKUP($C19,'RECAP SECT'!$G$6:$EV$253,7,FALSE) -> 2 | I19: =VLOOKUP($C19,'RECAP SECT'!$G$6:$EV$253,8,FALSE) -> 2.42 | J19: =VLOOKUP($C19,'RECAP SECT'!$G$6:$EV$253,9,FALSE) -> 11% | K19: =VLOOKUP($C19,'RECAP SECT'!$G$6:$EV$253,10,FALSE) -> 4 | L19: =VLOOKUP($C19,'RECAP SECT'!$G$6:$EV$253,11,FALSE) -> 1.80 | M19: =VLOOKUP($C19,'RECAP SECT'!$G$6:$EV$253,12,FALSE) -> 58% | N19: =VLOOKUP($C19,'RECAP SECT'!$G$6:$EV$253,13,FALSE) -> 4 | O19: =VLOOKUP($C19,'RECAP SECT'!$G$6:$EV$253,14,FALSE) -> -13% | P19: =VLOOKUP($C19,'RECAP SECT'!$G$6:$EV$253,15,FALSE) -> 100% | Q19: =VLOOKUP($C19,'RECAP SECT'!$G$6:$EV$253,16,FALSE) -> 15 | R19: =VLOOKUP($C19,'RECAP SECT'!$G$6:$EV$253,17,FALSE) -> 55% | S19: =VLOOKUP($C19,'RECAP SECT'!$G$6:$EV$253,18,FALSE) -> 40% | T19: =VLOOKUP($C19,'RECAP SECT'!$G$6:$EV$253,19,FALSE) -> 3
A20: 110 | B20: MEURTHE ET MOSELLE MEUSE | C20: 26 | D20: NANCY | E20: =VLOOKUP($C20,'RECAP SECT'!$G$6:$EV$253,3,FALSE) -> 79.3 | F20: =VLOOKUP($C20,'RECAP SECT'!$G$6:$EV$253,5,FALSE) -> -2.07 | G20: =VLOOKUP($C20,'RECAP SECT'!$G$6:$EV$253,6,FALSE) -> 102% | H20: =VLOOKUP($C20,'RECAP SECT'!$G$6:$EV$253,7,FALSE) -> 8 | I20: =VLOOKUP($C20,'RECAP SECT'!$G$6:$EV$253,8,FALSE) -> 1.75 | J20: =VLOOKUP($C20,'RECAP SECT'!$G$6:$EV$253,9,FALSE) -> 36% | K20: =VLOOKUP($C20,'RECAP SECT'!$G$6:$EV$253,10,FALSE) -> 9 | L20: =VLOOKUP($C20,'RECAP SECT'!$G$6:$EV$253,11,FALSE) -> 0.11 | M20: =VLOOKUP($C20,'RECAP SECT'!$G$6:$EV$253,12,FALSE) -> 94% | N20: =VLOOKUP($C20,'RECAP SECT'!$G$6:$EV$253,13,FALSE) -> 10 | O20: =VLOOKUP($C20,'RECAP SECT'!$G$6:$EV$253,14,FALSE) -> -4% | P20: =VLOOKUP($C20,'RECAP SECT'!$G$6:$EV$253,15,FALSE) -> 93% | Q20: =VLOOKUP($C20,'RECAP SECT'!$G$6:$EV$253,16,FALSE) -> 14 | R20: =VLOOKUP($C20,'RECAP SECT'!$G$6:$EV$253,17,FALSE) -> 80% | S20: =VLOOKUP($C20,'RECAP SECT'!$G$6:$EV$253,18,FALSE) -> 65% | T20: =VLOOKUP($C20,'RECAP SECT'!$G$6:$EV$253,19,FALSE) -> 11
A21: 110 | B21: MEURTHE ET MOSELLE MEUSE | C21: 27 | D21: PONT A MOUSSON | E21: =VLOOKUP($C21,'RECAP SECT'!$G$6:$EV$253,3,FALSE) -> 87.7 | F21: =VLOOKUP($C21,'RECAP SECT'!$G$6:$EV$253,5,FALSE) -> -2.49 | G21: =VLOOKUP($C21,'RECAP SECT'!$G$6:$EV$253,6,FALSE) -> 115% | H21: =VLOOKUP($C21,'RECAP SECT'!$G$6:$EV$253,7,FALSE) -> 11 | I21: =VLOOKUP($C21,'RECAP SECT'!$G$6:$EV$253,8,FALSE) -> 1.56 | J21: =VLOOKUP($C21,'RECAP SECT'!$G$6:$EV$253,9,FALSE) -> 43% | K21: =VLOOKUP($C21,'RECAP SECT'!$G$6:$EV$253,10,FALSE) -> 17 | L21: =VLOOKUP($C21,'RECAP SECT'!$G$6:$EV$253,11,FALSE) -> 0.72 | M21: =VLOOKUP($C21,'RECAP SECT'!$G$6:$EV$253,12,FALSE) -> 81% | N21: =VLOOKUP($C21,'RECAP SECT'!$G$6:$EV$253,13,FALSE) -> 6 | O21: =VLOOKUP($C21,'RECAP SECT'!$G$6:$EV$253,14,FALSE) -> 63% | P21: =VLOOKUP($C21,'RECAP SECT'!$G$6:$EV$253,15,FALSE) -> 33% | Q21: =VLOOKUP($C21,'RECAP SECT'!$G$6:$EV$253,16,FALSE) -> 4 | R21: =VLOOKUP($C21,'RECAP SECT'!$G$6:$EV$253,17,FALSE) -> 67% | S21: =VLOOKUP($C21,'RECAP SECT'!$G$6:$EV$253,18,FALSE) -> 52% | T21: =VLOOKUP($C21,'RECAP SECT'!$G$6:$EV$253,19,FALSE) -> 7
A22: 110 | B22: MEURTHE ET MOSELLE MEUSE | C22: 31 | D22: VERDUN | E22: =VLOOKUP($C22,'RECAP SECT'!$G$6:$EV$253,3,FALSE) -> 64.7 | F22: =VLOOKUP($C22,'RECAP SECT'!$G$6:$EV$253,5,FALSE) -> -1.45 | G22: =VLOOKUP($C22,'RECAP SECT'!$G$6:$EV$253,6,FALSE) -> 84% | H22: =VLOOKUP($C22,'RECAP SECT'!$G$6:$EV$253,7,FALSE) -> 4 | I22: =VLOOKUP($C22,'RECAP SECT'!$G$6:$EV$253,8,FALSE) -> 1.68 | J22: =VLOOKUP($C22,'RECAP SECT'!$G$6:$EV$253,9,FALSE) -> 38% | K22: =VLOOKUP($C22,'RECAP SECT'!$G$6:$EV$253,10,FALSE) -> 12 | L22: =VLOOKUP($C22,'RECAP SECT'!$G$6:$EV$253,11,FALSE) -> -1.25 | M22: =VLOOKUP($C22,'RECAP SECT'!$G$6:$EV$253,12,FALSE) -> 123% | N22: =VLOOKUP($C22,'RECAP SECT'!$G$6:$EV$253,13,FALSE) -> 12 | O22: =VLOOKUP($C22,'RECAP SECT'!$G$6:$EV$253,14,FALSE) -> 11% | P22: =VLOOKUP($C22,'RECAP SECT'!$G$6:$EV$253,15,FALSE) -> 80% | Q22: =VLOOKUP($C22,'RECAP SECT'!$G$6:$EV$253,16,FALSE) -> 10 | R22: =VLOOKUP($C22,'RECAP SECT'!$G$6:$EV$253,17,FALSE) -> 78% | S22: =VLOOKUP($C22,'RECAP SECT'!$G$6:$EV$253,18,FALSE) -> 63% | T22: =VLOOKUP($C22,'RECAP SECT'!$G$6:$EV$253,19,FALSE) -> 10
A23: 160 | B23: MOSELLE | C23: 45 | D23: METZ | E23: =VLOOKUP($C23,'RECAP SECT'!$G$6:$EV$253,3,FALSE) -> 103.2 | F23: =VLOOKUP($C23,'RECAP SECT'!$G$6:$EV$253,5,FALSE) -> -2.66 | G23: =VLOOKUP($C23,'RECAP SECT'!$G$6:$EV$253,6,FALSE) -> 120% | H23: =VLOOKUP($C23,'RECAP SECT'!$G$6:$EV$253,7,FALSE) -> 12 | I23: =VLOOKUP($C23,'RECAP SECT'!$G$6:$EV$253,8,FALSE) -> 1.63 | J23: =VLOOKUP($C23,'RECAP SECT'!$G$6:$EV$253,9,FALSE) -> 40% | K23: =VLOOKUP($C23,'RECAP SECT'!$G$6:$EV$253,10,FALSE) -> 14 | L23: =VLOOKUP($C23,'RECAP SECT'!$G$6:$EV$253,11,FALSE) -> 1.16 | M23: =VLOOKUP($C23,'RECAP SECT'!$G$6:$EV$253,12,FALSE) -> 71% | N23: =VLOOKUP($C23,'RECAP SECT'!$G$6:$EV$253,13,FALSE) -> 5 | O23: =VLOOKUP($C23,'RECAP SECT'!$G$6:$EV$253,14,FALSE) -> 71% | P23: =VLOOKUP($C23,'RECAP SECT'!$G$6:$EV$253,15,FALSE) -> 26% | Q23: =VLOOKUP($C23,'RECAP SECT'!$G$6:$EV$253,16,FALSE) -> 3 | R23: =VLOOKUP($C23,'RECAP SECT'!$G$6:$EV$253,17,FALSE) -> 64% | S23: =VLOOKUP($C23,'RECAP SECT'!$G$6:$EV$253,18,FALSE) -> 49% | T23: =VLOOKUP($C23,'RECAP SECT'!$G$6:$EV$253,19,FALSE) -> 4
A24: 160 | B24: MOSELLE | C24: 42 | D24: MOSELLE EST | E24: =VLOOKUP($C24,'RECAP SECT'!$G$6:$EV$253,3,FALSE) -> 86.1 | F24: =VLOOKUP($C24,'RECAP SECT'!$G$6:$EV$253,5,FALSE) -> -1.90 | G24: =VLOOKUP($C24,'RECAP SECT'!$G$6:$EV$253,6,FALSE) -> 98% | H24: =VLOOKUP($C24,'RECAP SECT'!$G$6:$EV$253,7,FALSE) -> 5 | I24: =VLOOKUP($C24,'RECAP SECT'!$G$6:$EV$253,8,FALSE) -> 1.66 | J24: =VLOOKUP($C24,'RECAP SECT'!$G$6:$EV$253,9,FALSE) -> 39% | K24: =VLOOKUP($C24,'RECAP SECT'!$G$6:$EV$253,10,FALSE) -> 13 | L24: =VLOOKUP($C24,'RECAP SECT'!$G$6:$EV$253,11,FALSE) -> 0.14 | M24: =VLOOKUP($C24,'RECAP SECT'!$G$6:$EV$253,12,FALSE) -> 93% | N24: =VLOOKUP($C24,'RECAP SECT'!$G$6:$EV$253,13,FALSE) -> 9 | O24: =VLOOKUP($C24,'RECAP SECT'!$G$6:$EV$253,14,FALSE) -> 54% | P24: =VLOOKUP($C24,'RECAP SECT'!$G$6:$EV$253,15,FALSE) -> 41% | Q24: =VLOOKUP($C24,'RECAP SECT'!$G$6:$EV$253,16,FALSE) -> 6 | R24: =VLOOKUP($C24,'RECAP SECT'!$G$6:$EV$253,17,FALSE) -> 66% | S24: =VLOOKUP($C24,'RECAP SECT'!$G$6:$EV$253,18,FALSE) -> 51% | T24: =VLOOKUP($C24,'RECAP SECT'!$G$6:$EV$253,19,FALSE) -> 6
A25: 160 | B25: MOSELLE | C25: 44 | D25: MOSELLE NORD | E25: =VLOOKUP($C25,'RECAP SECT'!$G$6:$EV$253,3,FALSE) -> 80.5 | F25: =VLOOKUP($C25,'RECAP SECT'!$G$6:$EV$253,5,FALSE) -> -3.68 | G25: =VLOOKUP($C25,'RECAP SECT'!$G$6:$EV$253,6,FALSE) -> 150% | H25: =VLOOKUP($C25,'RECAP SECT'!$G$6:$EV$253,7,FALSE) -> 18 | I25: =VLOOKUP($C25,'RECAP SECT'!$G$6:$EV$253,8,FALSE) -> 1.37 | J25: =VLOOKUP($C25,'RECAP SECT'!$G$6:$EV$253,9,FALSE) -> 50% | K25: =VLOOKUP($C25,'RECAP SECT'!$G$6:$EV$253,10,FALSE) -> 18 | L25: =VLOOKUP($C25,'RECAP SECT'!$G$6:$EV$253,11,FALSE) -> -0.63 | M25: =VLOOKUP($C25,'RECAP SECT'!$G$6:$EV$253,12,FALSE) -> 109% | N25: =VLOOKUP($C25,'RECAP SECT'!$G$6:$EV$253,13,FALSE) -> 11 | O25: =VLOOKUP($C25,'RECAP SECT'!$G$6:$EV$253,14,FALSE) -> 100% | P25: =VLOOKUP($C25,'RECAP SECT'!$G$6:$EV$253,15,FALSE) -> 0% | Q25: =VLOOKUP($C25,'RECAP SECT'!$G$6:$EV$253,16,FALSE) -> 1 | R25: =VLOOKUP($C25,'RECAP SECT'!$G$6:$EV$253,17,FALSE) -> 75% | S25: =VLOOKUP($C25,'RECAP SECT'!$G$6:$EV$253,18,FALSE) -> 60% | T25: =VLOOKUP($C25,'RECAP SECT'!$G$6:$EV$253,19,FALSE) -> 9
A26: 80 | B26: VOSGES | C26: 57 | D26: EPINAL | E26: =VLOOKUP($C26,'RECAP SECT'!$G$6:$EV$253,3,FALSE) -> 68.7 | F26: =VLOOKUP($C26,'RECAP SECT'!$G$6:$EV$253,5,FALSE) -> -3.49 | G26: =VLOOKUP($C26,'RECAP SECT'!$G$6:$EV$253,6,FALSE) -> 145% | H26: =VLOOKUP($C26,'RECAP SECT'!$G$6:$EV$253,7,FALSE) -> 15 | I26: =VLOOKUP($C26,'RECAP SECT'!$G$6:$EV$253,8,FALSE) -> 1.57 | J26: =VLOOKUP($C26,'RECAP SECT'!$G$6:$EV$253,9,FALSE) -> 42% | K26: =VLOOKUP($C26,'RECAP SECT'!$G$6:$EV$253,10,FALSE) -> 16 | L26: =VLOOKUP($C26,'RECAP SECT'!$G$6:$EV$253,11,FALSE) -> 0.55 | M26: =VLOOKUP($C26,'RECAP SECT'!$G$6:$EV$253,12,FALSE) -> 84% | N26: =VLOOKUP($C26,'RECAP SECT'!$G$6:$EV$253,13,FALSE) -> 7 | O26: =VLOOKUP($C26,'RECAP SECT'!$G$6:$EV$253,14,FALSE) -> 0% | P26: =VLOOKUP($C26,'RECAP SECT'!$G$6:$EV$253,15,FALSE) -> 89% | Q26: =VLOOKUP($C26,'RECAP SECT'!$G$6:$EV$253,16,FALSE) -> 11 | R26: =VLOOKUP($C26,'RECAP SECT'!$G$6:$EV$253,17,FALSE) -> 90% | S26: =VLOOKUP($C26,'RECAP SECT'!$G$6:$EV$253,18,FALSE) -> 75% | T26: =VLOOKUP($C26,'RECAP SECT'!$G$6:$EV$253,19,FALSE) -> 14
A27: 80 | B27: VOSGES | C27: 55 | D27: SAINT DIE | E27: =VLOOKUP($C27,'RECAP SECT'!$G$6:$EV$253,3,FALSE) -> 58.0 | F27: =VLOOKUP($C27,'RECAP SECT'!$G$6:$EV$253,5,FALSE) -> -2.69 | G27: =VLOOKUP($C27,'RECAP SECT'!$G$6:$EV$253,6,FALSE) -> 121% | H27: =VLOOKUP($C27,'RECAP SECT'!$G$6:$EV$253,7,FALSE) -> 13 | I27: =VLOOKUP($C27,'RECAP SECT'!$G$6:$EV$253,8,FALSE) -> 1.95 | J27: =VLOOKUP($C27,'RECAP SECT'!$G$6:$EV$253,9,FALSE) -> 29% | K27: =VLOOKUP($C27,'RECAP SECT'!$G$6:$EV$253,10,FALSE) -> 7 | L27: =VLOOKUP($C27,'RECAP SECT'!$G$6:$EV$253,11,FALSE) -> -1.55 | M27: =VLOOKUP($C27,'RECAP SECT'!$G$6:$EV$253,12,FALSE) -> 129% | N27: =VLOOKUP($C27,'RECAP SECT'!$G$6:$EV$253,13,FALSE) -> 14 | O27: =VLOOKUP($C27,'RECAP SECT'!$G$6:$EV$253,14,FALSE) -> 83% | P27: =VLOOKUP($C27,'RECAP SECT'!$G$6:$EV$253,15,FALSE) -> 15% | Q27: =VLOOKUP($C27,'RECAP SECT'!$G$6:$EV$253,16,FALSE) -> 2 | R27: =VLOOKUP($C27,'RECAP SECT'!$G$6:$EV$253,17,FALSE) -> 70% | S27: =VLOOKUP($C27,'RECAP SECT'!$G$6:$EV$253,18,FALSE) -> 54% | T27: =VLOOKUP($C27,'RECAP SECT'!$G$6:$EV$253,19,FALSE) -> 8
A28: Total CEGEE Directions Régionales | E28: =SUM(E10:E27) -> 1367

Sheet SE_RISQUES
A1: Accueil | F1: BAROMETRE BDD - TERRITOIRES
F2: RISQUES
F3: =ACCUEIL!H7 -> 2019-07-31
F6: Complétude conformité et fiabilisation | L6: Traitement et qualité du traitement des alertes Vigiclient | O6: Total Risques
F7: Nouvelles EER sur flux BDD | I7: EER sur flux cumulés et stock
G8: coef | H8: ='RECAP DIRCOM'!DW4 -> 3% | J8: coef | K8: ='RECAP DIRCOM'!DZ4 -> 3% | M8: coef | N8: ='RECAP DIRCOM'!EC4 -> 4% | P8: coef | Q8: ='RECAP DIRCOM'!EF4 -> 10%
A9: eds | B9: Direction | C9: eds | D9: Territoire | E9: ETP perf | G9: % Ecart au 1er | H9: Rang | J9: % Ecart au 1er | K9: Rang | M9: % Ecart au 1er | N9: Rang | O9: Moyenne ecart au 1er | P9: % Ecart au 1er | Q9: Rang CEGEE
A10: 50 | B10: AUBE HAUTE MARNE | C10: 21 | D10: CHAUMONT | E10: =VLOOKUP($C10,'RECAP SECT'!$G$6:$EV$253,3,FALSE) -> 46.6 | F10: =VLOOKUP($C10,'RECAP SECT'!$G$6:$EV$253,119,FALSE) -> 98% | G10: =VLOOKUP($C10,'RECAP SECT'!$G$6:$EV$253,120,FALSE) -> 1% | H10: =VLOOKUP($C10,'RECAP SECT'!$G$6:$EV$253,121,FALSE) -> 4 | I10: =VLOOKUP($C10,'RECAP SECT'!$G$6:$EV$253,122,FALSE) -> 78% | J10: =VLOOKUP($C10,'RECAP SECT'!$G$6:$EV$253,123,FALSE) -> 1% | K10: =VLOOKUP($C10,'RECAP SECT'!$G$6:$EV$253,124,FALSE) -> 4 | L10: =VLOOKUP($C10,'RECAP SECT'!$G$6:$EV$253,125,FALSE) -> 100% | M10: =VLOOKUP($C10,'RECAP SECT'!$G$6:$EV$253,126,FALSE) -> 0% | N10: =VLOOKUP($C10,'RECAP SECT'!$G$6:$EV$253,127,FALSE) -> 1 | O10: =VLOOKUP($C10,'RECAP SECT'!$G$6:$EV$253,128,FALSE) -> 1% | P10: =VLOOKUP($C10,'RECAP SECT'!$G$6:$EV$253,129,FALSE) -> 0% | Q10: =VLOOKUP($C10,'RECAP SECT'!$G$6:$EV$253,130,FALSE) -> 1
A11: 50 | B11: AUBE HAUTE MARNE | C11: 14 | D11: TROYES | E11: =VLOOKUP($C11,'RECAP SECT'!$G$6:$EV$253,3,FALSE) -> 78.5 | F11: =VLOOKUP($C11,'RECAP SECT'!$G$6:$EV$253,119,FALSE) -> 97% | G11: =VLOOKUP($C11,'RECAP SECT'!$G$6:$EV$253,120,FALSE) -> 2% | H11: =VLOOKUP($C11,'RECAP SECT'!$G$6:$EV$253,121,FALSE) -> 10 | I11: =VLOOKUP($C11,'RECAP SECT'!$G$6:$EV$253,122,FALSE) -> 75% | J11: =VLOOKUP($C11,'RECAP SECT'!$G$6:$EV$253,123,FALSE) -> 5% | K11: =VLOOKUP($C11,'RECAP SECT'!$G$6:$EV$253,124,FALSE) -> 10 | L11: =VLOOKUP($C11,'RECAP SECT'!$G$6:$EV$253,125,FALSE) -> 100% | M11: =VLOOKUP($C11,'RECAP SECT'!$G$6:$EV$253,126,FALSE) -> 0% | N11: =VLOOKUP($C11,'RECAP SECT'!$G$6:$EV$253,127,FALSE) -> 1 | O11: =VLOOKUP($C11,'RECAP SECT'!$G$6:$EV$253,128,FALSE) -> 2% | P11: =VLOOKUP($C11,'RECAP SECT'!$G$6:$EV$253,129,FALSE) -> 1% | Q11: =VLOOKUP($C11,'RECAP SECT'!$G$6:$EV$253,130,FALSE) -> 6
A12: 262 | B12: BAS-RHIN | C12: 5060 | D12: HAGUENAU | E12: =VLOOKUP($C12,'RECAP SECT'!$G$6:$EV$253,3,FALSE) -> 88.7 | F12: =VLOOKUP($C12,'RECAP SECT'!$G$6:$EV$253,119,FALSE) -> 97% | G12: =VLOOKUP($C12,'RECAP SECT'!$G$6:$EV$253,120,FALSE) -> 2% | H12: =VLOOKUP($C12,'RECAP SECT'!$G$6:$EV$253,121,FALSE) -> 9 | I12: =VLOOKUP($C12,'RECAP SECT'!$G$6:$EV$253,122,FALSE) -> 72% | J12: =VLOOKUP($C12,'RECAP SECT'!$G$6:$EV$253,123,FALSE) -> 9% | K12: =VLOOKUP($C12,'RECAP SECT'!$G$6:$EV$253,124,FALSE) -> 15 | L12: =VLOOKUP($C12,'RECAP SECT'!$G$6:$EV$253,125,FALSE) -> 89% | M12: =VLOOKUP($C12,'RECAP SECT'!$G$6:$EV$253,126,FALSE) -> 11% | N12: =VLOOKUP($C12,'RECAP SECT'!$G$6:$EV$253,127,FALSE) -> 15 | O12: =VLOOKUP($C12,'RECAP SECT'!$G$6:$EV$253,128,FALSE) -> 8% | P12: =VLOOKUP($C12,'RECAP SECT'!$G$6:$EV$253,129,FALSE) -> 7% | Q12: =VLOOKUP($C12,'RECAP SECT'!$G$6:$EV$253,130,FALSE) -> 15
A13: 262 | B13: BAS-RHIN | C13: 5101 | D13: SELESTAT | E13: =VLOOKUP($C13,'RECAP SECT'!$G$6:$EV$253,3,FALSE) -> 75.1 | F13: =VLOOKUP($C13,'RECAP SECT'!$G$6:$EV$253,119,FALSE) -> 98% | G13: =VLOOKUP($C13,'RECAP SECT'!$G$6:$EV$253,120,FALSE) -> 1% | H13: =VLOOKUP($C13,'RECAP SECT'!$G$6:$EV$253,121,FALSE) -> 8 | I13: =VLOOKUP($C13,'RECAP SECT'!$G$6:$EV$253,122,FALSE) -> 71% | J13: =VLOOKUP($C13,'RECAP SECT'!$G$6:$EV$253,123,FALSE) -> 9% | K13: =VLOOKUP($C13,'RECAP SECT'!$G$6:$EV$253,124,FALSE) -> 16 | L13: =VLOOKUP($C13,'RECAP SECT'!$G$6:$EV$253,125,FALSE) -> 91% | M13: =VLOOKUP($C13,'RECAP SECT'!$G$6:$EV$253,126,FALSE) -> 9% | N13: =VLOOKUP($C13,'RECAP SECT'!$G$6:$EV$253,127,FALSE) -> 14 | O13: =VLOOKUP($C13,'RECAP SECT'!$G$6:$EV$253,128,FALSE) -> 7% | P13: =VLOOKUP($C13,'RECAP SECT'!$G$6:$EV$253,129,FALSE) -> 6% | Q13: =VLOOKUP($C13,'RECAP SECT'!$G$6:$EV$253,130,FALSE) -> 14
A14: 262 | B14: BAS-RHIN | C14: 5006 | D14: STRASBOURG | E14: =VLOOKUP($C14,'RECAP SECT'!$G$6:$EV$253,3,FALSE) -> 92.7 | F14: =VLOOKUP($C14,'RECAP SECT'!$G$6:$EV$253,119,FALSE) -> 94% | G14: =VLOOKUP($C14,'RECAP SECT'!$G$6:$EV$253,120,FALSE) -> 4% | H14: =VLOOKUP($C14,'RECAP SECT'!$G$6:$EV$253,121,FALSE) -> 18 | I14: =VLOOKUP($C14,'RECAP SECT'!$G$6:$EV$253,122,FALSE) -> 70% | J14: =VLOOKUP($C14,'RECAP SECT'!$G$6:$EV$253,123,FALSE) -> 11% | K14: =VLOOKUP($C14,'RECAP SECT'!$G$6:$EV$253,124,FALSE) -> 18 | L14: =VLOOKUP($C14,'RECAP SECT'!$G$6:$EV$253,125,FALSE) -> 88% | M14: =VLOOKUP($C14,'RECAP SECT'!$G$6:$EV$253,126,FALSE) -> 12% | N14: =VLOOKUP($C14,'RECAP SECT'!$G$6:$EV$253,127,FALSE) -> 16 | O14: =VLOOKUP($C14,'RECAP SECT'!$G$6:$EV$253,128,FALSE) -> 9% | P14: =VLOOKUP($C14,'RECAP SECT'!$G$6:$EV$253,129,FALSE) -> 9% | Q14: =VLOOKUP($C14,'RECAP SECT'!$G$6:$EV$253,130,FALSE) -> 17
A15: 264 | B15: HAUT-RHIN | C15: 5130 | D15: COLMAR | E15: =VLOOKUP($C15,'RECAP SECT'!$G$6:$EV$253,3,FALSE) -> 76.1 | F15: =VLOOKUP($C15,'RECAP SECT'!$G$6:$EV$253,119,FALSE) -> 97% | G15: =VLOOKUP($C15,'RECAP SECT'!$G$6:$EV$253,120,FALSE) -> 2% | H15: =VLOOKUP($C15,'RECAP SECT'!$G$6:$EV$253,121,FALSE) -> 14 | I15: =VLOOKUP($C15,'RECAP SECT'!$G$6:$EV$253,122,FALSE) -> 72% | J15: =VLOOKUP($C15,'RECAP SECT'!$G$6:$EV$253,123,FALSE) -> 8% | K15: =VLOOKUP($C15,'RECAP SECT'!$G$6:$EV$253,124,FALSE) -> 14 | L15: =VLOOKUP($C15,'RECAP SECT'!$G$6:$EV$253,125,FALSE) -> 99% | M15: =VLOOKUP($C15,'RECAP SECT'!$G$6:$EV$253,126,FALSE) -> 1% | N15: =VLOOKUP($C15,'RECAP SECT'!$G$6:$EV$253,127,FALSE) -> 5 | O15: =VLOOKUP($C15,'RECAP SECT'!$G$6:$EV$253,128,FALSE) -> 3% | P15: =VLOOKUP($C15,'RECAP SECT'!$G$6:$EV$253,129,FALSE) -> 3% | Q15: =VLOOKUP($C15,'RECAP SECT'!$G$6:$EV$253,130,FALSE) -> 9
A16: 264 | B16: HAUT-RHIN | C16: 5169 | D16: MULHOUSE | E16: =VLOOKUP($C16,'RECAP SECT'!$G$6:$EV$253,3,FALSE) -> 78.1 | F16: =VLOOKUP($C16,'RECAP SECT'!$G$6:$EV$253,119,FALSE) -> 98% | G16: =VLOOKUP($C16,'RECAP SECT'!$G$6:$EV$253,120,FALSE) -> 1% | H16: =VLOOKUP($C16,'RECAP SECT'!$G$6:$EV$253,121,FALSE) -> 6 | I16: =VLOOKUP($C16,'RECAP SECT'!$G$6:$EV$253,122,FALSE) -> 73% | J16: =VLOOKUP($C16,'RECAP SECT'!$G$6:$EV$253,123,FALSE) -> 7% | K16: =VLOOKUP($C16,'RECAP SECT'!$G$6:$EV$253,124,FALSE) -> 12 | L16: =VLOOKUP($C16,'RECAP SECT'!$G$6:$EV$253,125,FALSE) -> 97% | M16: =VLOOKUP($C16,'RECAP SECT'!$G$6:$EV$253,126,FALSE) -> 3% | N16: =VLOOKUP($C16,'RECAP SECT'!$G$6:$EV$253,127,FALSE) -> 10 | O16: =VLOOKUP($C16,'RECAP SECT'!$G$6:$EV$253,128,FALSE) -> 4% | P16: =VLOOKUP($C16,'RECAP SECT'!$G$6:$EV$253,129,FALSE) -> 3% | Q16: =VLOOKUP($C16,'RECAP SECT'!$G$6:$EV$253,130,FALSE) -> 10
A17: 30 | B17: MARNE-ARDENNES | C17: 6 | D17: CHALONS EN CHAMPAGNE | E17: =VLOOKUP($C17,'RECAP SECT'!$G$6:$EV$253,3,FALSE) -> 49.2 | F17: =VLOOKUP($C17,'RECAP SECT'!$G$6:$EV$253,119,FALSE) -> 99% | G17: =VLOOKUP($C17,'RECAP SECT'!$G$6:$EV$253,120,FALSE) -> 0% | H17: =VLOOKUP($C17,'RECAP SECT'!$G$6:$EV$253,121,FALSE) -> 2 | I17: =VLOOKUP($C17,'RECAP SECT'!$G$6:$EV$253,122,FALSE) -> 73% | J17: =VLOOKUP($C17,'RECAP SECT'!$G$6:$EV$253,123,FALSE) -> 8% | K17: =VLOOKUP($C17,'RECAP SECT'!$G$6:$EV$253,124,FALSE) -> 13 | L17: =VLOOKUP($C17,'RECAP SECT'!$G$6:$EV$253,125,FALSE) -> 99% | M17: =VLOOKUP($C17,'RECAP SECT'!$G$6:$EV$253,126,FALSE) -> 1% | N17: =VLOOKUP($C17,'RECAP SECT'!$G$6:$EV$253,127,FALSE) -> 6 | O17: =VLOOKUP($C17,'RECAP SECT'!$G$6:$EV$253,128,FALSE) -> 3% | P17: =VLOOKUP($C17,'RECAP SECT'!$G$6:$EV$253,129,FALSE) -> 2% | Q17: =VLOOKUP($C17,'RECAP SECT'!$G$6:$EV$253,130,FALSE) -> 7
A18: 30 | B18: MARNE-ARDENNES | C18: 2 | D18: CHARLEVILLE MEZIERES | E18: =VLOOKUP($C18,'RECAP SECT'!$G$6:$EV$253,3,FALSE) -> 62.6 | F18: =VLOOKUP($C18,'RECAP SECT'!$G$6:$EV$253,119,FALSE) -> 97% | G18: =VLOOKUP($C18,'RECAP SECT'!$G$6:$EV$253,120,FALSE) -> 2% | H18: =VLOOKUP($C18,'RECAP SECT'!$G$6:$EV$253,121,FALSE) -> 11 | I18: =VLOOKUP($C18,'RECAP SECT'!$G$6:$EV$253,122,FALSE) -> 76% | J18: =VLOOKUP($C18,'RECAP SECT'!$G$6:$EV$253,123,FALSE) -> 4% | K18: =VLOOKUP($C18,'RECAP SECT'!$G$6:$EV$253,124,FALSE) -> 8 | L18: =VLOOKUP($C18,'RECAP SECT'!$G$6:$EV$253,125,FALSE) -> 100% | M18: =VLOOKUP($C18,'RECAP SECT'!$G$6:$EV$253,126,FALSE) -> 0% | N18: =VLOOKUP($C18,'RECAP SECT'!$G$6:$EV$253,127,FALSE) -> 4 | O18: =VLOOKUP($C18,'RECAP SECT'!$G$6:$EV$253,128,FALSE) -> 2% | P18: =VLOOKUP($C18,'RECAP SECT'!$G$6:$EV$253,129,FALSE) -> 1% | Q18: =VLOOKUP($C18,'RECAP SECT'!$G$6:$EV$253,130,FALSE) -> 5
A19: 30 | B19: MARNE-ARDENNES | C19: 11 | D19: REIMS | E19: =VLOOKUP($C19,'RECAP SECT'!$G$6:$EV$253,3,FALSE) -> 91.1 | F19: =VLOOKUP($C19,'RECAP SECT'!$G$6:$EV$253,119,FALSE) -> 98% | G19: =VLOOKUP($C19,'RECAP SECT'!$G$6:$EV$253,120,FALSE) -> 1% | H19: =VLOOKUP($C19,'RECAP SECT'!$G$6:$EV$253,121,FALSE) -> 5 | I19: =VLOOKUP($C19,'RECAP SECT'!$G$6:$EV$253,122,FALSE) -> 71% | J19: =VLOOKUP($C19,'RECAP SECT'!$G$6:$EV$253,123,FALSE) -> 10% | K19: =VLOOKUP($C19,'RECAP SECT'!$G$6:$EV$253,124,FALSE) -> 17 | L19: =VLOOKUP($C19,'RECAP SECT'!$G$6:$EV$253,125,FALSE) -> 98% | M19: =VLOOKUP($C19,'RECAP SECT'!$G$6:$EV$253,126,FALSE) -> 2% | N19: =VLOOKUP($C19,'RECAP SECT'!$G$6:$EV$253,127,FALSE) -> 8 | O19: =VLOOKUP($C19,'RECAP SECT'!$G$6:$EV$253,128,FALSE) -> 4% | P19: =VLOOKUP($C19,'RECAP SECT'!$G$6:$EV$253,129,FALSE) -> 3% | Q19: =VLOOKUP($C19,'RECAP SECT'!$G$6:$EV$253,130,FALSE) -> 11
A20: 110 | B20: MEURTHE ET MOSELLE MEUSE | C20: 26 | D20: NANCY | E20: =VLOOKUP($C20,'RECAP SECT'!$G$6:$EV$253,3,FALSE) -> 79.3 | F20: =VLOOKUP($C20,'RECAP SECT'!$G$6:$EV$253,119,FALSE) -> 95% | G20: =VLOOKUP($C20,'RECAP SECT'!$G$6:$EV$253,120,FALSE) -> 3% | H20: =VLOOKUP($C20,'RECAP SECT'!$G$6:$EV$253,121,FALSE) -> 17 | I20: =VLOOKUP($C20,'RECAP SECT'!$G$6:$EV$253,122,FALSE) -> 74% | J20: =VLOOKUP($C20,'RECAP SECT'!$G$6:$EV$253,123,FALSE) -> 6% | K20: =VLOOKUP($C20,'RECAP SECT'!$G$6:$EV$253,124,FALSE) -> 11 | L20: =VLOOKUP($C20,'RECAP SECT'!$G$6:$EV$253,125,FALSE) -> 82% | M20: =VLOOKUP($C20,'RECAP SECT'!$G$6:$EV$253,126,FALSE) -> 18% | N20: =VLOOKUP($C20,'RECAP SECT'!$G$6:$EV$253,127,FALSE) -> 18 | O20: =VLOOKUP($C20,'RECAP SECT'!$G$6:$EV$253,128,FALSE) -> 10% | P20: =VLOOKUP($C20,'RECAP SECT'!$G$6:$EV$253,129,FALSE) -> 9% | Q20: =VLOOKUP($C20,'RECAP SECT'!$G$6:$EV$253,130,FALSE) -> 18
A21: 110 | B21: MEURTHE ET MOSELLE MEUSE | C21: 27 | D21: PONT A MOUSSON | E21: =VLOOKUP($C21,'RECAP SECT'!$G$6:$EV$253,3,FALSE) -> 87.7 | F21: =VLOOKUP($C21,'RECAP SECT'!$G$6:$EV$253,119,FALSE) -> 95% | G21: =VLOOKUP($C21,'RECAP SECT'!$G$6:$EV$253,120,FALSE) -> 3% | H21: =VLOOKUP($C21,'RECAP SECT'!$G$6:$EV$253,121,FALSE) -> 16 | I21: =VLOOKUP($C21,'RECAP SECT'!$G$6:$EV$253,122,FALSE) -> 75% | J21: =VLOOKUP($C21,'RECAP SECT'!$G$6:$EV$253,123,FALSE) -> 4% | K21: =VLOOKUP($C21,'RECAP SECT'!$G$6:$EV$253,124,FALSE) -> 9 | L21: =VLOOKUP($C21,'RECAP SECT'!$G$6:$EV$253,125,FALSE) -> 87% | M21: =VLOOKUP($C21,'RECAP SECT'!$G$6:$EV$253,126,FALSE) -> 13% | N21: =VLOOKUP($C21,'RECAP SECT'!$G$6:$EV$253,127,FALSE) -> 17 | O21: =VLOOKUP($C21,'RECAP SECT'!$G$6:$EV$253,128,FALSE) -> 8% | P21: =VLOOKUP($C21,'RECAP SECT'!$G$6:$EV$253,129,FALSE) -> 7% | Q21: =VLOOKUP($C21,'RECAP SECT'!$G$6:$EV$253,130,FALSE) -> 16
A22: 110 | B22: MEURTHE ET MOSELLE MEUSE | C22: 31 | D22: VERDUN | E22: =VLOOKUP($C22,'RECAP SECT'!$G$6:$EV$253,3,FALSE) -> 64.7 | F22: =VLOOKUP($C22,'RECAP SECT'!$G$6:$EV$253,119,FALSE) -> 97% | G22: =VLOOKUP($C22,'RECAP SECT'!$G$6:$EV$253,120,FALSE) -> 2% | H22: =VLOOKUP($C22,'RECAP SECT'!$G$6:$EV$253,121,FALSE) -> 12 | I22: =VLOOKUP($C22,'RECAP SECT'!$G$6:$EV$253,122,FALSE) -> 77% | J22: =VLOOKUP($C22,'RECAP SECT'!$G$6:$EV$253,123,FALSE) -> 3% | K22: =VLOOKUP($C22,'RECAP SECT'!$G$6:$EV$253,124,FALSE) -> 6 | L22: =VLOOKUP($C22,'RECAP SECT'!$G$6:$EV$253,125,FALSE) -> 91% | M22: =VLOOKUP($C22,'RECAP SECT'!$G$6:$EV$253,126,FALSE) -> 9% | N22: =VLOOKUP($C22,'RECAP SECT'!$G$6:$EV$253,127,FALSE) -> 12 | O22: =VLOOKUP($C22,'RECAP SECT'!$G$6:$EV$253,128,FALSE) -> 5% | P22: =VLOOKUP($C22,'RECAP SECT'!$G$6:$EV$253,129,FALSE) -> 4% | Q22: =VLOOKUP($C22,'RECAP SECT'!$G$6:$EV$253,130,FALSE) -> 13
A23: 160 | B23: MOSELLE | C23: 45 | D23: METZ | E23: =VLOOKUP($C23,'RECAP SECT'!$G$6:$EV$253,3,FALSE) -> 103.2 | F23: =VLOOKUP($C23,'RECAP SECT'!$G$6:$EV$253,119,FALSE) -> 96% | G23: =VLOOKUP($C23,'RECAP SECT'!$G$6:$EV$253,120,FALSE) -> 3% | H23: =VLOOKUP($C23,'RECAP SECT'!$G$6:$EV$253,121,FALSE) -> 15 | I23: =VLOOKUP($C23,'RECAP SECT'!$G$6:$EV$253,122,FALSE) -> 77% | J23: =VLOOKUP($C23,'RECAP SECT'!$G$6:$EV$253,123,FALSE) -> 3% | K23: =VLOOKUP($C23,'RECAP SECT'!$G$6:$EV$253,124,FALSE) -> 7 | L23: =VLOOKUP($C23,'RECAP SECT'!$G$6:$EV$253,125,FALSE) -> 97% | M23: =VLOOKUP($C23,'RECAP SECT'!$G$6:$EV$253,126,FALSE) -> 3% | N23: =VLOOKUP($C23,'RECAP SECT'!$G$6:$EV$253,127,FALSE) -> 11 | O23: =VLOOKUP($C23,'RECAP SECT'!$G$6:$EV$253,128,FALSE) -> 3% | P23: =VLOOKUP($C23,'RECAP SECT'!$G$6:$EV$253,129,FALSE) -> 2% | Q23: =VLOOKUP($C23,'RECAP SECT'!$G$6:$EV$253,130,FALSE) -> 8
A24: 160 | B24: MOSELLE | C24: 42 | D24: MOSELLE EST | E24: =VLOOKUP($C24,'RECAP SECT'!$G$6:$EV$253,3,FALSE) -> 86.1 | F24: =VLOOKUP($C24,'RECAP SECT'!$G$6:$EV$253,119,FALSE) -> 97% | G24: =VLOOKUP($C24,'RECAP SECT'!$G$6:$EV$253,120,FALSE) -> 2% | H24: =VLOOKUP($C24,'RECAP SECT'!$G$6:$EV$253,121,FALSE) -> 13 | I24: =VLOOKUP($C24,'RECAP SECT'!$G$6:$EV$253,122,FALSE) -> 78% | J24: =VLOOKUP($C24,'RECAP SECT'!$G$6:$EV$253,123,FALSE) -> 1% | K24: =VLOOKUP($C24,'RECAP SECT'!$G$6:$EV$253,124,FALSE) -> 3 | L24: =VLOOKUP($C24,'RECAP SECT'!$G$6:$EV$253,125,FALSE) -> 100% | M24: =VLOOKUP($C24,'RECAP SECT'!$G$6:$EV$253,126,FALSE) -> 0% | N24: =VLOOKUP($C24,'RECAP SECT'!$G$6:$EV$253,127,FALSE) -> 1 | O24: =VLOOKUP($C24,'RECAP SECT'!$G$6:$EV$253,128,FALSE) -> 1% | P24: =VLOOKUP($C24,'RECAP SECT'!$G$6:$EV$253,129,FALSE) -> 0% | Q24: =VLOOKUP($C24,'RECAP SECT'!$G$6:$EV$253,130,FALSE) -> 2
A25: 160 | B25: MOSELLE | C25: 44 | D25: MOSELLE NORD | E25: =VLOOKUP($C25,'RECAP SECT'!$G$6:$EV$253,3,FALSE) -> 80.5 | F25: =VLOOKUP($C25,'RECAP SECT'!$G$6:$EV$253,119,FALSE) -> 98% | G25: =VLOOKUP($C25,'RECAP SECT'!$G$6:$EV$253,120,FALSE) -> 1% | H25: =VLOOKUP($C25,'RECAP SECT'!$G$6:$EV$253,121,FALSE) -> 7 | I25: =VLOOKUP($C25,'RECAP SECT'!$G$6:$EV$253,122,FALSE) -> 78% | J25: =VLOOKUP($C25,'RECAP SECT'!$G$6:$EV$253,123,FALSE) -> 1% | K25: =VLOOKUP($C25,'RECAP SECT'!$G$6:$EV$253,124,FALSE) -> 2 | L25: =VLOOKUP($C25,'RECAP SECT'!$G$6:$EV$253,125,FALSE) -> 99% | M25: =VLOOKUP($C25,'RECAP SECT'!$G$6:$EV$253,126,FALSE) -> 1% | N25: =VLOOKUP($C25,'RECAP SECT'!$G$6:$EV$253,127,FALSE) -> 7 | O25: =VLOOKUP($C25,'RECAP SECT'!$G$6:$EV$253,128,FALSE) -> 1% | P25: =VLOOKUP($C25,'RECAP SECT'!$G$6:$EV$253,129,FALSE) -> 0% | Q25: =VLOOKUP($C25,'RECAP SECT'!$G$6:$EV$253,130,FALSE) -> 4
A26: 80 | B26: VOSGES | C26: 57 | D26: EPINAL | E26: =VLOOKUP($C26,'RECAP SECT'!$G$6:$EV$253,3,FALSE) -> 68.7 | F26: =VLOOKUP($C26,'RECAP SECT'!$G$6:$EV$253,119,FALSE) -> 99% | G26: =VLOOKUP($C26,'RECAP SECT'!$G$6:$EV$253,120,FALSE) -> 0% | H26: =VLOOKUP($C26,'RECAP SECT'!$G$6:$EV$253,121,FALSE) -> 1 | I26: =VLOOKUP($C26,'RECAP SECT'!$G$6:$EV$253,122,FALSE) -> 77% | J26: =VLOOKUP($C26,'RECAP SECT'!$G$6:$EV$253,123,FALSE) -> 2% | K26: =VLOOKUP($C26,'RECAP SECT'!$G$6:$EV$253,124,FALSE) -> 5 | L26: =VLOOKUP($C26,'RECAP SECT'!$G$6:$EV$253,125,FALSE) -> 91% | M26: =VLOOKUP($C26,'RECAP SECT'!$G$6:$EV$253,126,FALSE) -> 9% | N26: =VLOOKUP($C26,'RECAP SECT'!$G$6:$EV$253,127,FALSE) -> 13 | O26: =VLOOKUP($C26,'RECAP SECT'!$G$6:$EV$253,128,FALSE) -> 4% | P26: =VLOOKUP($C26,'RECAP SECT'!$G$6:$EV$253,129,FALSE) -> 4% | Q26: =VLOOKUP($C26,'RECAP SECT'!$G$6:$EV$253,130,FALSE) -> 12
A27: 80 | B27: VOSGES | C27: 55 | D27: SAINT DIE | E27: =VLOOKUP($C27,'RECAP SECT'!$G$6:$EV$253,3,FALSE) -> 58.0 | F27: =VLOOKUP($C27,'RECAP SECT'!$G$6:$EV$253,119,FALSE) -> 99% | G27: =VLOOKUP($C27,'RECAP SECT'!$G$6:$EV$253,120,FALSE) -> 0% | H27: =VLOOKUP($C27,'RECAP SECT'!$G$6:$EV$253,121,FALSE) -> 3 | I27: =VLOOKUP($C27,'RECAP SECT'!$G$6:$EV$253,122,FALSE) -> 79% | J27: =VLOOKUP($C27,'RECAP SECT'!$G$6:$EV$253,123,FALSE) -> 0% | K27: =VLOOKUP($C27,'RECAP SECT'!$G$6:$EV$253,124,FALSE) -> 1 | L27: =VLOOKUP($C27,'RECAP SECT'!$G$6:$EV$253,125,FALSE) -> 98% | M27: =VLOOKUP($C27,'RECAP SECT'!$G$6:$EV$253,126,FALSE) -> 2% | N27: =VLOOKUP($C27,'RECAP SECT'!$G$6:$EV$253,127,FALSE) -> 9 | O27: =VLOOKUP($C27,'RECAP SECT'!$G$6:$EV$253,128,FALSE) -> 1% | P27: =VLOOKUP($C27,'RECAP SECT'!$G$6:$EV$253,129,FALSE) -> 0% | Q27: =VLOOKUP($C27,'RECAP SECT'!$G$6:$EV$253,130,FALSE) -> 3
A28: Total CEGEE Directions Régionales | E28: =SUM(E10:E27) -> 1367

Sheet SE_SATISFACTION
A1: Accueil | F1: BAROMETRE BDD - TERRITOIRES
F2: SATISFACTION CLIENTS
F3: =ACCUEIL!H7 -> 2019-07-31
F7: N P S | I7: Enquête Qualité Haute Définition | L7: Total Satisfaction Clients
G8: coef | H8: ='RECAP DIRCOM'!EO4 -> 5% | J8: coef | K8: ='RECAP DIRCOM'!ER4 -> 5% | M8: coef | N8: ='RECAP DIRCOM'!EU4 -> 10%
A9: eds | B9: Direction | C9: eds | D9: Territoire | E9: ETP perf | G9: % Ecart au 1er | H9: Rang | J9: % Ecart au 1er | K9: Rang | L9: Moyenne ecart au 1er | M9: % Ecart au 1er | N9: Rang CEGEE
A10: 50 | B10: AUBE HAUTE MARNE | C10: 21 | D10: CHAUMONT | E10: =VLOOKUP($C10,'RECAP SECT'!$G$6:$EV$253,3,FALSE) -> 46.6 | F10: =VLOOKUP($C10,'RECAP SECT'!$G$6:$EV$253,137,FALSE) -> -2 | G10: =VLOOKUP($C10,'RECAP SECT'!$G$6:$EV$253,138,FALSE) -> 0% | H10: =VLOOKUP($C10,'RECAP SECT'!$G$6:$EV$253,139,FALSE) -> 1 | I10: =VLOOKUP($C10,'RECAP SECT'!$G$6:$EV$253,140,FALSE) -> 78% | J10: =VLOOKUP($C10,'RECAP SECT'!$G$6:$EV$253,141,FALSE) -> 2% | K10: =VLOOKUP($C10,'RECAP SECT'!$G$6:$EV$253,142,FALSE) -> 4 | L10: =VLOOKUP($C10,'RECAP SECT'!$G$6:$EV$253,143,FALSE) -> 1% | M10: =VLOOKUP($C10,'RECAP SECT'!$G$6:$EV$253,144,FALSE) -> 1% | N10: =VLOOKUP($C10,'RECAP SECT'!$G$6:$EV$253,145,FALSE) -> 2
A11: 50 | B11: AUBE HAUTE MARNE | C11: 14 | D11: TROYES | E11: =VLOOKUP($C11,'RECAP SECT'!$G$6:$EV$253,3,FALSE) -> 78.5 | F11: =VLOOKUP($C11,'RECAP SECT'!$G$6:$EV$253,137,FALSE) -> -11 | G11: =VLOOKUP($C11,'RECAP SECT'!$G$6:$EV$253,138,FALSE) -> 52% | H11: =VLOOKUP($C11,'RECAP SECT'!$G$6:$EV$253,139,FALSE) -> 8 | I11: =VLOOKUP($C11,'RECAP SECT'!$G$6:$EV$253,140,FALSE) -> 75% | J11: =VLOOKUP($C11,'RECAP SECT'!$G$6:$EV$253,141,FALSE) -> 6% | K11: =VLOOKUP($C11,'RECAP SECT'!$G$6:$EV$253,142,FALSE) -> 11 | L11: =VLOOKUP($C11,'RECAP SECT'!$G$6:$EV$253,143,FALSE) -> 29% | M11: =VLOOKUP($C11,'RECAP SECT'!$G$6:$EV$253,144,FALSE) -> 29% | N11: =VLOOKUP($C11,'RECAP SECT'!$G$6:$EV$253,145,FALSE) -> 8
A12: 262 | B12: BAS-RHIN | C12: 5060 | D12: HAGUENAU | E12: =VLOOKUP($C12,'RECAP SECT'!$G$6:$EV$253,3,FALSE) -> 88.7 | F12: =VLOOKUP($C12,'RECAP SECT'!$G$6:$EV$253,137,FALSE) -> -13 | G12: =VLOOKUP($C12,'RECAP SECT'!$G$6:$EV$253,138,FALSE) -> 63% | H12: =VLOOKUP($C12,'RECAP SECT'!$G$6:$EV$253,139,FALSE) -> 10 | I12: =VLOOKUP($C12,'RECAP SECT'!$G$6:$EV$253,140,FALSE) -> 76% | J12: =VLOOKUP($C12,'RECAP SECT'!$G$6:$EV$253,141,FALSE) -> 4% | K12: =VLOOKUP($C12,'RECAP SECT'!$G$6:$EV$253,142,FALSE) -> 9 | L12: =VLOOKUP($C12,'RECAP SECT'!$G$6:$EV$253,143,FALSE) -> 34% | M12: =VLOOKUP($C12,'RECAP SECT'!$G$6:$EV$253,144,FALSE) -> 34% | N12: =VLOOKUP($C12,'RECAP SECT'!$G$6:$EV$253,145,FALSE) -> 10
A13: 262 | B13: BAS-RHIN | C13: 5101 | D13: SELESTAT | E13: =VLOOKUP($C13,'RECAP SECT'!$G$6:$EV$253,3,FALSE) -> 75.1 | F13: =VLOOKUP($C13,'RECAP SECT'!$G$6:$EV$253,137,FALSE) -> -28 | G13: =VLOOKUP($C13,'RECAP SECT'!$G$6:$EV$253,138,FALSE) -> 150% | H13: =VLOOKUP($C13,'RECAP SECT'!$G$6:$EV$253,139,FALSE) -> 17 | I13: =VLOOKUP($C13,'RECAP SECT'!$G$6:$EV$253,140,FALSE) -> 74% | J13: =VLOOKUP($C13,'RECAP SECT'!$G$6:$EV$253,141,FALSE) -> 7% | K13: =VLOOKUP($C13,'RECAP SECT'!$G$6:$EV$253,142,FALSE) -> 15 | L13: =VLOOKUP($C13,'RECAP SECT'!$G$6:$EV$253,143,FALSE) -> 79% | M13: =VLOOKUP($C13,'RECAP SECT'!$G$6:$EV$253,144,FALSE) -> 79% | N13: =VLOOKUP($C13,'RECAP SECT'!$G$6:$EV$253,145,FALSE) -> 17
A14: 262 | B14: BAS-RHIN | C14: 5006 | D14: STRASBOURG | E14: =VLOOKUP($C14,'RECAP SECT'!$G$6:$EV$253,3,FALSE) -> 92.7 | F14: =VLOOKUP($C14,'RECAP SECT'!$G$6:$EV$253,137,FALSE) -> -28 | G14: =VLOOKUP($C14,'RECAP SECT'!$G$6:$EV$253,138,FALSE) -> 150% | H14: =VLOOKUP($C14,'RECAP SECT'!$G$6:$EV$253,139,FALSE) -> 17 | I14: =VLOOKUP($C14,'RECAP SECT'!$G$6:$EV$253,140,FALSE) -> 68% | J14: =VLOOKUP($C14,'RECAP SECT'!$G$6:$EV$253,141,FALSE) -> 15% | K14: =VLOOKUP($C14,'RECAP SECT'!$G$6:$EV$253,142,FALSE) -> 18 | L14: =VLOOKUP($C14,'RECAP SECT'!$G$6:$EV$253,143,FALSE) -> 83% | M14: =VLOOKUP($C14,'RECAP SECT'!$G$6:$EV$253,144,FALSE) -> 83% | N14: =VLOOKUP($C14,'RECAP SECT'!$G$6:$EV$253,145,FALSE) -> 18
A15: 264 | B15: HAUT-RHIN | C15: 5130 | D15: COLMAR | E15: =VLOOKUP($C15,'RECAP SECT'!$G$6:$EV$253,3,FALSE) -> 76.1 | F15: =VLOOKUP($C15,'RECAP SECT'!$G$6:$EV$253,137,FALSE) -> -20 | G15: =VLOOKUP($C15,'RECAP SECT'!$G$6:$EV$253,138,FALSE) -> 104% | H15: =VLOOKUP($C15,'RECAP SECT'!$G$6:$EV$253,139,FALSE) -> 15 | I15: =VLOOKUP($C15,'RECAP SECT'!$G$6:$EV$253,140,FALSE) -> 74% | J15: =VLOOKUP($C15,'RECAP SECT'!$G$6:$EV$253,141,FALSE) -> 7% | K15: =VLOOKUP($C15,'RECAP SECT'!$G$6:$EV$253,142,FALSE) -> 13 | L15: =VLOOKUP($C15,'RECAP SECT'!$G$6:$EV$253,143,FALSE) -> 55% | M15: =VLOOKUP($C15,'RECAP SECT'!$G$6:$EV$253,144,FALSE) -> 55% | N15: =VLOOKUP($C15,'RECAP SECT'!$G$6:$EV$253,145,FALSE) -> 15
A16: 264 | B16: HAUT-RHIN | C16: 5169 | D16: MULHOUSE | E16: =VLOOKUP($C16,'RECAP SECT'!$G$6:$EV$253,3,FALSE) -> 78.1 | F16: =VLOOKUP($C16,'RECAP SECT'!$G$6:$EV$253,137,FALSE) -> -22 | G16: =VLOOKUP($C16,'RECAP SECT'!$G$6:$EV$253,138,FALSE) -> 115% | H16: =VLOOKUP($C16,'RECAP SECT'!$G$6:$EV$253,139,FALSE) -> 16 | I16: =VLOOKUP($C16,'RECAP SECT'!$G$6:$EV$253,140,FALSE) -> 74% | J16: =VLOOKUP($C16,'RECAP SECT'!$G$6:$EV$253,141,FALSE) -> 8% | K16: =VLOOKUP($C16,'RECAP SECT'!$G$6:$EV$253,142,FALSE) -> 16 | L16: =VLOOKUP($C16,'RECAP SECT'!$G$6:$EV$253,143,FALSE) -> 62% | M16: =VLOOKUP($C16,'RECAP SECT'!$G$6:$EV$253,144,FALSE) -> 62% | N16: =VLOOKUP($C16,'RECAP SECT'!$G$6:$EV$253,145,FALSE) -> 16
A17: 30 | B17: MARNE-ARDENNES | C17: 6 | D17: CHALONS EN CHAMPAGNE | E17: =VLOOKUP($C17,'RECAP SECT'!$G$6:$EV$253,3,FALSE) -> 49.2 | F17: =VLOOKUP($C17,'RECAP SECT'!$G$6:$EV$253,137,FALSE) -> -7 | G17: =VLOOKUP($C17,'RECAP SECT'!$G$6:$EV$253,138,FALSE) -> 29% | H17: =VLOOKUP($C17,'RECAP SECT'!$G$6:$EV$253,139,FALSE) -> 4 | I17: =VLOOKUP($C17,'RECAP SECT'!$G$6:$EV$253,140,FALSE) -> 74% | J17: =VLOOKUP($C17,'RECAP SECT'!$G$6:$EV$253,141,FALSE) -> 7% | K17: =VLOOKUP($C17,'RECAP SECT'!$G$6:$EV$253,142,FALSE) -> 13 | L17: =VLOOKUP($C17,'RECAP SECT'!$G$6:$EV$253,143,FALSE) -> 18% | M17: =VLOOKUP($C17,'RECAP SECT'!$G$6:$EV$253,144,FALSE) -> 18% | N17: =VLOOKUP($C17,'RECAP SECT'!$G$6:$EV$253,145,FALSE) -> 4
A18: 30 | B18: MARNE-ARDENNES | C18: 2 | D18: CHARLEVILLE MEZIERES | E18: =VLOOKUP($C18,'RECAP SECT'!$G$6:$EV$253,3,FALSE) -> 62.6 | F18: =VLOOKUP($C18,'RECAP SECT'!$G$6:$EV$253,137,FALSE) -> -10 | G18: =VLOOKUP($C18,'RECAP SECT'!$G$6:$EV$253,138,FALSE) -> 46% | H18: =VLOOKUP($C18,'RECAP SECT'!$G$6:$EV$253,139,FALSE) -> 7 | I18: =VLOOKUP($C18,'RECAP SECT'!$G$6:$EV$253,140,FALSE) -> 77% | J18: =VLOOKUP($C18,'RECAP SECT'!$G$6:$EV$253,141,FALSE) -> 4% | K18: =VLOOKUP($C18,'RECAP SECT'!$G$6:$EV$253,142,FALSE) -> 8 | L18: =VLOOKUP($C18,'RECAP SECT'!$G$6:$EV$253,143,FALSE) -> 25% | M18: =VLOOKUP($C18,'RECAP SECT'!$G$6:$EV$253,144,FALSE) -> 25% | N18: =VLOOKUP($C18,'RECAP SECT'!$G$6:$EV$253,145,FALSE) -> 7
A19: 30 | B19: MARNE-ARDENNES | C19: 11 | D19: REIMS | E19: =VLOOKUP($C19,'RECAP SECT'!$G$6:$EV$253,3,FALSE) -> 91.1 | F19: =VLOOKUP($C19,'RECAP SECT'!$G$6:$EV$253,137,FALSE) -> -2 | G19: =VLOOKUP($C19,'RECAP SECT'!$G$6:$EV$253,138,FALSE) -> 0% | H19: =VLOOKUP($C19,'RECAP SECT'!$G$6:$EV$253,139,FALSE) -> 1 | I19: =VLOOKUP($C19,'RECAP SECT'!$G$6:$EV$253,140,FALSE) -> 80% | J19: =VLOOKUP($C19,'RECAP SECT'!$G$6:$EV$253,141,FALSE) -> 0% | K19: =VLOOKUP($C19,'RECAP SECT'!$G$6:$EV$253,142,FALSE) -> 1 | L19: =VLOOKUP($C19,'RECAP SECT'!$G$6:$EV$253,143,FALSE) -> 0% | M19: =VLOOKUP($C19,'RECAP SECT'!$G$6:$EV$253,144,FALSE) -> 0% | N19: =VLOOKUP($C19,'RECAP SECT'!$G$6:$EV$253,145,FALSE) -> 1
A20: 110 | B20: MEURTHE ET MOSELLE MEUSE | C20: 26 | D20: NANCY | E20: =VLOOKUP($C20,'RECAP SECT'!$G$6:$EV$253,3,FALSE) -> 79.3 | F20: =VLOOKUP($C20,'RECAP SECT'!$G$6:$EV$253,137,FALSE) -> -17 | G20: =VLOOKUP($C20,'RECAP SECT'!$G$6:$EV$253,138,FALSE) -> 87% | H20: =VLOOKUP($C20,'RECAP SECT'!$G$6:$EV$253,139,FALSE) -> 13 | I20: =VLOOKUP($C20,'RECAP SECT'!$G$6:$EV$253,140,FALSE) -> 78% | J20: =VLOOKUP($C20,'RECAP SECT'!$G$6:$EV$253,141,FALSE) -> 3% | K20: =VLOOKUP($C20,'RECAP SECT'!$G$6:$EV$253,142,FALSE) -> 5 | L20: =VLOOKUP($C20,'RECAP SECT'!$G$6:$EV$253,143,FALSE) -> 45% | M20: =VLOOKUP($C20,'RECAP SECT'!$G$6:$EV$253,144,FALSE) -> 45% | N20: =VLOOKUP($C20,'RECAP SECT'!$G$6:$EV$253,145,FALSE) -> 13
A21: 110 | B21: MEURTHE ET MOSELLE MEUSE | C21: 27 | D21: PONT A MOUSSON | E21: =VLOOKUP($C21,'RECAP SECT'!$G$6:$EV$253,3,FALSE) -> 87.7 | F21: =VLOOKUP($C21,'RECAP SECT'!$G$6:$EV$253,137,FALSE) -> -14 | G21: =VLOOKUP($C21,'RECAP SECT'!$G$6:$EV$253,138,FALSE) -> 69% | H21: =VLOOKUP($C21,'RECAP SECT'!$G$6:$EV$253,139,FALSE) -> 11 | I21: =VLOOKUP($C21,'RECAP SECT'!$G$6:$EV$253,140,FALSE) -> 74% | J21: =VLOOKUP($C21,'RECAP SECT'!$G$6:$EV$253,141,FALSE) -> 7% | K21: =VLOOKUP($C21,'RECAP SECT'!$G$6:$EV$253,142,FALSE) -> 12 | L21: =VLOOKUP($C21,'RECAP SECT'!$G$6:$EV$253,143,FALSE) -> 38% | M21: =VLOOKUP($C21,'RECAP SECT'!$G$6:$EV$253,144,FALSE) -> 38% | N21: =VLOOKUP($C21,'RECAP SECT'!$G$6:$EV$253,145,FALSE) -> 11
A22: 110 | B22: MEURTHE ET MOSELLE MEUSE | C22: 31 | D22: VERDUN | E22: =VLOOKUP($C22,'RECAP SECT'!$G$6:$EV$253,3,FALSE) -> 64.7 | F22: =VLOOKUP($C22,'RECAP SECT'!$G$6:$EV$253,137,FALSE) -> -8 | G22: =VLOOKUP($C22,'RECAP SECT'!$G$6:$EV$253,138,FALSE) -> 35% | H22: =VLOOKUP($C22,'RECAP SECT'!$G$6:$EV$253,139,FALSE) -> 5 | I22: =VLOOKUP($C22,'RECAP SECT'!$G$6:$EV$253,140,FALSE) -> 75% | J22: =VLOOKUP($C22,'RECAP SECT'!$G$6:$EV$253,141,FALSE) -> 6% | K22: =VLOOKUP($C22,'RECAP SECT'!$G$6:$EV$253,142,FALSE) -> 10 | L22: =VLOOKUP($C22,'RECAP SECT'!$G$6:$EV$253,143,FALSE) -> 20% | M22: =VLOOKUP($C22,'RECAP SECT'!$G$6:$EV$253,144,FALSE) -> 20% | N22: =VLOOKUP($C22,'RECAP SECT'!$G$6:$EV$253,145,FALSE) -> 6
A23: 160 | B23: MOSELLE | C23: 45 | D23: METZ | E23: =VLOOKUP($C23,'RECAP SECT'!$G$6:$EV$253,3,FALSE) -> 103.2 | F23: =VLOOKUP($C23,'RECAP SECT'!$G$6:$EV$253,137,FALSE) -> -12 | G23: =VLOOKUP($C23,'RECAP SECT'!$G$6:$EV$253,138,FALSE) -> 58% | H23: =VLOOKUP($C23,'RECAP SECT'!$G$6:$EV$253,139,FALSE) -> 9 | I23: =VLOOKUP($C23,'RECAP SECT'!$G$6:$EV$253,140,FALSE) -> 77% | J23: =VLOOKUP($C23,'RECAP SECT'!$G$6:$EV$253,141,FALSE) -> 3% | K23: =VLOOKUP($C23,'RECAP SECT'!$G$6:$EV$253,142,FALSE) -> 6 | L23: =VLOOKUP($C23,'RECAP SECT'!$G$6:$EV$253,143,FALSE) -> 30% | M23: =VLOOKUP($C23,'RECAP SECT'!$G$6:$EV$253,144,FALSE) -> 30% | N23: =VLOOKUP($C23,'RECAP SECT'!$G$6:$EV$253,145,FALSE) -> 9
A24: 160 | B24: MOSELLE | C24: 42 | D24: MOSELLE EST | E24: =VLOOKUP($C24,'RECAP SECT'!$G$6:$EV$253,3,FALSE) -> 86.1 | F24: =VLOOKUP($C24,'RECAP SECT'!$G$6:$EV$253,137,FALSE) -> -6 | G24: =VLOOKUP($C24,'RECAP SECT'!$G$6:$EV$253,138,FALSE) -> 23% | H24: =VLOOKUP($C24,'RECAP SECT'!$G$6:$EV$253,139,FALSE) -> 3 | I24: =VLOOKUP($C24,'RECAP SECT'!$G$6:$EV$253,140,FALSE) -> 79% | J24: =VLOOKUP($C24,'RECAP SECT'!$G$6:$EV$253,141,FALSE) -> 1% | K24: =VLOOKUP($C24,'RECAP SECT'!$G$6:$EV$253,142,FALSE) -> 2 | L24: =VLOOKUP($C24,'RECAP SECT'!$G$6:$EV$253,143,FALSE) -> 12% | M24: =VLOOKUP($C24,'RECAP SECT'!$G$6:$EV$253,144,FALSE) -> 12% | N24: =VLOOKUP($C24,'RECAP SECT'!$G$6:$EV$253,145,FALSE) -> 3
A25: 160 | B25: MOSELLE | C25: 44 | D25: MOSELLE NORD | E25: =VLOOKUP($C25,'RECAP SECT'!$G$6:$EV$253,3,FALSE) -> 80.5 | F25: =VLOOKUP($C25,'RECAP SECT'!$G$6:$EV$253,137,FALSE) -> -19 | G25: =VLOOKUP($C25,'RECAP SECT'!$G$6:$EV$253,138,FALSE) -> 98% | H25: =VLOOKUP($C25,'RECAP SECT'!$G$6:$EV$253,139,FALSE) -> 14 | I25: =VLOOKUP($C25,'RECAP SECT'!$G$6:$EV$253,140,FALSE) -> 73% | J25: =VLOOKUP($C25,'RECAP SECT'!$G$6:$EV$253,141,FALSE) -> 8% | K25: =VLOOKUP($C25,'RECAP SECT'!$G$6:$EV$253,142,FALSE) -> 17 | L25: =VLOOKUP($C25,'RECAP SECT'!$G$6:$EV$253,143,FALSE) -> 53% | M25: =VLOOKUP($C25,'RECAP SECT'!$G$6:$EV$253,144,FALSE) -> 53% | N25: =VLOOKUP($C25,'RECAP SECT'!$G$6:$EV$253,145,FALSE) -> 14
A26: 80 | B26: VOSGES | C26: 57 | D26: EPINAL | E26: =VLOOKUP($C26,'RECAP SECT'!$G$6:$EV$253,3,FALSE) -> 68.7 | F26: =VLOOKUP($C26,'RECAP SECT'!$G$6:$EV$253,137,FALSE) -> -16 | G26: =VLOOKUP($C26,'RECAP SECT'!$G$6:$EV$253,138,FALSE) -> 81% | H26: =VLOOKUP($C26,'RECAP SECT'!$G$6:$EV$253,139,FALSE) -> 12 | I26: =VLOOKUP($C26,'RECAP SECT'!$G$6:$EV$253,140,FALSE) -> 77% | J26: =VLOOKUP($C26,'RECAP SECT'!$G$6:$EV$253,141,FALSE) -> 3% | K26: =VLOOKUP($C26,'RECAP SECT'!$G$6:$EV$253,142,FALSE) -> 7 | L26: =VLOOKUP($C26,'RECAP SECT'!$G$6:$EV$253,143,FALSE) -> 42% | M26: =VLOOKUP($C26,'RECAP SECT'!$G$6:$EV$253,144,FALSE) -> 42% | N26: =VLOOKUP($C26,'RECAP SECT'!$G$6:$EV$253,145,FALSE) -> 12
A27: 80 | B27: VOSGES | C27: 55 | D27: SAINT DIE | E27: =VLOOKUP($C27,'RECAP SECT'!$G$6:$EV$253,3,FALSE) -> 58.0 | F27: =VLOOKUP($C27,'RECAP SECT'!$G$6:$EV$253,137,FALSE) -> -8 | G27: =VLOOKUP($C27,'RECAP SECT'!$G$6:$EV$253,138,FALSE) -> 35% | H27: =VLOOKUP($C27,'RECAP SECT'!$G$6:$EV$253,139,FALSE) -> 5 | I27: =VLOOKUP($C27,'RECAP SECT'!$G$6:$EV$253,140,FALSE) -> 78% | J27: =VLOOKUP($C27,'RECAP SECT'!$G$6:$EV$253,141,FALSE) -> 2% | K27: =VLOOKUP($C27,'RECAP SECT'!$G$6:$EV$253,142,FALSE) -> 3 | L27: =VLOOKUP($C27,'RECAP SECT'!$G$6:$EV$253,143,FALSE) -> 18% | M27: =VLOOKUP($C27,'RECAP SECT'!$G$6:$EV$253,144,FALSE) -> 18% | N27: =VLOOKUP($C27,'RECAP SECT'!$G$6:$EV$253,145,FALSE) -> 5
A28: Total CEGEE Directions Régionales | E28: =SUM(E10:E27) -> 1367

Sheet AG_CLASS
A1: Accueil | H1: BAROMETRE BDD - AGENCES
H2: CLASSEMENTS
H3: =ACCUEIL!H7 -> 2019-07-31
H8: CLASSEMENT GENERAL | I8: CRITERE CONQUETE | J8: Evolution nette Clients Bancarisés Principaux (BP +JBP) par ETP | K8: Evolution nette relations Premium par ETP | L8: Evolution nette Clients Bancarisés Principaux équipés par ETP | M8: Evolution nette Clients Pro actif équipés par rapport à l’objectif fixé | N8: CRITERE EQUIPEMENT BANCARISATION | O8: Ventes nettes forfaits (+ 2 options) par ETP | P8: Ventes nettes IZICARTES par ETP | Q8: Ventes nettes cartes HDG par ETP | R8: Vente nette CB débit différé par ETP | S8: Ventes nettes banca Pro Forfaits Pro, Carte pro par rapport à l’objectif | T8: CRITERE EPARGNE | U8: Excédents de collecte (y.c DAV) par ETP | V8: CA assurance vie par ETP | W8: Activité UC (CA+arbitrage) par ETP | X8: Excédents Assurance-vie par ETP | Y8: Excédents Epargne Bilan (Hors Emprunts CTO) par ETP | Z8: CRITERE CREDITS | AA8: Engagement Conso par ETP (hors clients 9) | AB8: % CNP sur Conso en valeur absolue | AC8: Engagements Immo par rapport à l’objectif | AD8: % CNP sur crédits immo en valeur absolue | AE8: Taux de couverture SACCEF | AF8: Engagements CMLT + CB par rapport à l’objectif | AG8: CRITERE IARD PREVOYANCE | AH8: Ventes nettes IARD (Auto+MRH+ Pro) par ETP | AI8: Ventes nettes Prévoyance (GAV, secur.f,prevoy loc,santé,assist.vie, obséques, Pro) par ETP | AJ8: Chiffre d’affaires IARD (Yc Pro) par ETP | AK8: CRITERE RISQUES | AL8: Complétude, conformité et fiabilisation des nouvelles EER sur flux BDD | AM8: Complétude, conformité et fiabilisation des EER sur flux cumulé et stock | AN8: Traitement et qualité du traitement des alertes Vigiclient | AO8: CRITERE Satisfaction Clients | AP8: Objectifs NPS* | AQ8: Enquête Qualité Haute Définition
A9: eds | B9: Direction | C9: eds | D9: Territoire | E9: eds | F9: Agence | G9: ETP perf | H9: Rang | I9: Rang | J9: Rang | K9: Rang | L9: Rang | M9: Rang | N9: Rang | O9: Rang | P9: Rang | Q9: Rang | R9: Rang | S9: Rang | T9: Rang | U9: Rang | V9: Rang | W9: Rang | X9: Rang | Y9: Rang | Z9: Rang | AA9: Rang | AB9: Rang | AC9: Rang | AD9: Rang | AE9: Rang | AF9: Rang | AG9: Rang | AH9: Rang | AI9: Rang | AJ9: Rang | AK9: Rang | AL9: Rang | AM9: Rang | AN9: Rang | AO9: Rang | AP9: Rang | AQ9: Rang
A10: 30 | B10: MARNE-ARDENNES | C10: 2 | D10: CHARLEVILLE MEZIERES | E10: 508819 | F10: MOUZON | G10: =VLOOKUP($E10,'RECAP AG'!$G$6:$EV$313,3,FALSE) -> 2.0 | H10: =VLOOKUP($E10,'RECAP AG'!$G$6:$FF$313,154,FALSE) -> 1 | I10: =VLOOKUP($E10,'RECAP AG'!$G$6:$FF$313,19,FALSE) -> 2 | J10: =VLOOKUP($E10,'RECAP AG'!$G$6:$FF$313,7,FALSE) -> 1 | K10: =VLOOKUP($E10,'RECAP AG'!$G$6:$FF$313,10,FALSE) -> 224 | L10: =VLOOKUP($E10,'RECAP AG'!$G$6:$FF$313,13,FALSE) -> 1 | M10: =VLOOKUP($E10,'RECAP AG'!$G$6:$FF$313,16,FALSE) -> 12 | N10: =VLOOKUP($E10,'RECAP AG'!$G$6:$FF$313,43,FALSE) -> 139 | O10: =VLOOKUP($E10,'RECAP AG'!$G$6:$FF$313,28,FALSE) -> 141 | P10: =VLOOKUP($E10,'RECAP AG'!$G$6:$FF$313,31,FALSE) -> 274 | Q10: =VLOOKUP($E10,'RECAP AG'!$G$6:$FF$313,34,FALSE) -> 151 | R10: =VLOOKUP($E10,'RECAP AG'!$G$6:$FF$313,37,FALSE) -> 258 | S10: =VLOOKUP($E10,'RECAP AG'!$G$6:$FF$313,40,FALSE) -> 5 | T10: =VLOOKUP($E10,'RECAP AG'!$G$6:$FF$313,67,FALSE) -> 164 | U10: =VLOOKUP($E10,'RECAP AG'!$G$6:$FF$313,52,FALSE) -> 180 | V10: =VLOOKUP($E10,'RECAP AG'!$G$6:$FF$313,55,FALSE) -> 106 | W10: =VLOOKUP($E10,'RECAP AG'!$G$6:$FF$313,58,FALSE) -> 137 | X10: =VLOOKUP($E10,'RECAP AG'!$G$6:$FF$313,61,FALSE) -> 173 | Y10: =VLOOKUP($E10,'RECAP AG'!$G$6:$FF$313,64,FALSE) -> 164 | Z10: =VLOOKUP($E10,'RECAP AG'!$G$6:$FF$313,94,FALSE) -> 1 | AA10: =VLOOKUP($E10,'RECAP AG'!$G$6:$FF$313,76,FALSE) -> 3 | AB10: =VLOOKUP($E10,'RECAP AG'!$G$6:$FF$313,79,FALSE) -> 101 | AC10: =VLOOKUP($E10,'RECAP AG'!$G$6:$FF$313,82,FALSE) -> 32 | AD10: =VLOOKUP($E10,'RECAP AG'!$G$6:$FF$313,85,FALSE) -> 39 | AE10: =VLOOKUP($E10,'RECAP AG'!$G$6:$FF$313,88,FALSE) -> 217 | AF10: =VLOOKUP($E10,'RECAP AG'!$G$6:$FF$313,91,FALSE) -> 41 | AG10: =VLOOKUP($E10,'RECAP AG'!$G$6:$FF$313,112,FALSE) -> 2 | AH10: =VLOOKUP($E10,'RECAP AG'!$G$6:$FF$313,103,FALSE) -> 3 | AI10: =VLOOKUP($E10,'RECAP AG'!$G$6:$FF$313,106,FALSE) -> 14 | AJ10: =VLOOKUP($E10,'RECAP AG'!$G$6:$FF$313,109,FALSE) -> 1 | AK10: =VLOOKUP($E10,'RECAP AG'!$G$6:$FF$313,130,FALSE) -> 18 | AL10: =VLOOKUP($E10,'RECAP AG'!$G$6:$FF$313,121,FALSE) -> 167 | AM10: =VLOOKUP($E10,'RECAP AG'!$G$6:$FF$313,124,FALSE) -> 14 | AN10: =VLOOKUP($E10,'RECAP AG'!$G$6:$FF$313,127,FALSE) -> 1 | AO10: =VLOOKUP($E10,'RECAP AG'!$G$6:$FF$313,145,FALSE) -> 24 | AP10: =VLOOKUP($E10,'RECAP AG'!$G$6:$FF$313,139,FALSE) -> 30 | AQ10: =VLOOKUP($E10,'RECAP AG'!$G$6:$FF$313,142,FALSE) -> 14
A11: 110 | B11: MEURTHE ET MOSELLE MEUSE | C11: 27 | D11: PONT A MOUSSON | E11: 454696 | F11: VILLERS GENERAL LECLERC | G11: =VLOOKUP($E11,'RECAP AG'!$G$6:$EV$313,3,FALSE) -> 6.3 | H11: =VLOOKUP($E11,'RECAP AG'!$G$6:$FF$313,154,FALSE) -> 2 | I11: =VLOOKUP($E11,'RECAP AG'!$G$6:$FF$313,19,FALSE) -> 4 | J11: =VLOOKUP($E11,'RECAP AG'!$G$6:$FF$313,7,FALSE) -> 138 | K11: =VLOOKUP($E11,'RECAP AG'!$G$6:$FF$313,10,FALSE) -> 123 | L11: =VLOOKUP($E11,'RECAP AG'!$G$6:$FF$313,13,FALSE) -> 14 | M11: =VLOOKUP($E11,'RECAP AG'!$G$6:$FF$313,16,FALSE) -> 2 | N11: =VLOOKUP($E11,'RECAP AG'!$G$6:$FF$313,43,FALSE) -> 4 | O11: =VLOOKUP($E11,'RECAP AG'!$G$6:$FF$313,28,FALSE) -> 221 | P11: =VLOOKUP($E11,'RECAP AG'!$G$6:$FF$313,31,FALSE) -> 3 | Q11: =VLOOKUP($E11,'RECAP AG'!$G$6:$FF$313,34,FALSE) -> 3 | R11: =VLOOKUP($E11,'RECAP AG'!$G$6:$FF$313,37,FALSE) -> 40 | S11: =VLOOKUP($E11,'RECAP AG'!$G$6:$FF$313,40,FALSE) -> 169 | T11: =VLOOKUP($E11,'RECAP AG'!$G$6:$FF$313,67,FALSE) -> 28 | U11: =VLOOKUP($E11,'RECAP AG'!$G$6:$FF$313,52,FALSE) -> 59 | V11: =VLOOKUP($E11,'RECAP AG'!$G$6:$FF$313,55,FALSE) -> 13 | W11: =VLOOKUP($E11,'RECAP AG'!$G$6:$FF$313,58,FALSE) -> 10 | X11: =VLOOKUP($E11,'RECAP AG'!$G$6:$FF$313,61,FALSE) -> 37 | Y11: =VLOOKUP($E11,'RECAP AG'!$G$6:$FF$313,64,FALSE) -> 98 | Z11: =VLOOKUP($E11,'RECAP AG'!$G$6:$FF$313,94,FALSE) -> 2 | AA11: =VLOOKUP($E11,'RECAP AG'!$G$6:$FF$313,76,FALSE) -> 8 | AB11: =VLOOKUP($E11,'RECAP AG'!$G$6:$FF$313,79,FALSE) -> 232 | AC11: =VLOOKUP($E11,'RECAP AG'!$G$6:$FF$313,82,FALSE) -> 5 | AD11: =VLOOKUP($E11,'RECAP AG'!$G$6:$FF$313,85,FALSE) -> 173 | AE11: =VLOOKUP($E11,'RECAP AG'!$G$6:$FF$313,88,FALSE) -> 160 | AF11: =VLOOKUP($E11,'RECAP AG'!$G$6:$FF$313,91,FALSE) -> 16 | AG11: =VLOOKUP($E11,'RECAP AG'!$G$6:$FF$313,112,FALSE) -> 8 | AH11: =VLOOKUP($E11,'RECAP AG'!$G$6:$FF$313,103,FALSE) -> 21 | AI11: =VLOOKUP($E11,'RECAP AG'!$G$6:$FF$313,106,FALSE) -> 1 | AJ11: =VLOOKUP($E11,'RECAP AG'!$G$6:$FF$313,109,FALSE) -> 165 | AK11: =VLOOKUP($E11,'RECAP AG'!$G$6:$FF$313,130,FALSE) -> 197 | AL11: =VLOOKUP($E11,'RECAP AG'!$G$6:$FF$313,121,FALSE) -> 219 | AM11: =VLOOKUP($E11,'RECAP AG'!$G$6:$FF$313,124,FALSE) -> 245 | AN11: =VLOOKUP($E11,'RECAP AG'!$G$6:$FF$313,127,FALSE) -> 1 | AO11: =VLOOKUP($E11,'RECAP AG'!$G$6:$FF$313,145,FALSE) -> 104 | AP11: =VLOOKUP($E11,'RECAP AG'!$G$6:$FF$313,139,FALSE) -> 131 | AQ11: =VLOOKUP($E11,'RECAP AG'!$G$6:$FF$313,142,FALSE) -> 29
A12: 30 | B12: MARNE-ARDENNES | C12: 2 | D12: CHARLEVILLE MEZIERES | E12: 508833 | F12: VILLERS SEMEUSE CORA | G12: =VLOOKUP($E12,'RECAP AG'!$G$6:$EV$313,3,FALSE) -> 2.9 | H12: =VLOOKUP($E12,'RECAP AG'!$G$6:$FF$313,154,FALSE) -> 3 | I12: =VLOOKUP($E12,'RECAP AG'!$G$6:$FF$313,19,FALSE) -> 1 | J12: =VLOOKUP($E12,'RECAP AG'!$G$6:$FF$313,7,FALSE) -> 10 | K12: =VLOOKUP($E12,'RECAP AG'!$G$6:$FF$313,10,FALSE) -> 3 | L12: =VLOOKUP($E12,'RECAP AG'!$G$6:$FF$313,13,FALSE) -> 4 | M12: =VLOOKUP($E12,'RECAP AG'!$G$6:$FF$313,16,FALSE) -> 12 | N12: =VLOOKUP($E12,'RECAP AG'!$G$6:$FF$313,43,FALSE) -> 2 | O12: =VLOOKUP($E12,'RECAP AG'!$G$6:$FF$313,28,FALSE) -> 232 | P12: =VLOOKUP($E12,'RECAP AG'!$G$6:$FF$313,31,FALSE) -> 4 | Q12: =VLOOKUP($E12,'RECAP AG'!$G$6:$FF$313,34,FALSE) -> 4 | R12: =VLOOKUP($E12,'RECAP AG'!$G$6:$FF$313,37,FALSE) -> 5 | S12: =VLOOKUP($E12,'RECAP AG'!$G$6:$FF$313,40,FALSE) -> 88 | T12: =VLOOKUP($E12,'RECAP AG'!$G$6:$FF$313,67,FALSE) -> 189 | U12: =VLOOKUP($E12,'RECAP AG'!$G$6:$FF$313,52,FALSE) -> 106 | V12: =VLOOKUP($E12,'RECAP AG'!$G$6:$FF$313,55,FALSE) -> 223 | W12: =VLOOKUP($E12,'RECAP AG'!$G$6:$FF$313,58,FALSE) -> 218 | X12: =VLOOKUP($E12,'RECAP AG'!$G$6:$FF$313,61,FALSE) -> 162 | Y12: =VLOOKUP($E12,'RECAP AG'!$G$6:$FF$313,64,FALSE) -> 197 | Z12: =VLOOKUP($E12,'RECAP AG'!$G$6:$FF$313,94,FALSE) -> 56 | AA12: =VLOOKUP($E12,'RECAP AG'!$G$6:$FF$313,76,FALSE) -> 99 | AB12: =VLOOKUP($E12,'RECAP AG'!$G$6:$FF$313,79,FALSE) -> 134 | AC12: =VLOOKUP($E12,'RECAP AG'!$G$6:$FF$313,82,FALSE) -> 84 | AD12: =VLOOKUP($E12,'RECAP AG'!$G$6:$FF$313,85,FALSE) -> 119 | AE12: =VLOOKUP($E12,'RECAP AG'!$G$6:$FF$313,88,FALSE) -> 100 | AF12: =VLOOKUP($E12,'RECAP AG'!$G$6:$FF$313,91,FALSE) -> 103 | AG12: =VLOOKUP($E12,'RECAP AG'!$G$6:$FF$313,112,FALSE) -> 4 | AH12: =VLOOKUP($E12,'RECAP AG'!$G$6:$FF$313,103,FALSE) -> 5 | AI12: =VLOOKUP($E12,'RECAP AG'!$G$6:$FF$313,106,FALSE) -> 3 | AJ12: =VLOOKUP($E12,'RECAP AG'!$G$6:$FF$313,109,FALSE) -> 11 | AK12: =VLOOKUP($E12,'RECAP AG'!$G$6:$FF$313,130,FALSE) -> 159 | AL12: =VLOOKUP($E12,'RECAP AG'!$G$6:$FF$313,121,FALSE) -> 124 | AM12: =VLOOKUP($E12,'RECAP AG'!$G$6:$FF$313,124,FALSE) -> 235 | AN12: =VLOOKUP($E12,'RECAP AG'!$G$6:$FF$313,127,FALSE) -> 1 | AO12: =VLOOKUP($E12,'RECAP AG'!$G$6:$FF$313,145,FALSE) -> 122 | AP12: =VLOOKUP($E12,'RECAP AG'!$G$6:$FF$313,139,FALSE) -> 81 | AQ12: =VLOOKUP($E12,'RECAP AG'!$G$6:$FF$313,142,FALSE) -> 254
A13: 160 | B13: MOSELLE | C13: 45 | D13: METZ | E13: 557444 | F13: METZ SAINT JULIEN | G13: =VLOOKUP($E13,'RECAP AG'!$G$6:$EV$313,3,FALSE) -> 5.6 | H13: =VLOOKUP($E13,'RECAP AG'!$G$6:$FF$313,154,FALSE) -> 4 | I13: =VLOOKUP($E13,'RECAP AG'!$G$6:$FF$313,19,FALSE) -> 5 | J13: =VLOOKUP($E13,'RECAP AG'!$G$6:$FF$313,7,FALSE) -> 92 | K13: =VLOOKUP($E13,'RECAP AG'!$G$6:$FF$313,10,FALSE) -> 173 | L13: =VLOOKUP($E13,'RECAP AG'!$G$6:$FF$313,13,FALSE) -> 84 | M13: =VLOOKUP($E13,'RECAP AG'!$G$6:$FF$313,16,FALSE) -> 1 | N13: =VLOOKUP($E13,'RECAP AG'!$G$6:$FF$313,43,FALSE) -> 176 | O13: =VLOOKUP($E13,'RECAP AG'!$G$6:$FF$313,28,FALSE) -> 290 | P13: =VLOOKUP($E13,'RECAP AG'!$G$6:$FF$313,31,FALSE) -> 75 | Q13: =VLOOKUP($E13,'RECAP AG'!$G$6:$FF$313,34,FALSE) -> 61 | R13: =VLOOKUP($E13,'RECAP AG'!$G$6:$FF$313,37,FALSE) -> 152 | S13: =VLOOKUP($E13,'RECAP AG'!$G$6:$FF$313,40,FALSE) -> 153 | T13: =VLOOKUP($E13,'RECAP AG'!$G$6:$FF$313,67,FALSE) -> 5 | U13: =VLOOKUP($E13,'RECAP AG'!$G$6:$FF$313,52,FALSE) -> 3 | V13: =VLOOKUP($E13,'RECAP AG'!$G$6:$FF$313,55,FALSE) -> 16 | W13: =VLOOKUP($E13,'RECAP AG'!$G$6:$FF$313,58,FALSE) -> 2 | X13: =VLOOKUP($E13,'RECAP AG'!$G$6:$FF$313,61,FALSE) -> 10 | Y13: =VLOOKUP($E13,'RECAP AG'!$G$6:$FF$313,64,FALSE) -> 26 | Z13: =VLOOKUP($E13,'RECAP AG'!$G$6:$FF$313,94,FALSE) -> 131 | AA13: =VLOOKUP($E13,'RECAP AG'!$G$6:$FF$313,76,FALSE) -> 80 | AB13: =VLOOKUP($E13,'RECAP AG'!$G$6:$FF$313,79,FALSE) -> 226 | AC13: =VLOOKUP($E13,'RECAP AG'!$G$6:$FF$313,82,FALSE) -> 123 | AD13: =VLOOKUP($E13,'RECAP AG'!$G$6:$FF$313,85,FALSE) -> 262 | AE13: =VLOOKUP($E13,'RECAP AG'!$G$6:$FF$313,88,FALSE) -> 94 | AF13: =VLOOKUP($E13,'RECAP AG'!$G$6:$FF$313,91,FALSE) -> 93 | AG13: =VLOOKUP($E13,'RECAP AG'!$G$6:$FF$313,112,FALSE) -> 26 | AH13: =VLOOKUP($E13,'RECAP AG'!$G$6:$FF$313,103,FALSE) -> 40 | AI13: =VLOOKUP($E13,'RECAP AG'!$G$6:$FF$313,106,FALSE) -> 24 | AJ13: =VLOOKUP($E13,'RECAP AG'!$G$6:$FF$313,109,FALSE) -> 118 | AK13: =VLOOKUP($E13,'RECAP AG'!$G$6:$FF$313,130,FALSE) -> 70 | AL13: =VLOOKUP($E13,'RECAP AG'!$G$6:$FF$313,121,FALSE) -> 108 | AM13: =VLOOKUP($E13,'RECAP AG'!$G$6:$FF$313,124,FALSE) -> 115 | AN13: =VLOOKUP($E13,'RECAP AG'!$G$6:$FF$313,127,FALSE) -> 1 | AO13: =VLOOKUP($E13,'RECAP AG'!$G$6:$FF$313,145,FALSE) -> 46 | AP13: =VLOOKUP($E13,'RECAP AG'!$G$6:$FF$313,139,FALSE) -> 53 | AQ13: =VLOOKUP($E13,'RECAP AG'!$G$6:$FF$313,142,FALSE) -> 27
